Workbook

Sheet Datos ESE
B2: INFORME DE MONITOREO Y SEGUIMIENTO | C2: 2023
B4: IDENTIFICACION DE LA EMPRESA SOCIAL DEL ESTADO
B5: Año de presentación del Programa o Modificación : | D5: 2022
B6: Año de finalización del Programa o Modificación : | D6: 2026
B7: NOMBRE DE LA EMPRESA SOCIAL DEL ESTADO | C7: ESE HOSPITAL SAN JOSE DE CONDOTO
B8: NIT | C8: 8916000617
B9: NIVEL DE ATENCIÓN (Digite 1, 2 o 3 según sea el nivel) | C9: 1
B10: NOMBRE DE LA RED A LA QUE PERTENECE | C10: SUBREGION DEL SAN JUAN
B11: ROL DE LA ESE EN LA RED | C11: ENTIDAD PRESTADORA Y REMISORA DE PRIMER NIVEL DE COMPLEJIDAD
B12: CARÁCTER TERRITORIAL | C12: MUNICIPAL
B13: DEPARTAMENTO / DISTRITO | C13: CHOCÓ
B14: MUNICIPIO SEDE PRINCIPAL | C14: CONDOTO
B15: CODIGO PRESTADOR - REPS | C15: 2720500085
B16: ACTO DE JUNTA DIRECTIVA DE ADOPCIÓN DEL PROGRAMA
B17: INFORMACIÓN GERENTE ACTUAL
B18: Periodo de Corte (Mes / Año) Excepto Pasivos | C18: Diciembre | D18: 2021
B19: Periodo de Corte para los pasivos (Mes / Año) | C19: Diciembre | D19: 2021

Sheet Cuadro 1
B8: CUADRO No. 1 - INFORME EJECUCIÓN TRIMESTRAL DE MEDIDAS PROGRAMA DE SANEAMIENTO FISCAL Y FINANCIERO ESE Código de Habilitación
B9: PERIODO DE CORTE | C9: =+'Datos ESE'!C2 -> 2023 | D9: ESE | E9: =IF(+'Datos ESE'!C7=0," ",'Datos ESE'!C7) -> ESE HOSPITAL SAN JOSE DE CONDOTO | J9: INFORME DE MONITOREO | T9: INFORME DE SEGUIMIENTO
J10: EJECUCIÓN ACUMULADA AL CIERRE DEL AÑO ANTERIOR (%) (Debe registrar el porcentaje acumulado con el que finalizó el año anterior, teniendo en cuenta el porcentaje de ejecución para la medida en cada año (si la medida fue establecida para ejecutar en varias vigencias) | K10: EJECUCIÓN ACUMULADA DE LA MEDIDA DURANTE LA VIGENCIA (%) | O10: EJECUCIÓN ACUMULADA DURANTE LA VIGENCIA (%) | P10: EJECUCIÓN ACUMULADA ESPERADA AL FINAL DE LA VIGENCIA(%) (Debe registrar el porcentaje acumulado que esperaba tener al finalizar la vigencia. Tener en cuenta el cuadro 31 de medidas del PSFF) | Q10: Observaciones o Comentarios
B11: CATEGORIA DE LA MEDIDA (Seleccione la categoría de la lista) | C11: PROBLEMA IDENTIFICADO Y CAUSA QUE LO GENERA | D11: DESCRIPCIÓN DE LA MEDIDA | E11: DESCRIPCIÓN DE LA META | F11: PRODUCTO O SOPORTE DEL CUMPLIMIENTO DE LA MEDIDA O COMPROMISO | G11: FECHA INICIAL (DD/MM/AAAA) | H11: FECHA FINAL (DD/MM/YYYY) | I11: LINEA DE BASE | K11: TRIMESTRE 1 (Debe registrar el porcentaje de avance del trimestre anterior más la ejecución del trimestre a reportar) | L11: TRIMESTRE 2 (Debe registrar el porcentaje de avance del trimestre anterior más la ejecución del trimestre a reportar) | M11: TRIMESTRE 3 (Debe registrar el porcentaje de avance del trimestre anterior más la ejecución del trimestre a reportar) | N11: TRIMESTRE 4 (Debe registrar el porcentaje de avance del trimestre anterior más la ejecución del trimestre a reportar) | T11: EJECUCIÓN ACUMULADA AL CIERRE DEL TRIMESTRE DE CORTE % (Debe registrar el porcentaje acumulado que obtuvo al finalizar el trimestre reportado) | U11: SOPORTE DOCUMENTAL PRESENTADOS POR LA ESE | V11: CONCLUSIONES SEGUIMIENTO (Analice los resultados obtenidos frente a los programados en el PSFF)
K12: Registre el avance en la ejecución de la medida propuesta en el PSFF. Según el indicador o meta determinada, registre aquí el valor de avance en cada trimestre frente al cumplimiento de la medida. Recuerde es el valor acumulado al final de cada trimestre.
A13: 2 | B13: =IF('Cuadro 31'!D4=0," ",'Cuadro 31'!D4) -> Fortalecimiento de los ingresos de las ESE | C13: =IF('Cuadro 31'!F4=0," ",'Cuadro 31'!F4) -> - Problema: La entidad aún no ha iniciado la implementación de la RIAS al 100% - Causa: La contratación con las EAPB aún se encuentra basada en la Resolución 412 del 2000 | D13: =IF('Cuadro 31'!G4=0," ",'Cuadro 31'!G4) -> F.O. : Lograr la implementación y puesta en marcha de las RIAS | E13: =IF('Cuadro 31'!I4=0," ",'Cuadro 31'!I4) -> Implementación y puesta en marcha de las RIAS en el 2021 | F13: =IF('Cuadro 31'!P4=0," ",'Cuadro 31'!P4) -> Actas de comité de Promoción de la Salud y Prevención de la Enfermedad | G13: =IF('Cuadro 31'!U4=0," ",'Cuadro 31'!U4) -> 2022-06-01 | H13: =IF('Cuadro 31'!V4=0," ",'Cuadro 31'!V4) -> 2024-12-31 | I13: =IF('Cuadro 31'!M4=" "," ",'Cuadro 31'!M4) -> 0 | O13: =+N13-J13 -> 0 | P13: =IF('Cuadro 31'!AA4=" "," ",'Cuadro 31'!AA4) -> 0.67
A14: 3 | B14: =IF('Cuadro 31'!D5=0," ",'Cuadro 31'!D5) -> Fortalecimiento de los ingresos de las ESE | C14: =IF('Cuadro 31'!F5=0," ",'Cuadro 31'!F5) -> - Problema: Incumplimiento en las actividades y coberturas contractualmente exigidas en promoción y prevención. - Causa: Falta de oportunidad en la planeación de las actividades a realizar por contrato o convenio; falta de personal en pyp | D14: =IF('Cuadro 31'!G5=0," ",'Cuadro 31'!G5) -> D.A. : Designar suficiente personal a las actividades de pyp según programación realizada conforme bases de datos adecuadas y de calidad. | E14: =IF('Cuadro 31'!I5=0," ",'Cuadro 31'!I5) -> Alcanzar mínimo el 80% del cumplimiento de estimaciones e indicadores trazadores | F14: =IF('Cuadro 31'!P5=0," ",'Cuadro 31'!P5) -> Ver informe trimestral de indicadores de COMFACHOCO EPS | G14: =IF('Cuadro 31'!U5=0," ",'Cuadro 31'!U5) -> 2022-06-01 | H14: =IF('Cuadro 31'!V5=0," ",'Cuadro 31'!V5) -> 2026-12-31 | I14: =IF('Cuadro 31'!M5=" "," ",'Cuadro 31'!M5) -> 0 | O14: 0 | P14: =IF('Cuadro 31'!AA5=" "," ",'Cuadro 31'!AA5) -> 0.32
A15: 4 | B15: =IF('Cuadro 31'!D6=0," ",'Cuadro 31'!D6) -> Fortalecimiento de los ingresos de las ESE | C15: =IF('Cuadro 31'!F6=0," ",'Cuadro 31'!F6) -> - Problema: Alta proporción de glosas en la ESE por incumplimientos de metas. - Causa: falta de oportunidad en la planeación de las actividades a realizar por contrato o convenio; falta de personal en pyp | D15: =IF('Cuadro 31'!G6=0," ",'Cuadro 31'!G6) -> F.A. : priorizar en el plan operativo institucional las actividades de promoción y de prevención de la salud | E15: =IF('Cuadro 31'!I6=0," ",'Cuadro 31'!I6) -> Plan estratégico de ejecución para cada contrato suscrito | F15: =IF('Cuadro 31'!P6=0," ",'Cuadro 31'!P6) -> Planes estratégicos elaborados | G15: =IF('Cuadro 31'!U6=0," ",'Cuadro 31'!U6) -> 2022-07-01 | H15: =IF('Cuadro 31'!V6=0," ",'Cuadro 31'!V6) -> 2024-12-31 | I15: =IF('Cuadro 31'!M6=" "," ",'Cuadro 31'!M6) -> 0 | O15: 0 | P15: =IF('Cuadro 31'!AA6=" "," ",'Cuadro 31'!AA6) -> 0.55
A16: 5 | B16: =IF('Cuadro 31'!D7=0," ",'Cuadro 31'!D7) -> Fortalecimiento de los ingresos de las ESE | C16: =IF('Cuadro 31'!F7=0," ",'Cuadro 31'!F7) -> - Problema: Baja recuperación de la cartera reconocida. Alta proporción de glosas en la ESE por incumplimientos de metas. - Causa: Incumplimiento de pago de las EPS ante la gestión de cobro de cartera y de los acuerdos en las mesas de trabajo. | D16: =IF('Cuadro 31'!G7=0," ",'Cuadro 31'!G7) -> D.A. : Implementar el proceso de cartera de tal forma que incluya las acciones prejuridicas y jurídicas para el cobro activo de la cartera. | E16: =IF('Cuadro 31'!I7=0," ",'Cuadro 31'!I7) -> Recuperar mediante cobro jurídico el 50% de la cartera actual mayor a 90 días de vencimiento en los años 2022 y 2023 | F16: =IF('Cuadro 31'!P7=0," ",'Cuadro 31'!P7) -> Estados financieros a fecha de corte | G16: =IF('Cuadro 31'!U7=0," ",'Cuadro 31'!U7) -> 2022-01-01 | H16: =IF('Cuadro 31'!V7=0," ",'Cuadro 31'!V7) -> 2023-12-31 | I16: =IF('Cuadro 31'!M7=" "," ",'Cuadro 31'!M7) -> 0 | O16: 0 | P16: =IF('Cuadro 31'!AA7=" "," ",'Cuadro 31'!AA7) -> 1
B17: =IF('Cuadro 31'!D8=0," ",'Cuadro 31'!D8) -> Racionalización del gasto | C17: =IF('Cuadro 31'!F8=0," ",'Cuadro 31'!F8) -> - Problema: Atención no estandarizada en los servicios de salud prestados - Causa: Falta de adherencia a guía de prácticas clínicas a los programas de crónicos y degenerativos | D17: =IF('Cuadro 31'!G8=0," ",'Cuadro 31'!G8) -> D.A. : Implementación del sistema Obligatorio de Garantía de la Calidad | E17: =IF('Cuadro 31'!I8=0," ",'Cuadro 31'!I8) -> Realizar adecuadamente los controles de pacientes crónicos por enfermera en los contratos por cápita | F17: =IF('Cuadro 31'!P8=0," ",'Cuadro 31'!P8) -> Actas del comité de pyp e indicadores del programa | G17: =IF('Cuadro 31'!U8=0," ",'Cuadro 31'!U8) -> 2022-01-01 | H17: =IF('Cuadro 31'!V8=0," ",'Cuadro 31'!V8) -> 2024-12-31 | I17: =IF('Cuadro 31'!M8=" "," ",'Cuadro 31'!M8) -> 0 | O17: 0 | P17: =IF('Cuadro 31'!AA8=" "," ",'Cuadro 31'!AA8) -> 0.66
B18: =IF('Cuadro 31'!D9=0," ",'Cuadro 31'!D9) -> Racionalización del gasto | C18: =IF('Cuadro 31'!F9=0," ",'Cuadro 31'!F9) -> - Problema: Baja calidad del dato en la información generada por cada área de la entidad. - Causa: Débil sistema de información generador de indicadores en la institución. | D18: =IF('Cuadro 31'!G9=0," ",'Cuadro 31'!G9) -> F.O. : Capacitación y entrenamiento del personal | E18: =IF('Cuadro 31'!I9=0," ",'Cuadro 31'!I9) -> Contar un cuadro de mando que permita el seguimiento del 60% de los indicadores de la entidad a partir de enero de 2020 | F18: =IF('Cuadro 31'!P9=0," ",'Cuadro 31'!P9) -> Auditorías internas de rips, comité de historias clínicas | G18: =IF('Cuadro 31'!U9=0," ",'Cuadro 31'!U9) -> 2022-01-01 | H18: =IF('Cuadro 31'!V9=0," ",'Cuadro 31'!V9) -> 2024-12-31 | I18: =IF('Cuadro 31'!M9=" "," ",'Cuadro 31'!M9) -> 0.6 | O18: 0 | P18: =IF('Cuadro 31'!AA9=" "," ",'Cuadro 31'!AA9) -> 0.66
B19: =IF('Cuadro 31'!D10=0," ",'Cuadro 31'!D10) -> Racionalización del gasto | C19: =IF('Cuadro 31'!F10=0," ",'Cuadro 31'!F10) -> - Problema: Déficit presupuestal tanto en reconocimiento como en recaudos. - Causa: Falta de planeación razonable de los gastos de la vigencia. | D19: =IF('Cuadro 31'!G10=0," ",'Cuadro 31'!G10) -> D.A. : Implementar plan de austeridad del gasto. | E19: =IF('Cuadro 31'!I10=0," ",'Cuadro 31'!I10) -> Disminuir en un 3% los gastos generales por vigencia. | F19: =IF('Cuadro 31'!P10=0," ",'Cuadro 31'!P10) -> Ejecuciones presupuestales con corte a diciembre 31 de cada vigencia | G19: =IF('Cuadro 31'!U10=0," ",'Cuadro 31'!U10) -> 2022-07-01 | H19: =IF('Cuadro 31'!V10=0," ",'Cuadro 31'!V10) -> 2024-12-31 | I19: =IF('Cuadro 31'!M10=" "," ",'Cuadro 31'!M10) -> 0 | O19: 0 | P19: =IF('Cuadro 31'!AA10=" "," ",'Cuadro 31'!AA10) -> 0.61
B20: =IF('Cuadro 31'!D11=0," ",'Cuadro 31'!D11) -> Reorganización administrativa | C20: =IF('Cuadro 31'!F11=0," ",'Cuadro 31'!F11) -> - Problema: Disminución de afiliación al SGSSS según las bases de Datos. - Causa: Inconsistencia entre las Bases de Datos de aseguramiento, SISBEN municipal, bases de datos EAPB | D20: =IF('Cuadro 31'!G11=0," ",'Cuadro 31'!G11) -> F.O. : Realizar proceso de afiliación en línea | E20: =IF('Cuadro 31'!I11=0," ",'Cuadro 31'!I11) -> realizar tramite de afiliación al recién Nacido en la Institución | F20: =IF('Cuadro 31'!P11=0," ",'Cuadro 31'!P11) -> Cruce de usuarios certificado por aseguramiento secretaria de salud municipal | G20: =IF('Cuadro 31'!U11=0," ",'Cuadro 31'!U11) -> 2022-01-01 | H20: =IF('Cuadro 31'!V11=0," ",'Cuadro 31'!V11) -> 2024-12-31 | I20: =IF('Cuadro 31'!M11=" "," ",'Cuadro 31'!M11) -> 0 | O20: 0 | P20: =IF('Cuadro 31'!AA11=" "," ",'Cuadro 31'!AA11) -> 0.66
B21: =IF('Cuadro 31'!D12=0," ",'Cuadro 31'!D12) -> Reorganización administrativa | C21: =IF('Cuadro 31'!F12=0," ",'Cuadro 31'!F12) -> - Problema: Alta proporción de personal misional contratado por modalidad tercerizada. - Causa: Planta de cargos institucional insuficiente para cumplir con las demandas asistenciales de la ESE | D21: =IF('Cuadro 31'!G12=0," ",'Cuadro 31'!G12) -> D.A. : Gestionar planta de cargos misionales temporal con su adecuado proceso de selección, adecuándola a la tipología de la red. | E21: =IF('Cuadro 31'!I12=0," ",'Cuadro 31'!I12) -> planta temporal de cargos misionales aprobada por el ministerio del trabajo | F21: =IF('Cuadro 31'!P12=0," ",'Cuadro 31'!P12) -> Planta temporal de cargos misionales aprobada por el ministerio de trabajo | G21: =IF('Cuadro 31'!U12=0," ",'Cuadro 31'!U12) -> 2022-07-01 | H21: =IF('Cuadro 31'!V12=0," ",'Cuadro 31'!V12) -> 2024-12-31 | I21: =IF('Cuadro 31'!M12=" "," ",'Cuadro 31'!M12) -> 0 | O21: 0 | P21: =IF('Cuadro 31'!AA12=" "," ",'Cuadro 31'!AA12) -> 0.61
A22: 11 | B22: =IF('Cuadro 31'!D13=0," ",'Cuadro 31'!D13) -> Reorganización administrativa | C22: =IF('Cuadro 31'!F13=0," ",'Cuadro 31'!F13) -> - Problema: Falta de direccionamiento Estratégico - Causa: Baja adherencia a las políticas y planes institucionales y despliegue de control interno en la institución | D22: =IF('Cuadro 31'!G13=0," ",'Cuadro 31'!G13) -> F.O. : Ejecutar y Aplicación de los planes de mejora | E22: =IF('Cuadro 31'!I13=0," ",'Cuadro 31'!I13) -> Alinear toda la organización a la plataforma estratégica | F22: =IF('Cuadro 31'!P13=0," ",'Cuadro 31'!P13) -> Manual de funciones de la entidad, Pamec y plan de desarrollo | G22: =IF('Cuadro 31'!U13=0," ",'Cuadro 31'!U13) -> 2022-01-01 | H22: =IF('Cuadro 31'!V13=0," ",'Cuadro 31'!V13) -> 2023-12-31 | I22: =IF('Cuadro 31'!M13=" "," ",'Cuadro 31'!M13) -> 0 | O22: 0 | P22: =IF('Cuadro 31'!AA13=" "," ",'Cuadro 31'!AA13) -> 1 | R22: 0 | S22: 0
A23: 12 | B23: =IF('Cuadro 31'!D14=0," ",'Cuadro 31'!D14) -> Reorganización administrativa | C23: =IF('Cuadro 31'!F14=0," ",'Cuadro 31'!F14) -> - Problema: Informes de calidad, producción y contables no confiables. - Causa: Falta compromiso del equipo contable en depurar la información contable, análisis costo beneficio del software | D23: =IF('Cuadro 31'!G14=0," ",'Cuadro 31'!G14) -> D.A. : Gestionar todos los requerimientos pendientes de dar solución por parte del proveedor y mantener depurado los estados financieros. | E23: =IF('Cuadro 31'!I14=0," ",'Cuadro 31'!I14) -> Lograr el 100% de depuración de cuentas contables hasta el 2022 | F23: =IF('Cuadro 31'!P14=0," ",'Cuadro 31'!P14) -> Información Contable de la Ese, SIHO, CHIP y circular 030 | G23: =IF('Cuadro 31'!U14=0," ",'Cuadro 31'!U14) -> 2022-01-01 | H23: =IF('Cuadro 31'!V14=0," ",'Cuadro 31'!V14) -> 2023-12-31 | I23: =IF('Cuadro 31'!M14=" "," ",'Cuadro 31'!M14) -> 0 | O23: 0 | P23: =IF('Cuadro 31'!AA14=" "," ",'Cuadro 31'!AA14) -> 1 | R23: 0 | S23: 0
A24: 13 | B24: =IF('Cuadro 31'!D15=0," ",'Cuadro 31'!D15) -> Saneamiento de pasivos | C24: =IF('Cuadro 31'!F15=0," ",'Cuadro 31'!F15) -> - Problema: Incremento de los pasivos de la E.S.E. que sobrepasan su capacidad de pago - Causa: Pago inoportuno de las EAPB | D24: =IF('Cuadro 31'!G15=0," ",'Cuadro 31'!G15) -> D.O. : Implementar medidas que permitan mejorar el recaudo y por ende la liquidez de la empresa. | E24: =IF('Cuadro 31'!I15=0," ",'Cuadro 31'!I15) -> Saneamiento del 100% del pasivo de la entidad en la vigencia del PSFF | F24: =IF('Cuadro 31'!P15=0," ",'Cuadro 31'!P15) -> Comprobantes de Egreso y Balance | G24: =IF('Cuadro 31'!U15=0," ",'Cuadro 31'!U15) -> 2022-01-01 | H24: =IF('Cuadro 31'!V15=0," ",'Cuadro 31'!V15) -> 2026-12-31 | I24: =IF('Cuadro 31'!M15=" "," ",'Cuadro 31'!M15) -> 0.5 | O24: 0 | P24: =IF('Cuadro 31'!AA15=" "," ",'Cuadro 31'!AA15) -> 0.33 | R24: 0 | S24: 0
A25: 14 | B25: =IF('Cuadro 31'!D16=0," ",'Cuadro 31'!D16) -> Reorganización administrativa | C25: =IF('Cuadro 31'!F16=0," ",'Cuadro 31'!F16) -> - Problema: Procesos administrativos desarticulados - Causa: Inexistencia de un manual de funciones que articulen de manera oportuna y efciente los proesos | D25: =IF('Cuadro 31'!G16=0," ",'Cuadro 31'!G16) -> D.A. : Establecer políticas de recuperación de cartera. (Radicación oportuna de cuentas, continua gestión de cuentas por cobrar, conciliación oportuna de glosas, Liquidación oportuna de contratos, cobro pre jurídico y jurídico de cuentas | E25: =IF('Cuadro 31'!I16=0," ",'Cuadro 31'!I16) -> Acta de liquidacion de contratos por legalizar. | F25: =IF('Cuadro 31'!P16=0," ",'Cuadro 31'!P16) -> Actas de liquidacion firmadas- Proceso Juridico de Cobro de cartera | G25: =IF('Cuadro 31'!U16=0," ",'Cuadro 31'!U16) -> 2022-01-01 | H25: =IF('Cuadro 31'!V16=0," ",'Cuadro 31'!V16) -> 2023-12-31 | I25: =IF('Cuadro 31'!M16=" "," ",'Cuadro 31'!M16) -> 0.3 | O25: 0 | P25: =IF('Cuadro 31'!AA16=" "," ",'Cuadro 31'!AA16) -> 1 | R25: 0 | S25: 0
A26: 15 | B26: =IF('Cuadro 31'!D17=0," ",'Cuadro 31'!D17) -> Reorganización administrativa | C26: =IF('Cuadro 31'!F17=0," ",'Cuadro 31'!F17) -> - Problema: Desarticulacion de la prestacion de SS de baja y mediana complejidad y la obligatoridad de ofertar - Causa: Deficiencias en el sistema de informacion en la parametrizacion, captura, tarifacion. | D26: =IF('Cuadro 31'!G17=0," ",'Cuadro 31'!G17) -> F.O. : Estandarizacion del proceso de facturacion, cuentas y auditoría, para mejorar así la facturación y radicación, disminuyendo la subfacturación y devoluciones incrementando el recaudo corriente, generando liquidez y utilidad del ejercicio. | E26: =IF('Cuadro 31'!I17=0," ",'Cuadro 31'!I17) -> *CAPACITAR A LOS ENCARGADOS DE LA FACTURACION * ELABORAR PROCESOS Y PROCEDIMIETOS PARA REALIZAR LA FACTURACION DE LOS SERVICIOS DE SALUD | F26: =IF('Cuadro 31'!P17=0," ",'Cuadro 31'!P17) -> Total Facturacion radicada a EPS / Total facturacion pendiente de radicar a EPS | G26: =IF('Cuadro 31'!U17=0," ",'Cuadro 31'!U17) -> 2022-01-01 | H26: =IF('Cuadro 31'!V17=0," ",'Cuadro 31'!V17) -> 2023-12-31 | I26: =IF('Cuadro 31'!M17=" "," ",'Cuadro 31'!M17) -> 0.85 | O26: 0 | P26: =IF('Cuadro 31'!AA17=" "," ",'Cuadro 31'!AA17) -> 1 | R26: 0 | S26: 0
A27: 16 | B27: =IF('Cuadro 31'!D18=0," ",'Cuadro 31'!D18) -> Saneamiento de pasivos | C27: =IF('Cuadro 31'!F18=0," ",'Cuadro 31'!F18) -> - Problema: Incremento de los pasivos de la E.S.E. que sobrepasan su capacidad de pago - Causa: Pago inoportuno de las EAPB | D27: =IF('Cuadro 31'!G18=0," ",'Cuadro 31'!G18) -> F.A. : Gestionar recursos ante la Gobernacion de Choco y Alcaldia de Condoto para el financiamiento del programa de saneamiento fiscal y financiero de la ESE HOSPITAL SAN JOSE DE CONDOTO | E27: =IF('Cuadro 31'!I18=0," ",'Cuadro 31'!I18) -> Se constituira un fondo para cubrir las contingencias por los distintos procesos Juridicos en contra de la ESE y la Constitucion del Encargo Financiero | F27: =IF('Cuadro 31'!P18=0," ",'Cuadro 31'!P18) -> Fondo para cubrir procesos juridicos en contra de la ESE aprobado por Junta Directiva de la ESE | G27: =IF('Cuadro 31'!U18=0," ",'Cuadro 31'!U18) -> 2022-01-01 | H27: =IF('Cuadro 31'!V18=0," ",'Cuadro 31'!V18) -> 2026-12-31 | I27: =IF('Cuadro 31'!M18=" "," ",'Cuadro 31'!M18) -> 0.05 | O27: 0 | P27: =IF('Cuadro 31'!AA18=" "," ",'Cuadro 31'!AA18) -> 0.2 | R27: 0 | S27: 0
A28: 17 | B28: =IF('Cuadro 31'!D19=0," ",'Cuadro 31'!D19) -> Saneamiento de pasivos | C28: =IF('Cuadro 31'!F19=0," ",'Cuadro 31'!F19) -> - Problema: Incremento de los pasivos de la E.S.E. que sobrepasan su capacidad de pago - Causa: Pago inoportuno de las EAPB | D28: =IF('Cuadro 31'!G19=0," ",'Cuadro 31'!G19) -> D.A. : Procesos jurídicos en contra de la ESE que tienden a incrementar el nivel de los pasivos | E28: =IF('Cuadro 31'!I19=0," ",'Cuadro 31'!I19) -> 100% Depuracion de pasivos reales durante la Ejecucion del PSFF | F28: =IF('Cuadro 31'!P19=0," ",'Cuadro 31'!P19) -> ADELANTAR PROCESOS DE DEPURACION DE ESTADOS FINANCIEROS Y SANEAMIENTO CONTABLE | G28: =IF('Cuadro 31'!U19=0," ",'Cuadro 31'!U19) -> 2022-01-01 | H28: =IF('Cuadro 31'!V19=0," ",'Cuadro 31'!V19) -> 2023-12-31 | I28: =IF('Cuadro 31'!M19=" "," ",'Cuadro 31'!M19) -> 0.05 | O28: 0 | P28: =IF('Cuadro 31'!AA19=" "," ",'Cuadro 31'!AA19) -> 1 | R28: 0 | S28: 0
A29: 18 | B29: =IF('Cuadro 31'!D20=0," ",'Cuadro 31'!D20) -> Reorganización administrativa | C29: =IF('Cuadro 31'!F20=0," ",'Cuadro 31'!F20) -> - Problema: Deficiencias en la calidad de la informacion contable, financiera y de produccion - Causa: Incumplimiento en el reporte de información | D29: =IF('Cuadro 31'!G20=0," ",'Cuadro 31'!G20) -> D.A. : Gestión proceso de saneamiento contaable de la empresa que le permita contar con informacion real y fidedigna | E29: =IF('Cuadro 31'!I20=0," ",'Cuadro 31'!I20) -> Se desarrolla de manera prioritaria las actividades para lograr el saneameinto de los estados financieros de la empresa | F29: =IF('Cuadro 31'!P20=0," ",'Cuadro 31'!P20) -> Estados financieros saneados debidamente sustentados y soportados ante la Junta Directiva | G29: =IF('Cuadro 31'!U20=0," ",'Cuadro 31'!U20) -> 2022-01-01 | H29: =IF('Cuadro 31'!V20=0," ",'Cuadro 31'!V20) -> 2024-12-31 | I29: =IF('Cuadro 31'!M20=" "," ",'Cuadro 31'!M20) -> 0 | O29: 0 | P29: =IF('Cuadro 31'!AA20=" "," ",'Cuadro 31'!AA20) -> 0.7 | R29: 0 | S29: 0
A30: 19 | B30: =IF('Cuadro 31'!D21=0," ",'Cuadro 31'!D21) -> Fortalecimiento de los ingresos de las ESE | C30: =IF('Cuadro 31'!F21=0," ",'Cuadro 31'!F21) -> - Problema: Portafolio de servicios no ajustado a lo reglado mediante Documento de Red - Causa: Deficiencias en el RR.HH, para prestar los servicios de Radiologia e Imágenes Diagnosticas y Servicios Farmaceuticos | D30: =IF('Cuadro 31'!G21=0," ",'Cuadro 31'!G21) -> D.A. : Habilitar y prestar los servicios de toma de imágenes de Radiologia e Imágenes Diagnostica y Servicio Farmaceutico. | E30: =IF('Cuadro 31'!I21=0," ",'Cuadro 31'!I21) -> Contar con los servicios de toma de imágenes de Radilogia e Imágenes Diagnosticas y Servicio Farmaceutico habilitados y prestandose. | F30: =IF('Cuadro 31'!P21=0," ",'Cuadro 31'!P21) -> REPS actualizado a 31 de diciembre de 2026 | G30: =IF('Cuadro 31'!U21=0," ",'Cuadro 31'!U21) -> 2026-07-01 | H30: =IF('Cuadro 31'!V21=0," ",'Cuadro 31'!V21) -> 2026-12-31 | I30: =IF('Cuadro 31'!M21=" "," ",'Cuadro 31'!M21) -> 0 | O30: 0 | P30: =IF('Cuadro 31'!AA21=" "," ",'Cuadro 31'!AA21) -> 0 | R30: 0 | S30: 0
A31: 20 | B31: =IF('Cuadro 31'!D22=0," ",'Cuadro 31'!D22) ->  | C31: =IF('Cuadro 31'!F22=0," ",'Cuadro 31'!F22) ->  | D31: =IF('Cuadro 31'!G22=0," ",'Cuadro 31'!G22) ->  | E31: =IF('Cuadro 31'!I22=0," ",'Cuadro 31'!I22) ->  | F31: =IF('Cuadro 31'!P22=0," ",'Cuadro 31'!P22) ->  | G31: =IF('Cuadro 31'!U22=0," ",'Cuadro 31'!U22) ->  | H31: =IF('Cuadro 31'!V22=0," ",'Cuadro 31'!V22) ->  | I31: =IF('Cuadro 31'!M22=" "," ",'Cuadro 31'!M22) -> 0 | O31: 0 | P31: =IF('Cuadro 31'!AA22=" "," ",'Cuadro 31'!AA22) -> 0 | R31: 0 | S31: 0
A32: 21 | B32: =IF('Cuadro 31'!D23=0," ",'Cuadro 31'!D23) ->  | C32: =IF('Cuadro 31'!F23=0," ",'Cuadro 31'!F23) ->  | D32: =IF('Cuadro 31'!G23=0," ",'Cuadro 31'!G23) ->  | E32: =IF('Cuadro 31'!I23=0," ",'Cuadro 31'!I23) ->  | F32: =IF('Cuadro 31'!P23=0," ",'Cuadro 31'!P23) ->  | G32: =IF('Cuadro 31'!U23=0," ",'Cuadro 31'!U23) ->  | H32: =IF('Cuadro 31'!V23=0," ",'Cuadro 31'!V23) ->  | I32: =IF('Cuadro 31'!M23=" "," ",'Cuadro 31'!M23) -> 0 | O32: 0 | P32: =IF('Cuadro 31'!AA23=" "," ",'Cuadro 31'!AA23) -> 0 | R32: 0 | S32: 0
A33: 22 | B33: =IF('Cuadro 31'!D24=0," ",'Cuadro 31'!D24) ->  | C33: =IF('Cuadro 31'!F24=0," ",'Cuadro 31'!F24) ->  | D33: =IF('Cuadro 31'!G24=0," ",'Cuadro 31'!G24) ->  | E33: =IF('Cuadro 31'!I24=0," ",'Cuadro 31'!I24) ->  | F33: =IF('Cuadro 31'!P24=0," ",'Cuadro 31'!P24) ->  | G33: =IF('Cuadro 31'!U24=0," ",'Cuadro 31'!U24) ->  | H33: =IF('Cuadro 31'!V24=0," ",'Cuadro 31'!V24) ->  | I33: =IF('Cuadro 31'!M24=" "," ",'Cuadro 31'!M24) -> 0 | O33: 0 | P33: =IF('Cuadro 31'!AA24=" "," ",'Cuadro 31'!AA24) -> 0 | R33: 0 | S33: 0
A34: 23 | B34: =IF('Cuadro 31'!D25=0," ",'Cuadro 31'!D25) ->  | C34: =IF('Cuadro 31'!F25=0," ",'Cuadro 31'!F25) ->  | D34: =IF('Cuadro 31'!G25=0," ",'Cuadro 31'!G25) ->  | E34: =IF('Cuadro 31'!I25=0," ",'Cuadro 31'!I25) ->  | F34: =IF('Cuadro 31'!P25=0," ",'Cuadro 31'!P25) ->  | G34: =IF('Cuadro 31'!U25=0," ",'Cuadro 31'!U25) ->  | H34: =IF('Cuadro 31'!V25=0," ",'Cuadro 31'!V25) ->  | I34: =IF('Cuadro 31'!M25=" "," ",'Cuadro 31'!M25) -> 0 | O34: 0 | P34: =IF('Cuadro 31'!AA25=" "," ",'Cuadro 31'!AA25) -> 0 | R34: 0 | S34: 0
A35: 24 | B35: =IF('Cuadro 31'!D26=0," ",'Cuadro 31'!D26) ->  | C35: =IF('Cuadro 31'!F26=0," ",'Cuadro 31'!F26) ->  | D35: =IF('Cuadro 31'!G26=0," ",'Cuadro 31'!G26) ->  | E35: =IF('Cuadro 31'!I26=0," ",'Cuadro 31'!I26) ->  | F35: =IF('Cuadro 31'!P26=0," ",'Cuadro 31'!P26) ->  | G35: =IF('Cuadro 31'!U26=0," ",'Cuadro 31'!U26) ->  | H35: =IF('Cuadro 31'!V26=0," ",'Cuadro 31'!V26) ->  | I35: =IF('Cuadro 31'!M26=" "," ",'Cuadro 31'!M26) -> 0 | O35: 0 | P35: =IF('Cuadro 31'!AA26=" "," ",'Cuadro 31'!AA26) -> 0 | R35: 0 | S35: 0
A36: 25 | B36: =IF('Cuadro 31'!D27=0," ",'Cuadro 31'!D27) ->  | C36: =IF('Cuadro 31'!F27=0," ",'Cuadro 31'!F27) ->  | D36: =IF('Cuadro 31'!G27=0," ",'Cuadro 31'!G27) ->  | E36: =IF('Cuadro 31'!I27=0," ",'Cuadro 31'!I27) ->  | F36: =IF('Cuadro 31'!P27=0," ",'Cuadro 31'!P27) ->  | G36: =IF('Cuadro 31'!U27=0," ",'Cuadro 31'!U27) ->  | H36: =IF('Cuadro 31'!V27=0," ",'Cuadro 31'!V27) ->  | I36: =IF('Cuadro 31'!M27=" "," ",'Cuadro 31'!M27) -> 0 | O36: 0 | P36: =IF('Cuadro 31'!AA27=" "," ",'Cuadro 31'!AA27) -> 0 | R36: 0 | S36: 0
A37: 26 | B37: =IF('Cuadro 31'!D28=0," ",'Cuadro 31'!D28) ->  | C37: =IF('Cuadro 31'!F28=0," ",'Cuadro 31'!F28) ->  | D37: =IF('Cuadro 31'!G28=0," ",'Cuadro 31'!G28) ->  | E37: =IF('Cuadro 31'!I28=0," ",'Cuadro 31'!I28) ->  | F37: =IF('Cuadro 31'!P28=0," ",'Cuadro 31'!P28) ->  | G37: =IF('Cuadro 31'!U28=0," ",'Cuadro 31'!U28) ->  | H37: =IF('Cuadro 31'!V28=0," ",'Cuadro 31'!V28) ->  | I37: =IF('Cuadro 31'!M28=" "," ",'Cuadro 31'!M28) -> 0 | O37: 0 | P37: =IF('Cuadro 31'!AA28=" "," ",'Cuadro 31'!AA28) -> 0 | R37: 0 | S37: 0
A38: 27 | B38: =IF('Cuadro 31'!D29=0," ",'Cuadro 31'!D29) ->  | C38: =IF('Cuadro 31'!F29=0," ",'Cuadro 31'!F29) ->  | D38: =IF('Cuadro 31'!G29=0," ",'Cuadro 31'!G29) ->  | E38: =IF('Cuadro 31'!I29=0," ",'Cuadro 31'!I29) ->  | F38: =IF('Cuadro 31'!P29=0," ",'Cuadro 31'!P29) ->  | G38: =IF('Cuadro 31'!U29=0," ",'Cuadro 31'!U29) ->  | H38: =IF('Cuadro 31'!V29=0," ",'Cuadro 31'!V29) ->  | I38: =IF('Cuadro 31'!M29=" "," ",'Cuadro 31'!M29) -> 0 | O38: 0 | P38: =IF('Cuadro 31'!AA29=" "," ",'Cuadro 31'!AA29) -> 0 | R38: 0 | S38: 0
A39: 28 | B39: =IF('Cuadro 31'!D30=0," ",'Cuadro 31'!D30) ->  | C39: =IF('Cuadro 31'!F30=0," ",'Cuadro 31'!F30) ->  | D39: =IF('Cuadro 31'!G30=0," ",'Cuadro 31'!G30) ->  | E39: =IF('Cuadro 31'!I30=0," ",'Cuadro 31'!I30) ->  | F39: =IF('Cuadro 31'!P30=0," ",'Cuadro 31'!P30) ->  | G39: =IF('Cuadro 31'!U30=0," ",'Cuadro 31'!U30) ->  | H39: =IF('Cuadro 31'!V30=0," ",'Cuadro 31'!V30) ->  | I39: =IF('Cuadro 31'!M30=" "," ",'Cuadro 31'!M30) -> 0 | O39: 0 | P39: =IF('Cuadro 31'!AA30=" "," ",'Cuadro 31'!AA30) -> 0 | R39: 0 | S39: 0
A40: 29 | B40: =IF('Cuadro 31'!D31=0," ",'Cuadro 31'!D31) ->  | C40: =IF('Cuadro 31'!F31=0," ",'Cuadro 31'!F31) ->  | D40: =IF('Cuadro 31'!G31=0," ",'Cuadro 31'!G31) ->  | E40: =IF('Cuadro 31'!I31=0," ",'Cuadro 31'!I31) ->  | F40: =IF('Cuadro 31'!P31=0," ",'Cuadro 31'!P31) ->  | G40: =IF('Cuadro 31'!U31=0," ",'Cuadro 31'!U31) ->  | H40: =IF('Cuadro 31'!V31=0," ",'Cuadro 31'!V31) ->  | I40: =IF('Cuadro 31'!M31=" "," ",'Cuadro 31'!M31) -> 0 | O40: 0 | P40: =IF('Cuadro 31'!AA31=" "," ",'Cuadro 31'!AA31) -> 0 | R40: 0 | S40: 0
A41: 30 | B41: =IF('Cuadro 31'!D32=0," ",'Cuadro 31'!D32) ->  | C41: =IF('Cuadro 31'!F32=0," ",'Cuadro 31'!F32) ->  | D41: =IF('Cuadro 31'!G32=0," ",'Cuadro 31'!G32) ->  | E41: =IF('Cuadro 31'!I32=0," ",'Cuadro 31'!I32) ->  | F41: =IF('Cuadro 31'!P32=0," ",'Cuadro 31'!P32) ->  | G41: =IF('Cuadro 31'!U32=0," ",'Cuadro 31'!U32) ->  | H41: =IF('Cuadro 31'!V32=0," ",'Cuadro 31'!V32) ->  | I41: =IF('Cuadro 31'!M32=" "," ",'Cuadro 31'!M32) -> 0 | O41: 0 | P41: =IF('Cuadro 31'!AA32=" "," ",'Cuadro 31'!AA32) -> 0 | R41: 0 | S41: 0
A42: 31 | B42: =IF('Cuadro 31'!D33=0," ",'Cuadro 31'!D33) ->  | C42: =IF('Cuadro 31'!F33=0," ",'Cuadro 31'!F33) ->  | D42: =IF('Cuadro 31'!G33=0," ",'Cuadro 31'!G33) ->  | E42: =IF('Cuadro 31'!I33=0," ",'Cuadro 31'!I33) ->  | F42: =IF('Cuadro 31'!P33=0," ",'Cuadro 31'!P33) ->  | G42: =IF('Cuadro 31'!U33=0," ",'Cuadro 31'!U33) ->  | H42: =IF('Cuadro 31'!V33=0," ",'Cuadro 31'!V33) ->  | I42: =IF('Cuadro 31'!M33=" "," ",'Cuadro 31'!M33) -> 0 | O42: 0 | P42: =IF('Cuadro 31'!AA33=" "," ",'Cuadro 31'!AA33) -> 0 | R42: 0 | S42: 0
A43: 32 | B43: =IF('Cuadro 31'!D34=0," ",'Cuadro 31'!D34) ->  | C43: =IF('Cuadro 31'!F34=0," ",'Cuadro 31'!F34) ->  | D43: =IF('Cuadro 31'!G34=0," ",'Cuadro 31'!G34) ->  | E43: =IF('Cuadro 31'!I34=0," ",'Cuadro 31'!I34) ->  | F43: =IF('Cuadro 31'!P34=0," ",'Cuadro 31'!P34) ->  | G43: =IF('Cuadro 31'!U34=0," ",'Cuadro 31'!U34) ->  | H43: =IF('Cuadro 31'!V34=0," ",'Cuadro 31'!V34) ->  | I43: =IF('Cuadro 31'!M34=" "," ",'Cuadro 31'!M34) -> 0 | O43: 0 | P43: =IF('Cuadro 31'!AA34=" "," ",'Cuadro 31'!AA34) -> 0 | R43: 0 | S43: 0
A44: 33 | B44: =IF('Cuadro 31'!D35=0," ",'Cuadro 31'!D35) ->  | C44: =IF('Cuadro 31'!F35=0," ",'Cuadro 31'!F35) ->  | D44: =IF('Cuadro 31'!G35=0," ",'Cuadro 31'!G35) ->  | E44: =IF('Cuadro 31'!I35=0," ",'Cuadro 31'!I35) ->  | F44: =IF('Cuadro 31'!P35=0," ",'Cuadro 31'!P35) ->  | G44: =IF('Cuadro 31'!U35=0," ",'Cuadro 31'!U35) ->  | H44: =IF('Cuadro 31'!V35=0," ",'Cuadro 31'!V35) ->  | I44: =IF('Cuadro 31'!M35=" "," ",'Cuadro 31'!M35) -> 0 | O44: 0 | P44: =IF('Cuadro 31'!AA35=" "," ",'Cuadro 31'!AA35) -> 0 | R44: 0 | S44: 0
A45: 34 | B45: =IF('Cuadro 31'!D36=0," ",'Cuadro 31'!D36) ->  | C45: =IF('Cuadro 31'!F36=0," ",'Cuadro 31'!F36) ->  | D45: =IF('Cuadro 31'!G36=0," ",'Cuadro 31'!G36) ->  | E45: =IF('Cuadro 31'!I36=0," ",'Cuadro 31'!I36) ->  | F45: =IF('Cuadro 31'!P36=0," ",'Cuadro 31'!P36) ->  | G45: =IF('Cuadro 31'!U36=0," ",'Cuadro 31'!U36) ->  | H45: =IF('Cuadro 31'!V36=0," ",'Cuadro 31'!V36) ->  | I45: =IF('Cuadro 31'!M36=" "," ",'Cuadro 31'!M36) -> 0 | O45: 0 | P45: =IF('Cuadro 31'!AA36=" "," ",'Cuadro 31'!AA36) -> 0 | R45: 0 | S45: 0
A46: 35 | B46: =IF('Cuadro 31'!D37=0," ",'Cuadro 31'!D37) ->  | C46: =IF('Cuadro 31'!F37=0," ",'Cuadro 31'!F37) ->  | D46: =IF('Cuadro 31'!G37=0," ",'Cuadro 31'!G37) ->  | E46: =IF('Cuadro 31'!I37=0," ",'Cuadro 31'!I37) ->  | F46: =IF('Cuadro 31'!P37=0," ",'Cuadro 31'!P37) ->  | G46: =IF('Cuadro 31'!U37=0," ",'Cuadro 31'!U37) ->  | H46: =IF('Cuadro 31'!V37=0," ",'Cuadro 31'!V37) ->  | I46: =IF('Cuadro 31'!M37=" "," ",'Cuadro 31'!M37) -> 0 | O46: 0 | P46: =IF('Cuadro 31'!AA37=" "," ",'Cuadro 31'!AA37) -> 0 | R46: 0 | S46: 0
A47: 36 | B47: =IF('Cuadro 31'!D38=0," ",'Cuadro 31'!D38) ->  | C47: =IF('Cuadro 31'!F38=0," ",'Cuadro 31'!F38) ->  | D47: =IF('Cuadro 31'!G38=0," ",'Cuadro 31'!G38) ->  | E47: =IF('Cuadro 31'!I38=0," ",'Cuadro 31'!I38) ->  | F47: =IF('Cuadro 31'!P38=0," ",'Cuadro 31'!P38) ->  | G47: =IF('Cuadro 31'!U38=0," ",'Cuadro 31'!U38) ->  | H47: =IF('Cuadro 31'!V38=0," ",'Cuadro 31'!V38) ->  | I47: =IF('Cuadro 31'!M38=" "," ",'Cuadro 31'!M38) -> 0 | O47: 0 | P47: =IF('Cuadro 31'!AA38=" "," ",'Cuadro 31'!AA38) -> 0 | R47: 0 | S47: 0
A48: 37 | B48: =IF('Cuadro 31'!D39=0," ",'Cuadro 31'!D39) ->  | C48: =IF('Cuadro 31'!F39=0," ",'Cuadro 31'!F39) ->  | D48: =IF('Cuadro 31'!G39=0," ",'Cuadro 31'!G39) ->  | E48: =IF('Cuadro 31'!I39=0," ",'Cuadro 31'!I39) ->  | F48: =IF('Cuadro 31'!P39=0," ",'Cuadro 31'!P39) ->  | G48: =IF('Cuadro 31'!U39=0," ",'Cuadro 31'!U39) ->  | H48: =IF('Cuadro 31'!V39=0," ",'Cuadro 31'!V39) ->  | I48: =IF('Cuadro 31'!M39=" "," ",'Cuadro 31'!M39) -> 0 | O48: 0 | P48: =IF('Cuadro 31'!AA39=" "," ",'Cuadro 31'!AA39) -> 0 | R48: 0 | S48: 0
A49: 38 | B49: =IF('Cuadro 31'!D40=0," ",'Cuadro 31'!D40) ->  | C49: =IF('Cuadro 31'!F40=0," ",'Cuadro 31'!F40) ->  | D49: =IF('Cuadro 31'!G40=0," ",'Cuadro 31'!G40) ->  | E49: =IF('Cuadro 31'!I40=0," ",'Cuadro 31'!I40) ->  | F49: =IF('Cuadro 31'!P40=0," ",'Cuadro 31'!P40) ->  | G49: =IF('Cuadro 31'!U40=0," ",'Cuadro 31'!U40) ->  | H49: =IF('Cuadro 31'!V40=0," ",'Cuadro 31'!V40) ->  | I49: =IF('Cuadro 31'!M40=" "," ",'Cuadro 31'!M40) -> 0 | O49: 0 | P49: =IF('Cuadro 31'!AA40=" "," ",'Cuadro 31'!AA40) -> 0 | R49: 0 | S49: 0
A50: 39 | B50: =IF('Cuadro 31'!D41=0," ",'Cuadro 31'!D41) ->  | C50: =IF('Cuadro 31'!F41=0," ",'Cuadro 31'!F41) ->  | D50: =IF('Cuadro 31'!G41=0," ",'Cuadro 31'!G41) ->  | E50: =IF('Cuadro 31'!I41=0," ",'Cuadro 31'!I41) ->  | F50: =IF('Cuadro 31'!P41=0," ",'Cuadro 31'!P41) ->  | G50: =IF('Cuadro 31'!U41=0," ",'Cuadro 31'!U41) ->  | H50: =IF('Cuadro 31'!V41=0," ",'Cuadro 31'!V41) ->  | I50: =IF('Cuadro 31'!M41=" "," ",'Cuadro 31'!M41) -> 0 | O50: 0 | P50: =IF('Cuadro 31'!AA41=" "," ",'Cuadro 31'!AA41) -> 0 | R50: 0 | S50: 0
A51: 40 | B51: =IF('Cuadro 31'!D42=0," ",'Cuadro 31'!D42) ->  | C51: =IF('Cuadro 31'!F42=0," ",'Cuadro 31'!F42) ->  | D51: =IF('Cuadro 31'!G42=0," ",'Cuadro 31'!G42) ->  | E51: =IF('Cuadro 31'!I42=0," ",'Cuadro 31'!I42) ->  | F51: =IF('Cuadro 31'!P42=0," ",'Cuadro 31'!P42) ->  | G51: =IF('Cuadro 31'!U42=0," ",'Cuadro 31'!U42) ->  | H51: =IF('Cuadro 31'!V42=0," ",'Cuadro 31'!V42) ->  | I51: =IF('Cuadro 31'!M42=" "," ",'Cuadro 31'!M42) -> 0 | O51: 0 | P51: =IF('Cuadro 31'!AA42=" "," ",'Cuadro 31'!AA42) -> 0 | R51: 0 | S51: 0
A52: 41 | B52: =IF('Cuadro 31'!D43=0," ",'Cuadro 31'!D43) ->  | C52: =IF('Cuadro 31'!F43=0," ",'Cuadro 31'!F43) ->  | D52: =IF('Cuadro 31'!G43=0," ",'Cuadro 31'!G43) ->  | E52: =IF('Cuadro 31'!I43=0," ",'Cuadro 31'!I43) ->  | F52: =IF('Cuadro 31'!P43=0," ",'Cuadro 31'!P43) ->  | G52: =IF('Cuadro 31'!U43=0," ",'Cuadro 31'!U43) ->  | H52: =IF('Cuadro 31'!V43=0," ",'Cuadro 31'!V43) ->  | I52: =IF('Cuadro 31'!M43=" "," ",'Cuadro 31'!M43) -> 0 | O52: 0 | P52: =IF('Cuadro 31'!AA43=" "," ",'Cuadro 31'!AA43) -> 0 | R52: 0 | S52: 0
A53: 42 | B53: =IF('Cuadro 31'!D44=0," ",'Cuadro 31'!D44) ->  | C53: =IF('Cuadro 31'!F44=0," ",'Cuadro 31'!F44) ->  | D53: =IF('Cuadro 31'!G44=0," ",'Cuadro 31'!G44) ->  | E53: =IF('Cuadro 31'!I44=0," ",'Cuadro 31'!I44) ->  | F53: =IF('Cuadro 31'!P44=0," ",'Cuadro 31'!P44) ->  | G53: =IF('Cuadro 31'!U44=0," ",'Cuadro 31'!U44) ->  | H53: =IF('Cuadro 31'!V44=0," ",'Cuadro 31'!V44) ->  | I53: =IF('Cuadro 31'!M44=" "," ",'Cuadro 31'!M44) -> 0 | O53: 0 | P53: =IF('Cuadro 31'!AA44=" "," ",'Cuadro 31'!AA44) -> 0 | R53: 0 | S53: 0
B55: Resumen por Categoría de la Medida | C55: INFORME DE MONITOREO | K55: INFORME DE SEGUIMIENTO
C56: EJECUCIÓN ACUMULADA AL CIERRE DEL AÑO ANTERIOR (%) | D56: TRIMESTRE 1 | E56: TRIMESTRE 2 | F56: TRIMESTRE 3 | G56: TRIMESTRE 4 | H56: EJECUCIÓN ACUMULADA AL TRIMESTRE DE CORTE (%) | I56: EJECUCIÓN ACUMULADA DURANTE LA VIGENCIA (%) | J56: EJECUCIÓN ACUMULADA ESPERADA AL FINAL DE LA VIGENCIA (%) | K56: EJECUCIÓN ACUMULADA AL CIERRE DEL TRIMESTRE DE CORTE % (Debe registrar el porcentaje acumulado que obtuvo al finalizar el trimestre reportado)
B57: Fortalecimiento de los ingresos de las ESE | C57: =IFERROR(+AVERAGEIF($B$13:$B$53,B57,$J$13:$J$53),0) -> 0 | D57: =IFERROR(+AVERAGEIF($B$13:$B$53,B57,$K$13:$K$53),0) -> 0 | E57: =IFERROR(+AVERAGEIF($B$13:$B$53,B57,$L$13:$L$53),0) -> 0 | F57: =IFERROR(+AVERAGEIF($B$13:$B$53,B57,$M$13:$M$53),0) -> 0 | G57: =IFERROR(+AVERAGEIF($B$13:$B$53,B57,$N$13:$N$53),0) -> 0 | H57: =IFERROR(+AVERAGEIF($B$13:$B$53,B57,$N$13:$N$53),0) -> 0 | I57: =+H57-C57 -> 0 | J57: =IFERROR(+AVERAGEIF($B$13:$B$53,B57,$P$13:$P$53),0) -> 0.508 | K57: =IFERROR(+AVERAGEIF($B$13:$B$53,B57,$T$13:$T$53),0) -> 0
B58: Racionalización del gasto | C58: 0 | D58: 0 | E58: 0 | F58: 0 | G58: 0 | H58: 0 | I58: 0 | J58: 0.6433333333 | K58: 0
B59: Reestructuración de la deuda | C59: 0 | D59: 0 | E59: 0 | F59: 0 | G59: 0 | H59: 0 | I59: 0 | J59: 0 | K59: 0
B60: Reorganización administrativa | C60: 0 | D60: 0 | E60: 0 | F60: 0 | G60: 0 | H60: 0 | I60: 0 | J60: 0.8528571429 | K60: 0
B61: Saneamiento de pasivos | C61: 0 | D61: 0 | E61: 0 | F61: 0 | G61: 0 | H61: 0 | I61: 0 | J61: 0.51 | K61: 0
B62: Otros | C62: 0 | D62: 0 | E62: 0 | F62: 0 | G62: 0 | H62: 0 | I62: 0 | J62: 0 | K62: 0

Sheet Cuadro 2
C2: CUADRO No. 2 FLUJO FINANCIERO EJECUTADO - ESE
D3: PERIODO DE CORTE | E3: =+'Datos ESE'!C2 -> 2023 | F3: ESE | G3: =IF(+'Datos ESE'!C7=0," ",'Datos ESE'!C7) -> ESE HOSPITAL SAN JOSE DE CONDOTO
C4: RECAUDO A PRECIOS CORRIENTES | F4: INFORME DE MONITOREO | M4: INFORME DE SEGUIMIENTO | R4: PORCENTAJE DE AVANCE | X4: ESTRUCTURA O PESO POR CONCEPTO
A5: Tipo | B5: Padre | C5: CODIGO | D5: CONCEPTO DE INGRESO | E5: Presupuesto Vigencia PSFF | F5: Trimestre 1 | G5: Trimestre 2 | H5: Trimestre 3 | I5: Trimestre 4 | J5: Acumulado Anual | K5: Diferencia | L5: Observaciones o Comentarios | M5: EJECUCIÓN P/TAL (SIHO) | N5: EJECUCIÓN P/TAL (CUIPO) | O5: CONCLUSIONES SEGUIMIENTO (Analice los resultados obtenidos frente a los programados en el PSFF) | Q5: Cargar | R5: Trimestre 1 | S5: Trimestre 2 | T5: Trimestre 3 | U5: Trimestre 4 | V5: Acumulado Anual | X5: Proyectado Año | Y5: Trimestre 1 | Z5: Trimestre 2 | AA5: Trimestre 3 | AB5: Trimestre 4 | AC5: Acumulado Anual
A6: =IF(IFERROR(VLOOKUP(C6,B7:$B$220,1,FALSE),"A")<>"A","C","A") -> A | C6: 1 | D6: Ingresos | E6: =+VLOOKUP('Cuadro 2'!$C6,'Cuadro 35'!$B$12:$F$226,5,FALSE) -> 4212626228 | F6: =SUMIF($B7:$B$220,$C6,F7:F$220) -> 0 | G6: =SUMIF($B7:$B$220,$C6,G7:G$220) -> 0 | H6: =SUMIF($B7:$B$220,$C6,H7:H$220) -> 0 | I6: =SUMIF($B7:$B$220,$C6,I7:I$220) -> 0 | J6: =SUM(F6:I6) -> 0 | K6: =+E6-J6 -> 4212626228 | M6: =SUMIF($B7:$B$220,$C6,M7:M$220) -> 0 | N6: =SUMIF($B7:$B$220,$C6,N7:N$220) -> 0 | Q6: =IF(ISNUMBER(J6),1,0) -> 1 | R6: =IF(OR(AND(IFERROR(F6/$E6,0)>=1,$E6>0),AND(F6>$E6,$E6<=0),AND($E6<=0,F6>=0)),1,IF(AND(IFERROR(($E6-F6)/F6,0)<0,F6<$E6),0,F6/$E6)) -> 0 | S6: =IF(OR(AND(IFERROR(G6/$E6,0)>=1,$E6>0),AND(G6>$E6,$E6<=0),AND($E6<=0,G6>=0)),1,IF(AND(IFERROR(($E6-G6)/G6,0)<0,G6<$E6),0,G6/$E6)) -> 0 | T6: =IF(OR(AND(IFERROR(H6/$E6,0)>=1,$E6>0),AND(H6>$E6,$E6<=0),AND($E6<=0,H6>=0)),1,IF(AND(IFERROR(($E6-H6)/H6,0)<0,H6<$E6),0,H6/$E6)) -> 0 | U6: =IF(OR(AND(IFERROR(I6/$E6,0)>=1,$E6>0),AND(I6>$E6,$E6<=0),AND($E6<=0,I6>=0)),1,IF(AND(IFERROR(($E6-I6)/I6,0)<0,I6<$E6),0,I6/$E6)) -> 0 | V6: =IF(OR(AND(IFERROR(J6/$E6,0)>=1,$E6>0),AND(J6>$E6,$E6<=0),AND($E6<=0,J6>=0)),1,IF(AND(IFERROR(($E6-J6)/J6,0)<0,J6<$E6),0,J6/$E6)) -> 0 | X6: =IFERROR(E6/$E$6,0) -> 1 | Y6: =IFERROR(F6/$F$6,0) -> 0 | Z6: =IFERROR(G6/$G$6,0) -> 0 | AA6: =IFERROR(H6/$H$6,0) -> 0 | AB6: =IFERROR(I6/$I$6,0) -> 0 | AC6: =IFERROR(J6/$J$6,0) -> 0
A7: =IF(IFERROR(VLOOKUP(C7,B8:$B$220,1,FALSE),"C")="C","C","A") -> A | B7: 1 | C7: 1.0 | D7: Disponibilidad Inicial | E7: =+VLOOKUP('Cuadro 2'!$C7,'Cuadro 35'!$B$12:$F$226,5,FALSE) -> 0 | F7: =SUM(F8:F10) -> 0 | G7: =SUM(G8:G10) -> 0 | H7: =SUM(H8:H10) -> 0 | I7: =SUMIF($B8:$B$220,$C7,I8:I$220) -> 0 | J7: 0 | K7: 0 | M7: =SUMIF($B8:$B$220,$C7,M8:M$220) -> 0 | N7: =SUMIF($B8:$B$220,$C7,N8:N$220) -> 0 | Q7: 1 | R7: 1 | S7: 1 | T7: 1 | U7: 1 | V7: 1 | X7: 0 | Y7: 0 | Z7: 0 | AA7: 0 | AB7: 0 | AC7: 0
A8: =IF(IFERROR(VLOOKUP(C8,B9:$B$220,1,FALSE),"C")="C","C","A") -> C | B8: 1.0 | C8: 1.0.01 | D8: Caja | E8: =+VLOOKUP('Cuadro 2'!$C8,'Cuadro 35'!$B$12:$F$226,5,FALSE) -> 0 | J8: 0 | K8: 0 | Q8: 1 | R8: 1 | S8: 1 | T8: 1 | U8: 1 | V8: 1 | X8: 0 | Y8: 0 | Z8: 0 | AA8: 0 | AB8: 0 | AC8: 0
A9: =IF(IFERROR(VLOOKUP(C9,B10:$B$220,1,FALSE),"C")="C","C","A") -> C | B9: 1.0 | C9: 1.0.02 | D9: Bancos | E9: =+VLOOKUP('Cuadro 2'!$C9,'Cuadro 35'!$B$12:$F$226,5,FALSE) -> 0 | J9: 0 | K9: 0 | Q9: 1 | R9: 1 | S9: 1 | T9: 1 | U9: 1 | V9: 1 | X9: 0 | Y9: 0 | Z9: 0 | AA9: 0 | AB9: 0 | AC9: 0
A10: =IF(IFERROR(VLOOKUP(C10,B11:$B$220,1,FALSE),"C")="C","C","A") -> C | B10: 1.0 | C10: 1.0.03 | D10: Inversiones Temporales | E10: =+VLOOKUP('Cuadro 2'!$C10,'Cuadro 35'!$B$12:$F$226,5,FALSE) -> 0 | J10: 0 | K10: 0 | Q10: 1 | R10: 1 | S10: 1 | T10: 1 | U10: 1 | V10: 1 | X10: 0 | Y10: 0 | Z10: 0 | AA10: 0 | AB10: 0 | AC10: 0
A11: =IF(IFERROR(VLOOKUP(C11,B12:$B$220,1,FALSE),"C")="C","C","A") -> A | B11: 1 | C11: 1.1 | D11: Ingresos Corrientes | E11: =+VLOOKUP('Cuadro 2'!$C11,'Cuadro 35'!$B$12:$F$226,5,FALSE) -> 4212626228 | F11: =SUMIF($B12:$B$220,$C11,F12:F$220) -> 0 | G11: =SUMIF($B12:$B$220,$C11,G12:G$220) -> 0 | H11: =SUMIF($B12:$B$220,$C11,H12:H$220) -> 0 | I11: =SUMIF($B12:$B$220,$C11,I12:I$220) -> 0 | J11: 0 | K11: 4212626228 | M11: =SUMIF($B12:$B$220,$C11,M12:M$220) -> 0 | N11: =SUMIF($B12:$B$220,$C11,N12:N$220) -> 0 | Q11: 1 | R11: 0 | S11: 0 | T11: 0 | U11: 0 | V11: 0 | X11: 1 | Y11: 0 | Z11: 0 | AA11: 0 | AB11: 0 | AC11: 0
A12: =IF(IFERROR(VLOOKUP(C12,B13:$B$220,1,FALSE),"C")="C","C","A") -> A | B12: 1.1 | C12: 1.1.02 | D12: Ingresos no tributarios | E12: =+VLOOKUP('Cuadro 2'!$C12,'Cuadro 35'!$B$12:$F$226,5,FALSE) -> 4212626228 | F12: =SUMIF($B13:$B$220,$C12,F13:F$220) -> 0 | G12: =SUMIF($B13:$B$220,$C12,G13:G$220) -> 0 | H12: =SUMIF($B13:$B$220,$C12,H13:H$220) -> 0 | I12: =SUMIF($B13:$B$220,$C12,I13:I$220) -> 0 | J12: 0 | K12: 4212626228 | M12: =SUMIF($B13:$B$220,$C12,M13:M$220) -> 0 | N12: =SUMIF($B13:$B$220,$C12,N13:N$220) -> 0 | Q12: 1 | R12: 0 | S12: 0 | T12: 0 | U12: 0 | V12: 0 | X12: 1 | Y12: 0 | Z12: 0 | AA12: 0 | AB12: 0 | AC12: 0
A13: =IF(IFERROR(VLOOKUP(C13,B14:$B$220,1,FALSE),"C")="C","C","A") -> A | B13: 1.1.02 | C13: 1.1.02.01 | D13: Contribuciones | E13: =+VLOOKUP('Cuadro 2'!$C13,'Cuadro 35'!$B$12:$F$226,5,FALSE) -> 0 | F13: =SUMIF($B14:$B$220,$C13,F14:F$220) -> 0 | G13: =SUMIF($B14:$B$220,$C13,G14:G$220) -> 0 | H13: =SUMIF($B14:$B$220,$C13,H14:H$220) -> 0 | I13: =SUMIF($B14:$B$220,$C13,I14:I$220) -> 0 | J13: 0 | K13: 0 | M13: =SUMIF($B14:$B$220,$C13,M14:M$220) -> 0 | N13: =SUMIF($B14:$B$220,$C13,N14:N$220) -> 0 | Q13: 1 | R13: 1 | S13: 1 | T13: 1 | U13: 1 | V13: 1 | X13: 0 | Y13: 0 | Z13: 0 | AA13: 0 | AB13: 0 | AC13: 0
A14: =IF(IFERROR(VLOOKUP(C14,B15:$B$220,1,FALSE),"C")="C","C","A") -> A | B14: 1.1.02.01 | C14: 1.1.02.01.005 | D14: Contribuciones diversas | E14: =+VLOOKUP('Cuadro 2'!$C14,'Cuadro 35'!$B$12:$F$226,5,FALSE) -> 0 | F14: =SUMIF($B15:$B$220,$C14,F15:F$220) -> 0 | G14: =SUMIF($B15:$B$220,$C14,G15:G$220) -> 0 | H14: =SUMIF($B15:$B$220,$C14,H15:H$220) -> 0 | I14: =SUMIF($B15:$B$220,$C14,I15:I$220) -> 0 | J14: 0 | K14: 0 | M14: =SUMIF($B15:$B$220,$C14,M15:M$220) -> 0 | N14: =SUMIF($B15:$B$220,$C14,N15:N$220) -> 0 | Q14: 1 | R14: 1 | S14: 1 | T14: 1 | U14: 1 | V14: 1 | X14: 0 | Y14: 0 | Z14: 0 | AA14: 0 | AB14: 0 | AC14: 0
A15: =IF(IFERROR(VLOOKUP(C15,B16:$B$220,1,FALSE),"C")="C","C","A") -> C | B15: 1.1.02.01.005 | C15: 1.1.02.01.005.66 | D15: Copagos | E15: =+VLOOKUP('Cuadro 2'!$C15,'Cuadro 35'!$B$12:$F$226,5,FALSE) -> 0 | J15: 0 | K15: 0 | Q15: 1 | R15: 1 | S15: 1 | T15: 1 | U15: 1 | V15: 1 | X15: 0 | Y15: 0 | Z15: 0 | AA15: 0 | AB15: 0 | AC15: 0
A16: =IF(IFERROR(VLOOKUP(C16,B17:$B$220,1,FALSE),"C")="C","C","A") -> C | B16: 1.1.02.01.005 | C16: 1.1.02.01.005.67 | D16: Cuotas moderadoras | E16: =+VLOOKUP('Cuadro 2'!$C16,'Cuadro 35'!$B$12:$F$226,5,FALSE) -> 0 | J16: 0 | K16: 0 | Q16: 1 | R16: 1 | S16: 1 | T16: 1 | U16: 1 | V16: 1 | X16: 0 | Y16: 0 | Z16: 0 | AA16: 0 | AB16: 0 | AC16: 0
A17: =IF(IFERROR(VLOOKUP(C17,B18:$B$220,1,FALSE),"C")="C","C","A") -> A | B17: 1.1.02 | C17: 1.1.02.02 | D17: Tasas y Derechos administrativos | E17: =+VLOOKUP('Cuadro 2'!$C17,'Cuadro 35'!$B$12:$F$226,5,FALSE) -> 0 | F17: =SUMIF($B18:$B$220,$C17,F18:F$220) -> 0 | G17: =SUMIF($B18:$B$220,$C17,G18:G$220) -> 0 | H17: =SUMIF($B18:$B$220,$C17,H18:H$220) -> 0 | I17: =SUMIF($B18:$B$220,$C17,I18:I$220) -> 0 | J17: 0 | K17: 0 | M17: =SUMIF($B18:$B$220,$C17,M18:M$220) -> 0 | N17: =SUMIF($B18:$B$220,$C17,N18:N$220) -> 0 | Q17: 1 | R17: 1 | S17: 1 | T17: 1 | U17: 1 | V17: 1 | X17: 0 | Y17: 0 | Z17: 0 | AA17: 0 | AB17: 0 | AC17: 0
A18: =IF(IFERROR(VLOOKUP(C18,B19:$B$220,1,FALSE),"C")="C","C","A") -> C | B18: 1.1.02.02 | C18: 1.1.02.02.117 | D18: Tasa de Uso- Terminales de Transporte | E18: =+VLOOKUP('Cuadro 2'!$C18,'Cuadro 35'!$B$12:$F$226,5,FALSE) -> 0 | J18: 0 | K18: 0 | Q18: 1 | R18: 1 | S18: 1 | T18: 1 | U18: 1 | V18: 1 | X18: 0 | Y18: 0 | Z18: 0 | AA18: 0 | AB18: 0 | AC18: 0
A19: =IF(IFERROR(VLOOKUP(C19,B20:$B$220,1,FALSE),"C")="C","C","A") -> A | B19: 1.1.02 | C19: 1.1.02.03 | D19: Multas, sanciones e intereses de mora | E19: =+VLOOKUP('Cuadro 2'!$C19,'Cuadro 35'!$B$12:$F$226,5,FALSE) -> 0 | F19: =SUMIF($B20:$B$220,$C19,F20:F$220) -> 0 | G19: =SUMIF($B20:$B$220,$C19,G20:G$220) -> 0 | H19: =SUMIF($B20:$B$220,$C19,H20:H$220) -> 0 | I19: =SUMIF($B20:$B$220,$C19,I20:I$220) -> 0 | J19: 0 | K19: 0 | M19: =SUMIF($B20:$B$220,$C19,M20:M$220) -> 0 | N19: =SUMIF($B20:$B$220,$C19,N20:N$220) -> 0 | Q19: 1 | R19: 1 | S19: 1 | T19: 1 | U19: 1 | V19: 1 | X19: 0 | Y19: 0 | Z19: 0 | AA19: 0 | AB19: 0 | AC19: 0
A20: =IF(IFERROR(VLOOKUP(C20,B21:$B$220,1,FALSE),"C")="C","C","A") -> A | B20: 1.1.02.03 | C20: 1.1.02.03.001 | D20: Multas y sanciones | E20: =+VLOOKUP('Cuadro 2'!$C20,'Cuadro 35'!$B$12:$F$226,5,FALSE) -> 0 | F20: =SUMIF($B21:$B$220,$C20,F21:F$220) -> 0 | G20: =SUMIF($B21:$B$220,$C20,G21:G$220) -> 0 | H20: =SUMIF($B21:$B$220,$C20,H21:H$220) -> 0 | I20: =SUMIF($B21:$B$220,$C20,I21:I$220) -> 0 | J20: 0 | K20: 0 | M20: =SUMIF($B21:$B$220,$C20,M21:M$220) -> 0 | N20: =SUMIF($B21:$B$220,$C20,N21:N$220) -> 0 | Q20: 1 | R20: 1 | S20: 1 | T20: 1 | U20: 1 | V20: 1 | X20: 0 | Y20: 0 | Z20: 0 | AA20: 0 | AB20: 0 | AC20: 0
A21: =IF(IFERROR(VLOOKUP(C21,B22:$B$220,1,FALSE),"C")="C","C","A") -> C | B21: 1.1.02.03.001 | C21: 1.1.02.03.001.03 | D21: Sanciones disciplinarias | E21: =+VLOOKUP('Cuadro 2'!$C21,'Cuadro 35'!$B$12:$F$226,5,FALSE) -> 0 | J21: 0 | K21: 0 | Q21: 1 | R21: 1 | S21: 1 | T21: 1 | U21: 1 | V21: 1 | X21: 0 | Y21: 0 | Z21: 0 | AA21: 0 | AB21: 0 | AC21: 0
A22: =IF(IFERROR(VLOOKUP(C22,B23:$B$220,1,FALSE),"C")="C","C","A") -> C | B22: 1.1.02.03.001 | C22: 1.1.02.03.001.04 | D22: Sanciones contractuales | E22: =+VLOOKUP('Cuadro 2'!$C22,'Cuadro 35'!$B$12:$F$226,5,FALSE) -> 0 | J22: 0 | K22: 0 | Q22: 1 | R22: 1 | S22: 1 | T22: 1 | U22: 1 | V22: 1 | X22: 0 | Y22: 0 | Z22: 0 | AA22: 0 | AB22: 0 | AC22: 0
A23: =IF(IFERROR(VLOOKUP(C23,B24:$B$220,1,FALSE),"C")="C","C","A") -> C | B23: 1.1.02.03.001 | C23: 1.1.02.03.001.05 | D23: Sanciones administrativas | E23: =+VLOOKUP('Cuadro 2'!$C23,'Cuadro 35'!$B$12:$F$226,5,FALSE) -> 0 | J23: 0 | K23: 0 | Q23: 1 | R23: 1 | S23: 1 | T23: 1 | U23: 1 | V23: 1 | X23: 0 | Y23: 0 | Z23: 0 | AA23: 0 | AB23: 0 | AC23: 0
A24: =IF(IFERROR(VLOOKUP(C24,B25:$B$220,1,FALSE),"C")="C","C","A") -> C | B24: 1.1.02.03 | C24: 1.1.02.03.002 | D24: Intereses de mora | E24: =+VLOOKUP('Cuadro 2'!$C24,'Cuadro 35'!$B$12:$F$226,5,FALSE) -> 0 | J24: 0 | K24: 0 | Q24: 1 | R24: 1 | S24: 1 | T24: 1 | U24: 1 | V24: 1 | X24: 0 | Y24: 0 | Z24: 0 | AA24: 0 | AB24: 0 | AC24: 0
A25: =IF(IFERROR(VLOOKUP(C25,B26:$B$220,1,FALSE),"C")="C","C","A") -> A | B25: 1.1.02 | C25: 1.1.02.05 | D25: Venta de bienes y servicios | E25: =+VLOOKUP('Cuadro 2'!$C25,'Cuadro 35'!$B$12:$F$226,5,FALSE) -> 4212626228 | F25: =SUMIF($B26:$B$220,$C25,F26:F$220) -> 0 | G25: =SUMIF($B26:$B$220,$C25,G26:G$220) -> 0 | H25: =SUMIF($B26:$B$220,$C25,H26:H$220) -> 0 | I25: =SUMIF($B26:$B$220,$C25,I26:I$220) -> 0 | J25: 0 | K25: 4212626228 | M25: =SUMIF($B26:$B$220,$C25,M26:M$220) -> 0 | N25: =SUMIF($B26:$B$220,$C25,N26:N$220) -> 0 | Q25: 1 | R25: 0 | S25: 0 | T25: 0 | U25: 0 | V25: 0 | X25: 1 | Y25: 0 | Z25: 0 | AA25: 0 | AB25: 0 | AC25: 0
A26: =IF(IFERROR(VLOOKUP(C26,B27:$B$220,1,FALSE),"C")="C","C","A") -> A | B26: 1.1.02.05 | C26: 1.1.02.05.001 | D26: Ventas de establecimientos de mercado | E26: =+VLOOKUP('Cuadro 2'!$C26,'Cuadro 35'!$B$12:$F$226,5,FALSE) -> 4212626228 | F26: =SUMIF($B27:$B$220,$C26,F27:F$220) -> 0 | G26: =SUMIF($B27:$B$220,$C26,G27:G$220) -> 0 | H26: =SUMIF($B27:$B$220,$C26,H27:H$220) -> 0 | I26: =SUMIF($B27:$B$220,$C26,I27:I$220) -> 0 | J26: 0 | K26: 4212626228 | M26: =SUMIF($B27:$B$220,$C26,M27:M$220) -> 0 | N26: =SUMIF($B27:$B$220,$C26,N27:N$220) -> 0 | Q26: 1 | R26: 0 | S26: 0 | T26: 0 | U26: 0 | V26: 0 | X26: 1 | Y26: 0 | Z26: 0 | AA26: 0 | AB26: 0 | AC26: 0
A27: =IF(IFERROR(VLOOKUP(C27,B28:$B$220,1,FALSE),"C")="C","C","A") -> C | B27: 1.1.02.05.001 | C27: 1.1.02.05.001.00 | D27: Agricultura, silvicultura y productos de la pesca | E27: =+VLOOKUP('Cuadro 2'!$C27,'Cuadro 35'!$B$12:$F$226,5,FALSE) -> 0 | J27: 0 | K27: 0 | Q27: 1 | R27: 1 | S27: 1 | T27: 1 | U27: 1 | V27: 1 | X27: 0 | Y27: 0 | Z27: 0 | AA27: 0 | AB27: 0 | AC27: 0
A28: =IF(IFERROR(VLOOKUP(C28,B29:$B$220,1,FALSE),"C")="C","C","A") -> C | B28: 1.1.02.05.001 | C28: 1.1.02.05.001.01 | D28: Minerales; electricidad, gas y agua | E28: =+VLOOKUP('Cuadro 2'!$C28,'Cuadro 35'!$B$12:$F$226,5,FALSE) -> 0 | J28: 0 | K28: 0 | Q28: 1 | R28: 1 | S28: 1 | T28: 1 | U28: 1 | V28: 1 | X28: 0 | Y28: 0 | Z28: 0 | AA28: 0 | AB28: 0 | AC28: 0
A29: =IF(IFERROR(VLOOKUP(C29,B30:$B$220,1,FALSE),"C")="C","C","A") -> C | B29: 1.1.02.05.001 | C29: 1.1.02.05.001.02 | D29: Productos alimenticios, bebidas y tabaco; textiles, prendas de vestir y productos de cuero | E29: =+VLOOKUP('Cuadro 2'!$C29,'Cuadro 35'!$B$12:$F$226,5,FALSE) -> 0 | J29: 0 | K29: 0 | Q29: 1 | R29: 1 | S29: 1 | T29: 1 | U29: 1 | V29: 1 | X29: 0 | Y29: 0 | Z29: 0 | AA29: 0 | AB29: 0 | AC29: 0
A30: =IF(IFERROR(VLOOKUP(C30,B31:$B$220,1,FALSE),"C")="C","C","A") -> C | B30: 1.1.02.05.001 | C30: 1.1.02.05.001.03 | D30: Otros bienes transportables (excepto productos metálicos, maquinaria y equipo) | E30: =+VLOOKUP('Cuadro 2'!$C30,'Cuadro 35'!$B$12:$F$226,5,FALSE) -> 0 | J30: 0 | K30: 0 | Q30: 1 | R30: 1 | S30: 1 | T30: 1 | U30: 1 | V30: 1 | X30: 0 | Y30: 0 | Z30: 0 | AA30: 0 | AB30: 0 | AC30: 0
A31: =IF(IFERROR(VLOOKUP(C31,B32:$B$220,1,FALSE),"C")="C","C","A") -> C | B31: 1.1.02.05.001 | C31: 1.1.02.05.001.04 | D31: Productos metálicos, maquinaria y equipo | E31: =+VLOOKUP('Cuadro 2'!$C31,'Cuadro 35'!$B$12:$F$226,5,FALSE) -> 0 | J31: 0 | K31: 0 | Q31: 1 | R31: 1 | S31: 1 | T31: 1 | U31: 1 | V31: 1 | X31: 0 | Y31: 0 | Z31: 0 | AA31: 0 | AB31: 0 | AC31: 0
A32: =IF(IFERROR(VLOOKUP(C32,B33:$B$220,1,FALSE),"C")="C","C","A") -> C | B32: 1.1.02.05.001 | C32: 1.1.02.05.001.05 | D32: Servicios de la construcción | E32: =+VLOOKUP('Cuadro 2'!$C32,'Cuadro 35'!$B$12:$F$226,5,FALSE) -> 0 | J32: 0 | K32: 0 | Q32: 1 | R32: 1 | S32: 1 | T32: 1 | U32: 1 | V32: 1 | X32: 0 | Y32: 0 | Z32: 0 | AA32: 0 | AB32: 0 | AC32: 0
A33: =IF(IFERROR(VLOOKUP(C33,B34:$B$220,1,FALSE),"C")="C","C","A") -> C | B33: 1.1.02.05.001 | C33: 1.1.02.05.001.06 | D33: Servicios de alojamiento; servicios de suministro de comidas y bebidas; servicios de transporte; y servicios de distribución de electricidad, gas y agua | E33: =+VLOOKUP('Cuadro 2'!$C33,'Cuadro 35'!$B$12:$F$226,5,FALSE) -> 0 | J33: 0 | K33: 0 | Q33: 1 | R33: 1 | S33: 1 | T33: 1 | U33: 1 | V33: 1 | X33: 0 | Y33: 0 | Z33: 0 | AA33: 0 | AB33: 0 | AC33: 0
A34: =IF(IFERROR(VLOOKUP(C34,B35:$B$220,1,FALSE),"C")="C","C","A") -> C | B34: 1.1.02.05.001 | C34: 1.1.02.05.001.07 | D34: Servicios financieros y servicios conexos, servicios inmobiliarios y servicios de leasing | E34: =+VLOOKUP('Cuadro 2'!$C34,'Cuadro 35'!$B$12:$F$226,5,FALSE) -> 0 | J34: 0 | K34: 0 | Q34: 1 | R34: 1 | S34: 1 | T34: 1 | U34: 1 | V34: 1 | X34: 0 | Y34: 0 | Z34: 0 | AA34: 0 | AB34: 0 | AC34: 0
A35: =IF(IFERROR(VLOOKUP(C35,B36:$B$220,1,FALSE),"C")="C","C","A") -> C | B35: 1.1.02.05.001 | C35: 1.1.02.05.001.08 | D35: Servicios prestados a las empresas y servicios de producción | E35: =+VLOOKUP('Cuadro 2'!$C35,'Cuadro 35'!$B$12:$F$226,5,FALSE) -> 0 | J35: 0 | K35: 0 | Q35: 1 | R35: 1 | S35: 1 | T35: 1 | U35: 1 | V35: 1 | X35: 0 | Y35: 0 | Z35: 0 | AA35: 0 | AB35: 0 | AC35: 0
A36: =IF(IFERROR(VLOOKUP(C36,B37:$B$220,1,FALSE),"C")="C","C","A") -> C | B36: 1.1.02.05.001 | C36: 1.1.02.05.001.09 | D36: Servicios para la comunidad, sociales y personales | E36: =+VLOOKUP('Cuadro 2'!$C36,'Cuadro 35'!$B$12:$F$226,5,FALSE) -> 4212626228 | F36: =+'Cuadro 2B'!H11+'Cuadro 2B'!I11 -> 0 | G36: =+'Cuadro 2B'!J11+'Cuadro 2B'!K11 -> 0 | H36: =+'Cuadro 2B'!L11+'Cuadro 2B'!M11 -> 0 | I36: =+'Cuadro 2B'!N11+'Cuadro 2B'!O11 -> 0 | J36: 0 | K36: 4212626228 | M36: =+'Cuadro 2B'!T11+'Cuadro 2B'!U11 -> 0 | N36: =+'Cuadro 2B'!T11+'Cuadro 2B'!U11 -> 0 | Q36: 1 | R36: 0 | S36: 0 | T36: 0 | U36: 0 | V36: 0 | X36: 1 | Y36: 0 | Z36: 0 | AA36: 0 | AB36: 0 | AC36: 0
A37: =IF(IFERROR(VLOOKUP(C37,B38:$B$220,1,FALSE),"C")="C","C","A") -> A | B37: 1.1.02.05 | C37: 1.1.02.05.002 | D37: Ventas incidentales de establecimientos no de mercado | E37: =+VLOOKUP('Cuadro 2'!$C37,'Cuadro 35'!$B$12:$F$226,5,FALSE) -> 0 | F37: =SUMIF($B38:$B$220,$C37,F38:F$220) -> 0 | G37: =SUMIF($B38:$B$220,$C37,G38:G$220) -> 0 | H37: =SUMIF($B38:$B$220,$C37,H38:H$220) -> 0 | I37: =SUMIF($B38:$B$220,$C37,I38:I$220) -> 0 | J37: 0 | K37: 0 | M37: =SUMIF($B38:$B$220,$C37,$M38:$M$220) -> 0 | N37: =SUMIF($B38:$B$220,$C37,$N38:$N$220) -> 0 | Q37: 1 | R37: 1 | S37: 1 | T37: 1 | U37: 1 | V37: 1 | X37: 0 | Y37: 0 | Z37: 0 | AA37: 0 | AB37: 0 | AC37: 0
A38: =IF(IFERROR(VLOOKUP(C38,B39:$B$220,1,FALSE),"C")="C","C","A") -> C | B38: 1.1.02.05.002 | C38: 1.1.02.05.002.00 | D38: Agricultura, silvicultura y productos de la pesca | E38: =+VLOOKUP('Cuadro 2'!$C38,'Cuadro 35'!$B$12:$F$226,5,FALSE) -> 0 | J38: 0 | K38: 0 | Q38: 1 | R38: 1 | S38: 1 | T38: 1 | U38: 1 | V38: 1 | X38: 0 | Y38: 0 | Z38: 0 | AA38: 0 | AB38: 0 | AC38: 0
A39: =IF(IFERROR(VLOOKUP(C39,B40:$B$220,1,FALSE),"C")="C","C","A") -> C | B39: 1.1.02.05.002 | C39: 1.1.02.05.002.01 | D39: Minerales; electricidad, gas y agua | E39: =+VLOOKUP('Cuadro 2'!$C39,'Cuadro 35'!$B$12:$F$226,5,FALSE) -> 0 | J39: 0 | K39: 0 | Q39: 1 | R39: 1 | S39: 1 | T39: 1 | U39: 1 | V39: 1 | X39: 0 | Y39: 0 | Z39: 0 | AA39: 0 | AB39: 0 | AC39: 0
A40: =IF(IFERROR(VLOOKUP(C40,B41:$B$220,1,FALSE),"C")="C","C","A") -> C | B40: 1.1.02.05.002 | C40: 1.1.02.05.002.02 | D40: Productos alimenticios, bebidas y tabaco; textiles, prendas de vestir y productos de cuero | E40: =+VLOOKUP('Cuadro 2'!$C40,'Cuadro 35'!$B$12:$F$226,5,FALSE) -> 0 | J40: 0 | K40: 0 | Q40: 1 | R40: 1 | S40: 1 | T40: 1 | U40: 1 | V40: 1 | X40: 0 | Y40: 0 | Z40: 0 | AA40: 0 | AB40: 0 | AC40: 0
A41: =IF(IFERROR(VLOOKUP(C41,B42:$B$220,1,FALSE),"C")="C","C","A") -> C | B41: 1.1.02.05.002 | C41: 1.1.02.05.002.03 | D41: Otros bienes transportables (excepto productos metálicos, maquinaria y equipo) | E41: =+VLOOKUP('Cuadro 2'!$C41,'Cuadro 35'!$B$12:$F$226,5,FALSE) -> 0 | J41: 0 | K41: 0 | Q41: 1 | R41: 1 | S41: 1 | T41: 1 | U41: 1 | V41: 1 | X41: 0 | Y41: 0 | Z41: 0 | AA41: 0 | AB41: 0 | AC41: 0
A42: =IF(IFERROR(VLOOKUP(C42,B43:$B$220,1,FALSE),"C")="C","C","A") -> C | B42: 1.1.02.05.002 | C42: 1.1.02.05.002.04 | D42: Productos metálicos, maquinaria y equipo | E42: =+VLOOKUP('Cuadro 2'!$C42,'Cuadro 35'!$B$12:$F$226,5,FALSE) -> 0 | J42: 0 | K42: 0 | Q42: 1 | R42: 1 | S42: 1 | T42: 1 | U42: 1 | V42: 1 | X42: 0 | Y42: 0 | Z42: 0 | AA42: 0 | AB42: 0 | AC42: 0
A43: =IF(IFERROR(VLOOKUP(C43,B44:$B$220,1,FALSE),"C")="C","C","A") -> C | B43: 1.1.02.05.002 | C43: 1.1.02.05.002.05 | D43: Servicios de la construcción | E43: =+VLOOKUP('Cuadro 2'!$C43,'Cuadro 35'!$B$12:$F$226,5,FALSE) -> 0 | J43: 0 | K43: 0 | Q43: 1 | R43: 1 | S43: 1 | T43: 1 | U43: 1 | V43: 1 | X43: 0 | Y43: 0 | Z43: 0 | AA43: 0 | AB43: 0 | AC43: 0
A44: =IF(IFERROR(VLOOKUP(C44,B45:$B$220,1,FALSE),"C")="C","C","A") -> C | B44: 1.1.02.05.002 | C44: 1.1.02.05.002.06 | D44: Servicios de alojamiento; servicios de suministro de comidas y bebidas; servicios de transporte; y servicios de distribución de electricidad, gas y agua | E44: =+VLOOKUP('Cuadro 2'!$C44,'Cuadro 35'!$B$12:$F$226,5,FALSE) -> 0 | J44: 0 | K44: 0 | Q44: 1 | R44: 1 | S44: 1 | T44: 1 | U44: 1 | V44: 1 | X44: 0 | Y44: 0 | Z44: 0 | AA44: 0 | AB44: 0 | AC44: 0
A45: =IF(IFERROR(VLOOKUP(C45,B46:$B$220,1,FALSE),"C")="C","C","A") -> C | B45: 1.1.02.05.002 | C45: 1.1.02.05.002.07 | D45: Servicios financieros y servicios conexos, servicios inmobiliarios y servicios de leasing | E45: =+VLOOKUP('Cuadro 2'!$C45,'Cuadro 35'!$B$12:$F$226,5,FALSE) -> 0 | J45: 0 | K45: 0 | Q45: 1 | R45: 1 | S45: 1 | T45: 1 | U45: 1 | V45: 1 | X45: 0 | Y45: 0 | Z45: 0 | AA45: 0 | AB45: 0 | AC45: 0
A46: =IF(IFERROR(VLOOKUP(C46,B47:$B$220,1,FALSE),"C")="C","C","A") -> C | B46: 1.1.02.05.002 | C46: 1.1.02.05.002.08 | D46: Servicios prestados a las empresas y servicios de producción | E46: =+VLOOKUP('Cuadro 2'!$C46,'Cuadro 35'!$B$12:$F$226,5,FALSE) -> 0 | J46: 0 | K46: 0 | Q46: 1 | R46: 1 | S46: 1 | T46: 1 | U46: 1 | V46: 1 | X46: 0 | Y46: 0 | Z46: 0 | AA46: 0 | AB46: 0 | AC46: 0
A47: =IF(IFERROR(VLOOKUP(C47,B48:$B$220,1,FALSE),"C")="C","C","A") -> C | B47: 1.1.02.05.002 | C47: 1.1.02.05.002.09 | D47: Servicios para la comunidad, sociales y personales | E47: =+VLOOKUP('Cuadro 2'!$C47,'Cuadro 35'!$B$12:$F$226,5,FALSE) -> 0 | J47: 0 | K47: 0 | Q47: 1 | R47: 1 | S47: 1 | T47: 1 | U47: 1 | V47: 1 | X47: 0 | Y47: 0 | Z47: 0 | AA47: 0 | AB47: 0 | AC47: 0
A48: =IF(IFERROR(VLOOKUP(C48,B49:$B$220,1,FALSE),"C")="C","C","A") -> A | B48: 1.1.02 | C48: 1.1.02.06 | D48: Transferencias corrientes | E48: =+VLOOKUP('Cuadro 2'!$C48,'Cuadro 35'!$B$12:$F$226,5,FALSE) -> 0 | F48: =SUMIF($B49:$B$220,$C48,F49:F$220) -> 0 | G48: =SUMIF($B49:$B$220,$C48,G49:G$220) -> 0 | H48: =SUMIF($B49:$B$220,$C48,H49:H$220) -> 0 | I48: =SUMIF($B49:$B$220,$C48,I49:I$220) -> 0 | J48: 0 | K48: 0 | M48: =SUMIF($B49:$B$220,$C48,M49:M$220) -> 0 | N48: =SUMIF($B49:$B$220,$C48,N49:N$220) -> 0 | Q48: 1 | R48: 1 | S48: 1 | T48: 1 | U48: 1 | V48: 1 | X48: 0 | Y48: 0 | Z48: 0 | AA48: 0 | AB48: 0 | AC48: 0
A49: =IF(IFERROR(VLOOKUP(C49,B50:$B$220,1,FALSE),"C")="C","C","A") -> A | B49: 1.1.02.06 | C49: 1.1.02.06.006 | D49: Transferencias de otras entidades del gobierno general | E49: =+VLOOKUP('Cuadro 2'!$C49,'Cuadro 35'!$B$12:$F$226,5,FALSE) -> 0 | F49: =SUMIF($B50:$B$220,$C49,F50:F$220) -> 0 | G49: =SUMIF($B50:$B$220,$C49,G50:G$220) -> 0 | H49: =SUMIF($B50:$B$220,$C49,H50:H$220) -> 0 | I49: =SUMIF($B50:$B$220,$C49,I50:I$220) -> 0 | J49: 0 | K49: 0 | M49: =SUMIF($B50:$B$220,$C49,M50:M$220) -> 0 | N49: =SUMIF($B50:$B$220,$C49,N50:N$220) -> 0 | Q49: 1 | R49: 1 | S49: 1 | T49: 1 | U49: 1 | V49: 1 | X49: 0 | Y49: 0 | Z49: 0 | AA49: 0 | AB49: 0 | AC49: 0
A50: =IF(IFERROR(VLOOKUP(C50,B51:$B$220,1,FALSE),"C")="C","C","A") -> C | B50: 1.1.02.06.006 | C50: 1.1.02.06.006.01 | D50: Aportes Nación | E50: =+VLOOKUP('Cuadro 2'!$C50,'Cuadro 35'!$B$12:$F$226,5,FALSE) -> 0 | J50: 0 | K50: 0 | Q50: 1 | R50: 1 | S50: 1 | T50: 1 | U50: 1 | V50: 1 | X50: 0 | Y50: 0 | Z50: 0 | AA50: 0 | AB50: 0 | AC50: 0
A51: =IF(IFERROR(VLOOKUP(C51,B52:$B$220,1,FALSE),"C")="C","C","A") -> C | B51: 1.1.02.06.006 | C51: 1.1.02.06.006.06 | D51: Otras unidades de gobierno | E51: =+VLOOKUP('Cuadro 2'!$C51,'Cuadro 35'!$B$12:$F$226,5,FALSE) -> 0 | J51: 0 | K51: 0 | Q51: 1 | R51: 1 | S51: 1 | T51: 1 | U51: 1 | V51: 1 | X51: 0 | Y51: 0 | Z51: 0 | AA51: 0 | AB51: 0 | AC51: 0
A52: =IF(IFERROR(VLOOKUP(C52,B53:$B$220,1,FALSE),"C")="C","C","A") -> C | B52: 1.1.02.06.006 | C52: 1.1.02.06.006.07 | D52: Transferencia del recaudo de Estampillas | E52: =+VLOOKUP('Cuadro 2'!$C52,'Cuadro 35'!$B$12:$F$226,5,FALSE) -> 0 | J52: 0 | K52: 0 | Q52: 1 | R52: 1 | S52: 1 | T52: 1 | U52: 1 | V52: 1 | X52: 0 | Y52: 0 | Z52: 0 | AA52: 0 | AB52: 0 | AC52: 0
A53: =IF(IFERROR(VLOOKUP(C53,B54:$B$220,1,FALSE),"C")="C","C","A") -> A | B53: 1.1.02.06 | C53: 1.1.02.06.007 | D53: Subvenciones | E53: =+VLOOKUP('Cuadro 2'!$C53,'Cuadro 35'!$B$12:$F$226,5,FALSE) -> 0 | F53: =SUMIF($B54:$B$220,$C53,F54:F$220) -> 0 | G53: =SUMIF($B54:$B$220,$C53,G54:G$220) -> 0 | H53: =SUMIF($B54:$B$220,$C53,H54:H$220) -> 0 | I53: =SUMIF($B54:$B$220,$C53,I54:I$220) -> 0 | J53: 0 | K53: 0 | M53: =SUMIF($B54:$B$220,$C53,M54:M$220) -> 0 | N53: =SUMIF($B54:$B$220,$C53,N54:N$220) -> 0 | Q53: 1 | R53: 1 | S53: 1 | T53: 1 | U53: 1 | V53: 1 | X53: 0 | Y53: 0 | Z53: 0 | AA53: 0 | AB53: 0 | AC53: 0
A54: =IF(IFERROR(VLOOKUP(C54,B55:$B$220,1,FALSE),"C")="C","C","A") -> A | B54: 1.1.02.06.007 | C54: 1.1.02.06.007.02 | D54: Empresas públicas no financieras | E54: =+VLOOKUP('Cuadro 2'!$C54,'Cuadro 35'!$B$12:$F$226,5,FALSE) -> 0 | F54: =SUMIF($B55:$B$220,$C54,F55:F$220) -> 0 | G54: =SUMIF($B55:$B$220,$C54,G55:G$220) -> 0 | H54: =SUMIF($B55:$B$220,$C54,H55:H$220) -> 0 | I54: =SUMIF($B55:$B$220,$C54,I55:I$220) -> 0 | J54: 0 | K54: 0 | M54: =SUMIF($B55:$B$220,$C54,M55:M$220) -> 0 | N54: =SUMIF($B55:$B$220,$C54,N55:N$220) -> 0 | Q54: 1 | R54: 1 | S54: 1 | T54: 1 | U54: 1 | V54: 1 | X54: 0 | Y54: 0 | Z54: 0 | AA54: 0 | AB54: 0 | AC54: 0
A55: =IF(IFERROR(VLOOKUP(C55,B56:$B$220,1,FALSE),"C")="C","C","A") -> A | B55: 1.1.02.06.007.02 | C55: 1.1.02.06.007.02.05 | D55: Transferencia para subsidiar servicios públicos domiciliarios de agua potable y saneamiento básico | E55: =+VLOOKUP('Cuadro 2'!$C55,'Cuadro 35'!$B$12:$F$226,5,FALSE) -> 0 | F55: =SUMIF($B56:$B$220,$C55,F56:F$220) -> 0 | G55: =SUMIF($B56:$B$220,$C55,G56:G$220) -> 0 | H55: =SUMIF($B56:$B$220,$C55,H56:H$220) -> 0 | I55: =SUMIF($B56:$B$220,$C55,I56:I$220) -> 0 | J55: 0 | K55: 0 | M55: =SUMIF($B56:$B$220,$C55,M56:M$220) -> 0 | N55: =SUMIF($B56:$B$220,$C55,N56:N$220) -> 0 | Q55: 1 | R55: 1 | S55: 1 | T55: 1 | U55: 1 | V55: 1 | X55: 0 | Y55: 0 | Z55: 0 | AA55: 0 | AB55: 0 | AC55: 0
A56: =IF(IFERROR(VLOOKUP(C56,B57:$B$220,1,FALSE),"C")="C","C","A") -> C | B56: 1.1.02.06.007.02.05 | C56: 1.1.02.06.007.02.05.01 | D56: Subsidios de acueducto | E56: =+VLOOKUP('Cuadro 2'!$C56,'Cuadro 35'!$B$12:$F$226,5,FALSE) -> 0 | J56: 0 | K56: 0 | Q56: 1 | R56: 1 | S56: 1 | T56: 1 | U56: 1 | V56: 1 | X56: 0 | Y56: 0 | Z56: 0 | AA56: 0 | AB56: 0 | AC56: 0
A57: =IF(IFERROR(VLOOKUP(C57,B58:$B$220,1,FALSE),"C")="C","C","A") -> C | B57: 1.1.02.06.007.02.05 | C57: 1.1.02.06.007.02.05.02 | D57: Subsidios de alcantarillado | E57: =+VLOOKUP('Cuadro 2'!$C57,'Cuadro 35'!$B$12:$F$226,5,FALSE) -> 0 | J57: 0 | K57: 0 | Q57: 1 | R57: 1 | S57: 1 | T57: 1 | U57: 1 | V57: 1 | X57: 0 | Y57: 0 | Z57: 0 | AA57: 0 | AB57: 0 | AC57: 0
A58: =IF(IFERROR(VLOOKUP(C58,B59:$B$220,1,FALSE),"C")="C","C","A") -> C | B58: 1.1.02.06.007.02.05 | C58: 1.1.02.06.007.02.05.03 | D58: Subsidios de aseo | E58: =+VLOOKUP('Cuadro 2'!$C58,'Cuadro 35'!$B$12:$F$226,5,FALSE) -> 0 | J58: 0 | K58: 0 | Q58: 1 | R58: 1 | S58: 1 | T58: 1 | U58: 1 | V58: 1 | X58: 0 | Y58: 0 | Z58: 0 | AA58: 0 | AB58: 0 | AC58: 0
A59: =IF(IFERROR(VLOOKUP(C59,B60:$B$220,1,FALSE),"C")="C","C","A") -> C | B59: 1.1.02.06.007.02.05 | C59: 1.1.02.06.007.02.05.04 | D59: Mínimo vital | E59: =+VLOOKUP('Cuadro 2'!$C59,'Cuadro 35'!$B$12:$F$226,5,FALSE) -> 0 | J59: 0 | K59: 0 | Q59: 1 | R59: 1 | S59: 1 | T59: 1 | U59: 1 | V59: 1 | X59: 0 | Y59: 0 | Z59: 0 | AA59: 0 | AB59: 0 | AC59: 0
A60: =IF(IFERROR(VLOOKUP(C60,B61:$B$220,1,FALSE),"C")="C","C","A") -> C | B60: 1.1.02.06.007.02 | C60: 1.1.02.06.007.02.06 | D60: Subvenciones a empresas de transporte masivo | E60: =+VLOOKUP('Cuadro 2'!$C60,'Cuadro 35'!$B$12:$F$226,5,FALSE) -> 0 | J60: 0 | K60: 0 | Q60: 1 | R60: 1 | S60: 1 | T60: 1 | U60: 1 | V60: 1 | X60: 0 | Y60: 0 | Z60: 0 | AA60: 0 | AB60: 0 | AC60: 0
A61: =IF(IFERROR(VLOOKUP(C61,B62:$B$220,1,FALSE),"C")="C","C","A") -> C | B61: 1.1.02.06.007.02 | C61: 1.1.02.06.007.02.07 | D61: Transferencia de recursos del Fondo de Energía Social - FOES | E61: =+VLOOKUP('Cuadro 2'!$C61,'Cuadro 35'!$B$12:$F$226,5,FALSE) -> 0 | J61: 0 | K61: 0 | Q61: 1 | R61: 1 | S61: 1 | T61: 1 | U61: 1 | V61: 1 | X61: 0 | Y61: 0 | Z61: 0 | AA61: 0 | AB61: 0 | AC61: 0
A62: =IF(IFERROR(VLOOKUP(C62,B63:$B$220,1,FALSE),"C")="C","C","A") -> C | B62: 1.1.02.06.007.02 | C62: 1.1.02.06.007.02.08 | D62: Transferencias para Empresas Sociales del Estado | E62: =+VLOOKUP('Cuadro 2'!$C62,'Cuadro 35'!$B$12:$F$226,5,FALSE) -> 0 | J62: 0 | K62: 0 | Q62: 1 | R62: 1 | S62: 1 | T62: 1 | U62: 1 | V62: 1 | X62: 0 | Y62: 0 | Z62: 0 | AA62: 0 | AB62: 0 | AC62: 0
A63: =IF(IFERROR(VLOOKUP(C63,B64:$B$220,1,FALSE),"C")="C","C","A") -> C | B63: 1.1.02.06.007.02 | C63: 1.1.02.06.007.02.09 | D63: Transferencia a Empresas de Renovación Urbana | E63: =+VLOOKUP('Cuadro 2'!$C63,'Cuadro 35'!$B$12:$F$226,5,FALSE) -> 0 | J63: 0 | K63: 0 | Q63: 1 | R63: 1 | S63: 1 | T63: 1 | U63: 1 | V63: 1 | X63: 0 | Y63: 0 | Z63: 0 | AA63: 0 | AB63: 0 | AC63: 0
A64: =IF(IFERROR(VLOOKUP(C64,B65:$B$220,1,FALSE),"C")="C","C","A") -> A | B64: 1.1.02.06 | C64: 1.1.02.06.008 | D64: Diferentes de subvenciones | E64: =+VLOOKUP('Cuadro 2'!$C64,'Cuadro 35'!$B$12:$F$226,5,FALSE) -> 0 | F64: =SUMIF($B65:$B$220,$C64,F65:F$220) -> 0 | G64: =SUMIF($B65:$B$220,$C64,G65:G$220) -> 0 | H64: =SUMIF($B65:$B$220,$C64,H65:H$220) -> 0 | I64: =SUMIF($B65:$B$220,$C64,I65:I$220) -> 0 | J64: 0 | K64: 0 | M64: =SUMIF($B65:$B$220,$C64,M65:M$220) -> 0 | N64: =SUMIF($B65:$B$220,$C64,N65:N$220) -> 0 | Q64: 1 | R64: 1 | S64: 1 | T64: 1 | U64: 1 | V64: 1 | X64: 0 | Y64: 0 | Z64: 0 | AA64: 0 | AB64: 0 | AC64: 0
A65: =IF(IFERROR(VLOOKUP(C65,B66:$B$220,1,FALSE),"C")="C","C","A") -> A | B65: 1.1.02.06.008 | C65: 1.1.02.06.008.01 | D65: Actividades de atención a la salud humana y de asistencia social | E65: =+VLOOKUP('Cuadro 2'!$C65,'Cuadro 35'!$B$12:$F$226,5,FALSE) -> 0 | F65: =SUMIF($B66:$B$220,$C65,F66:F$220) -> 0 | G65: =SUMIF($B66:$B$220,$C65,G66:G$220) -> 0 | H65: =SUMIF($B66:$B$220,$C65,H66:H$220) -> 0 | I65: =SUMIF($B66:$B$220,$C65,I66:I$220) -> 0 | J65: 0 | K65: 0 | M65: =SUMIF($B66:$B$220,$C65,M66:M$220) -> 0 | N65: =SUMIF($B66:$B$220,$C65,N66:N$220) -> 0 | Q65: 1 | R65: 1 | S65: 1 | T65: 1 | U65: 1 | V65: 1 | X65: 0 | Y65: 0 | Z65: 0 | AA65: 0 | AB65: 0 | AC65: 0
A66: =IF(IFERROR(VLOOKUP(C66,B67:$B$220,1,FALSE),"C")="C","C","A") -> C | B66: 1.1.02.06.008.01 | C66: 1.1.02.06.008.01.01 | D66: Campaña y control antituberculosis | E66: =+VLOOKUP('Cuadro 2'!$C66,'Cuadro 35'!$B$12:$F$226,5,FALSE) -> 0 | J66: 0 | K66: 0 | Q66: 1 | R66: 1 | S66: 1 | T66: 1 | U66: 1 | V66: 1 | X66: 0 | Y66: 0 | Z66: 0 | AA66: 0 | AB66: 0 | AC66: 0
A67: =IF(IFERROR(VLOOKUP(C67,B68:$B$220,1,FALSE),"C")="C","C","A") -> C | B67: 1.1.02.06.008.01 | C67: 1.1.02.06.008.01.02 | D67: Plan nacional de salud rural | E67: =+VLOOKUP('Cuadro 2'!$C67,'Cuadro 35'!$B$12:$F$226,5,FALSE) -> 0 | J67: 0 | K67: 0 | Q67: 1 | R67: 1 | S67: 1 | T67: 1 | U67: 1 | V67: 1 | X67: 0 | Y67: 0 | Z67: 0 | AA67: 0 | AB67: 0 | AC67: 0
A68: =IF(IFERROR(VLOOKUP(C68,B69:$B$220,1,FALSE),"C")="C","C","A") -> C | B68: 1.1.02.06.008.01 | C68: 1.1.02.06.008.01.03 | D68: Programa emergencia sanitaria | E68: =+VLOOKUP('Cuadro 2'!$C68,'Cuadro 35'!$B$12:$F$226,5,FALSE) -> 0 | J68: 0 | K68: 0 | Q68: 1 | R68: 1 | S68: 1 | T68: 1 | U68: 1 | V68: 1 | X68: 0 | Y68: 0 | Z68: 0 | AA68: 0 | AB68: 0 | AC68: 0
A69: =IF(IFERROR(VLOOKUP(C69,B70:$B$220,1,FALSE),"C")="C","C","A") -> C | B69: 1.1.02.06.008.01 | C69: 1.1.02.06.008.01.99 | D69: Transferencias a empresas del sector no clasificadas previamente | E69: =+VLOOKUP('Cuadro 2'!$C69,'Cuadro 35'!$B$12:$F$226,5,FALSE) -> 0 | J69: 0 | K69: 0 | Q69: 1 | R69: 1 | S69: 1 | T69: 1 | U69: 1 | V69: 1 | X69: 0 | Y69: 0 | Z69: 0 | AA69: 0 | AB69: 0 | AC69: 0
A70: =IF(IFERROR(VLOOKUP(C70,B71:$B$220,1,FALSE),"C")="C","C","A") -> A | B70: 1.1.02.06.008 | C70: 1.1.02.06.008.02 | D70: Agricultura, ganadería, caza, silvicultura y pesca | E70: =+VLOOKUP('Cuadro 2'!$C70,'Cuadro 35'!$B$12:$F$226,5,FALSE) -> 0 | F70: =SUMIF($B71:$B$220,$C70,F71:F$220) -> 0 | G70: =SUMIF($B71:$B$220,$C70,G71:G$220) -> 0 | H70: =SUMIF($B71:$B$220,$C70,H71:H$220) -> 0 | I70: =SUMIF($B71:$B$220,$C70,I71:I$220) -> 0 | J70: =SUM(F70:I70) -> 0 | K70: =+E70-J70 -> 0 | M70: =SUMIF($B71:$B$220,$C70,M71:M$220) -> 0 | N70: =SUMIF($B71:$B$220,$C70,N71:N$220) -> 0 | Q70: =IF(ISNUMBER(J70),1,0) -> 1 | R70: =IF(OR(AND(IFERROR(F70/$E70,0)>=1,$E70>0),AND(F70>$E70,$E70<=0),AND($E70<=0,F70>=0)),1,IF(AND(IFERROR(($E70-F70)/F70,0)<0,F70<$E70),0,F70/$E70)) -> 1 | S70: =IF(OR(AND(IFERROR(G70/$E70,0)>=1,$E70>0),AND(G70>$E70,$E70<=0),AND($E70<=0,G70>=0)),1,IF(AND(IFERROR(($E70-G70)/G70,0)<0,G70<$E70),0,G70/$E70)) -> 1 | T70: =IF(OR(AND(IFERROR(H70/$E70,0)>=1,$E70>0),AND(H70>$E70,$E70<=0),AND($E70<=0,H70>=0)),1,IF(AND(IFERROR(($E70-H70)/H70,0)<0,H70<$E70),0,H70/$E70)) -> 1 | U70: =IF(OR(AND(IFERROR(I70/$E70,0)>=1,$E70>0),AND(I70>$E70,$E70<=0),AND($E70<=0,I70>=0)),1,IF(AND(IFERROR(($E70-I70)/I70,0)<0,I70<$E70),0,I70/$E70)) -> 1 | V70: =IF(OR(AND(IFERROR(J70/$E70,0)>=1,$E70>0),AND(J70>$E70,$E70<=0),AND($E70<=0,J70>=0)),1,IF(AND(IFERROR(($E70-J70)/J70,0)<0,J70<$E70),0,J70/$E70)) -> 1 | X70: =IFERROR(E70/$E$6,0) -> 0 | Y70: =IFERROR(F70/$F$6,0) -> 0 | Z70: =IFERROR(G70/$G$6,0) -> 0 | AA70: =IFERROR(H70/$H$6,0) -> 0 | AB70: =IFERROR(I70/$I$6,0) -> 0 | AC70: =IFERROR(J70/$J$6,0) -> 0
A71: =IF(IFERROR(VLOOKUP(C71,B72:$B$220,1,FALSE),"C")="C","C","A") -> C | B71: 1.1.02.06.008.02 | C71: 1.1.02.06.008.02.99 | D71: Transferencias a empresas del sector no clasificadas previamente | E71: =+VLOOKUP('Cuadro 2'!$C71,'Cuadro 35'!$B$12:$F$226,5,FALSE) -> 0 | J71: 0 | K71: 0 | Q71: 1 | R71: 1 | S71: 1 | T71: 1 | U71: 1 | V71: 1 | X71: 0 | Y71: 0 | Z71: 0 | AA71: 0 | AB71: 0 | AC71: 0
A72: =IF(IFERROR(VLOOKUP(C72,B73:$B$220,1,FALSE),"C")="C","C","A") -> A | B72: 1.1.02.06.008 | C72: 1.1.02.06.008.03 | D72: Distribución de agua; evacuación y tratamiento de aguas residuales, gestión de desechos y actividades de saneamiento ambiental | E72: =+VLOOKUP('Cuadro 2'!$C72,'Cuadro 35'!$B$12:$F$226,5,FALSE) -> 0 | F72: =SUMIF($B73:$B$220,$C72,F73:F$220) -> 0 | G72: =SUMIF($B73:$B$220,$C72,G73:G$220) -> 0 | H72: =SUMIF($B73:$B$220,$C72,H73:H$220) -> 0 | I72: =SUMIF($B73:$B$220,$C72,I73:I$220) -> 0 | J72: 0 | K72: 0 | M72: =SUMIF($B73:$B$220,$C72,M73:M$220) -> 0 | N72: =SUMIF($B73:$B$220,$C72,N73:N$220) -> 0 | Q72: 1 | R72: 1 | S72: 1 | T72: 1 | U72: 1 | V72: 1 | X72: 0 | Y72: 0 | Z72: 0 | AA72: 0 | AB72: 0 | AC72: 0
A73: =IF(IFERROR(VLOOKUP(C73,B74:$B$220,1,FALSE),"C")="C","C","A") -> C | B73: 1.1.02.06.008.03 | C73: 1.1.02.06.008.03.99 | D73: Transferencias a empresas del sector no clasificadas previamente | E73: =+VLOOKUP('Cuadro 2'!$C73,'Cuadro 35'!$B$12:$F$226,5,FALSE) -> 0 | J73: 0 | K73: 0 | Q73: 1 | R73: 1 | S73: 1 | T73: 1 | U73: 1 | V73: 1 | X73: 0 | Y73: 0 | Z73: 0 | AA73: 0 | AB73: 0 | AC73: 0
A74: =IF(IFERROR(VLOOKUP(C74,B75:$B$220,1,FALSE),"C")="C","C","A") -> A | B74: 1.1.02.06.008 | C74: 1.1.02.06.008.04 | D74: Comercio al por mayor y al por menor; reparación de vehículos automotores y motocicletas | E74: =+VLOOKUP('Cuadro 2'!$C74,'Cuadro 35'!$B$12:$F$226,5,FALSE) -> 0 | F74: =SUMIF($B75:$B$220,$C74,F75:F$220) -> 0 | G74: =SUMIF($B75:$B$220,$C74,G75:G$220) -> 0 | H74: =SUMIF($B75:$B$220,$C74,H75:H$220) -> 0 | I74: =SUMIF($B75:$B$220,$C74,I75:I$220) -> 0 | J74: 0 | K74: 0 | M74: =SUMIF($B75:$B$220,$C74,M75:M$220) -> 0 | N74: =SUMIF($B75:$B$220,$C74,N75:N$220) -> 0 | Q74: 1 | R74: 1 | S74: 1 | T74: 1 | U74: 1 | V74: 1 | X74: 0 | Y74: 0 | Z74: 0 | AA74: 0 | AB74: 0 | AC74: 0
A75: =IF(IFERROR(VLOOKUP(C75,B76:$B$220,1,FALSE),"C")="C","C","A") -> C | B75: 1.1.02.06.008.04 | C75: 1.1.02.06.008.04.99 | D75: Transferencias a empresas del sector no clasificadas previamente | E75: =+VLOOKUP('Cuadro 2'!$C75,'Cuadro 35'!$B$12:$F$226,5,FALSE) -> 0 | J75: 0 | K75: 0 | Q75: 1 | R75: 1 | S75: 1 | T75: 1 | U75: 1 | V75: 1 | X75: 0 | Y75: 0 | Z75: 0 | AA75: 0 | AB75: 0 | AC75: 0
A76: =IF(IFERROR(VLOOKUP(C76,B77:$B$220,1,FALSE),"C")="C","C","A") -> A | B76: 1.1.02.06.008 | C76: 1.1.02.06.008.05 | D76: Información y comunicaciones | E76: =+VLOOKUP('Cuadro 2'!$C76,'Cuadro 35'!$B$12:$F$226,5,FALSE) -> 0 | F76: =SUMIF($B77:$B$220,$C76,F77:F$220) -> 0 | G76: =SUMIF($B77:$B$220,$C76,G77:G$220) -> 0 | H76: =SUMIF($B77:$B$220,$C76,H77:H$220) -> 0 | I76: =SUMIF($B77:$B$220,$C76,I77:I$220) -> 0 | J76: 0 | K76: 0 | M76: =SUMIF($B77:$B$220,$C76,M77:M$220) -> 0 | N76: =SUMIF($B77:$B$220,$C76,N77:N$220) -> 0 | Q76: 1 | R76: 1 | S76: 1 | T76: 1 | U76: 1 | V76: 1 | X76: 0 | Y76: 0 | Z76: 0 | AA76: 0 | AB76: 0 | AC76: 0
A77: =IF(IFERROR(VLOOKUP(C77,B78:$B$220,1,FALSE),"C")="C","C","A") -> C | B77: 1.1.02.06.008.05 | C77: 1.1.02.06.008.05.02 | D77: Transferencia a los operadores públicos del servicio de televisión del FUTIC-artículo 22 Ley 1978 de 2019 | E77: =+VLOOKUP('Cuadro 2'!$C77,'Cuadro 35'!$B$12:$F$226,5,FALSE) -> 0 | J77: 0 | K77: 0 | Q77: 1 | R77: 1 | S77: 1 | T77: 1 | U77: 1 | V77: 1 | X77: 0 | Y77: 0 | Z77: 0 | AA77: 0 | AB77: 0 | AC77: 0
A78: =IF(IFERROR(VLOOKUP(C78,B79:$B$220,1,FALSE),"C")="C","C","A") -> C | B78: 1.1.02.06.008.05 | C78: 1.1.02.06.008.05.99 | D78: Transferencias a empresas del sector no clasificadas previamente | E78: =+VLOOKUP('Cuadro 2'!$C78,'Cuadro 35'!$B$12:$F$226,5,FALSE) -> 0 | J78: 0 | K78: 0 | Q78: 1 | R78: 1 | S78: 1 | T78: 1 | U78: 1 | V78: 1 | X78: 0 | Y78: 0 | Z78: 0 | AA78: 0 | AB78: 0 | AC78: 0
A79: =IF(IFERROR(VLOOKUP(C79,B80:$B$220,1,FALSE),"C")="C","C","A") -> A | B79: 1.1.02.06.008 | C79: 1.1.02.06.008.06 | D79: Administración pública y defensa; planes de seguridad social de afiliación obligatoria | E79: =+VLOOKUP('Cuadro 2'!$C79,'Cuadro 35'!$B$12:$F$226,5,FALSE) -> 0 | F79: =SUMIF($B80:$B$220,$C79,F80:F$220) -> 0 | G79: =SUMIF($B80:$B$220,$C79,G80:G$220) -> 0 | H79: =SUMIF($B80:$B$220,$C79,H80:H$220) -> 0 | I79: =SUMIF($B80:$B$220,$C79,I80:I$220) -> 0 | J79: 0 | K79: 0 | M79: =SUMIF($B80:$B$220,$C79,M80:M$220) -> 0 | N79: =SUMIF($B80:$B$220,$C79,N80:N$220) -> 0 | Q79: 1 | R79: 1 | S79: 1 | T79: 1 | U79: 1 | V79: 1 | X79: 0 | Y79: 0 | Z79: 0 | AA79: 0 | AB79: 0 | AC79: 0
A80: =IF(IFERROR(VLOOKUP(C80,B81:$B$220,1,FALSE),"C")="C","C","A") -> C | B80: 1.1.02.06.008.06 | C80: 1.1.02.06.008.06.99 | D80: Transferencias a empresas del sector no clasificadas previamente | E80: =+VLOOKUP('Cuadro 2'!$C80,'Cuadro 35'!$B$12:$F$226,5,FALSE) -> 0 | J80: 0 | K80: 0 | Q80: 1 | R80: 1 | S80: 1 | T80: 1 | U80: 1 | V80: 1 | X80: 0 | Y80: 0 | Z80: 0 | AA80: 0 | AB80: 0 | AC80: 0
A81: =IF(IFERROR(VLOOKUP(C81,B82:$B$220,1,FALSE),"C")="C","C","A") -> A | B81: 1.1.02.06.008 | C81: 1.1.02.06.008.07 | D81: Actividades de servicios administrativos y de apoyo | E81: =+VLOOKUP('Cuadro 2'!$C81,'Cuadro 35'!$B$12:$F$226,5,FALSE) -> 0 | F81: =SUMIF($B82:$B$220,$C81,F82:F$220) -> 0 | G81: =SUMIF($B82:$B$220,$C81,G82:G$220) -> 0 | H81: =SUMIF($B82:$B$220,$C81,H82:H$220) -> 0 | I81: =SUMIF($B82:$B$220,$C81,I82:I$220) -> 0 | J81: 0 | K81: 0 | M81: =SUMIF($B82:$B$220,$C81,M82:M$220) -> 0 | N81: =SUMIF($B82:$B$220,$C81,N82:N$220) -> 0 | Q81: 1 | R81: 1 | S81: 1 | T81: 1 | U81: 1 | V81: 1 | X81: 0 | Y81: 0 | Z81: 0 | AA81: 0 | AB81: 0 | AC81: 0
A82: =IF(IFERROR(VLOOKUP(C82,B83:$B$220,1,FALSE),"C")="C","C","A") -> C | B82: 1.1.02.06.008.07 | C82: 1.1.02.06.008.07.99 | D82: Transferencias a empresas del sector no clasificadas previamente | E82: =+VLOOKUP('Cuadro 2'!$C82,'Cuadro 35'!$B$12:$F$226,5,FALSE) -> 0 | J82: 0 | K82: 0 | Q82: 1 | R82: 1 | S82: 1 | T82: 1 | U82: 1 | V82: 1 | X82: 0 | Y82: 0 | Z82: 0 | AA82: 0 | AB82: 0 | AC82: 0
A83: =IF(IFERROR(VLOOKUP(C83,B84:$B$220,1,FALSE),"C")="C","C","A") -> A | B83: 1.1.02.06.008 | C83: 1.1.02.06.008.08 | D83: Explotación de minas y canteras | E83: =+VLOOKUP('Cuadro 2'!$C83,'Cuadro 35'!$B$12:$F$226,5,FALSE) -> 0 | F83: =SUMIF($B84:$B$220,$C83,F84:F$220) -> 0 | G83: =SUMIF($B84:$B$220,$C83,G84:G$220) -> 0 | H83: =SUMIF($B84:$B$220,$C83,H84:H$220) -> 0 | I83: =SUMIF($B84:$B$220,$C83,I84:I$220) -> 0 | J83: 0 | K83: 0 | M83: =SUMIF($B84:$B$220,$C83,M84:M$220) -> 0 | N83: =SUMIF($B84:$B$220,$C83,N84:N$220) -> 0 | Q83: 1 | R83: 1 | S83: 1 | T83: 1 | U83: 1 | V83: 1 | X83: 0 | Y83: 0 | Z83: 0 | AA83: 0 | AB83: 0 | AC83: 0
A84: =IF(IFERROR(VLOOKUP(C84,B85:$B$220,1,FALSE),"C")="C","C","A") -> C | B84: 1.1.02.06.008.08 | C84: 1.1.02.06.008.08.99 | D84: Transferencias a empresas del sector no clasificadas previamente | E84: =+VLOOKUP('Cuadro 2'!$C84,'Cuadro 35'!$B$12:$F$226,5,FALSE) -> 0 | J84: 0 | K84: 0 | Q84: 1 | R84: 1 | S84: 1 | T84: 1 | U84: 1 | V84: 1 | X84: 0 | Y84: 0 | Z84: 0 | AA84: 0 | AB84: 0 | AC84: 0
A85: =IF(IFERROR(VLOOKUP(C85,B86:$B$220,1,FALSE),"C")="C","C","A") -> A | B85: 1.1.02.06.008 | C85: 1.1.02.06.008.09 | D85: Industrias manufactureras | E85: =+VLOOKUP('Cuadro 2'!$C85,'Cuadro 35'!$B$12:$F$226,5,FALSE) -> 0 | F85: =SUMIF($B86:$B$220,$C85,F86:F$220) -> 0 | G85: =SUMIF($B86:$B$220,$C85,G86:G$220) -> 0 | H85: =SUMIF($B86:$B$220,$C85,H86:H$220) -> 0 | I85: =SUMIF($B86:$B$220,$C85,I86:I$220) -> 0 | J85: 0 | K85: 0 | M85: =SUMIF($B86:$B$220,$C85,M86:M$220) -> 0 | N85: =SUMIF($B86:$B$220,$C85,N86:N$220) -> 0 | Q85: 1 | R85: 1 | S85: 1 | T85: 1 | U85: 1 | V85: 1 | X85: 0 | Y85: 0 | Z85: 0 | AA85: 0 | AB85: 0 | AC85: 0
A86: =IF(IFERROR(VLOOKUP(C86,B87:$B$220,1,FALSE),"C")="C","C","A") -> C | B86: 1.1.02.06.008.09 | C86: 1.1.02.06.008.09.99 | D86: Transferencias a empresas del sector no clasificadas previamente | E86: =+VLOOKUP('Cuadro 2'!$C86,'Cuadro 35'!$B$12:$F$226,5,FALSE) -> 0 | J86: 0 | K86: 0 | Q86: 1 | R86: 1 | S86: 1 | T86: 1 | U86: 1 | V86: 1 | X86: 0 | Y86: 0 | Z86: 0 | AA86: 0 | AB86: 0 | AC86: 0
A87: =IF(IFERROR(VLOOKUP(C87,B88:$B$220,1,FALSE),"C")="C","C","A") -> A | B87: 1.1.02.06.008 | C87: 1.1.02.06.008.10 | D87: Transporte y almacenamiento | E87: =+VLOOKUP('Cuadro 2'!$C87,'Cuadro 35'!$B$12:$F$226,5,FALSE) -> 0 | F87: =SUMIF($B88:$B$220,$C87,F88:F$220) -> 0 | G87: =SUMIF($B88:$B$220,$C87,G88:G$220) -> 0 | H87: =SUMIF($B88:$B$220,$C87,H88:H$220) -> 0 | I87: =SUMIF($B88:$B$220,$C87,I88:I$220) -> 0 | J87: 0 | K87: 0 | M87: =SUMIF($B88:$B$220,$C87,M88:M$220) -> 0 | N87: =SUMIF($B88:$B$220,$C87,N88:N$220) -> 0 | Q87: 1 | R87: 1 | S87: 1 | T87: 1 | U87: 1 | V87: 1 | X87: 0 | Y87: 0 | Z87: 0 | AA87: 0 | AB87: 0 | AC87: 0
A88: =IF(IFERROR(VLOOKUP(C88,B89:$B$220,1,FALSE),"C")="C","C","A") -> C | B88: 1.1.02.06.008.10 | C88: 1.1.02.06.008.10.99 | D88: Transferencias a empresas del sector no clasificadas previamente | E88: =+VLOOKUP('Cuadro 2'!$C88,'Cuadro 35'!$B$12:$F$226,5,FALSE) -> 0 | J88: 0 | K88: 0 | Q88: 1 | R88: 1 | S88: 1 | T88: 1 | U88: 1 | V88: 1 | X88: 0 | Y88: 0 | Z88: 0 | AA88: 0 | AB88: 0 | AC88: 0
A89: =IF(IFERROR(VLOOKUP(C89,B90:$B$220,1,FALSE),"C")="C","C","A") -> A | B89: 1.1.02.06.008 | C89: 1.1.02.06.008.11 | D89: Alojamiento y servicios de comida | E89: =+VLOOKUP('Cuadro 2'!$C89,'Cuadro 35'!$B$12:$F$226,5,FALSE) -> 0 | F89: =SUMIF($B90:$B$220,$C89,F90:F$220) -> 0 | G89: =SUMIF($B90:$B$220,$C89,G90:G$220) -> 0 | H89: =SUMIF($B90:$B$220,$C89,H90:H$220) -> 0 | I89: =SUMIF($B90:$B$220,$C89,I90:I$220) -> 0 | J89: 0 | K89: 0 | M89: =SUMIF($B90:$B$220,$C89,M90:M$220) -> 0 | N89: =SUMIF($B90:$B$220,$C89,N90:N$220) -> 0 | Q89: 1 | R89: 1 | S89: 1 | T89: 1 | U89: 1 | V89: 1 | X89: 0 | Y89: 0 | Z89: 0 | AA89: 0 | AB89: 0 | AC89: 0
A90: =IF(IFERROR(VLOOKUP(C90,B91:$B$220,1,FALSE),"C")="C","C","A") -> C | B90: 1.1.02.06.008.11 | C90: 1.1.02.06.008.11.99 | D90: Transferencias a empresas del sector no clasificadas previamente | E90: =+VLOOKUP('Cuadro 2'!$C90,'Cuadro 35'!$B$12:$F$226,5,FALSE) -> 0 | J90: 0 | K90: 0 | Q90: 1 | R90: 1 | S90: 1 | T90: 1 | U90: 1 | V90: 1 | X90: 0 | Y90: 0 | Z90: 0 | AA90: 0 | AB90: 0 | AC90: 0
A91: =IF(IFERROR(VLOOKUP(C91,B92:$B$220,1,FALSE),"C")="C","C","A") -> A | B91: 1.1.02.06.008 | C91: 1.1.02.06.008.12 | D91: Actividades inmobiliarias | E91: =+VLOOKUP('Cuadro 2'!$C91,'Cuadro 35'!$B$12:$F$226,5,FALSE) -> 0 | F91: =SUMIF($B92:$B$220,$C91,F92:F$220) -> 0 | G91: =SUMIF($B92:$B$220,$C91,G92:G$220) -> 0 | H91: =SUMIF($B92:$B$220,$C91,H92:H$220) -> 0 | I91: =SUMIF($B92:$B$220,$C91,I92:I$220) -> 0 | J91: 0 | K91: 0 | M91: =SUMIF($B92:$B$220,$C91,M92:M$220) -> 0 | N91: =SUMIF($B92:$B$220,$C91,N92:N$220) -> 0 | Q91: 1 | R91: 1 | S91: 1 | T91: 1 | U91: 1 | V91: 1 | X91: 0 | Y91: 0 | Z91: 0 | AA91: 0 | AB91: 0 | AC91: 0
A92: =IF(IFERROR(VLOOKUP(C92,B93:$B$220,1,FALSE),"C")="C","C","A") -> C | B92: 1.1.02.06.008.12 | C92: 1.1.02.06.008.12.99 | D92: Transferencias a empresas del sector no clasificadas previamente | E92: =+VLOOKUP('Cuadro 2'!$C92,'Cuadro 35'!$B$12:$F$226,5,FALSE) -> 0 | J92: 0 | K92: 0 | Q92: 1 | R92: 1 | S92: 1 | T92: 1 | U92: 1 | V92: 1 | X92: 0 | Y92: 0 | Z92: 0 | AA92: 0 | AB92: 0 | AC92: 0
A93: =IF(IFERROR(VLOOKUP(C93,B94:$B$220,1,FALSE),"C")="C","C","A") -> A | B93: 1.1.02.06.008 | C93: 1.1.02.06.008.13 | D93: Actividades profesionales, científicas y técnicas | E93: =+VLOOKUP('Cuadro 2'!$C93,'Cuadro 35'!$B$12:$F$226,5,FALSE) -> 0 | F93: =SUMIF($B94:$B$220,$C93,F94:F$220) -> 0 | G93: =SUMIF($B94:$B$220,$C93,G94:G$220) -> 0 | H93: =SUMIF($B94:$B$220,$C93,H94:H$220) -> 0 | I93: =SUMIF($B94:$B$220,$C93,I94:I$220) -> 0 | J93: 0 | K93: 0 | M93: =SUMIF($B94:$B$220,$C93,M94:M$220) -> 0 | N93: =SUMIF($B94:$B$220,$C93,N94:N$220) -> 0 | Q93: 1 | R93: 1 | S93: 1 | T93: 1 | U93: 1 | V93: 1 | X93: 0 | Y93: 0 | Z93: 0 | AA93: 0 | AB93: 0 | AC93: 0
A94: =IF(IFERROR(VLOOKUP(C94,B95:$B$220,1,FALSE),"C")="C","C","A") -> C | B94: 1.1.02.06.008.13 | C94: 1.1.02.06.008.13.99 | D94: Transferencias a empresas del sector no clasificadas previamente | E94: =+VLOOKUP('Cuadro 2'!$C94,'Cuadro 35'!$B$12:$F$226,5,FALSE) -> 0 | J94: 0 | K94: 0 | Q94: 1 | R94: 1 | S94: 1 | T94: 1 | U94: 1 | V94: 1 | X94: 0 | Y94: 0 | Z94: 0 | AA94: 0 | AB94: 0 | AC94: 0
A95: =IF(IFERROR(VLOOKUP(C95,B96:$B$220,1,FALSE),"C")="C","C","A") -> A | B95: 1.1.02.06.008 | C95: 1.1.02.06.008.14 | D95: Construcción | E95: =+VLOOKUP('Cuadro 2'!$C95,'Cuadro 35'!$B$12:$F$226,5,FALSE) -> 0 | F95: =SUMIF($B96:$B$220,$C95,F96:F$220) -> 0 | G95: =SUMIF($B96:$B$220,$C95,G96:G$220) -> 0 | H95: =SUMIF($B96:$B$220,$C95,H96:H$220) -> 0 | I95: =SUMIF($B96:$B$220,$C95,I96:I$220) -> 0 | J95: 0 | K95: 0 | M95: =SUMIF($B96:$B$220,$C95,M96:M$220) -> 0 | N95: =SUMIF($B96:$B$220,$C95,N96:N$220) -> 0 | Q95: 1 | R95: 1 | S95: 1 | T95: 1 | U95: 1 | V95: 1 | X95: 0 | Y95: 0 | Z95: 0 | AA95: 0 | AB95: 0 | AC95: 0
A96: =IF(IFERROR(VLOOKUP(C96,B97:$B$220,1,FALSE),"C")="C","C","A") -> C | B96: 1.1.02.06.008.14 | C96: 1.1.02.06.008.14.99 | D96: Transferencias a empresas del sector no clasificadas previamente | E96: =+VLOOKUP('Cuadro 2'!$C96,'Cuadro 35'!$B$12:$F$226,5,FALSE) -> 0 | J96: 0 | K96: 0 | Q96: 1 | R96: 1 | S96: 1 | T96: 1 | U96: 1 | V96: 1 | X96: 0 | Y96: 0 | Z96: 0 | AA96: 0 | AB96: 0 | AC96: 0
A97: =IF(IFERROR(VLOOKUP(C97,B98:$B$220,1,FALSE),"C")="C","C","A") -> A | B97: 1.1.02.06.008 | C97: 1.1.02.06.008.15 | D97: Actividades financieras y de seguros | E97: =+VLOOKUP('Cuadro 2'!$C97,'Cuadro 35'!$B$12:$F$226,5,FALSE) -> 0 | F97: =SUMIF($B98:$B$220,$C97,F98:F$220) -> 0 | G97: =SUMIF($B98:$B$220,$C97,G98:G$220) -> 0 | H97: =SUMIF($B98:$B$220,$C97,H98:H$220) -> 0 | I97: =SUMIF($B98:$B$220,$C97,I98:I$220) -> 0 | J97: 0 | K97: 0 | M97: =SUMIF($B98:$B$220,$C97,M98:M$220) -> 0 | N97: =SUMIF($B98:$B$220,$C97,N98:N$220) -> 0 | Q97: 1 | R97: 1 | S97: 1 | T97: 1 | U97: 1 | V97: 1 | X97: 0 | Y97: 0 | Z97: 0 | AA97: 0 | AB97: 0 | AC97: 0
A98: =IF(IFERROR(VLOOKUP(C98,B99:$B$220,1,FALSE),"C")="C","C","A") -> C | B98: 1.1.02.06.008.15 | C98: 1.1.02.06.008.15.99 | D98: Transferencias a empresas del sector no clasificadas previamente | E98: =+VLOOKUP('Cuadro 2'!$C98,'Cuadro 35'!$B$12:$F$226,5,FALSE) -> 0 | J98: 0 | K98: 0 | Q98: 1 | R98: 1 | S98: 1 | T98: 1 | U98: 1 | V98: 1 | X98: 0 | Y98: 0 | Z98: 0 | AA98: 0 | AB98: 0 | AC98: 0
A99: =IF(IFERROR(VLOOKUP(C99,B100:$B$220,1,FALSE),"C")="C","C","A") -> A | B99: 1.1.02.06.008 | C99: 1.1.02.06.008.16 | D99: Educación | E99: =+VLOOKUP('Cuadro 2'!$C99,'Cuadro 35'!$B$12:$F$226,5,FALSE) -> 0 | F99: =SUMIF($B100:$B$220,$C99,F100:F$220) -> 0 | G99: =SUMIF($B100:$B$220,$C99,G100:G$220) -> 0 | H99: =SUMIF($B100:$B$220,$C99,H100:H$220) -> 0 | I99: =SUMIF($B100:$B$220,$C99,I100:I$220) -> 0 | J99: 0 | K99: 0 | M99: =SUMIF($B100:$B$220,$C99,M100:M$220) -> 0 | N99: =SUMIF($B100:$B$220,$C99,N100:N$220) -> 0 | Q99: 1 | R99: 1 | S99: 1 | T99: 1 | U99: 1 | V99: 1 | X99: 0 | Y99: 0 | Z99: 0 | AA99: 0 | AB99: 0 | AC99: 0
A100: =IF(IFERROR(VLOOKUP(C100,B101:$B$220,1,FALSE),"C")="C","C","A") -> C | B100: 1.1.02.06.008.16 | C100: 1.1.02.06.008.16.99 | D100: Transferencias a empresas del sector no clasificadas previamente | E100: =+VLOOKUP('Cuadro 2'!$C100,'Cuadro 35'!$B$12:$F$226,5,FALSE) -> 0 | J100: 0 | K100: 0 | Q100: 1 | R100: 1 | S100: 1 | T100: 1 | U100: 1 | V100: 1 | X100: 0 | Y100: 0 | Z100: 0 | AA100: 0 | AB100: 0 | AC100: 0
A101: =IF(IFERROR(VLOOKUP(C101,B102:$B$220,1,FALSE),"C")="C","C","A") -> A | B101: 1.1.02.06.008 | C101: 1.1.02.06.008.17 | D101: Actividades artísticas, de entretenimiento y recreación | E101: =+VLOOKUP('Cuadro 2'!$C101,'Cuadro 35'!$B$12:$F$226,5,FALSE) -> 0 | F101: =SUMIF($B102:$B$220,$C101,F102:F$220) -> 0 | G101: =SUMIF($B102:$B$220,$C101,G102:G$220) -> 0 | H101: =SUMIF($B102:$B$220,$C101,H102:H$220) -> 0 | I101: =SUMIF($B102:$B$220,$C101,I102:I$220) -> 0 | J101: 0 | K101: 0 | M101: =SUMIF($B102:$B$220,$C101,M102:M$220) -> 0 | N101: =SUMIF($B102:$B$220,$C101,N102:N$220) -> 0 | Q101: 1 | R101: 1 | S101: 1 | T101: 1 | U101: 1 | V101: 1 | X101: 0 | Y101: 0 | Z101: 0 | AA101: 0 | AB101: 0 | AC101: 0
A102: =IF(IFERROR(VLOOKUP(C102,B103:$B$220,1,FALSE),"C")="C","C","A") -> C | B102: 1.1.02.06.008.17 | C102: 1.1.02.06.008.17.99 | D102: Transferencias a empresas del sector no clasificadas previamente | E102: =+VLOOKUP('Cuadro 2'!$C102,'Cuadro 35'!$B$12:$F$226,5,FALSE) -> 0 | J102: 0 | K102: 0 | Q102: 1 | R102: 1 | S102: 1 | T102: 1 | U102: 1 | V102: 1 | X102: 0 | Y102: 0 | Z102: 0 | AA102: 0 | AB102: 0 | AC102: 0
A103: =IF(IFERROR(VLOOKUP(C103,B104:$B$220,1,FALSE),"C")="C","C","A") -> A | B103: 1.1.02.06.008 | C103: 1.1.02.06.008.18 | D103: Otras actividades de servicios | E103: =+VLOOKUP('Cuadro 2'!$C103,'Cuadro 35'!$B$12:$F$226,5,FALSE) -> 0 | F103: =SUMIF($B104:$B$220,$C103,F104:F$220) -> 0 | G103: =SUMIF($B104:$B$220,$C103,G104:G$220) -> 0 | H103: =SUMIF($B104:$B$220,$C103,H104:H$220) -> 0 | I103: =SUMIF($B104:$B$220,$C103,I104:I$220) -> 0 | J103: 0 | K103: 0 | M103: =SUMIF($B104:$B$220,$C103,M104:M$220) -> 0 | N103: =SUMIF($B104:$B$220,$C103,N104:N$220) -> 0 | Q103: 1 | R103: 1 | S103: 1 | T103: 1 | U103: 1 | V103: 1 | X103: 0 | Y103: 0 | Z103: 0 | AA103: 0 | AB103: 0 | AC103: 0
A104: =IF(IFERROR(VLOOKUP(C104,B105:$B$220,1,FALSE),"C")="C","C","A") -> C | B104: 1.1.02.06.008.18 | C104: 1.1.02.06.008.18.99 | D104: Transferencias a empresas del sector no clasificadas previamente | E104: =+VLOOKUP('Cuadro 2'!$C104,'Cuadro 35'!$B$12:$F$226,5,FALSE) -> 0 | J104: 0 | K104: 0 | Q104: 1 | R104: 1 | S104: 1 | T104: 1 | U104: 1 | V104: 1 | X104: 0 | Y104: 0 | Z104: 0 | AA104: 0 | AB104: 0 | AC104: 0
A105: =IF(IFERROR(VLOOKUP(C105,B106:$B$220,1,FALSE),"C")="C","C","A") -> A | B105: 1.1.02.06 | C105: 1.1.02.06.009 | D105: Recursos del Sistema de Seguridad Social Integral | E105: =+VLOOKUP('Cuadro 2'!$C105,'Cuadro 35'!$B$12:$F$226,5,FALSE) -> 0 | F105: =SUMIF($B106:$B$220,$C105,F106:F$220) -> 0 | G105: =SUMIF($B106:$B$220,$C105,G106:G$220) -> 0 | H105: =SUMIF($B106:$B$220,$C105,H106:H$220) -> 0 | I105: =SUMIF($B106:$B$220,$C105,I106:I$220) -> 0 | J105: 0 | K105: 0 | M105: =SUMIF($B106:$B$220,$C105,M106:M$220) -> 0 | N105: =SUMIF($B106:$B$220,$C105,N106:N$220) -> 0 | Q105: 1 | R105: 1 | S105: 1 | T105: 1 | U105: 1 | V105: 1 | X105: 0 | Y105: 0 | Z105: 0 | AA105: 0 | AB105: 0 | AC105: 0
A106: =IF(IFERROR(VLOOKUP(C106,B107:$B$220,1,FALSE),"C")="C","C","A") -> A | B106: 1.1.02.06.009 | C106: 1.1.02.06.009.01 | D106: Sistema General de Seguridad Social en Salud | E106: =+VLOOKUP('Cuadro 2'!$C106,'Cuadro 35'!$B$12:$F$226,5,FALSE) -> 0 | F106: =SUMIF($B107:$B$220,$C106,F107:F$220) -> 0 | G106: =SUMIF($B107:$B$220,$C106,G107:G$220) -> 0 | H106: =SUMIF($B107:$B$220,$C106,H107:H$220) -> 0 | I106: =SUMIF($B107:$B$220,$C106,I107:I$220) -> 0 | J106: 0 | K106: 0 | M106: =SUMIF($B107:$B$220,$C106,M107:M$220) -> 0 | N106: =SUMIF($B107:$B$220,$C106,N107:N$220) -> 0 | Q106: 1 | R106: 1 | S106: 1 | T106: 1 | U106: 1 | V106: 1 | X106: 0 | Y106: 0 | Z106: 0 | AA106: 0 | AB106: 0 | AC106: 0
A107: =IF(IFERROR(VLOOKUP(C107,B108:$B$220,1,FALSE),"C")="C","C","A") -> C | B107: 1.1.02.06.009.01 | C107: 1.1.02.06.009.01.01 | D107: Compensación UPC | E107: =+VLOOKUP('Cuadro 2'!$C107,'Cuadro 35'!$B$12:$F$226,5,FALSE) -> 0 | J107: 0 | K107: 0 | Q107: 1 | R107: 1 | S107: 1 | T107: 1 | U107: 1 | V107: 1 | X107: 0 | Y107: 0 | Z107: 0 | AA107: 0 | AB107: 0 | AC107: 0
A108: =IF(IFERROR(VLOOKUP(C108,B109:$B$220,1,FALSE),"C")="C","C","A") -> C | B108: 1.1.02.06.009.01 | C108: 1.1.02.06.009.01.02 | D108: Compensación promoción y prevención | E108: =+VLOOKUP('Cuadro 2'!$C108,'Cuadro 35'!$B$12:$F$226,5,FALSE) -> 0 | J108: 0 | K108: 0 | Q108: 1 | R108: 1 | S108: 1 | T108: 1 | U108: 1 | V108: 1 | X108: 0 | Y108: 0 | Z108: 0 | AA108: 0 | AB108: 0 | AC108: 0
A109: =IF(IFERROR(VLOOKUP(C109,B110:$B$220,1,FALSE),"C")="C","C","A") -> C | B109: 1.1.02.06.009.01 | C109: 1.1.02.06.009.01.03 | D109: Compensación prestaciones económicas (licencias e incapacidades) | E109: =+VLOOKUP('Cuadro 2'!$C109,'Cuadro 35'!$B$12:$F$226,5,FALSE) -> 0 | J109: 0 | K109: 0 | Q109: 1 | R109: 1 | S109: 1 | T109: 1 | U109: 1 | V109: 1 | X109: 0 | Y109: 0 | Z109: 0 | AA109: 0 | AB109: 0 | AC109: 0
A110: =IF(IFERROR(VLOOKUP(C110,B111:$B$220,1,FALSE),"C")="C","C","A") -> C | B110: 1.1.02.06.009.01 | C110: 1.1.02.06.009.01.04 | D110: Cuenta de alto costo | E110: =+VLOOKUP('Cuadro 2'!$C110,'Cuadro 35'!$B$12:$F$226,5,FALSE) -> 0 | J110: 0 | K110: 0 | Q110: 1 | R110: 1 | S110: 1 | T110: 1 | U110: 1 | V110: 1 | X110: 0 | Y110: 0 | Z110: 0 | AA110: 0 | AB110: 0 | AC110: 0
A111: =IF(IFERROR(VLOOKUP(C111,B112:$B$220,1,FALSE),"C")="C","C","A") -> C | B111: 1.1.02.06.009.01 | C111: 1.1.02.06.009.01.12 | D111: Reconocimiento y pago por el aseguramiento y demás prestaciones | E111: =+VLOOKUP('Cuadro 2'!$C111,'Cuadro 35'!$B$12:$F$226,5,FALSE) -> 0 | J111: 0 | K111: 0 | Q111: 1 | R111: 1 | S111: 1 | T111: 1 | U111: 1 | V111: 1 | X111: 0 | Y111: 0 | Z111: 0 | AA111: 0 | AB111: 0 | AC111: 0
A112: =IF(IFERROR(VLOOKUP(C112,B113:$B$220,1,FALSE),"C")="C","C","A") -> C | B112: 1.1.02.06.009.01 | C112: 1.1.02.06.009.01.13 | D112: Reconocimiento por atención de accidentes de trabajo y enfermedad profesional | E112: =+VLOOKUP('Cuadro 2'!$C112,'Cuadro 35'!$B$12:$F$226,5,FALSE) -> 0 | J112: 0 | K112: 0 | Q112: 1 | R112: 1 | S112: 1 | T112: 1 | U112: 1 | V112: 1 | X112: 0 | Y112: 0 | Z112: 0 | AA112: 0 | AB112: 0 | AC112: 0
A113: =IF(IFERROR(VLOOKUP(C113,B114:$B$220,1,FALSE),"C")="C","C","A") -> C | B113: 1.1.02.06.009.01 | C113: 1.1.02.06.009.01.14 | D113: Servicios y tecnologías en salud no financiadas con UPC y no excluidos del SGSSS | E113: =+VLOOKUP('Cuadro 2'!$C113,'Cuadro 35'!$B$12:$F$226,5,FALSE) -> 0 | J113: 0 | K113: 0 | Q113: 1 | R113: 1 | S113: 1 | T113: 1 | U113: 1 | V113: 1 | X113: 0 | Y113: 0 | Z113: 0 | AA113: 0 | AB113: 0 | AC113: 0
A114: =IF(IFERROR(VLOOKUP(C114,B115:$B$220,1,FALSE),"C")="C","C","A") -> C | B114: 1.1.02.06.009.01 | C114: 1.1.02.06.009.01.19 | D114: Reconocimiento rendimientos financieros cuentas de recaudo EPS | E114: =+VLOOKUP('Cuadro 2'!$C114,'Cuadro 35'!$B$12:$F$226,5,FALSE) -> 0 | J114: 0 | K114: 0 | Q114: 1 | R114: 1 | S114: 1 | T114: 1 | U114: 1 | V114: 1 | X114: 0 | Y114: 0 | Z114: 0 | AA114: 0 | AB114: 0 | AC114: 0
A115: =IF(IFERROR(VLOOKUP(C115,B116:$B$220,1,FALSE),"C")="C","C","A") -> A | B115: 1.1.02.06 | C115: 1.1.02.06.010 | D115: Sentencias y conciliaciones | E115: =+VLOOKUP('Cuadro 2'!$C115,'Cuadro 35'!$B$12:$F$226,5,FALSE) -> 0 | F115: =SUMIF($B116:$B$220,$C115,F116:F$220) -> 0 | G115: =SUMIF($B116:$B$220,$C115,G116:G$220) -> 0 | H115: =SUMIF($B116:$B$220,$C115,H116:H$220) -> 0 | I115: =SUMIF($B116:$B$220,$C115,I116:I$220) -> 0 | J115: 0 | K115: 0 | M115: =SUMIF($B116:$B$220,$C115,M116:M$220) -> 0 | N115: =SUMIF($B116:$B$220,$C115,N116:N$220) -> 0 | Q115: 1 | R115: 1 | S115: 1 | T115: 1 | U115: 1 | V115: 1 | X115: 0 | Y115: 0 | Z115: 0 | AA115: 0 | AB115: 0 | AC115: 0
A116: =IF(IFERROR(VLOOKUP(C116,B117:$B$220,1,FALSE),"C")="C","C","A") -> A | B116: 1.1.02.06.010 | C116: 1.1.02.06.010.01 | D116: Fallos nacionales | E116: =+VLOOKUP('Cuadro 2'!$C116,'Cuadro 35'!$B$12:$F$226,5,FALSE) -> 0 | F116: =SUMIF($B117:$B$220,$C116,F117:F$220) -> 0 | G116: =SUMIF($B117:$B$220,$C116,G117:G$220) -> 0 | H116: =SUMIF($B117:$B$220,$C116,H117:H$220) -> 0 | I116: =SUMIF($B117:$B$220,$C116,I117:I$220) -> 0 | J116: 0 | K116: 0 | M116: =SUMIF($B117:$B$220,$C116,M117:M$220) -> 0 | N116: =SUMIF($B117:$B$220,$C116,N117:N$220) -> 0 | Q116: 1 | R116: 1 | S116: 1 | T116: 1 | U116: 1 | V116: 1 | X116: 0 | Y116: 0 | Z116: 0 | AA116: 0 | AB116: 0 | AC116: 0
A117: =IF(IFERROR(VLOOKUP(C117,B118:$B$220,1,FALSE),"C")="C","C","A") -> C | B117: 1.1.02.06.010.01 | C117: 1.1.02.06.010.01.01 | D117: Sentencias | E117: =+VLOOKUP('Cuadro 2'!$C117,'Cuadro 35'!$B$12:$F$226,5,FALSE) -> 0 | J117: 0 | K117: 0 | Q117: 1 | R117: 1 | S117: 1 | T117: 1 | U117: 1 | V117: 1 | X117: 0 | Y117: 0 | Z117: 0 | AA117: 0 | AB117: 0 | AC117: 0
A118: =IF(IFERROR(VLOOKUP(C118,B119:$B$220,1,FALSE),"C")="C","C","A") -> C | B118: 1.1.02.06.010.01 | C118: 1.1.02.06.010.01.02 | D118: Conciliaciones | E118: =+VLOOKUP('Cuadro 2'!$C118,'Cuadro 35'!$B$12:$F$226,5,FALSE) -> 0 | J118: 0 | K118: 0 | Q118: 1 | R118: 1 | S118: 1 | T118: 1 | U118: 1 | V118: 1 | X118: 0 | Y118: 0 | Z118: 0 | AA118: 0 | AB118: 0 | AC118: 0
A119: =IF(IFERROR(VLOOKUP(C119,B120:$B$220,1,FALSE),"C")="C","C","A") -> C | B119: 1.1.02.06.010.01 | C119: 1.1.02.06.010.01.03 | D119: Laudos arbitrales | E119: =+VLOOKUP('Cuadro 2'!$C119,'Cuadro 35'!$B$12:$F$226,5,FALSE) -> 0 | J119: 0 | K119: 0 | Q119: 1 | R119: 1 | S119: 1 | T119: 1 | U119: 1 | V119: 1 | X119: 0 | Y119: 0 | Z119: 0 | AA119: 0 | AB119: 0 | AC119: 0
A120: =IF(IFERROR(VLOOKUP(C120,B121:$B$220,1,FALSE),"C")="C","C","A") -> C | B120: 1.1.02.06 | C120: 1.1.02.06.011 | D120: Indemnizaciones relacionadas con seguros no de vida | E120: =+VLOOKUP('Cuadro 2'!$C120,'Cuadro 35'!$B$12:$F$226,5,FALSE) -> 0 | J120: 0 | K120: 0 | Q120: 1 | R120: 1 | S120: 1 | T120: 1 | U120: 1 | V120: 1 | X120: 0 | Y120: 0 | Z120: 0 | AA120: 0 | AB120: 0 | AC120: 0
A121: =IF(IFERROR(VLOOKUP(C121,B122:$B$220,1,FALSE),"C")="C","C","A") -> C | B121: 1.1.02.06 | C121: 1.1.02.06.023 | D121: Indemnizaciones de proveedores | E121: =+VLOOKUP('Cuadro 2'!$C121,'Cuadro 35'!$B$12:$F$226,5,FALSE) -> 0 | J121: 0 | K121: 0 | Q121: 1 | R121: 1 | S121: 1 | T121: 1 | U121: 1 | V121: 1 | X121: 0 | Y121: 0 | Z121: 0 | AA121: 0 | AB121: 0 | AC121: 0
A122: =IF(IFERROR(VLOOKUP(C122,B123:$B$220,1,FALSE),"C")="C","C","A") -> A | B122: 1 | C122: 1.2 | D122: Recursos de capital | E122: =+VLOOKUP('Cuadro 2'!$C122,'Cuadro 35'!$B$12:$F$226,5,FALSE) -> 0 | F122: =SUMIF($B123:$B$220,$C122,F123:F$220) -> 0 | G122: =SUMIF($B123:$B$220,$C122,G123:G$220) -> 0 | H122: =SUMIF($B123:$B$220,$C122,H123:H$220) -> 0 | I122: =SUMIF($B123:$B$220,$C122,I123:I$220) -> 0 | J122: 0 | K122: 0 | M122: =SUMIF($B123:$B$220,$C122,M123:M$220) -> 0 | N122: =SUMIF($B123:$B$220,$C122,N123:N$220) -> 0 | Q122: 1 | R122: 1 | S122: 1 | T122: 1 | U122: 1 | V122: 1 | X122: 0 | Y122: 0 | Z122: 0 | AA122: 0 | AB122: 0 | AC122: 0
A123: =IF(IFERROR(VLOOKUP(C123,B124:$B$220,1,FALSE),"C")="C","C","A") -> A | B123: 1.2 | C123: 1.2.01 | D123: Disposición de activos | E123: =+VLOOKUP('Cuadro 2'!$C123,'Cuadro 35'!$B$12:$F$226,5,FALSE) -> 0 | F123: =SUMIF($B124:$B$220,$C123,F124:F$220) -> 0 | G123: =SUMIF($B124:$B$220,$C123,G124:G$220) -> 0 | H123: =SUMIF($B124:$B$220,$C123,H124:H$220) -> 0 | I123: =SUMIF($B124:$B$220,$C123,I124:I$220) -> 0 | J123: 0 | K123: 0 | M123: =SUMIF($B124:$B$220,$C123,M124:M$220) -> 0 | N123: =SUMIF($B124:$B$220,$C123,N124:N$220) -> 0 | Q123: 1 | R123: 1 | S123: 1 | T123: 1 | U123: 1 | V123: 1 | X123: 0 | Y123: 0 | Z123: 0 | AA123: 0 | AB123: 0 | AC123: 0
A124: =IF(IFERROR(VLOOKUP(C124,B125:$B$220,1,FALSE),"C")="C","C","A") -> A | B124: 1.2.01 | C124: 1.2.01.01 | D124: Disposición de activos financieros | E124: =+VLOOKUP('Cuadro 2'!$C124,'Cuadro 35'!$B$12:$F$226,5,FALSE) -> 0 | F124: =SUMIF($B125:$B$220,$C124,F125:F$220) -> 0 | G124: =SUMIF($B125:$B$220,$C124,G125:G$220) -> 0 | H124: =SUMIF($B125:$B$220,$C124,H125:H$220) -> 0 | I124: =SUMIF($B125:$B$220,$C124,I125:I$220) -> 0 | J124: 0 | K124: 0 | M124: =SUMIF($B125:$B$220,$C124,M125:M$220) -> 0 | N124: =SUMIF($B125:$B$220,$C124,N125:N$220) -> 0 | Q124: 1 | R124: 1 | S124: 1 | T124: 1 | U124: 1 | V124: 1 | X124: 0 | Y124: 0 | Z124: 0 | AA124: 0 | AB124: 0 | AC124: 0
A125: =IF(IFERROR(VLOOKUP(C125,B126:$B$220,1,FALSE),"C")="C","C","A") -> C | B125: 1.2.01.01 | C125: 1.2.01.01.001 | D125: Acciones | E125: =+VLOOKUP('Cuadro 2'!$C125,'Cuadro 35'!$B$12:$F$226,5,FALSE) -> 0 | J125: 0 | K125: 0 | Q125: 1 | R125: 1 | S125: 1 | T125: 1 | U125: 1 | V125: 1 | X125: 0 | Y125: 0 | Z125: 0 | AA125: 0 | AB125: 0 | AC125: 0
A126: =IF(IFERROR(VLOOKUP(C126,B127:$B$220,1,FALSE),"C")="C","C","A") -> C | B126: 1.2.01.01 | C126: 1.2.01.01.002 | D126: Reducciones de capital | E126: =+VLOOKUP('Cuadro 2'!$C126,'Cuadro 35'!$B$12:$F$226,5,FALSE) -> 0 | J126: 0 | K126: 0 | Q126: 1 | R126: 1 | S126: 1 | T126: 1 | U126: 1 | V126: 1 | X126: 0 | Y126: 0 | Z126: 0 | AA126: 0 | AB126: 0 | AC126: 0
A127: =IF(IFERROR(VLOOKUP(C127,B128:$B$220,1,FALSE),"C")="C","C","A") -> C | B127: 1.2.01.01 | C127: 1.2.01.01.003 | D127: Reembolso de participaciones en fondos de inversión | E127: =+VLOOKUP('Cuadro 2'!$C127,'Cuadro 35'!$B$12:$F$226,5,FALSE) -> 0 | J127: 0 | K127: 0 | Q127: 1 | R127: 1 | S127: 1 | T127: 1 | U127: 1 | V127: 1 | X127: 0 | Y127: 0 | Z127: 0 | AA127: 0 | AB127: 0 | AC127: 0
A128: =IF(IFERROR(VLOOKUP(C128,B129:$B$220,1,FALSE),"C")="C","C","A") -> C | B128: 1.2.01.01 | C128: 1.2.01.01.004 | D128: Títulos de devolución de impuestos-TIDIS | E128: =+VLOOKUP('Cuadro 2'!$C128,'Cuadro 35'!$B$12:$F$226,5,FALSE) -> 0 | J128: 0 | K128: 0 | Q128: 1 | R128: 1 | S128: 1 | T128: 1 | U128: 1 | V128: 1 | X128: 0 | Y128: 0 | Z128: 0 | AA128: 0 | AB128: 0 | AC128: 0
A129: =IF(IFERROR(VLOOKUP(C129,B130:$B$220,1,FALSE),"C")="C","C","A") -> C | B129: 1.2.01.01 | C129: 1.2.01.01.005 | D129: Bonos y otros títulos emitidos | E129: =+VLOOKUP('Cuadro 2'!$C129,'Cuadro 35'!$B$12:$F$226,5,FALSE) -> 0 | J129: 0 | K129: 0 | Q129: 1 | R129: 1 | S129: 1 | T129: 1 | U129: 1 | V129: 1 | X129: 0 | Y129: 0 | Z129: 0 | AA129: 0 | AB129: 0 | AC129: 0
A130: =IF(IFERROR(VLOOKUP(C130,B131:$B$220,1,FALSE),"C")="C","C","A") -> A | B130: 1.2.01 | C130: 1.2.01.02 | D130: Disposición de activos no financieros | E130: =+VLOOKUP('Cuadro 2'!$C130,'Cuadro 35'!$B$12:$F$226,5,FALSE) -> 0 | F130: =SUMIF($B131:$B$220,$C130,F131:F$220) -> 0 | G130: =SUMIF($B131:$B$220,$C130,G131:G$220) -> 0 | H130: =SUMIF($B131:$B$220,$C130,H131:H$220) -> 0 | I130: =SUMIF($B131:$B$220,$C130,I131:I$220) -> 0 | J130: 0 | K130: 0 | M130: =SUMIF($B131:$B$220,$C130,M131:M$220) -> 0 | N130: =SUMIF($B131:$B$220,$C130,N131:N$220) -> 0 | Q130: 1 | R130: 1 | S130: 1 | T130: 1 | U130: 1 | V130: 1 | X130: 0 | Y130: 0 | Z130: 0 | AA130: 0 | AB130: 0 | AC130: 0
A131: =IF(IFERROR(VLOOKUP(C131,B132:$B$220,1,FALSE),"C")="C","C","A") -> A | B131: 1.2.01.02 | C131: 1.2.01.02.001 | D131: Disposición de activos fijos | E131: =+VLOOKUP('Cuadro 2'!$C131,'Cuadro 35'!$B$12:$F$226,5,FALSE) -> 0 | F131: =SUMIF($B132:$B$220,$C131,F132:F$220) -> 0 | G131: =SUMIF($B132:$B$220,$C131,G132:G$220) -> 0 | H131: =SUMIF($B132:$B$220,$C131,H132:H$220) -> 0 | I131: =SUMIF($B132:$B$220,$C131,I132:I$220) -> 0 | J131: 0 | K131: 0 | M131: =SUMIF($B132:$B$220,$C131,M132:M$220) -> 0 | N131: =SUMIF($B132:$B$220,$C131,N132:N$220) -> 0 | Q131: 1 | R131: 1 | S131: 1 | T131: 1 | U131: 1 | V131: 1 | X131: 0 | Y131: 0 | Z131: 0 | AA131: 0 | AB131: 0 | AC131: 0
A132: =IF(IFERROR(VLOOKUP(C132,B133:$B$220,1,FALSE),"C")="C","C","A") -> C | B132: 1.2.01.02.001 | C132: 1.2.01.02.001.01 | D132: Disposición de edificaciones y estructuras | E132: =+VLOOKUP('Cuadro 2'!$C132,'Cuadro 35'!$B$12:$F$226,5,FALSE) -> 0 | J132: 0 | K132: 0 | Q132: 1 | R132: 1 | S132: 1 | T132: 1 | U132: 1 | V132: 1 | X132: 0 | Y132: 0 | Z132: 0 | AA132: 0 | AB132: 0 | AC132: 0
A133: =IF(IFERROR(VLOOKUP(C133,B134:$B$220,1,FALSE),"C")="C","C","A") -> C | B133: 1.2.01.02.001 | C133: 1.2.01.02.001.02 | D133: Disposición de maquinaria y equipo | E133: =+VLOOKUP('Cuadro 2'!$C133,'Cuadro 35'!$B$12:$F$226,5,FALSE) -> 0 | J133: 0 | K133: 0 | Q133: 1 | R133: 1 | S133: 1 | T133: 1 | U133: 1 | V133: 1 | X133: 0 | Y133: 0 | Z133: 0 | AA133: 0 | AB133: 0 | AC133: 0
A134: =IF(IFERROR(VLOOKUP(C134,B135:$B$220,1,FALSE),"C")="C","C","A") -> A | B134: 1.2.01.02.001 | C134: 1.2.01.02.001.03 | D134: Disposición de otros activos fijos | E134: =+VLOOKUP('Cuadro 2'!$C134,'Cuadro 35'!$B$12:$F$226,5,FALSE) -> 0 | F134: =SUMIF($B135:$B$220,$C134,F135:F$220) -> 0 | G134: =SUMIF($B135:$B$220,$C134,G135:G$220) -> 0 | H134: =SUMIF($B135:$B$220,$C134,H135:H$220) -> 0 | I134: =SUMIF($B135:$B$220,$C134,I135:I$220) -> 0 | J134: =SUM(F134:I134) -> 0 | K134: =+E134-J134 -> 0 | M134: =SUMIF($B135:$B$220,$C134,M135:M$220) -> 0 | N134: =SUMIF($B135:$B$220,$C134,N135:N$220) -> 0 | Q134: =IF(ISNUMBER(J134),1,0) -> 1 | R134: =IF(OR(AND(IFERROR(F134/$E134,0)>=1,$E134>0),AND(F134>$E134,$E134<=0),AND($E134<=0,F134>=0)),1,IF(AND(IFERROR(($E134-F134)/F134,0)<0,F134<$E134),0,F134/$E134)) -> 1 | S134: =IF(OR(AND(IFERROR(G134/$E134,0)>=1,$E134>0),AND(G134>$E134,$E134<=0),AND($E134<=0,G134>=0)),1,IF(AND(IFERROR(($E134-G134)/G134,0)<0,G134<$E134),0,G134/$E134)) -> 1 | T134: =IF(OR(AND(IFERROR(H134/$E134,0)>=1,$E134>0),AND(H134>$E134,$E134<=0),AND($E134<=0,H134>=0)),1,IF(AND(IFERROR(($E134-H134)/H134,0)<0,H134<$E134),0,H134/$E134)) -> 1 | U134: =IF(OR(AND(IFERROR(I134/$E134,0)>=1,$E134>0),AND(I134>$E134,$E134<=0),AND($E134<=0,I134>=0)),1,IF(AND(IFERROR(($E134-I134)/I134,0)<0,I134<$E134),0,I134/$E134)) -> 1 | V134: =IF(OR(AND(IFERROR(J134/$E134,0)>=1,$E134>0),AND(J134>$E134,$E134<=0),AND($E134<=0,J134>=0)),1,IF(AND(IFERROR(($E134-J134)/J134,0)<0,J134<$E134),0,J134/$E134)) -> 1 | X134: =IFERROR(E134/$E$6,0) -> 0 | Y134: =IFERROR(F134/$F$6,0) -> 0 | Z134: =IFERROR(G134/$G$6,0) -> 0 | AA134: =IFERROR(H134/$H$6,0) -> 0 | AB134: =IFERROR(I134/$I$6,0) -> 0 | AC134: =IFERROR(J134/$J$6,0) -> 0
A135: =IF(IFERROR(VLOOKUP(C135,B136:$B$220,1,FALSE),"C")="C","C","A") -> C | B135: 1.2.01.02.001.03 | C135: 1.2.01.02.001.03.02 | D135: Disposición de productos de la propiedad intelectual | E135: =+VLOOKUP('Cuadro 2'!$C135,'Cuadro 35'!$B$12:$F$226,5,FALSE) -> 0 | J135: 0 | K135: 0 | Q135: 1 | R135: 1 | S135: 1 | T135: 1 | U135: 1 | V135: 1 | X135: 0 | Y135: 0 | Z135: 0 | AA135: 0 | AB135: 0 | AC135: 0
A136: =IF(IFERROR(VLOOKUP(C136,B137:$B$220,1,FALSE),"C")="C","C","A") -> A | B136: 1.2.01.02 | C136: 1.2.01.02.002 | D136: Disposición de objetos de valor | E136: =+VLOOKUP('Cuadro 2'!$C136,'Cuadro 35'!$B$12:$F$226,5,FALSE) -> 0 | F136: =SUMIF($B137:$B$220,$C136,F137:F$220) -> 0 | G136: =SUMIF($B137:$B$220,$C136,G137:G$220) -> 0 | H136: =SUMIF($B137:$B$220,$C136,H137:H$220) -> 0 | I136: =SUMIF($B137:$B$220,$C136,I137:I$220) -> 0 | J136: 0 | K136: 0 | M136: =SUMIF($B137:$B$220,$C136,M137:M$220) -> 0 | N136: =SUMIF($B137:$B$220,$C136,N137:N$220) -> 0 | Q136: 1 | R136: 1 | S136: 1 | T136: 1 | U136: 1 | V136: 1 | X136: 0 | Y136: 0 | Z136: 0 | AA136: 0 | AB136: 0 | AC136: 0
A137: =IF(IFERROR(VLOOKUP(C137,B138:$B$220,1,FALSE),"C")="C","C","A") -> C | B137: 1.2.01.02.002 | C137: 1.2.01.02.002.02 | D137: Disposición de antigüedades u otros objetos de arte | E137: =+VLOOKUP('Cuadro 2'!$C137,'Cuadro 35'!$B$12:$F$226,5,FALSE) -> 0 | J137: 0 | K137: 0 | Q137: 1 | R137: 1 | S137: 1 | T137: 1 | U137: 1 | V137: 1 | X137: 0 | Y137: 0 | Z137: 0 | AA137: 0 | AB137: 0 | AC137: 0
A138: =IF(IFERROR(VLOOKUP(C138,B139:$B$220,1,FALSE),"C")="C","C","A") -> C | B138: 1.2.01.02.002 | C138: 1.2.01.02.002.03 | D138: Disposición de otros objetos valiosos | E138: =+VLOOKUP('Cuadro 2'!$C138,'Cuadro 35'!$B$12:$F$226,5,FALSE) -> 0 | J138: 0 | K138: 0 | Q138: 1 | R138: 1 | S138: 1 | T138: 1 | U138: 1 | V138: 1 | X138: 0 | Y138: 0 | Z138: 0 | AA138: 0 | AB138: 0 | AC138: 0
A139: =IF(IFERROR(VLOOKUP(C139,B140:$B$220,1,FALSE),"C")="C","C","A") -> A | B139: 1.2.01.02 | C139: 1.2.01.02.003 | D139: Disposición de activos no producidos | E139: =+VLOOKUP('Cuadro 2'!$C139,'Cuadro 35'!$B$12:$F$226,5,FALSE) -> 0 | F139: =SUMIF($B140:$B$220,$C139,F140:F$220) -> 0 | G139: =SUMIF($B140:$B$220,$C139,G140:G$220) -> 0 | H139: =SUMIF($B140:$B$220,$C139,H140:H$220) -> 0 | I139: =SUMIF($B140:$B$220,$C139,I140:I$220) -> 0 | J139: 0 | K139: 0 | M139: =SUMIF($B140:$B$220,$C139,M140:M$220) -> 0 | N139: =SUMIF($B140:$B$220,$C139,N140:N$220) -> 0 | Q139: 1 | R139: 1 | S139: 1 | T139: 1 | U139: 1 | V139: 1 | X139: 0 | Y139: 0 | Z139: 0 | AA139: 0 | AB139: 0 | AC139: 0
A140: =IF(IFERROR(VLOOKUP(C140,B141:$B$220,1,FALSE),"C")="C","C","A") -> C | B140: 1.2.01.02.003 | C140: 1.2.01.02.003.01 | D140: Disposición de tierras y terrenos | E140: =+VLOOKUP('Cuadro 2'!$C140,'Cuadro 35'!$B$12:$F$226,5,FALSE) -> 0 | J140: 0 | K140: 0 | Q140: 1 | R140: 1 | S140: 1 | T140: 1 | U140: 1 | V140: 1 | X140: 0 | Y140: 0 | Z140: 0 | AA140: 0 | AB140: 0 | AC140: 0
A141: =IF(IFERROR(VLOOKUP(C141,B142:$B$220,1,FALSE),"C")="C","C","A") -> C | B141: 1.2.01.02.003 | C141: 1.2.01.02.003.02 | D141: Disposición de recursos biológicos no cultivados | E141: =+VLOOKUP('Cuadro 2'!$C141,'Cuadro 35'!$B$12:$F$226,5,FALSE) -> 0 | J141: 0 | K141: 0 | Q141: 1 | R141: 1 | S141: 1 | T141: 1 | U141: 1 | V141: 1 | X141: 0 | Y141: 0 | Z141: 0 | AA141: 0 | AB141: 0 | AC141: 0
A142: =IF(IFERROR(VLOOKUP(C142,B143:$B$220,1,FALSE),"C")="C","C","A") -> A | B142: 1.2 | C142: 1.2.02 | D142: Excedentes financieros | E142: =+VLOOKUP('Cuadro 2'!$C142,'Cuadro 35'!$B$12:$F$226,5,FALSE) -> 0 | F142: =SUMIF($B143:$B$220,$C142,F143:F$220) -> 0 | G142: =SUMIF($B143:$B$220,$C142,G143:G$220) -> 0 | H142: =SUMIF($B143:$B$220,$C142,H143:H$220) -> 0 | I142: =SUMIF($B143:$B$220,$C142,I143:I$220) -> 0 | J142: 0 | K142: 0 | M142: =SUMIF($B143:$B$220,$C142,M143:M$220) -> 0 | N142: =SUMIF($B143:$B$220,$C142,N143:N$220) -> 0 | Q142: 1 | R142: 1 | S142: 1 | T142: 1 | U142: 1 | V142: 1 | X142: 0 | Y142: 0 | Z142: 0 | AA142: 0 | AB142: 0 | AC142: 0
A143: =IF(IFERROR(VLOOKUP(C143,B144:$B$220,1,FALSE),"C")="C","C","A") -> C | B143: 1.2.02 | C143: 1.2.02.02 | D143: Empresas industriales y comerciales del Estado no societarias | E143: =+VLOOKUP('Cuadro 2'!$C143,'Cuadro 35'!$B$12:$F$226,5,FALSE) -> 0 | J143: 0 | K143: 0 | Q143: 1 | R143: 1 | S143: 1 | T143: 1 | U143: 1 | V143: 1 | X143: 0 | Y143: 0 | Z143: 0 | AA143: 0 | AB143: 0 | AC143: 0
A144: =IF(IFERROR(VLOOKUP(C144,B145:$B$220,1,FALSE),"C")="C","C","A") -> A | B144: 1.2 | C144: 1.2.03 | D144: Dividendos y utilidades por otras inversiones de capital | E144: =+VLOOKUP('Cuadro 2'!$C144,'Cuadro 35'!$B$12:$F$226,5,FALSE) -> 0 | F144: =SUMIF($B145:$B$220,$C144,F145:F$220) -> 0 | G144: =SUMIF($B145:$B$220,$C144,G145:G$220) -> 0 | H144: =SUMIF($B145:$B$220,$C144,H145:H$220) -> 0 | I144: =SUMIF($B145:$B$220,$C144,I145:I$220) -> 0 | J144: 0 | K144: 0 | M144: =SUMIF($B145:$B$220,$C144,M145:M$220) -> 0 | N144: =SUMIF($B145:$B$220,$C144,N145:N$220) -> 0 | Q144: 1 | R144: 1 | S144: 1 | T144: 1 | U144: 1 | V144: 1 | X144: 0 | Y144: 0 | Z144: 0 | AA144: 0 | AB144: 0 | AC144: 0
A145: =IF(IFERROR(VLOOKUP(C145,B146:$B$220,1,FALSE),"C")="C","C","A") -> C | B145: 1.2.03 | C145: 1.2.03.02 | D145: Empresas industriales y comerciales del Estado societarias | E145: =+VLOOKUP('Cuadro 2'!$C145,'Cuadro 35'!$B$12:$F$226,5,FALSE) -> 0 | J145: 0 | K145: 0 | Q145: 1 | R145: 1 | S145: 1 | T145: 1 | U145: 1 | V145: 1 | X145: 0 | Y145: 0 | Z145: 0 | AA145: 0 | AB145: 0 | AC145: 0
A146: =IF(IFERROR(VLOOKUP(C146,B147:$B$220,1,FALSE),"C")="C","C","A") -> C | B146: 1.2.03 | C146: 1.2.03.03 | D146: Sociedades de economía mixta | E146: =+VLOOKUP('Cuadro 2'!$C146,'Cuadro 35'!$B$12:$F$226,5,FALSE) -> 0 | J146: 0 | K146: 0 | Q146: 1 | R146: 1 | S146: 1 | T146: 1 | U146: 1 | V146: 1 | X146: 0 | Y146: 0 | Z146: 0 | AA146: 0 | AB146: 0 | AC146: 0
A147: =IF(IFERROR(VLOOKUP(C147,B148:$B$220,1,FALSE),"C")="C","C","A") -> C | B147: 1.2.03 | C147: 1.2.03.04 | D147: Inversiones patrimoniales no controladas | E147: =+VLOOKUP('Cuadro 2'!$C147,'Cuadro 35'!$B$12:$F$226,5,FALSE) -> 0 | J147: 0 | K147: 0 | Q147: 1 | R147: 1 | S147: 1 | T147: 1 | U147: 1 | V147: 1 | X147: 0 | Y147: 0 | Z147: 0 | AA147: 0 | AB147: 0 | AC147: 0
A148: =IF(IFERROR(VLOOKUP(C148,B149:$B$220,1,FALSE),"C")="C","C","A") -> C | B148: 1.2.03 | C148: 1.2.03.05 | D148: Inversiones en entidades controladas - entidades en el exterior | E148: =+VLOOKUP('Cuadro 2'!$C148,'Cuadro 35'!$B$12:$F$226,5,FALSE) -> 0 | J148: 0 | K148: 0 | Q148: 1 | R148: 1 | S148: 1 | T148: 1 | U148: 1 | V148: 1 | X148: 0 | Y148: 0 | Z148: 0 | AA148: 0 | AB148: 0 | AC148: 0
A149: =IF(IFERROR(VLOOKUP(C149,B150:$B$220,1,FALSE),"C")="C","C","A") -> C | B149: 1.2.03 | C149: 1.2.03.06 | D149: Inversiones en entidades controladas - sociedades públicas | E149: =+VLOOKUP('Cuadro 2'!$C149,'Cuadro 35'!$B$12:$F$226,5,FALSE) -> 0 | J149: 0 | K149: 0 | Q149: 1 | R149: 1 | S149: 1 | T149: 1 | U149: 1 | V149: 1 | X149: 0 | Y149: 0 | Z149: 0 | AA149: 0 | AB149: 0 | AC149: 0
A150: =IF(IFERROR(VLOOKUP(C150,B151:$B$220,1,FALSE),"C")="C","C","A") -> A | B150: 1.2 | C150: 1.2.05 | D150: Rendimientos financieros | E150: =+VLOOKUP('Cuadro 2'!$C150,'Cuadro 35'!$B$12:$F$226,5,FALSE) -> 0 | F150: =SUMIF($B151:$B$220,$C150,F151:F$220) -> 0 | G150: =SUMIF($B151:$B$220,$C150,G151:G$220) -> 0 | H150: =SUMIF($B151:$B$220,$C150,H151:H$220) -> 0 | I150: =SUMIF($B151:$B$220,$C150,I151:I$220) -> 0 | J150: 0 | K150: 0 | M150: =SUMIF($B151:$B$220,$C150,M151:M$220) -> 0 | N150: =SUMIF($B151:$B$220,$C150,N151:N$220) -> 0 | Q150: 1 | R150: 1 | S150: 1 | T150: 1 | U150: 1 | V150: 1 | X150: 0 | Y150: 0 | Z150: 0 | AA150: 0 | AB150: 0 | AC150: 0
A151: =IF(IFERROR(VLOOKUP(C151,B152:$B$220,1,FALSE),"C")="C","C","A") -> C | B151: 1.2.05 | C151: 1.2.05.01 | D151: Títulos participativos | E151: =+VLOOKUP('Cuadro 2'!$C151,'Cuadro 35'!$B$12:$F$226,5,FALSE) -> 0 | J151: 0 | K151: 0 | Q151: 1 | R151: 1 | S151: 1 | T151: 1 | U151: 1 | V151: 1 | X151: 0 | Y151: 0 | Z151: 0 | AA151: 0 | AB151: 0 | AC151: 0
A152: =IF(IFERROR(VLOOKUP(C152,B153:$B$220,1,FALSE),"C")="C","C","A") -> C | B152: 1.2.05 | C152: 1.2.05.02 | D152: Depósitos | E152: =+VLOOKUP('Cuadro 2'!$C152,'Cuadro 35'!$B$12:$F$226,5,FALSE) -> 0 | J152: 0 | K152: 0 | Q152: 1 | R152: 1 | S152: 1 | T152: 1 | U152: 1 | V152: 1 | X152: 0 | Y152: 0 | Z152: 0 | AA152: 0 | AB152: 0 | AC152: 0
A153: =IF(IFERROR(VLOOKUP(C153,B154:$B$220,1,FALSE),"C")="C","C","A") -> C | B153: 1.2.05 | C153: 1.2.05.03 | D153: Valores distintos de acciones | E153: =+VLOOKUP('Cuadro 2'!$C153,'Cuadro 35'!$B$12:$F$226,5,FALSE) -> 0 | J153: 0 | K153: 0 | Q153: 1 | R153: 1 | S153: 1 | T153: 1 | U153: 1 | V153: 1 | X153: 0 | Y153: 0 | Z153: 0 | AA153: 0 | AB153: 0 | AC153: 0
A154: =IF(IFERROR(VLOOKUP(C154,B155:$B$220,1,FALSE),"C")="C","C","A") -> C | B154: 1.2.05 | C154: 1.2.05.04 | D154: Cuenta única nacional | E154: =+VLOOKUP('Cuadro 2'!$C154,'Cuadro 35'!$B$12:$F$226,5,FALSE) -> 0 | J154: 0 | K154: 0 | Q154: 1 | R154: 1 | S154: 1 | T154: 1 | U154: 1 | V154: 1 | X154: 0 | Y154: 0 | Z154: 0 | AA154: 0 | AB154: 0 | AC154: 0
A155: =IF(IFERROR(VLOOKUP(C155,B156:$B$220,1,FALSE),"C")="C","C","A") -> C | B155: 1.2.05 | C155: 1.2.05.05 | D155: Intereses por préstamos | E155: =+VLOOKUP('Cuadro 2'!$C155,'Cuadro 35'!$B$12:$F$226,5,FALSE) -> 0 | J155: 0 | K155: 0 | Q155: 1 | R155: 1 | S155: 1 | T155: 1 | U155: 1 | V155: 1 | X155: 0 | Y155: 0 | Z155: 0 | AA155: 0 | AB155: 0 | AC155: 0
A156: =IF(IFERROR(VLOOKUP(C156,B157:$B$220,1,FALSE),"C")="C","C","A") -> C | B156: 1.2.05 | C156: 1.2.05.06 | D156: Rendimientos recursos de terceros | E156: =+VLOOKUP('Cuadro 2'!$C156,'Cuadro 35'!$B$12:$F$226,5,FALSE) -> 0 | J156: 0 | K156: 0 | Q156: 1 | R156: 1 | S156: 1 | T156: 1 | U156: 1 | V156: 1 | X156: 0 | Y156: 0 | Z156: 0 | AA156: 0 | AB156: 0 | AC156: 0
A157: =IF(IFERROR(VLOOKUP(C157,B158:$B$220,1,FALSE),"C")="C","C","A") -> A | B157: 1.2 | C157: 1.2.06 | D157: Recursos de crédito externo | E157: =+VLOOKUP('Cuadro 2'!$C157,'Cuadro 35'!$B$12:$F$226,5,FALSE) -> 0 | F157: =SUMIF($B158:$B$220,$C157,F158:F$220) -> 0 | G157: =SUMIF($B158:$B$220,$C157,G158:G$220) -> 0 | H157: =SUMIF($B158:$B$220,$C157,H158:H$220) -> 0 | I157: =SUMIF($B158:$B$220,$C157,I158:I$220) -> 0 | J157: 0 | K157: 0 | M157: =SUMIF($B158:$B$220,$C157,M158:M$220) -> 0 | N157: =SUMIF($B158:$B$220,$C157,N158:N$220) -> 0 | Q157: 1 | R157: 1 | S157: 1 | T157: 1 | U157: 1 | V157: 1 | X157: 0 | Y157: 0 | Z157: 0 | AA157: 0 | AB157: 0 | AC157: 0
A158: =IF(IFERROR(VLOOKUP(C158,B159:$B$220,1,FALSE),"C")="C","C","A") -> A | B158: 1.2.06 | C158: 1.2.06.01 | D158: Recursos de contratos de empréstitos externos | E158: =+VLOOKUP('Cuadro 2'!$C158,'Cuadro 35'!$B$12:$F$226,5,FALSE) -> 0 | F158: =SUMIF($B159:$B$220,$C158,F159:F$220) -> 0 | G158: =SUMIF($B159:$B$220,$C158,G159:G$220) -> 0 | H158: =SUMIF($B159:$B$220,$C158,H159:H$220) -> 0 | I158: =SUMIF($B159:$B$220,$C158,I159:I$220) -> 0 | J158: 0 | K158: 0 | M158: =SUMIF($B159:$B$220,$C158,M159:M$220) -> 0 | N158: =SUMIF($B159:$B$220,$C158,N159:N$220) -> 0 | Q158: 1 | R158: 1 | S158: 1 | T158: 1 | U158: 1 | V158: 1 | X158: 0 | Y158: 0 | Z158: 0 | AA158: 0 | AB158: 0 | AC158: 0
A159: =IF(IFERROR(VLOOKUP(C159,B160:$B$220,1,FALSE),"C")="C","C","A") -> C | B159: 1.2.06.01 | C159: 1.2.06.01.001 | D159: Bancos comerciales | E159: =+VLOOKUP('Cuadro 2'!$C159,'Cuadro 35'!$B$12:$F$226,5,FALSE) -> 0 | J159: 0 | K159: 0 | Q159: 1 | R159: 1 | S159: 1 | T159: 1 | U159: 1 | V159: 1 | X159: 0 | Y159: 0 | Z159: 0 | AA159: 0 | AB159: 0 | AC159: 0
A160: =IF(IFERROR(VLOOKUP(C160,B161:$B$220,1,FALSE),"C")="C","C","A") -> C | B160: 1.2.06.01 | C160: 1.2.06.01.002 | D160: Entidades de fomento | E160: =+VLOOKUP('Cuadro 2'!$C160,'Cuadro 35'!$B$12:$F$226,5,FALSE) -> 0 | J160: 0 | K160: 0 | Q160: 1 | R160: 1 | S160: 1 | T160: 1 | U160: 1 | V160: 1 | X160: 0 | Y160: 0 | Z160: 0 | AA160: 0 | AB160: 0 | AC160: 0
A161: =IF(IFERROR(VLOOKUP(C161,B162:$B$220,1,FALSE),"C")="C","C","A") -> A | B161: 1.2.06.01 | C161: 1.2.06.01.003 | D161: Gobiernos | E161: =+VLOOKUP('Cuadro 2'!$C161,'Cuadro 35'!$B$12:$F$226,5,FALSE) -> 0 | F161: =SUMIF($B162:$B$220,$C161,F162:F$220) -> 0 | G161: =SUMIF($B162:$B$220,$C161,G162:G$220) -> 0 | H161: =SUMIF($B162:$B$220,$C161,H162:H$220) -> 0 | I161: =SUMIF($B162:$B$220,$C161,I162:I$220) -> 0 | J161: 0 | K161: 0 | M161: =SUMIF($B162:$B$220,$C161,M162:M$220) -> 0 | N161: =SUMIF($B162:$B$220,$C161,N162:N$220) -> 0 | Q161: 1 | R161: 1 | S161: 1 | T161: 1 | U161: 1 | V161: 1 | X161: 0 | Y161: 0 | Z161: 0 | AA161: 0 | AB161: 0 | AC161: 0
A162: =IF(IFERROR(VLOOKUP(C162,B163:$B$220,1,FALSE),"C")="C","C","A") -> C | B162: 1.2.06.01.003 | C162: 1.2.06.01.003.01 | D162: Bancos centrales y agencias de gobiernos | E162: =+VLOOKUP('Cuadro 2'!$C162,'Cuadro 35'!$B$12:$F$226,5,FALSE) -> 0 | J162: 0 | K162: 0 | Q162: 1 | R162: 1 | S162: 1 | T162: 1 | U162: 1 | V162: 1 | X162: 0 | Y162: 0 | Z162: 0 | AA162: 0 | AB162: 0 | AC162: 0
A163: =IF(IFERROR(VLOOKUP(C163,B164:$B$220,1,FALSE),"C")="C","C","A") -> C | B163: 1.2.06.01.003 | C163: 1.2.06.01.003.02 | D163: Gobiernos | E163: =+VLOOKUP('Cuadro 2'!$C163,'Cuadro 35'!$B$12:$F$226,5,FALSE) -> 0 | J163: 0 | K163: 0 | Q163: 1 | R163: 1 | S163: 1 | T163: 1 | U163: 1 | V163: 1 | X163: 0 | Y163: 0 | Z163: 0 | AA163: 0 | AB163: 0 | AC163: 0
A164: =IF(IFERROR(VLOOKUP(C164,B165:$B$220,1,FALSE),"C")="C","C","A") -> A | B164: 1.2.06.01 | C164: 1.2.06.01.004 | D164: Organismos multilaterales | E164: =+VLOOKUP('Cuadro 2'!$C164,'Cuadro 35'!$B$12:$F$226,5,FALSE) -> 0 | F164: =SUMIF($B165:$B$220,$C164,F165:F$220) -> 0 | G164: =SUMIF($B165:$B$220,$C164,G165:G$220) -> 0 | H164: =SUMIF($B165:$B$220,$C164,H165:H$220) -> 0 | I164: =SUMIF($B165:$B$220,$C164,I165:I$220) -> 0 | J164: 0 | K164: 0 | M164: =SUMIF($B165:$B$220,$C164,M165:M$220) -> 0 | N164: =SUMIF($B165:$B$220,$C164,N165:N$220) -> 0 | Q164: 1 | R164: 1 | S164: 1 | T164: 1 | U164: 1 | V164: 1 | X164: 0 | Y164: 0 | Z164: 0 | AA164: 0 | AB164: 0 | AC164: 0
A165: =IF(IFERROR(VLOOKUP(C165,B166:$B$220,1,FALSE),"C")="C","C","A") -> C | B165: 1.2.06.01.004 | C165: 1.2.06.01.004.01 | D165: BID | E165: =+VLOOKUP('Cuadro 2'!$C165,'Cuadro 35'!$B$12:$F$226,5,FALSE) -> 0 | J165: 0 | K165: 0 | Q165: 1 | R165: 1 | S165: 1 | T165: 1 | U165: 1 | V165: 1 | X165: 0 | Y165: 0 | Z165: 0 | AA165: 0 | AB165: 0 | AC165: 0
A166: =IF(IFERROR(VLOOKUP(C166,B167:$B$220,1,FALSE),"C")="C","C","A") -> C | B166: 1.2.06.01.004 | C166: 1.2.06.01.004.02 | D166: BIRF | E166: =+VLOOKUP('Cuadro 2'!$C166,'Cuadro 35'!$B$12:$F$226,5,FALSE) -> 0 | J166: 0 | K166: 0 | Q166: 1 | R166: 1 | S166: 1 | T166: 1 | U166: 1 | V166: 1 | X166: 0 | Y166: 0 | Z166: 0 | AA166: 0 | AB166: 0 | AC166: 0
A167: =IF(IFERROR(VLOOKUP(C167,B168:$B$220,1,FALSE),"C")="C","C","A") -> C | B167: 1.2.06.01.004 | C167: 1.2.06.01.004.03 | D167: CAF | E167: =+VLOOKUP('Cuadro 2'!$C167,'Cuadro 35'!$B$12:$F$226,5,FALSE) -> 0 | J167: 0 | K167: 0 | Q167: 1 | R167: 1 | S167: 1 | T167: 1 | U167: 1 | V167: 1 | X167: 0 | Y167: 0 | Z167: 0 | AA167: 0 | AB167: 0 | AC167: 0
A168: =IF(IFERROR(VLOOKUP(C168,B169:$B$220,1,FALSE),"C")="C","C","A") -> A | B168: 1.2.06.01 | C168: 1.2.06.01.005 | D168: Otras instituciones financieras | E168: =+VLOOKUP('Cuadro 2'!$C168,'Cuadro 35'!$B$12:$F$226,5,FALSE) -> 0 | F168: =SUMIF($B169:$B$220,$C168,F169:F$220) -> 0 | G168: =SUMIF($B169:$B$220,$C168,G169:G$220) -> 0 | H168: =SUMIF($B169:$B$220,$C168,H169:H$220) -> 0 | I168: =SUMIF($B169:$B$220,$C168,I169:I$220) -> 0 | J168: 0 | K168: 0 | M168: =SUMIF($B169:$B$220,$C168,M169:M$220) -> 0 | N168: =SUMIF($B169:$B$220,$C168,N169:N$220) -> 0 | Q168: 1 | R168: 1 | S168: 1 | T168: 1 | U168: 1 | V168: 1 | X168: 0 | Y168: 0 | Z168: 0 | AA168: 0 | AB168: 0 | AC168: 0
A169: =IF(IFERROR(VLOOKUP(C169,B170:$B$220,1,FALSE),"C")="C","C","A") -> C | B169: 1.2.06.01.005 | C169: 1.2.06.01.005.01 | D169: FIDA | E169: =+VLOOKUP('Cuadro 2'!$C169,'Cuadro 35'!$B$12:$F$226,5,FALSE) -> 0 | J169: 0 | K169: 0 | Q169: 1 | R169: 1 | S169: 1 | T169: 1 | U169: 1 | V169: 1 | X169: 0 | Y169: 0 | Z169: 0 | AA169: 0 | AB169: 0 | AC169: 0
A170: =IF(IFERROR(VLOOKUP(C170,B171:$B$220,1,FALSE),"C")="C","C","A") -> C | B170: 1.2.06.01.005 | C170: 1.2.06.01.005.02 | D170: FODI | E170: =+VLOOKUP('Cuadro 2'!$C170,'Cuadro 35'!$B$12:$F$226,5,FALSE) -> 0 | J170: 0 | K170: 0 | Q170: 1 | R170: 1 | S170: 1 | T170: 1 | U170: 1 | V170: 1 | X170: 0 | Y170: 0 | Z170: 0 | AA170: 0 | AB170: 0 | AC170: 0
A171: =IF(IFERROR(VLOOKUP(C171,B172:$B$220,1,FALSE),"C")="C","C","A") -> C | B171: 1.2.06.01.005 | C171: 1.2.06.01.005.03 | D171: Recursos de crédito externo de otras instituciones financieras | E171: =+VLOOKUP('Cuadro 2'!$C171,'Cuadro 35'!$B$12:$F$226,5,FALSE) -> 0 | J171: 0 | K171: 0 | Q171: 1 | R171: 1 | S171: 1 | T171: 1 | U171: 1 | V171: 1 | X171: 0 | Y171: 0 | Z171: 0 | AA171: 0 | AB171: 0 | AC171: 0
A172: =IF(IFERROR(VLOOKUP(C172,B173:$B$220,1,FALSE),"C")="C","C","A") -> A | B172: 1.2.06 | C172: 1.2.06.02 | D172: Títulos de deuda | E172: =+VLOOKUP('Cuadro 2'!$C172,'Cuadro 35'!$B$12:$F$226,5,FALSE) -> 0 | F172: =SUMIF($B173:$B$220,$C172,F173:F$220) -> 0 | G172: =SUMIF($B173:$B$220,$C172,G173:G$220) -> 0 | H172: =SUMIF($B173:$B$220,$C172,H173:H$220) -> 0 | I172: =SUMIF($B173:$B$220,$C172,I173:I$220) -> 0 | J172: 0 | K172: 0 | M172: =SUMIF($B173:$B$220,$C172,M173:M$220) -> 0 | N172: =SUMIF($B173:$B$220,$C172,N173:N$220) -> 0 | Q172: 1 | R172: 1 | S172: 1 | T172: 1 | U172: 1 | V172: 1 | X172: 0 | Y172: 0 | Z172: 0 | AA172: 0 | AB172: 0 | AC172: 0
A173: =IF(IFERROR(VLOOKUP(C173,B174:$B$220,1,FALSE),"C")="C","C","A") -> C | B173: 1.2.06.02 | C173: 1.2.06.02.001 | D173: Bonos | E173: =+VLOOKUP('Cuadro 2'!$C173,'Cuadro 35'!$B$12:$F$226,5,FALSE) -> 0 | J173: 0 | K173: 0 | Q173: 1 | R173: 1 | S173: 1 | T173: 1 | U173: 1 | V173: 1 | X173: 0 | Y173: 0 | Z173: 0 | AA173: 0 | AB173: 0 | AC173: 0
A174: =IF(IFERROR(VLOOKUP(C174,B175:$B$220,1,FALSE),"C")="C","C","A") -> A | B174: 1.2 | C174: 1.2.07 | D174: Recursos de crédito interno | E174: =+VLOOKUP('Cuadro 2'!$C174,'Cuadro 35'!$B$12:$F$226,5,FALSE) -> 0 | F174: =SUMIF($B175:$B$220,$C174,F175:F$220) -> 0 | G174: =SUMIF($B175:$B$220,$C174,G175:G$220) -> 0 | H174: =SUMIF($B175:$B$220,$C174,H175:H$220) -> 0 | I174: =SUMIF($B175:$B$220,$C174,I175:I$220) -> 0 | J174: 0 | K174: 0 | M174: =SUMIF($B175:$B$220,$C174,M175:M$220) -> 0 | N174: =SUMIF($B175:$B$220,$C174,N175:N$220) -> 0 | Q174: 1 | R174: 1 | S174: 1 | T174: 1 | U174: 1 | V174: 1 | X174: 0 | Y174: 0 | Z174: 0 | AA174: 0 | AB174: 0 | AC174: 0
A175: =IF(IFERROR(VLOOKUP(C175,B176:$B$220,1,FALSE),"C")="C","C","A") -> A | B175: 1.2.07 | C175: 1.2.07.01 | D175: Recursos de contratos de empréstitos internos | E175: =+VLOOKUP('Cuadro 2'!$C175,'Cuadro 35'!$B$12:$F$226,5,FALSE) -> 0 | F175: =SUMIF($B176:$B$220,$C175,F176:F$220) -> 0 | G175: =SUMIF($B176:$B$220,$C175,G176:G$220) -> 0 | H175: =SUMIF($B176:$B$220,$C175,H176:H$220) -> 0 | I175: =SUMIF($B176:$B$220,$C175,I176:I$220) -> 0 | J175: 0 | K175: 0 | M175: =SUMIF($B176:$B$220,$C175,M176:M$220) -> 0 | N175: =SUMIF($B176:$B$220,$C175,N176:N$220) -> 0 | Q175: 1 | R175: 1 | S175: 1 | T175: 1 | U175: 1 | V175: 1 | X175: 0 | Y175: 0 | Z175: 0 | AA175: 0 | AB175: 0 | AC175: 0
A176: =IF(IFERROR(VLOOKUP(C176,B177:$B$220,1,FALSE),"C")="C","C","A") -> C | B176: 1.2.07.01 | C176: 1.2.07.01.001 | D176: Banca comercial | E176: =+VLOOKUP('Cuadro 2'!$C176,'Cuadro 35'!$B$12:$F$226,5,FALSE) -> 0 | J176: 0 | K176: 0 | Q176: 1 | R176: 1 | S176: 1 | T176: 1 | U176: 1 | V176: 1 | X176: 0 | Y176: 0 | Z176: 0 | AA176: 0 | AB176: 0 | AC176: 0
A177: =IF(IFERROR(VLOOKUP(C177,B178:$B$220,1,FALSE),"C")="C","C","A") -> C | B177: 1.2.07.01 | C177: 1.2.07.01.002 | D177: Nación | E177: =+VLOOKUP('Cuadro 2'!$C177,'Cuadro 35'!$B$12:$F$226,5,FALSE) -> 0 | J177: 0 | K177: 0 | Q177: 1 | R177: 1 | S177: 1 | T177: 1 | U177: 1 | V177: 1 | X177: 0 | Y177: 0 | Z177: 0 | AA177: 0 | AB177: 0 | AC177: 0
A178: =IF(IFERROR(VLOOKUP(C178,B179:$B$220,1,FALSE),"C")="C","C","A") -> C | B178: 1.2.07.01 | C178: 1.2.07.01.003 | D178: Banca de fomento | E178: =+VLOOKUP('Cuadro 2'!$C178,'Cuadro 35'!$B$12:$F$226,5,FALSE) -> 0 | J178: 0 | K178: 0 | Q178: 1 | R178: 1 | S178: 1 | T178: 1 | U178: 1 | V178: 1 | X178: 0 | Y178: 0 | Z178: 0 | AA178: 0 | AB178: 0 | AC178: 0
A179: =IF(IFERROR(VLOOKUP(C179,B180:$B$220,1,FALSE),"C")="C","C","A") -> C | B179: 1.2.07.01 | C179: 1.2.07.01.004 | D179: Institutos de Desarrollo Departamental y/o Municipal | E179: =+VLOOKUP('Cuadro 2'!$C179,'Cuadro 35'!$B$12:$F$226,5,FALSE) -> 0 | J179: 0 | K179: 0 | Q179: 1 | R179: 1 | S179: 1 | T179: 1 | U179: 1 | V179: 1 | X179: 0 | Y179: 0 | Z179: 0 | AA179: 0 | AB179: 0 | AC179: 0
A180: =IF(IFERROR(VLOOKUP(C180,B181:$B$220,1,FALSE),"C")="C","C","A") -> C | B180: 1.2.07.01 | C180: 1.2.07.01.006 | D180: Otras instituciones financieras | E180: =+VLOOKUP('Cuadro 2'!$C180,'Cuadro 35'!$B$12:$F$226,5,FALSE) -> 0 | J180: 0 | K180: 0 | Q180: 1 | R180: 1 | S180: 1 | T180: 1 | U180: 1 | V180: 1 | X180: 0 | Y180: 0 | Z180: 0 | AA180: 0 | AB180: 0 | AC180: 0
A181: =IF(IFERROR(VLOOKUP(C181,B182:$B$220,1,FALSE),"C")="C","C","A") -> C | B181: 1.2.07.01 | C181: 1.2.07.01.007 | D181: Otras entidades no financieras | E181: =+VLOOKUP('Cuadro 2'!$C181,'Cuadro 35'!$B$12:$F$226,5,FALSE) -> 0 | J181: 0 | K181: 0 | Q181: 1 | R181: 1 | S181: 1 | T181: 1 | U181: 1 | V181: 1 | X181: 0 | Y181: 0 | Z181: 0 | AA181: 0 | AB181: 0 | AC181: 0
A182: =IF(IFERROR(VLOOKUP(C182,B183:$B$220,1,FALSE),"C")="C","C","A") -> A | B182: 1.2.07 | C182: 1.2.07.02 | D182: Títulos de deuda | E182: =+VLOOKUP('Cuadro 2'!$C182,'Cuadro 35'!$B$12:$F$226,5,FALSE) -> 0 | F182: =SUMIF($B183:$B$220,$C182,F183:F$220) -> 0 | G182: =SUMIF($B183:$B$220,$C182,G183:G$220) -> 0 | H182: =SUMIF($B183:$B$220,$C182,H183:H$220) -> 0 | I182: =SUMIF($B183:$B$220,$C182,I183:I$220) -> 0 | J182: 0 | K182: 0 | M182: =SUMIF($B183:$B$220,$C182,M183:M$220) -> 0 | N182: =SUMIF($B183:$B$220,$C182,N183:N$220) -> 0 | Q182: 1 | R182: 1 | S182: 1 | T182: 1 | U182: 1 | V182: 1 | X182: 0 | Y182: 0 | Z182: 0 | AA182: 0 | AB182: 0 | AC182: 0
A183: =IF(IFERROR(VLOOKUP(C183,B184:$B$220,1,FALSE),"C")="C","C","A") -> C | B183: 1.2.07.02 | C183: 1.2.07.02.002 | D183: Bonos y otros títulos emitidos | E183: =+VLOOKUP('Cuadro 2'!$C183,'Cuadro 35'!$B$12:$F$226,5,FALSE) -> 0 | J183: 0 | K183: 0 | Q183: 1 | R183: 1 | S183: 1 | T183: 1 | U183: 1 | V183: 1 | X183: 0 | Y183: 0 | Z183: 0 | AA183: 0 | AB183: 0 | AC183: 0
A184: =IF(IFERROR(VLOOKUP(C184,B185:$B$220,1,FALSE),"C")="C","C","A") -> A | B184: 1.2 | C184: 1.2.08 | D184: Transferencias de capital | E184: =+VLOOKUP('Cuadro 2'!$C184,'Cuadro 35'!$B$12:$F$226,5,FALSE) -> 0 | F184: =SUMIF($B185:$B$220,$C184,F185:F$220) -> 0 | G184: =SUMIF($B185:$B$220,$C184,G185:G$220) -> 0 | H184: =SUMIF($B185:$B$220,$C184,H185:H$220) -> 0 | I184: =SUMIF($B185:$B$220,$C184,I185:I$220) -> 0 | J184: 0 | K184: 0 | M184: =SUMIF($B185:$B$220,$C184,M185:M$220) -> 0 | N184: =SUMIF($B185:$B$220,$C184,N185:N$220) -> 0 | Q184: 1 | R184: 1 | S184: 1 | T184: 1 | U184: 1 | V184: 1 | X184: 0 | Y184: 0 | Z184: 0 | AA184: 0 | AB184: 0 | AC184: 0
A185: =IF(IFERROR(VLOOKUP(C185,B186:$B$220,1,FALSE),"C")="C","C","A") -> A | B185: 1.2.08 | C185: 1.2.08.01 | D185: Donaciones | E185: =+VLOOKUP('Cuadro 2'!$C185,'Cuadro 35'!$B$12:$F$226,5,FALSE) -> 0 | F185: =SUMIF($B186:$B$220,$C185,F186:F$220) -> 0 | G185: =SUMIF($B186:$B$220,$C185,G186:G$220) -> 0 | H185: =SUMIF($B186:$B$220,$C185,H186:H$220) -> 0 | I185: =SUMIF($B186:$B$220,$C185,I186:I$220) -> 0 | J185: 0 | K185: 0 | M185: =SUMIF($B186:$B$220,$C185,M186:M$220) -> 0 | N185: =SUMIF($B186:$B$220,$C185,N186:N$220) -> 0 | Q185: 1 | R185: 1 | S185: 1 | T185: 1 | U185: 1 | V185: 1 | X185: 0 | Y185: 0 | Z185: 0 | AA185: 0 | AB185: 0 | AC185: 0
A186: =IF(IFERROR(VLOOKUP(C186,B187:$B$220,1,FALSE),"C")="C","C","A") -> A | B186: 1.2.08.01 | C186: 1.2.08.01.001 | D186: De gobiernos extranjeros | E186: =+VLOOKUP('Cuadro 2'!$C186,'Cuadro 35'!$B$12:$F$226,5,FALSE) -> 0 | F186: =SUMIF($B187:$B$220,$C186,F187:F$220) -> 0 | G186: =SUMIF($B187:$B$220,$C186,G187:G$220) -> 0 | H186: =SUMIF($B187:$B$220,$C186,H187:H$220) -> 0 | I186: =SUMIF($B187:$B$220,$C186,I187:I$220) -> 0 | J186: 0 | K186: 0 | M186: =SUMIF($B187:$B$220,$C186,M187:M$220) -> 0 | N186: =SUMIF($B187:$B$220,$C186,N187:N$220) -> 0 | Q186: 1 | R186: 1 | S186: 1 | T186: 1 | U186: 1 | V186: 1 | X186: 0 | Y186: 0 | Z186: 0 | AA186: 0 | AB186: 0 | AC186: 0
A187: =IF(IFERROR(VLOOKUP(C187,B188:$B$220,1,FALSE),"C")="C","C","A") -> C | B187: 1.2.08.01.001 | C187: 1.2.08.01.001.01 | D187: No condicionadas a la adquisición de un activo | E187: =+VLOOKUP('Cuadro 2'!$C187,'Cuadro 35'!$B$12:$F$226,5,FALSE) -> 0 | J187: 0 | K187: 0 | Q187: 1 | R187: 1 | S187: 1 | T187: 1 | U187: 1 | V187: 1 | X187: 0 | Y187: 0 | Z187: 0 | AA187: 0 | AB187: 0 | AC187: 0
A188: =IF(IFERROR(VLOOKUP(C188,B189:$B$220,1,FALSE),"C")="C","C","A") -> C | B188: 1.2.08.01.001 | C188: 1.2.08.01.001.02 | D188: Condicionadas a la adquisición de un activo | E188: =+VLOOKUP('Cuadro 2'!$C188,'Cuadro 35'!$B$12:$F$226,5,FALSE) -> 0 | J188: 0 | K188: 0 | Q188: 1 | R188: 1 | S188: 1 | T188: 1 | U188: 1 | V188: 1 | X188: 0 | Y188: 0 | Z188: 0 | AA188: 0 | AB188: 0 | AC188: 0
A189: =IF(IFERROR(VLOOKUP(C189,B190:$B$220,1,FALSE),"C")="C","C","A") -> A | B189: 1.2.08.01 | C189: 1.2.08.01.002 | D189: De organizaciones internacionales | E189: =+VLOOKUP('Cuadro 2'!$C189,'Cuadro 35'!$B$12:$F$226,5,FALSE) -> 0 | F189: =SUMIF($B190:$B$220,$C189,F190:F$220) -> 0 | G189: =SUMIF($B190:$B$220,$C189,G190:G$220) -> 0 | H189: =SUMIF($B190:$B$220,$C189,H190:H$220) -> 0 | I189: =SUMIF($B190:$B$220,$C189,I190:I$220) -> 0 | J189: 0 | K189: 0 | M189: =SUMIF($B190:$B$220,$C189,M190:M$220) -> 0 | N189: =SUMIF($B190:$B$220,$C189,N190:N$220) -> 0 | Q189: 1 | R189: 1 | S189: 1 | T189: 1 | U189: 1 | V189: 1 | X189: 0 | Y189: 0 | Z189: 0 | AA189: 0 | AB189: 0 | AC189: 0
A190: =IF(IFERROR(VLOOKUP(C190,B191:$B$220,1,FALSE),"C")="C","C","A") -> C | B190: 1.2.08.01.002 | C190: 1.2.08.01.002.01 | D190: No condicionadas a la adquisición de un activo | E190: =+VLOOKUP('Cuadro 2'!$C190,'Cuadro 35'!$B$12:$F$226,5,FALSE) -> 0 | J190: 0 | K190: 0 | Q190: 1 | R190: 1 | S190: 1 | T190: 1 | U190: 1 | V190: 1 | X190: 0 | Y190: 0 | Z190: 0 | AA190: 0 | AB190: 0 | AC190: 0
A191: =IF(IFERROR(VLOOKUP(C191,B192:$B$220,1,FALSE),"C")="C","C","A") -> C | B191: 1.2.08.01.002 | C191: 1.2.08.01.002.02 | D191: Condicionadas a la adquisición de un activo | E191: =+VLOOKUP('Cuadro 2'!$C191,'Cuadro 35'!$B$12:$F$226,5,FALSE) -> 0 | J191: 0 | K191: 0 | Q191: 1 | R191: 1 | S191: 1 | T191: 1 | U191: 1 | V191: 1 | X191: 0 | Y191: 0 | Z191: 0 | AA191: 0 | AB191: 0 | AC191: 0
A192: =IF(IFERROR(VLOOKUP(C192,B193:$B$220,1,FALSE),"C")="C","C","A") -> A | B192: 1.2.08.01 | C192: 1.2.08.01.003 | D192: Del sector privado | E192: =+VLOOKUP('Cuadro 2'!$C192,'Cuadro 35'!$B$12:$F$226,5,FALSE) -> 0 | F192: =SUMIF($B193:$B$220,$C192,F193:F$220) -> 0 | G192: =SUMIF($B193:$B$220,$C192,G193:G$220) -> 0 | H192: =SUMIF($B193:$B$220,$C192,H193:H$220) -> 0 | I192: =SUMIF($B193:$B$220,$C192,I193:I$220) -> 0 | J192: 0 | K192: 0 | M192: =SUMIF($B193:$B$220,$C192,M193:M$220) -> 0 | N192: =SUMIF($B193:$B$220,$C192,N193:N$220) -> 0 | Q192: 1 | R192: 1 | S192: 1 | T192: 1 | U192: 1 | V192: 1 | X192: 0 | Y192: 0 | Z192: 0 | AA192: 0 | AB192: 0 | AC192: 0
A193: =IF(IFERROR(VLOOKUP(C193,B194:$B$220,1,FALSE),"C")="C","C","A") -> C | B193: 1.2.08.01.003 | C193: 1.2.08.01.003.01 | D193: No condicionadas a la adquisición de un activo | E193: =+VLOOKUP('Cuadro 2'!$C193,'Cuadro 35'!$B$12:$F$226,5,FALSE) -> 0 | J193: 0 | K193: 0 | Q193: 1 | R193: 1 | S193: 1 | T193: 1 | U193: 1 | V193: 1 | X193: 0 | Y193: 0 | Z193: 0 | AA193: 0 | AB193: 0 | AC193: 0
A194: =IF(IFERROR(VLOOKUP(C194,B195:$B$220,1,FALSE),"C")="C","C","A") -> C | B194: 1.2.08.01.003 | C194: 1.2.08.01.003.02 | D194: Condicionadas a la adquisición de un activo | E194: =+VLOOKUP('Cuadro 2'!$C194,'Cuadro 35'!$B$12:$F$226,5,FALSE) -> 0 | J194: 0 | K194: 0 | Q194: 1 | R194: 1 | S194: 1 | T194: 1 | U194: 1 | V194: 1 | X194: 0 | Y194: 0 | Z194: 0 | AA194: 0 | AB194: 0 | AC194: 0
A195: =IF(IFERROR(VLOOKUP(C195,B196:$B$220,1,FALSE),"C")="C","C","A") -> C | B195: 1.2.08 | C195: 1.2.08.02 | D195: Indemnizaciones relacionadas con seguros no de vida | E195: =+VLOOKUP('Cuadro 2'!$C195,'Cuadro 35'!$B$12:$F$226,5,FALSE) -> 0 | J195: 0 | K195: 0 | Q195: 1 | R195: 1 | S195: 1 | T195: 1 | U195: 1 | V195: 1 | X195: 0 | Y195: 0 | Z195: 0 | AA195: 0 | AB195: 0 | AC195: 0
A196: =IF(IFERROR(VLOOKUP(C196,B197:$B$220,1,FALSE),"C")="C","C","A") -> A | B196: 1.2.08 | C196: 1.2.08.03 | D196: Compensaciones de capital | E196: =+VLOOKUP('Cuadro 2'!$C196,'Cuadro 35'!$B$12:$F$226,5,FALSE) -> 0 | F196: =SUMIF($B197:$B$220,$C196,F197:F$220) -> 0 | G196: =SUMIF($B197:$B$220,$C196,G197:G$220) -> 0 | H196: =SUMIF($B197:$B$220,$C196,H197:H$220) -> 0 | I196: =SUMIF($B197:$B$220,$C196,I197:I$220) -> 0 | J196: 0 | K196: 0 | M196: =SUMIF($B197:$B$220,$C196,M197:M$220) -> 0 | N196: =SUMIF($B197:$B$220,$C196,N197:N$220) -> 0 | Q196: 1 | R196: 1 | S196: 1 | T196: 1 | U196: 1 | V196: 1 | X196: 0 | Y196: 0 | Z196: 0 | AA196: 0 | AB196: 0 | AC196: 0
A197: =IF(IFERROR(VLOOKUP(C197,B198:$B$220,1,FALSE),"C")="C","C","A") -> C | B197: 1.2.08.03 | C197: 1.2.08.03.001 | D197: Resarcimiento por procesos de gestión fiscal | E197: =+VLOOKUP('Cuadro 2'!$C197,'Cuadro 35'!$B$12:$F$226,5,FALSE) -> 0 | J197: 0 | K197: 0 | Q197: 1 | R197: 1 | S197: 1 | T197: 1 | U197: 1 | V197: 1 | X197: 0 | Y197: 0 | Z197: 0 | AA197: 0 | AB197: 0 | AC197: 0
A198: =IF(IFERROR(VLOOKUP(C198,B199:$B$220,1,FALSE),"C")="C","C","A") -> C | B198: 1.2.08.03 | C198: 1.2.08.03.002 | D198: Compensación por daños a la propiedad | E198: =+VLOOKUP('Cuadro 2'!$C198,'Cuadro 35'!$B$12:$F$226,5,FALSE) -> 0 | J198: =SUM(F198:I198) -> 0 | K198: =+E198-J198 -> 0 | Q198: =IF(ISNUMBER(J198),1,0) -> 1 | R198: =IF(OR(AND(IFERROR(F198/$E198,0)>=1,$E198>0),AND(F198>$E198,$E198<=0),AND($E198<=0,F198>=0)),1,IF(AND(IFERROR(($E198-F198)/F198,0)<0,F198<$E198),0,F198/$E198)) -> 1 | S198: =IF(OR(AND(IFERROR(G198/$E198,0)>=1,$E198>0),AND(G198>$E198,$E198<=0),AND($E198<=0,G198>=0)),1,IF(AND(IFERROR(($E198-G198)/G198,0)<0,G198<$E198),0,G198/$E198)) -> 1 | T198: =IF(OR(AND(IFERROR(H198/$E198,0)>=1,$E198>0),AND(H198>$E198,$E198<=0),AND($E198<=0,H198>=0)),1,IF(AND(IFERROR(($E198-H198)/H198,0)<0,H198<$E198),0,H198/$E198)) -> 1 | U198: =IF(OR(AND(IFERROR(I198/$E198,0)>=1,$E198>0),AND(I198>$E198,$E198<=0),AND($E198<=0,I198>=0)),1,IF(AND(IFERROR(($E198-I198)/I198,0)<0,I198<$E198),0,I198/$E198)) -> 1 | V198: =IF(OR(AND(IFERROR(J198/$E198,0)>=1,$E198>0),AND(J198>$E198,$E198<=0),AND($E198<=0,J198>=0)),1,IF(AND(IFERROR(($E198-J198)/J198,0)<0,J198<$E198),0,J198/$E198)) -> 1 | X198: =IFERROR(E198/$E$6,0) -> 0 | Y198: =IFERROR(F198/$F$6,0) -> 0 | Z198: =IFERROR(G198/$G$6,0) -> 0 | AA198: =IFERROR(H198/$H$6,0) -> 0 | AB198: =IFERROR(I198/$I$6,0) -> 0 | AC198: =IFERROR(J198/$J$6,0) -> 0
A199: =IF(IFERROR(VLOOKUP(C199,B200:$B$220,1,FALSE),"C")="C","C","A") -> A | B199: 1.2.08 | C199: 1.2.08.06 | D199: De otras entidades del gobierno general | E199: =+VLOOKUP('Cuadro 2'!$C199,'Cuadro 35'!$B$12:$F$226,5,FALSE) -> 0 | F199: =SUMIF($B200:$B$220,$C199,F200:F$220) -> 0 | G199: =SUMIF($B200:$B$220,$C199,G200:G$220) -> 0 | H199: =SUMIF($B200:$B$220,$C199,H200:H$220) -> 0 | I199: =SUMIF($B200:$B$220,$C199,I200:I$220) -> 0 | J199: 0 | K199: 0 | M199: =SUMIF($B200:$B$220,$C199,M200:M$220) -> 0 | N199: =SUMIF($B200:$B$220,$C199,N200:N$220) -> 0 | Q199: 1 | R199: 1 | S199: 1 | T199: 1 | U199: 1 | V199: 1 | X199: 0 | Y199: 0 | Z199: 0 | AA199: 0 | AB199: 0 | AC199: 0
A200: =IF(IFERROR(VLOOKUP(C200,B201:$B$220,1,FALSE),"C")="C","C","A") -> C | B200: 1.2.08.06 | C200: 1.2.08.06.002 | D200: Condicionadas a la adquisición de un activo | E200: =+VLOOKUP('Cuadro 2'!$C200,'Cuadro 35'!$B$12:$F$226,5,FALSE) -> 0 | J200: 0 | K200: 0 | Q200: 1 | R200: 1 | S200: 1 | T200: 1 | U200: 1 | V200: 1 | X200: 0 | Y200: 0 | Z200: 0 | AA200: 0 | AB200: 0 | AC200: 0
A201: =IF(IFERROR(VLOOKUP(C201,B202:$B$220,1,FALSE),"C")="C","C","A") -> C | B201: 1.2.08.06 | C201: 1.2.08.06.003 | D201: Condicionadas a la disminución de un pasivo | E201: =+VLOOKUP('Cuadro 2'!$C201,'Cuadro 35'!$B$12:$F$226,5,FALSE) -> 0 | J201: 0 | K201: 0 | Q201: 1 | R201: 1 | S201: 1 | T201: 1 | U201: 1 | V201: 1 | X201: 0 | Y201: 0 | Z201: 0 | AA201: 0 | AB201: 0 | AC201: 0
... 1494 more rows

Sheet Cuadro 2A
C4: CUADRO 2A - FUENTES Y USOS
C5: PERIODO DE CORTE | D5: =+'Datos ESE'!C2 -> 2023 | E5: ESE | F5: =IF(+'Datos ESE'!C7=0," ",'Datos ESE'!C7) -> ESE HOSPITAL SAN JOSE DE CONDOTO
D6: 1 | E6: 2 | F6: 3 | I6: 4 | J6: 5 | L6: 6
B7: PROGRAMA DE SANEAMIENTO FISCAL Y FINANCIERO A PRECIOS CORRIENTES | H7: INFORME DE MONITOREO | O7: INFORME DE SEGUIMIENTO
B8: COD_FUENTE | C8: FUENTE DE FINANCIACIÓN | D8: COD_INGRESO | E8: CONCEPTO DE INGRESO | F8: FUENTES PROGRAMADAS A LA FECHA DE INICIO PSFF | G8: FUENTES PROGRAMADAS DE LA VIGENCIA | H8: RECAUDO ACUMULADO AL CIERRE DEL AÑO ANTERIOR | I8: Trimestre 1 | J8: Trimestre 2 | K8: Trimestre 3 | L8: Trimestre 4 | M8: RECAUDO ACUMULADOAL TRIMESTRE QUE INFORMA | N8: RECAUDO ACUMULADO DEL INICIO DEL PSFF AL TRIMESTRE INFORMADO | O8: RECAUDO ACUMULADO DEL INICIO DEL PSFF AL TRIMESTRE INFORMADO (SDS) | P8: COMENTARIOS
B9: =IFERROR(VLOOKUP(C9,TblFuentes[],2,FALSE),"") -> 1 | C9: =IF('Cuadro 35A_FUENTES_USOS'!C13=0," ",'Cuadro 35A_FUENTES_USOS'!C13) -> 1. Recursos de la ESE | D9: =IF('Cuadro 35A_FUENTES_USOS'!E13=0," ",'Cuadro 35A_FUENTES_USOS'!E13) -> 1.0.02 | E9: =IFERROR(+VLOOKUP(D9,'Cuadro 2'!$C$5:$D$1238,2,FALSE)," ") -> Bancos | G9: =+'Cuadro 35A_FUENTES_USOS'!G13 -> 200565585 | M9: =+H9+I9+J9+K9+L9 -> 0 | N9: =+SUM(H9:L9) -> 0
B10: =IFERROR(VLOOKUP(C10,TblFuentes[],2,FALSE),"") -> 5 | C10: =IF('Cuadro 35A_FUENTES_USOS'!C14=0," ",'Cuadro 35A_FUENTES_USOS'!C14) -> 5. Recursos del Departamento para PSFF | D10: =IF('Cuadro 35A_FUENTES_USOS'!E14=0," ",'Cuadro 35A_FUENTES_USOS'!E14) -> 1.2.08.06.003 | E10: =IFERROR(+VLOOKUP(D10,'Cuadro 2'!$C$5:$D$1238,2,FALSE)," ") -> Condicionadas a la disminución de un pasivo | G10: =+'Cuadro 35A_FUENTES_USOS'!G14 -> 1000000000 | M10: 0 | N10: 0 | R10: MOSTRAR | S10: COD_FUENTE | T10: FUENTE | V10: CódigoIngresos | X10: ObjetoGasto | Z10: Mostrar | AA10: Codigo | AB10: Nombre
B11: =IFERROR(VLOOKUP(C11,TblFuentes[],2,FALSE),"") -> 7 | C11: =IF('Cuadro 35A_FUENTES_USOS'!C15=0," ",'Cuadro 35A_FUENTES_USOS'!C15) -> 7. Recursos del Municipio para PSFF | D11: =IF('Cuadro 35A_FUENTES_USOS'!E15=0," ",'Cuadro 35A_FUENTES_USOS'!E15) -> 1.2.08.06.003 | E11: =IFERROR(+VLOOKUP(D11,'Cuadro 2'!$C$5:$D$1238,2,FALSE)," ") -> Condicionadas a la disminución de un pasivo | G11: =+'Cuadro 35A_FUENTES_USOS'!G15 -> 350000000 | M11: 0 | N11: 0 | R11: =S11 & ". " & T11 -> 1. Recursos de la ESE | S11: 1 | T11: Recursos de la ESE | V11: 1.0.01 | X11: 2.1.7.05.01 | Z11: M. COSTO MEDIDAS PSFF | AA11: M | AB11: COSTO MEDIDAS PSFF
B12: =IFERROR(VLOOKUP(C12,TblFuentes[],2,FALSE),"") ->  | C12: =IF('Cuadro 35A_FUENTES_USOS'!C16=0," ",'Cuadro 35A_FUENTES_USOS'!C16) ->  | D12: =IF('Cuadro 35A_FUENTES_USOS'!E16=0," ",'Cuadro 35A_FUENTES_USOS'!E16) ->  | E12: =IFERROR(+VLOOKUP(D12,'Cuadro 2'!$C$5:$D$1238,2,FALSE)," ") ->  | G12: =+'Cuadro 35A_FUENTES_USOS'!G16 -> 0 | M12: 0 | N12: 0 | R12: 2. Saldos Cuentas Maestras (Art. 2 Ley 1 | S12: 2 | T12: Saldos Cuentas Maestras (Art. 2 Ley 1 | V12: 1.0.02 | X12: 2.3.2.01.01.001.01.01 | Z12: P.1. Acreencias Laborales + Servicios Personales Indirectos | AA12: P.1 | AB12: Acreencias Laborales + Servicios Personales Indirectos
B13: =IFERROR(VLOOKUP(C13,TblFuentes[],2,FALSE),"") ->  | C13: =IF('Cuadro 35A_FUENTES_USOS'!C17=0," ",'Cuadro 35A_FUENTES_USOS'!C17) ->  | D13: =IF('Cuadro 35A_FUENTES_USOS'!E17=0," ",'Cuadro 35A_FUENTES_USOS'!E17) ->  | E13: =IFERROR(+VLOOKUP(D13,'Cuadro 2'!$C$5:$D$1238,2,FALSE)," ") ->  | G13: =+'Cuadro 35A_FUENTES_USOS'!G17 -> 0 | M13: 0 | N13: 0 | R13: 3. Excedentes rentas cedidas 2012 y 2013 | S13: 3 | T13: Excedentes rentas cedidas 2012 y 2013 | V13: 1.0.03 | X13: 2.3.2.01.01.001.01.02 | Z13: P.2. Entidades Públicas y de Seguridad Social | AA13: P.2 | AB13: Entidades Públicas y de Seguridad Social
B14: =IFERROR(VLOOKUP(C14,TblFuentes[],2,FALSE),"") ->  | C14: =IF('Cuadro 35A_FUENTES_USOS'!C18=0," ",'Cuadro 35A_FUENTES_USOS'!C18) ->  | D14: =IF('Cuadro 35A_FUENTES_USOS'!E18=0," ",'Cuadro 35A_FUENTES_USOS'!E18) ->  | E14: =IFERROR(+VLOOKUP(D14,'Cuadro 2'!$C$5:$D$1238,2,FALSE)," ") ->  | G14: =+'Cuadro 35A_FUENTES_USOS'!G18 -> 0 | M14: 0 | N14: 0 | R14: 4. Recursos FONSAET (Art. 7 Ley 1608/13) | S14: 4 | T14: Recursos FONSAET (Art. 7 Ley 1608/13) | V14: 1.1.02.06.006.01 | X14: 2.3.2.01.01.001.01.03 | Z14: P.3. Proveedores bienes y servicios (No incluye Servicios Personales Indirectos) | AA14: P.3 | AB14: Proveedores bienes y servicios (No incluye Servicios Personales Indirectos)
B15: =IFERROR(VLOOKUP(C15,TblFuentes[],2,FALSE),"") ->  | C15: =IF('Cuadro 35A_FUENTES_USOS'!C19=0," ",'Cuadro 35A_FUENTES_USOS'!C19) ->  | D15: =IF('Cuadro 35A_FUENTES_USOS'!E19=0," ",'Cuadro 35A_FUENTES_USOS'!E19) ->  | E15: =IFERROR(+VLOOKUP(D15,'Cuadro 2'!$C$5:$D$1238,2,FALSE)," ") ->  | G15: =+'Cuadro 35A_FUENTES_USOS'!G19 -> 0 | M15: 0 | N15: 0 | R15: 5. Recursos del Departamento para PSFF | S15: 5 | T15: Recursos del Departamento para PSFF | V15: 1.1.02.06.006.06 | X15: 2.3.2.01.01.001.01.04 | Z15: P.4. Obligaciones financieras | AA15: P.4 | AB15: Obligaciones financieras
B16: =IFERROR(VLOOKUP(C16,TblFuentes[],2,FALSE),"") ->  | C16: =IF('Cuadro 35A_FUENTES_USOS'!C20=0," ",'Cuadro 35A_FUENTES_USOS'!C20) ->  | D16: =IF('Cuadro 35A_FUENTES_USOS'!E20=0," ",'Cuadro 35A_FUENTES_USOS'!E20) ->  | E16: =IFERROR(+VLOOKUP(D16,'Cuadro 2'!$C$5:$D$1238,2,FALSE)," ") ->  | G16: =+'Cuadro 35A_FUENTES_USOS'!G20 -> 0 | M16: 0 | N16: 0 | R16: 6. Recursos del Distrito para PSFF | S16: 6 | T16: Recursos del Distrito para PSFF | V16: 1.1.02.06.006.07 | X16: 2.3.2.01.01.001.01.05 | Z16: P.5. Demás acreedores externos | AA16: P.5 | AB16: Demás acreedores externos
B17: =IFERROR(VLOOKUP(C17,TblFuentes[],2,FALSE),"") ->  | C17: =IF('Cuadro 35A_FUENTES_USOS'!C21=0," ",'Cuadro 35A_FUENTES_USOS'!C21) ->  | D17: =IF('Cuadro 35A_FUENTES_USOS'!E21=0," ",'Cuadro 35A_FUENTES_USOS'!E21) ->  | E17: =IFERROR(+VLOOKUP(D17,'Cuadro 2'!$C$5:$D$1238,2,FALSE)," ") ->  | G17: =+'Cuadro 35A_FUENTES_USOS'!G21 -> 0 | M17: 0 | N17: 0 | R17: 7. Recursos del Municipio para PSFF | S17: 7 | T17: Recursos del Municipio para PSFF | V17: 1.1.02.06.007.02.05 | X17: 2.3.2.01.01.001.01.06 | Z17: P.6.1. Provisiones para contingencias | AA17: P.6.1 | AB17: Provisiones para contingencias
B18: =IFERROR(VLOOKUP(C18,TblFuentes[],2,FALSE),"") ->  | C18: =IF('Cuadro 35A_FUENTES_USOS'!C22=0," ",'Cuadro 35A_FUENTES_USOS'!C22) ->  | D18: =IF('Cuadro 35A_FUENTES_USOS'!E22=0," ",'Cuadro 35A_FUENTES_USOS'!E22) ->  | E18: =IFERROR(+VLOOKUP(D18,'Cuadro 2'!$C$5:$D$1238,2,FALSE)," ") ->  | G18: =+'Cuadro 35A_FUENTES_USOS'!G22 -> 0 | M18: 0 | N18: 0 | R18: 8. Recursos de la Nación para PSFF | S18: 8 | T18: Recursos de la Nación para PSFF | V18: 1.1.02.06.007.02.06 | X18: 2.3.2.01.01.001.01.08 | Z18: P.6.2. Otros | AA18: P.6.2 | AB18: Otros
B19: =IFERROR(VLOOKUP(C19,TblFuentes[],2,FALSE),"") ->  | C19: =IF('Cuadro 35A_FUENTES_USOS'!C23=0," ",'Cuadro 35A_FUENTES_USOS'!C23) ->  | D19: =IF('Cuadro 35A_FUENTES_USOS'!E23=0," ",'Cuadro 35A_FUENTES_USOS'!E23) ->  | E19: =IFERROR(+VLOOKUP(D19,'Cuadro 2'!$C$5:$D$1238,2,FALSE)," ") ->  | G19: =+'Cuadro 35A_FUENTES_USOS'!G23 -> 0 | M19: 0 | N19: 0 | V19: 1.1.02.06.007.02.07 | X19: 2.3.2.01.01.001.01.09
B20: =IFERROR(VLOOKUP(C20,TblFuentes[],2,FALSE),"") ->  | C20: =IF('Cuadro 35A_FUENTES_USOS'!C24=0," ",'Cuadro 35A_FUENTES_USOS'!C24) ->  | D20: =IF('Cuadro 35A_FUENTES_USOS'!E24=0," ",'Cuadro 35A_FUENTES_USOS'!E24) ->  | E20: =IFERROR(+VLOOKUP(D20,'Cuadro 2'!$C$5:$D$1238,2,FALSE)," ") ->  | G20: =+'Cuadro 35A_FUENTES_USOS'!G24 -> 0 | M20: 0 | N20: 0 | V20: 1.1.02.06.007.02.08 | X20: 2.3.2.01.01.001.02.01
B21: =IFERROR(VLOOKUP(C21,TblFuentes[],2,FALSE),"") ->  | C21: =IF('Cuadro 35A_FUENTES_USOS'!C25=0," ",'Cuadro 35A_FUENTES_USOS'!C25) ->  | D21: =IF('Cuadro 35A_FUENTES_USOS'!E25=0," ",'Cuadro 35A_FUENTES_USOS'!E25) ->  | E21: =IFERROR(+VLOOKUP(D21,'Cuadro 2'!$C$5:$D$1238,2,FALSE)," ") ->  | G21: =+'Cuadro 35A_FUENTES_USOS'!G25 -> 0 | M21: 0 | N21: 0 | V21: 1.1.02.06.008.01.01 | X21: 2.3.2.01.01.001.02.02
B22: =IFERROR(VLOOKUP(C22,TblFuentes[],2,FALSE),"") ->  | C22: =IF('Cuadro 35A_FUENTES_USOS'!C26=0," ",'Cuadro 35A_FUENTES_USOS'!C26) ->  | D22: =IF('Cuadro 35A_FUENTES_USOS'!E26=0," ",'Cuadro 35A_FUENTES_USOS'!E26) ->  | E22: =IFERROR(+VLOOKUP(D22,'Cuadro 2'!$C$5:$D$1238,2,FALSE)," ") ->  | G22: =+'Cuadro 35A_FUENTES_USOS'!G26 -> 0 | M22: 0 | N22: 0 | V22: 1.1.02.06.008.01.02 | X22: 2.3.2.01.01.001.02.03
B23: =IFERROR(VLOOKUP(C23,TblFuentes[],2,FALSE),"") ->  | C23: =IF('Cuadro 35A_FUENTES_USOS'!C27=0," ",'Cuadro 35A_FUENTES_USOS'!C27) ->  | D23: =IF('Cuadro 35A_FUENTES_USOS'!E27=0," ",'Cuadro 35A_FUENTES_USOS'!E27) ->  | E23: =IFERROR(+VLOOKUP(D23,'Cuadro 2'!$C$5:$D$1238,2,FALSE)," ") ->  | G23: =+'Cuadro 35A_FUENTES_USOS'!G27 -> 0 | M23: 0 | N23: 0 | V23: 1.1.02.06.008.01.03 | X23: 2.3.2.01.01.001.02.04
B24: =IFERROR(VLOOKUP(C24,TblFuentes[],2,FALSE),"") ->  | C24: =IF('Cuadro 35A_FUENTES_USOS'!C28=0," ",'Cuadro 35A_FUENTES_USOS'!C28) ->  | D24: =IF('Cuadro 35A_FUENTES_USOS'!E28=0," ",'Cuadro 35A_FUENTES_USOS'!E28) ->  | E24: =IFERROR(+VLOOKUP(D24,'Cuadro 2'!$C$5:$D$1238,2,FALSE)," ") ->  | G24: =+'Cuadro 35A_FUENTES_USOS'!G28 -> 0 | M24: 0 | N24: 0 | V24: 1.1.02.06.008.03.02 | X24: 2.3.2.01.01.001.02.05
B25: =IFERROR(VLOOKUP(C25,TblFuentes[],2,FALSE),"") ->  | C25: =IF('Cuadro 35A_FUENTES_USOS'!C29=0," ",'Cuadro 35A_FUENTES_USOS'!C29) ->  | D25: =IF('Cuadro 35A_FUENTES_USOS'!E29=0," ",'Cuadro 35A_FUENTES_USOS'!E29) ->  | E25: =IFERROR(+VLOOKUP(D25,'Cuadro 2'!$C$5:$D$1238,2,FALSE)," ") ->  | G25: =+'Cuadro 35A_FUENTES_USOS'!G29 -> 0 | M25: 0 | N25: 0 | V25: 1.1.02.06.008.05.02 | X25: 2.3.2.01.01.001.02.06
B26: =IFERROR(VLOOKUP(C26,TblFuentes[],2,FALSE),"") ->  | C26: =IF('Cuadro 35A_FUENTES_USOS'!C30=0," ",'Cuadro 35A_FUENTES_USOS'!C30) ->  | D26: =IF('Cuadro 35A_FUENTES_USOS'!E30=0," ",'Cuadro 35A_FUENTES_USOS'!E30) ->  | E26: =IFERROR(+VLOOKUP(D26,'Cuadro 2'!$C$5:$D$1238,2,FALSE)," ") ->  | G26: =+'Cuadro 35A_FUENTES_USOS'!G30 -> 0 | M26: 0 | N26: 0 | V26: 1.1.02.06.009.01.01 | X26: 2.3.2.01.01.001.02.07
B27: =IFERROR(VLOOKUP(C27,TblFuentes[],2,FALSE),"") ->  | C27: =IF('Cuadro 35A_FUENTES_USOS'!C31=0," ",'Cuadro 35A_FUENTES_USOS'!C31) ->  | D27: =IF('Cuadro 35A_FUENTES_USOS'!E31=0," ",'Cuadro 35A_FUENTES_USOS'!E31) ->  | E27: =IFERROR(+VLOOKUP(D27,'Cuadro 2'!$C$5:$D$1238,2,FALSE)," ") ->  | G27: =+'Cuadro 35A_FUENTES_USOS'!G31 -> 0 | M27: 0 | N27: 0 | V27: 1.1.02.06.009.01.04 | X27: 2.3.2.01.01.001.02.08
B28: =IFERROR(VLOOKUP(C28,TblFuentes[],2,FALSE),"") ->  | C28: =IF('Cuadro 35A_FUENTES_USOS'!C32=0," ",'Cuadro 35A_FUENTES_USOS'!C32) ->  | D28: =IF('Cuadro 35A_FUENTES_USOS'!E32=0," ",'Cuadro 35A_FUENTES_USOS'!E32) ->  | E28: =IFERROR(+VLOOKUP(D28,'Cuadro 2'!$C$5:$D$1238,2,FALSE)," ") ->  | G28: =+'Cuadro 35A_FUENTES_USOS'!G32 -> 0 | M28: 0 | N28: 0 | V28: 1.1.02.06.010.01.01 | X28: 2.3.2.01.01.001.02.11
V29: 1.1.02.06.010.01.02 | X29: 2.3.2.01.01.001.02.12
B30: PROGRAMA DE SANEAMIENTO FISCAL Y FINANCIERO A PRECIOS CORRIENTES | H30: INFORME DE MONITOREO | O30: INFORME DE SEGUIMIENTO | V30: 1.1.02.06.010.01.03 | X30: 2.3.2.01.01.001.02.13
B31: COD_GASTO | C31: GASTOS / COSTOS | D31: COD_GASTO | E31: OBJETO DE GASTO | F31: VALOR TOTAL PROGRAMADO DE PASIVOS A LA FECHA DE INICIO DEL PSFF | G31: VALOR TOTAL PROGRAMADO DE PASIVOS DE LA VIGENCIA | H31: PAGO ACUMULADO DE PASIVOS DEL INICIO DEL PSFF AL CIERRE DEL AÑO ANTERIOR | I31: =I8 -> Trimestre 1 | J31: =J8 -> Trimestre 2 | K31: =K8 -> Trimestre 3 | L31: =L8 -> Trimestre 4 | M31: PAGOS ACUMULADOS AL TRIMESTRE QUE INFORMA | N31: PAGOS ACUMULADOS DEL INICIO DEL PSFF AL TRIMESTRE INFORMADO | O31: PAGO ACUMULADO DEL INICIO DEL PSFF AL TRIMESTRE INFORMADO (SDS) | P31: COMENTARIOS | V31: 1.1.02.06.011 | X31: 2.3.2.01.01.001.02.14
B32: =IFERROR(VLOOKUP(C32,tblGastosCostos[],2,FALSE),"") -> P.1 | C32: =IF('Cuadro 35A_FUENTES_USOS'!C74=0," ",'Cuadro 35A_FUENTES_USOS'!C74) -> P.1. Acreencias Laborales + Servicios Personales Indirectos | D32: =IF('Cuadro 35A_FUENTES_USOS'!E74=0," ",'Cuadro 35A_FUENTES_USOS'!E74) -> 2.1.7.05.01 | E32: =IFERROR(+VLOOKUP(D32,'Cuadro 2'!$C$5:$D$1238,2,FALSE)," ") -> Programas de saneamiento fiscal y financiero Empresas Sociales del Estado (ESE) | G32: =+'Cuadro 35A_FUENTES_USOS'!G74 -> 1077280029 | M32: =+H32+I32+J32+K32+L32 -> 0 | N32: =+SUM(H32:L32) -> 0 | V32: 1.2.08.01.001.01 | X32: 2.3.2.01.01.001.03.01
B33: =IFERROR(VLOOKUP(C33,tblGastosCostos[],2,FALSE),"") -> P.2 | C33: =IF('Cuadro 35A_FUENTES_USOS'!C75=0," ",'Cuadro 35A_FUENTES_USOS'!C75) -> P.2. Entidades Públicas y de Seguridad Social | D33: =IF('Cuadro 35A_FUENTES_USOS'!E75=0," ",'Cuadro 35A_FUENTES_USOS'!E75) -> 2.1.7.05.01 | E33: =IFERROR(+VLOOKUP(D33,'Cuadro 2'!$C$5:$D$1238,2,FALSE)," ") -> Programas de saneamiento fiscal y financiero Empresas Sociales del Estado (ESE) | G33: =+'Cuadro 35A_FUENTES_USOS'!G75 -> 0 | M33: 0 | N33: 0 | V33: 1.2.08.01.001.02 | X33: 2.3.2.01.01.001.03.02
B34: =IFERROR(VLOOKUP(C34,tblGastosCostos[],2,FALSE),"") -> P.6.1 | C34: =IF('Cuadro 35A_FUENTES_USOS'!C76=0," ",'Cuadro 35A_FUENTES_USOS'!C76) -> P.6.1. Provisiones para contingencias | D34: =IF('Cuadro 35A_FUENTES_USOS'!E76=0," ",'Cuadro 35A_FUENTES_USOS'!E76) -> 2.1.7.05.01 | E34: =IFERROR(+VLOOKUP(D34,'Cuadro 2'!$C$5:$D$1238,2,FALSE)," ") -> Programas de saneamiento fiscal y financiero Empresas Sociales del Estado (ESE) | G34: =+'Cuadro 35A_FUENTES_USOS'!G76 -> 473285556 | M34: 0 | N34: 0 | V34: 1.2.08.01.002.01 | X34: 2.3.2.01.01.001.03.03
B35: =IFERROR(VLOOKUP(C35,tblGastosCostos[],2,FALSE),"") ->  | C35: =IF('Cuadro 35A_FUENTES_USOS'!C77=0," ",'Cuadro 35A_FUENTES_USOS'!C77) ->  | D35: =IF('Cuadro 35A_FUENTES_USOS'!E77=0," ",'Cuadro 35A_FUENTES_USOS'!E77) ->  | E35: =IFERROR(+VLOOKUP(D35,'Cuadro 2'!$C$5:$D$1238,2,FALSE)," ") ->  | G35: =+'Cuadro 35A_FUENTES_USOS'!G77 -> 0 | M35: 0 | N35: 0 | V35: 1.2.08.01.002.02 | X35: 2.3.2.01.01.001.03.04
B36: =IFERROR(VLOOKUP(C36,tblGastosCostos[],2,FALSE),"") ->  | C36: =IF('Cuadro 35A_FUENTES_USOS'!C78=0," ",'Cuadro 35A_FUENTES_USOS'!C78) ->  | D36: =IF('Cuadro 35A_FUENTES_USOS'!E78=0," ",'Cuadro 35A_FUENTES_USOS'!E78) ->  | E36: =IFERROR(+VLOOKUP(D36,'Cuadro 2'!$C$5:$D$1238,2,FALSE)," ") ->  | G36: =+'Cuadro 35A_FUENTES_USOS'!G78 -> 0 | M36: 0 | N36: 0 | V36: 1.2.08.01.003.01 | X36: 2.3.2.01.01.001.03.05
B37: =IFERROR(VLOOKUP(C37,tblGastosCostos[],2,FALSE),"") ->  | C37: =IF('Cuadro 35A_FUENTES_USOS'!C79=0," ",'Cuadro 35A_FUENTES_USOS'!C79) ->  | D37: =IF('Cuadro 35A_FUENTES_USOS'!E79=0," ",'Cuadro 35A_FUENTES_USOS'!E79) ->  | E37: =IFERROR(+VLOOKUP(D37,'Cuadro 2'!$C$5:$D$1238,2,FALSE)," ") ->  | G37: =+'Cuadro 35A_FUENTES_USOS'!G79 -> 0 | M37: 0 | N37: 0 | V37: 1.2.08.01.003.02 | X37: 2.3.2.01.01.001.03.06
B38: =IFERROR(VLOOKUP(C38,tblGastosCostos[],2,FALSE),"") ->  | C38: =IF('Cuadro 35A_FUENTES_USOS'!C80=0," ",'Cuadro 35A_FUENTES_USOS'!C80) ->  | D38: =IF('Cuadro 35A_FUENTES_USOS'!E80=0," ",'Cuadro 35A_FUENTES_USOS'!E80) ->  | E38: =IFERROR(+VLOOKUP(D38,'Cuadro 2'!$C$5:$D$1238,2,FALSE)," ") ->  | G38: =+'Cuadro 35A_FUENTES_USOS'!G80 -> 0 | M38: 0 | N38: 0 | V38: 1.2.08.02 | X38: 2.3.2.01.01.001.03.07
B39: =IFERROR(VLOOKUP(C39,tblGastosCostos[],2,FALSE),"") ->  | C39: =IF('Cuadro 35A_FUENTES_USOS'!C81=0," ",'Cuadro 35A_FUENTES_USOS'!C81) ->  | D39: =IF('Cuadro 35A_FUENTES_USOS'!E81=0," ",'Cuadro 35A_FUENTES_USOS'!E81) ->  | E39: =IFERROR(+VLOOKUP(D39,'Cuadro 2'!$C$5:$D$1238,2,FALSE)," ") ->  | G39: =+'Cuadro 35A_FUENTES_USOS'!G81 -> 0 | M39: 0 | N39: 0 | V39: 1.2.08.03.001 | X39: 2.3.2.01.01.001.03.08
B40: =IFERROR(VLOOKUP(C40,tblGastosCostos[],2,FALSE),"") ->  | C40: =IF('Cuadro 35A_FUENTES_USOS'!C82=0," ",'Cuadro 35A_FUENTES_USOS'!C82) ->  | D40: =IF('Cuadro 35A_FUENTES_USOS'!E82=0," ",'Cuadro 35A_FUENTES_USOS'!E82) ->  | E40: =IFERROR(+VLOOKUP(D40,'Cuadro 2'!$C$5:$D$1238,2,FALSE)," ") ->  | G40: =+'Cuadro 35A_FUENTES_USOS'!G82 -> 0 | M40: 0 | N40: 0 | V40: 1.2.08.03.002 | X40: 2.3.2.01.01.001.03.09
B41: =IFERROR(VLOOKUP(C41,tblGastosCostos[],2,FALSE),"") ->  | C41: =IF('Cuadro 35A_FUENTES_USOS'!C83=0," ",'Cuadro 35A_FUENTES_USOS'!C83) ->  | D41: =IF('Cuadro 35A_FUENTES_USOS'!E83=0," ",'Cuadro 35A_FUENTES_USOS'!E83) ->  | E41: =IFERROR(+VLOOKUP(D41,'Cuadro 2'!$C$5:$D$1238,2,FALSE)," ") ->  | G41: =+'Cuadro 35A_FUENTES_USOS'!G83 -> 0 | M41: 0 | N41: 0 | V41: 1.2.08.06.002 | X41: 2.3.2.01.01.001.03.10
B42: =IFERROR(VLOOKUP(C42,tblGastosCostos[],2,FALSE),"") ->  | C42: =IF('Cuadro 35A_FUENTES_USOS'!C84=0," ",'Cuadro 35A_FUENTES_USOS'!C84) ->  | D42: =IF('Cuadro 35A_FUENTES_USOS'!E84=0," ",'Cuadro 35A_FUENTES_USOS'!E84) ->  | E42: =IFERROR(+VLOOKUP(D42,'Cuadro 2'!$C$5:$D$1238,2,FALSE)," ") ->  | G42: =+'Cuadro 35A_FUENTES_USOS'!G84 -> 0 | M42: 0 | N42: 0 | V42: 1.2.08.06.003 | X42: 2.3.2.01.01.001.03.11
B43: =IFERROR(VLOOKUP(C43,tblGastosCostos[],2,FALSE),"") ->  | C43: =IF('Cuadro 35A_FUENTES_USOS'!C85=0," ",'Cuadro 35A_FUENTES_USOS'!C85) ->  | D43: =IF('Cuadro 35A_FUENTES_USOS'!E85=0," ",'Cuadro 35A_FUENTES_USOS'!E85) ->  | E43: =IFERROR(+VLOOKUP(D43,'Cuadro 2'!$C$5:$D$1238,2,FALSE)," ") ->  | G43: =+'Cuadro 35A_FUENTES_USOS'!G85 -> 0 | M43: 0 | N43: 0 | V43: 1.1.02.06.008.01.01 | X43: 2.3.2.01.01.001.03.12
B44: =IFERROR(VLOOKUP(C44,tblGastosCostos[],2,FALSE),"") ->  | C44: =IF('Cuadro 35A_FUENTES_USOS'!C86=0," ",'Cuadro 35A_FUENTES_USOS'!C86) ->  | D44: =IF('Cuadro 35A_FUENTES_USOS'!E86=0," ",'Cuadro 35A_FUENTES_USOS'!E86) ->  | E44: =IFERROR(+VLOOKUP(D44,'Cuadro 2'!$C$5:$D$1238,2,FALSE)," ") ->  | G44: =+'Cuadro 35A_FUENTES_USOS'!G86 -> 0 | M44: 0 | N44: 0 | X44: 2.3.2.01.01.001.03.13
B45: =IFERROR(VLOOKUP(C45,tblGastosCostos[],2,FALSE),"") ->  | C45: =IF('Cuadro 35A_FUENTES_USOS'!C87=0," ",'Cuadro 35A_FUENTES_USOS'!C87) ->  | D45: =IF('Cuadro 35A_FUENTES_USOS'!E87=0," ",'Cuadro 35A_FUENTES_USOS'!E87) ->  | E45: =IFERROR(+VLOOKUP(D45,'Cuadro 2'!$C$5:$D$1238,2,FALSE)," ") ->  | G45: =+'Cuadro 35A_FUENTES_USOS'!G87 -> 0 | M45: 0 | N45: 0 | X45: 2.3.2.01.01.001.03.14
B46: =IFERROR(VLOOKUP(C46,tblGastosCostos[],2,FALSE),"") ->  | C46: =IF('Cuadro 35A_FUENTES_USOS'!C88=0," ",'Cuadro 35A_FUENTES_USOS'!C88) ->  | D46: =IF('Cuadro 35A_FUENTES_USOS'!E88=0," ",'Cuadro 35A_FUENTES_USOS'!E88) ->  | E46: =IFERROR(+VLOOKUP(D46,'Cuadro 2'!$C$5:$D$1238,2,FALSE)," ") ->  | G46: =+'Cuadro 35A_FUENTES_USOS'!G88 -> 0 | M46: 0 | N46: 0 | X46: 2.3.2.01.01.001.03.15
B47: =IFERROR(VLOOKUP(C47,tblGastosCostos[],2,FALSE),"") ->  | C47: =IF('Cuadro 35A_FUENTES_USOS'!C89=0," ",'Cuadro 35A_FUENTES_USOS'!C89) ->  | D47: =IF('Cuadro 35A_FUENTES_USOS'!E89=0," ",'Cuadro 35A_FUENTES_USOS'!E89) ->  | E47: =IFERROR(+VLOOKUP(D47,'Cuadro 2'!$C$5:$D$1238,2,FALSE)," ") ->  | G47: =+'Cuadro 35A_FUENTES_USOS'!G89 -> 0 | M47: 0 | N47: 0 | X47: 2.3.2.01.01.001.03.16
B48: =IFERROR(VLOOKUP(C48,tblGastosCostos[],2,FALSE),"") ->  | C48: =IF('Cuadro 35A_FUENTES_USOS'!C90=0," ",'Cuadro 35A_FUENTES_USOS'!C90) ->  | D48: =IF('Cuadro 35A_FUENTES_USOS'!E90=0," ",'Cuadro 35A_FUENTES_USOS'!E90) ->  | E48: =IFERROR(+VLOOKUP(D48,'Cuadro 2'!$C$5:$D$1238,2,FALSE)," ") ->  | G48: =+'Cuadro 35A_FUENTES_USOS'!G90 -> 0 | M48: 0 | N48: 0 | X48: 2.3.2.01.01.001.03.17
B49: =IFERROR(VLOOKUP(C49,tblGastosCostos[],2,FALSE),"") ->  | C49: =IF('Cuadro 35A_FUENTES_USOS'!C91=0," ",'Cuadro 35A_FUENTES_USOS'!C91) ->  | D49: =IF('Cuadro 35A_FUENTES_USOS'!E91=0," ",'Cuadro 35A_FUENTES_USOS'!E91) ->  | E49: =IFERROR(+VLOOKUP(D49,'Cuadro 2'!$C$5:$D$1238,2,FALSE)," ") ->  | G49: =+'Cuadro 35A_FUENTES_USOS'!G91 -> 0 | M49: 0 | N49: 0 | X49: 2.3.2.01.01.001.03.18
B50: =IFERROR(VLOOKUP(C50,tblGastosCostos[],2,FALSE),"") ->  | C50: =IF('Cuadro 35A_FUENTES_USOS'!C92=0," ",'Cuadro 35A_FUENTES_USOS'!C92) ->  | D50: =IF('Cuadro 35A_FUENTES_USOS'!E92=0," ",'Cuadro 35A_FUENTES_USOS'!E92) ->  | E50: =IFERROR(+VLOOKUP(D50,'Cuadro 2'!$C$5:$D$1238,2,FALSE)," ") ->  | G50: =+'Cuadro 35A_FUENTES_USOS'!G92 -> 0 | M50: 0 | N50: 0 | X50: 2.3.2.01.01.001.03.19
B51: =IFERROR(VLOOKUP(C51,tblGastosCostos[],2,FALSE),"") ->  | C51: =IF('Cuadro 35A_FUENTES_USOS'!C93=0," ",'Cuadro 35A_FUENTES_USOS'!C93) ->  | D51: =IF('Cuadro 35A_FUENTES_USOS'!E93=0," ",'Cuadro 35A_FUENTES_USOS'!E93) ->  | E51: =IFERROR(+VLOOKUP(D51,'Cuadro 2'!$C$5:$D$1238,2,FALSE)," ") ->  | G51: =+'Cuadro 35A_FUENTES_USOS'!G93 -> 0 | M51: 0 | N51: 0 | X51: 2.3.2.01.01.001.04
X52: 2.3.2.01.01.003.01.01
B53: RESUMEN FUENTES DE FINANCIACIÓN PSFF | H53: INFORME DE MONITOREO | O53: INFORME DE SEGUIMIENTO | X53: 2.3.2.01.01.003.01.03
B54: COD_FUENTE | C54: FUENTE DE FINANCIACIÓN | F54: FUENTES PROGRAMADAS A LA FECHA DE INICIO PSFF | G54: FUENTES PROGRAMADAS DE LA VIGENCIA | H54: RECAUDO ACUMULADO AL CIERRE DEL AÑO ANTERIOR | I54: =I8 -> Trimestre 1 | J54: =J8 -> Trimestre 2 | K54: =K8 -> Trimestre 3 | L54: =L8 -> Trimestre 4 | M54: RECAUDO ACUMULADO AL TRIMESTRE QUE INFORMA | N54: RECAUDO ACUMULADO DEL INICIO DEL PSFF AL TRIMESTRE INFORMADO | O54: RECAUDO ACUMULADO DEL INICIO DEL PSFF AL TRIMESTRE INFORMADO (SDS) | P54: COMENTARIOS | X54: 2.3.2.01.01.003.01.04
B55: 1 | C55: Recursos de la ESE | F55: =SUMIF($B$9:$B$29,$B55,F$9:F$29) -> 0 | G55: 200565585 | H55: 0 | I55: 0 | J55: 0 | K55: 0 | L55: 0 | M55: =+I55+J55+K55+L55 -> 0 | N55: =+H55+M55 -> 0 | O55: =SUMIF($B$9:$B$29,$B55,G$9:G$29) -> 200565585 | X55: 2.3.2.01.01.003.01.05
B56: 2 | C56: Saldos Cuentas Maestras (Art. 2 Ley 1 | F56: 0 | G56: 0 | H56: 0 | I56: 0 | J56: 0 | K56: 0 | L56: 0 | M56: 0 | N56: 0 | O56: 0 | X56: 2.3.2.01.01.003.01.06
B57: 3 | C57: Excedentes rentas cedidas 2012 y 2013 | F57: 0 | G57: 0 | H57: 0 | I57: 0 | J57: 0 | K57: 0 | L57: 0 | M57: 0 | N57: 0 | O57: 0 | X57: 2.3.2.01.01.003.02.01
B58: 4 | C58: Recursos FONSAET (Art. 7 Ley 1608/13) | F58: 0 | G58: 0 | H58: 0 | I58: 0 | J58: 0 | K58: 0 | L58: 0 | M58: 0 | N58: 0 | O58: 0 | X58: 2.3.2.01.01.003.02.02
B59: 5 | C59: Recursos del Departamento para PSFF | F59: 0 | G59: 1000000000 | H59: 0 | I59: 0 | J59: 0 | K59: 0 | L59: 0 | M59: 0 | N59: 0 | O59: 1000000000 | X59: 2.3.2.01.01.003.02.03
B60: 6 | C60: Recursos del Distrito para PSFF | F60: 0 | G60: 0 | H60: 0 | I60: 0 | J60: 0 | K60: 0 | L60: 0 | M60: 0 | N60: 0 | O60: 0 | X60: 2.3.2.01.01.003.02.05
B61: 7 | C61: Recursos del Municipio para PSFF | F61: 0 | G61: 350000000 | H61: 0 | I61: 0 | J61: 0 | K61: 0 | L61: 0 | M61: 0 | N61: 0 | O61: 350000000 | X61: 2.3.2.01.01.003.02.07
B62: 8 | C62: Recursos de la Nación para PSFF | F62: 0 | G62: 0 | H62: 0 | I62: 0 | J62: 0 | K62: 0 | L62: 0 | M62: 0 | N62: 0 | O62: 0 | X62: 2.3.2.01.01.003.02.08
B63: L | C63: TOTAL DE FUENTES | F63: =SUM(F55:F62) -> 0 | G63: 1550565585 | H63: 0 | I63: 0 | J63: 0 | K63: 0 | L63: 0 | M63: 0 | N63: 0 | O63: 0 | X63: 2.3.2.01.01.003.03.01
X64: 2.3.2.01.01.003.03.02
B66: RESUMEN COSTO DE MEDIDAS Y PAGO DE PASIVOS PSFF | H66: INFORME DE MONITOREO | O66: INFORME DE SEGUIMIENTO
B67: COD_GASTO | C67: GASTOS / COSTOS | F67: VALOR TOTAL PROGRAMADO DE PASIVOS A LA FECHA DE INICIO DEL PSFF | G67: PAGOS PASIVOS PROGRAMADAS DE LA VIGENCIA | H67: PAGO ACUMULADO DE PASIVOS DEL INICIO DEL PSFF AL CIERRE DEL AÑO ANTERIOR | I67: =I54 -> Trimestre 1 | J67: =J54 -> Trimestre 2 | K67: =K54 -> Trimestre 3 | L67: =L54 -> Trimestre 4 | M67: PAGOS ACUMULADOS AL TRIMESTRE QUE INFORMA | N67: PAGOS ACUMULADOS DEL INICIO DEL PSFF AL TRIMESTRE INFORMADO | O67: Pa ACUMULADO DEL INICIO DEL PSFF AL TRIMESTRE INFORMADO (SDS) | P67: COMENTARIOS | X67: 2.3.2.01.01.003.04.01
B68: M | C68: COSTO MEDIDAS PSFF | F68: =SUMIF($B$32:$B$51,$B68,F$32:F$51) -> 0 | G68: 0 | H68: 0 | I68: 0 | J68: 0 | K68: 0 | L68: 0 | M68: =+I68+J68+K68+L68 -> 0 | N68: =+H68+M68 -> 0 | O68: =SUMIF($B$32:$B$51,$B68,G$32:G$51) -> 0 | X68: 2.3.2.01.01.003.04.02
B69: P | C69: PAGO DE PASIVOS PSFF | F69: =SUM(F70:F75) -> 0 | G69: 1550565585 | H69: 0 | I69: 0 | J69: 0 | K69: 0 | L69: 0 | M69: 0 | N69: 0 | O69: 0 | X69: 2.3.2.01.01.003.04.03
B70: P.1 | C70: Acreencias Laborales + Servicios Personales Indirectos | F70: =SUMIF($B$32:$B$51,$B70,F$32:F$51) -> 0 | G70: 1077280029 | H70: 0 | I70: =VLOOKUP(B70,'Cuadro 4'!$B$5019:$J$5025,6,FALSE) -> 0 | J70: =VLOOKUP(B70,'Cuadro 4'!$B$5019:$J$5025,7,FALSE) -> 0 | K70: =VLOOKUP(B70,'Cuadro 4'!$B$5019:$J$5025,8,FALSE) -> 0 | L70: =VLOOKUP(B70,'Cuadro 4'!$B$5019:$J$5025,9,FALSE) -> 0 | M70: 0 | N70: 0 | O70: 1077280029 | X70: 2.3.2.01.01.003.04.04
B71: P.2 | C71: Entidades Públicas y de Seguridad Social | F71: 0 | G71: 0 | H71: 0 | I71: =VLOOKUP(B71,'Cuadro 4'!$B$5019:$J$5025,6,FALSE) -> 0 | J71: =VLOOKUP(B71,'Cuadro 4'!$B$5019:$J$5025,7,FALSE) -> 0 | K71: =VLOOKUP(B71,'Cuadro 4'!$B$5019:$J$5025,8,FALSE) -> 0 | L71: =VLOOKUP(B71,'Cuadro 4'!$B$5019:$J$5025,9,FALSE) -> 0 | M71: 0 | N71: 0 | O71: 0 | X71: 2.3.2.01.01.003.04.05
B72: P.3 | C72: Proveedores bienes y servicios (No incluye Servicios Personales Indirectos) | F72: 0 | G72: 0 | H72: 0 | I72: =VLOOKUP(B72,'Cuadro 4'!$B$5019:$J$5025,6,FALSE) -> 0 | J72: =VLOOKUP(B72,'Cuadro 4'!$B$5019:$J$5025,7,FALSE) -> 0 | K72: =VLOOKUP(B72,'Cuadro 4'!$B$5019:$J$5025,8,FALSE) -> 0 | L72: =VLOOKUP(B72,'Cuadro 4'!$B$5019:$J$5025,9,FALSE) -> 0 | M72: 0 | N72: 0 | O72: 0 | X72: 2.3.2.01.01.003.04.06
B73: P.4 | C73: Obligaciones financieras | F73: 0 | G73: 0 | H73: 0 | I73: =VLOOKUP(B73,'Cuadro 4'!$B$5019:$J$5025,6,FALSE) -> 0 | J73: =VLOOKUP(B73,'Cuadro 4'!$B$5019:$J$5025,7,FALSE) -> 0 | K73: =VLOOKUP(B73,'Cuadro 4'!$B$5019:$J$5025,8,FALSE) -> 0 | L73: =VLOOKUP(B73,'Cuadro 4'!$B$5019:$J$5025,9,FALSE) -> 0 | M73: 0 | N73: 0 | O73: 0 | X73: 2.3.2.01.01.003.05.01
B74: P.5 | C74: Demás acreedores externos | F74: 0 | G74: 0 | H74: 0 | I74: =VLOOKUP(B74,'Cuadro 4'!$B$5019:$J$5025,6,FALSE) -> 0 | J74: =VLOOKUP(B74,'Cuadro 4'!$B$5019:$J$5025,7,FALSE) -> 0 | K74: =VLOOKUP(B74,'Cuadro 4'!$B$5019:$J$5025,8,FALSE) -> 0 | L74: =VLOOKUP(B74,'Cuadro 4'!$B$5019:$J$5025,9,FALSE) -> 0 | M74: 0 | N74: 0 | O74: 0 | X74: 2.3.2.01.01.003.05.02
B75: P.6 | C75: Otros pasivos | F75: =F76+F77 -> 0 | G75: =SUM(G76:G77) -> 473285556 | H75: =H76+H77 -> 0 | I75: =I76+I77 -> 0 | J75: =J76+J77 -> 0 | K75: =K76+K77 -> 0 | L75: =L76+L77 -> 0 | M75: 0 | N75: 0 | O75: 0 | X75: 2.3.2.01.01.003.05.03
B76: P.6.1 | C76: Provisiones para contingencias | F76: =SUMIF($B$32:$B$51,$B76,F$32:F$51) -> 0 | G76: 473285556 | H76: 0 | I76: =VLOOKUP(B76,'Cuadro 4'!$B$5019:$J$5025,6,FALSE) -> 0 | J76: =VLOOKUP(B76,'Cuadro 4'!$B$5019:$J$5025,7,FALSE) -> 0 | K76: =VLOOKUP(B76,'Cuadro 4'!$B$5019:$J$5025,8,FALSE) -> 0 | L76: =VLOOKUP(B76,'Cuadro 4'!$B$5019:$J$5025,9,FALSE) -> 0 | M76: 0 | N76: 0 | O76: 473285556 | X76: 2.3.2.01.01.003.05.04
B77: P.6.2 | C77: Otros | F77: 0 | G77: 0 | H77: 0 | I77: =VLOOKUP(B77,'Cuadro 4'!$B$5019:$J$5025,6,FALSE) -> 0 | J77: =VLOOKUP(B77,'Cuadro 4'!$B$5019:$J$5025,7,FALSE) -> 0 | K77: =VLOOKUP(B77,'Cuadro 4'!$B$5019:$J$5025,8,FALSE) -> 0 | L77: =VLOOKUP(B77,'Cuadro 4'!$B$5019:$J$5025,9,FALSE) -> 0 | M77: 0 | N77: 0 | O77: 0 | X77: 2.3.2.01.01.003.05.05
B78: Z | C78: TOTAL COSTO, MEDIDAS Y PAGO DE PASIVOS PSFF | F78: =+F68+F69 -> 0 | G78: 1550565585 | H78: 0 | I78: 0 | J78: 0 | K78: 0 | L78: 0 | M78: 0 | N78: 0 | O78: 0 | X78: 2.3.2.01.01.003.05.06
X79: 2.3.2.01.01.003.05.07
X80: 2.3.2.01.01.003.06.01
X81: 2.3.2.01.01.003.06.02
X82: 2.3.2.01.01.003.06.03
X83: 2.3.2.01.01.003.06.04
X84: 2.3.2.01.01.003.07.01
X85: 2.3.2.01.01.003.07.02
X86: 2.3.2.01.01.003.07.07.01
X87: 2.3.2.01.01.003.07.07.02
X88: 2.3.2.01.01.003.07.07.03
X89: 2.3.2.01.01.003.07.07.04
X90: 2.3.2.01.01.004.01.01.01
X91: 2.3.2.01.01.004.01.01.02
X92: 2.3.2.01.01.004.01.01.03
X93: 2.3.2.01.01.004.01.01.04
X94: 2.3.2.01.01.004.01.01.05
X95: 2.3.2.01.01.004.01.01.06
X96: 2.3.2.01.01.004.01.02
X97: 2.3.2.01.01.004.01.03
X98: 2.3.2.01.01.004.01.04
X99: 2.3.2.01.01.005.01.01.05
X100: 2.3.2.01.01.005.02.01
X101: 2.3.2.01.01.005.02.03.01.01
X102: 2.3.2.01.01.005.02.03.01.02
X103: 2.3.2.01.01.005.02.03.02
X104: 2.3.2.01.01.005.02.04
X105: 2.3.2.01.01.005.02.05
X106: 2.3.2.01.03.001
X107: 2.3.2.01.03.002
X108: 2.3.7.05.01

Sheet Cuadro 2B
B5: CUADRO 2B - AUXILIAR INGRESOS POR VENTA DE SERVICIOS DE SALUD Y CARTERA
B8: OPERACIÓN CORRIENTE DE LA ESE | F8: INFORME DE MONITOREO | T8: INFORME DE SEGUIMIENTO
B9: VALORES A PESOS CORRIENTES | F9: Presupuesto Vigencia PSFF | H9: Trimestre 1 | J9: Trimestre 2 | L9: Trimestre 3 | N9: Trimestre 4 | P9: ACUMULADO AL TRIMESTRE REPORTADO | R9: PORCENTAJE DE CUMPLIMIENTO (%) | T9: EJECUCIÓN P/TAL (SIHO)
B10: COD | C10: INGRESOS | D10: Tipo | E10: Padre | F10: VIGENCIA | G10: CARTERA | H10: VIGENCIA | I10: CARTERA | J10: VIGENCIA | K10: CARTERA | L10: VIGENCIA | M10: CARTERA | N10: VIGENCIA | O10: CARTERA | P10: VIGENCIA | Q10: CARTERA | R10: VIGENCIA | S10: CARTERA | T10: VIGENCIA | U10: CARTERA
B11: 1.1.02.05.001.09 | C11: Servicios para la comunidad, sociales y personales | D11: =IFERROR(IF(FIND(B11,B12)>0,"A","C"),"C") -> A | E11: 1.1.02.05.001 | F11: =SUMIF($E12:$E$36,$B11,F12:F$36) -> 4087288828 | G11: =SUMIF($E12:$E$36,$B11,G12:G$36) -> 125337400 | H11: =SUMIF($E12:$E$36,$B11,H12:H$36) -> 0 | I11: =SUMIF($E12:$E$36,$B11,I12:I$36) -> 0 | J11: =SUMIF($E12:$E$36,$B11,J12:J$36) -> 0 | K11: =SUMIF($E12:$E$36,$B11,K12:K$36) -> 0 | L11: =SUMIF($E12:$E$36,$B11,L12:L$36) -> 0 | M11: =SUMIF($E12:$E$36,$B11,M12:M$36) -> 0 | N11: =SUMIF($E12:$E$36,$B11,N12:N$36) -> 0 | O11: =SUMIF($E12:$E$36,$B11,O12:O$36) -> 0 | P11: =H11+J11+L11+N11 -> 0 | Q11: =I11+K11+M11+O11 -> 0 | R11: =IFERROR(P11/F11,0) -> 0 | S11: =IFERROR(+Q11/G11,0) -> 0 | T11: =SUMIF($E12:$E$36,$B11,T12:T$36) -> 0 | U11: =SUMIF($E12:$E$36,$B11,U12:U$36) -> 0
B12: 1.1.02.05.001.09.02 | C12: Servicios de Salud | D12: A | E12: 1.1.02.05.001.09 | F12: =SUMIF($E13:$E$36,$B12,F13:F$36) -> 4087288828 | G12: =SUMIF($E13:$E$36,$B12,G13:G$36) -> 125337400 | H12: =SUMIF($E13:$E$36,$B12,H13:H$36) -> 0 | I12: =SUMIF($E13:$E$36,$B12,I13:I$36) -> 0 | J12: =SUMIF($E13:$E$36,$B12,J13:J$36) -> 0 | K12: =SUMIF($E13:$E$36,$B12,K13:K$36) -> 0 | L12: =SUMIF($E13:$E$36,$B12,L13:L$36) -> 0 | M12: =SUMIF($E13:$E$36,$B12,M13:M$36) -> 0 | N12: =SUMIF($E13:$E$36,$B12,N13:N$36) -> 0 | O12: =SUMIF($E13:$E$36,$B12,O13:O$36) -> 0 | P12: 0 | Q12: 0 | R12: 0 | S12: 0 | T12: =SUMIF($E13:$E$36,$B12,T13:T$36) -> 0 | U12: =SUMIF($E13:$E$36,$B12,U13:U$36) -> 0
B13: 1.1.02.05.001.09.02.01 | C13: Régimen Subsidiado | D13: A | E13: 1.1.02.05.001.09.02 | F13: =SUMIF($E14:$E$36,$B13,F14:F$36) -> 2556961104 | G13: =SUMIF($E14:$E$36,$B13,G14:G$36) -> 100673432 | H13: =SUMIF($E14:$E$36,$B13,H14:H$36) -> 0 | I13: =SUMIF($E14:$E$36,$B13,I14:I$36) -> 0 | J13: =SUMIF($E14:$E$36,$B13,J14:J$36) -> 0 | K13: =SUMIF($E14:$E$36,$B13,K14:K$36) -> 0 | L13: =SUMIF($E14:$E$36,$B13,L14:L$36) -> 0 | M13: =SUMIF($E14:$E$36,$B13,M14:M$36) -> 0 | N13: =SUMIF($E14:$E$36,$B13,N14:N$36) -> 0 | O13: =SUMIF($E14:$E$36,$B13,O14:O$36) -> 0 | P13: 0 | Q13: 0 | R13: 0 | S13: 0 | T13: =SUMIF($E14:$E$36,$B13,T14:T$36) -> 0 | U13: =SUMIF($E14:$E$36,$B13,U14:U$36) -> 0
B14: 1.1.02.05.001.09.02.01.01 | C14: Cápitado | D14: C | E14: 1.1.02.05.001.09.02.01 | F14: =+VLOOKUP(B14,'Cuadro 35B AXILIAR_CXC'!$B$11:$G$37,5,FALSE) -> 2556961104 | G14: =+VLOOKUP(B14,'Cuadro 35B AXILIAR_CXC'!$B$11:$G$37,6,FALSE) -> 100673432 | P14: 0 | Q14: 0 | R14: 0 | S14: 0
B15: 1.1.02.05.001.09.02.01.02 | C15: No Cápitado | D15: C | E15: 1.1.02.05.001.09.02.01 | F15: =+VLOOKUP(B15,'Cuadro 35B AXILIAR_CXC'!$B$11:$G$37,5,FALSE) -> 0 | G15: =+VLOOKUP(B15,'Cuadro 35B AXILIAR_CXC'!$B$11:$G$37,6,FALSE) -> 0 | P15: 0 | Q15: 0 | R15: 0 | S15: 0
B16: 1.1.02.05.001.09.02.02 | C16: Régimen Contributivo | D16: A | E16: 1.1.02.05.001.09.02 | F16: =SUMIF($E17:$E$36,$B16,F17:F$36) -> 150595312 | G16: =SUMIF($E17:$E$36,$B16,G17:G$36) -> 11102340 | H16: =SUMIF($E17:$E$36,$B16,H17:H$36) -> 0 | I16: =SUMIF($E17:$E$36,$B16,I17:I$36) -> 0 | J16: =SUMIF($E17:$E$36,$B16,J17:J$36) -> 0 | K16: =SUMIF($E17:$E$36,$B16,K17:K$36) -> 0 | L16: =SUMIF($E17:$E$36,$B16,L17:L$36) -> 0 | M16: =SUMIF($E17:$E$36,$B16,M17:M$36) -> 0 | N16: =SUMIF($E17:$E$36,$B16,N17:N$36) -> 0 | O16: =SUMIF($E17:$E$36,$B16,O17:O$36) -> 0 | P16: 0 | Q16: 0 | R16: 0 | S16: 0 | T16: =SUMIF($E17:$E$36,$B16,T17:T$36) -> 0 | U16: =SUMIF($E17:$E$36,$B16,U17:U$36) -> 0
B17: 1.1.02.05.001.09.02.02.01 | C17: Cápitado | D17: C | E17: 1.1.02.05.001.09.02.02 | F17: =+VLOOKUP(B17,'Cuadro 35B AXILIAR_CXC'!$B$11:$G$37,5,FALSE) -> - | G17: =+VLOOKUP(B17,'Cuadro 35B AXILIAR_CXC'!$B$11:$G$37,6,FALSE) -> 11102340 | P17: 0 | Q17: 0 | R17: 0 | S17: 0
B18: 1.1.02.05.001.09.02.02.02 | C18: No Cápitado | D18: C | E18: 1.1.02.05.001.09.02.02 | F18: =+VLOOKUP(B18,'Cuadro 35B AXILIAR_CXC'!$B$11:$G$37,5,FALSE) -> 150595312 | G18: =+VLOOKUP(B18,'Cuadro 35B AXILIAR_CXC'!$B$11:$G$37,6,FALSE) -> 0 | P18: 0 | Q18: 0 | R18: 0 | S18: 0
B19: 1.1.02.05.001.09.02.03 | C19: Plan de Intervenciones Colectivas | D19: A | E19: 1.1.02.05.001.09.02 | F19: =SUMIF($E20:$E$36,$B19,F20:F$36) -> 607596648 | G19: =SUMIF($E20:$E$36,$B19,G20:G$36) -> 0 | H19: =SUMIF($E20:$E$36,$B19,H20:H$36) -> 0 | I19: =SUMIF($E20:$E$36,$B19,I20:I$36) -> 0 | J19: =SUMIF($E20:$E$36,$B19,J20:J$36) -> 0 | K19: =SUMIF($E20:$E$36,$B19,K20:K$36) -> 0 | L19: =SUMIF($E20:$E$36,$B19,L20:L$36) -> 0 | M19: =SUMIF($E20:$E$36,$B19,M20:M$36) -> 0 | N19: =SUMIF($E20:$E$36,$B19,N20:N$36) -> 0 | O19: =SUMIF($E20:$E$36,$B19,O20:O$36) -> 0 | P19: 0 | Q19: 0 | R19: 0 | S19: 0 | T19: =SUMIF($E20:$E$36,$B19,T20:T$36) -> 0 | U19: =SUMIF($E20:$E$36,$B19,U20:U$36) -> 0
B20: 1.1.02.05.001.09.02.03.01 | C20: Departamento - Distrito | D20: C | E20: 1.1.02.05.001.09.02.03 | F20: =+VLOOKUP(B20,'Cuadro 35B AXILIAR_CXC'!$B$11:$G$37,5,FALSE) -> 338194258 | G20: =+VLOOKUP(B20,'Cuadro 35B AXILIAR_CXC'!$B$11:$G$37,6,FALSE) -> 0 | P20: 0 | Q20: 0 | R20: 0 | S20: 0
B21: 1.1.02.05.001.09.02.03.02 | C21: Municipio | D21: C | E21: 1.1.02.05.001.09.02.03 | F21: =+VLOOKUP(B21,'Cuadro 35B AXILIAR_CXC'!$B$11:$G$37,5,FALSE) -> 269402390 | G21: =+VLOOKUP(B21,'Cuadro 35B AXILIAR_CXC'!$B$11:$G$37,6,FALSE) -> 0 | P21: 0 | Q21: 0 | R21: 0 | S21: 0
B22: 1.1.02.05.001.09.02.04 | C22: Eventos Catastróficos y Accidentes de Transito | D22: C | E22: 1.1.02.05.001.09.02 | F22: =+VLOOKUP(B22,'Cuadro 35B AXILIAR_CXC'!$B$11:$G$37,5,FALSE) -> - | G22: =+VLOOKUP(B22,'Cuadro 35B AXILIAR_CXC'!$B$11:$G$37,6,FALSE) -> 0 | P22: 0 | Q22: 0 | R22: 0 | S22: 0
B23: 1.1.02.05.001.09.02.05 | C23: Seguro Obligatorio de Accidentes de Tránsito | D23: C | E23: 1.1.02.05.001.09.02 | F23: =+VLOOKUP(B23,'Cuadro 35B AXILIAR_CXC'!$B$11:$G$37,5,FALSE) -> - | G23: =+VLOOKUP(B23,'Cuadro 35B AXILIAR_CXC'!$B$11:$G$37,6,FALSE) -> 0 | P23: 0 | Q23: 0 | R23: 0 | S23: 0
B24: 1.1.02.05.001.09.02.06 | C24: Administradoras de Riesgos Laborales | D24: C | E24: 1.1.02.05.001.09.02 | F24: =+VLOOKUP(B24,'Cuadro 35B AXILIAR_CXC'!$B$11:$G$37,5,FALSE) -> - | G24: =+VLOOKUP(B24,'Cuadro 35B AXILIAR_CXC'!$B$11:$G$37,6,FALSE) -> 0 | P24: 0 | Q24: 0 | R24: 0 | S24: 0
B25: 1.1.02.05.001.09.02.07 | C25: Fuerzas militares | D25: C | E25: 1.1.02.05.001.09.02 | F25: =+VLOOKUP(B25,'Cuadro 35B AXILIAR_CXC'!$B$11:$G$37,5,FALSE) -> 10918806 | G25: =+VLOOKUP(B25,'Cuadro 35B AXILIAR_CXC'!$B$11:$G$37,6,FALSE) -> 2531270 | P25: 0 | Q25: 0 | R25: 0 | S25: 0
B26: 1.1.02.05.001.09.02.08 | C26: Policía Nacional | D26: C | E26: 1.1.02.05.001.09.02 | F26: =+VLOOKUP(B26,'Cuadro 35B AXILIAR_CXC'!$B$11:$G$37,5,FALSE) -> 7238294 | G26: =+VLOOKUP(B26,'Cuadro 35B AXILIAR_CXC'!$B$11:$G$37,6,FALSE) -> 1655958 | P26: 0 | Q26: 0 | R26: 0 | S26: 0
B27: 1.1.02.05.001.09.02.09 | C27: IPS Privadas | D27: C | E27: 1.1.02.05.001.09.02 | F27: =+VLOOKUP(B27,'Cuadro 35B AXILIAR_CXC'!$B$11:$G$37,5,FALSE) -> - | G27: =+VLOOKUP(B27,'Cuadro 35B AXILIAR_CXC'!$B$11:$G$37,6,FALSE) -> 0 | P27: 0 | Q27: 0 | R27: 0 | S27: 0
B28: 1.1.02.05.001.09.02.10 | C28: IPS Públicas | D28: C | E28: 1.1.02.05.001.09.02 | F28: =+VLOOKUP(B28,'Cuadro 35B AXILIAR_CXC'!$B$11:$G$37,5,FALSE) -> - | G28: =+VLOOKUP(B28,'Cuadro 35B AXILIAR_CXC'!$B$11:$G$37,6,FALSE) -> 0 | P28: 0 | Q28: 0 | R28: 0 | S28: 0
B29: 1.1.02.05.001.09.02.11 | C29: Población Especial | D29: C | E29: 1.1.02.05.001.09.02 | F29: =+VLOOKUP(B29,'Cuadro 35B AXILIAR_CXC'!$B$11:$G$37,5,FALSE) -> 127156744 | G29: =+VLOOKUP(B29,'Cuadro 35B AXILIAR_CXC'!$B$11:$G$37,6,FALSE) -> 9374400 | P29: 0 | Q29: 0 | R29: 0 | S29: 0
B30: 1.1.02.05.001.09.02.12 | C30: Población Extranjera | D30: C | E30: 1.1.02.05.001.09.02 | F30: =+VLOOKUP(B30,'Cuadro 35B AXILIAR_CXC'!$B$11:$G$37,5,FALSE) -> - | G30: =+VLOOKUP(B30,'Cuadro 35B AXILIAR_CXC'!$B$11:$G$37,6,FALSE) -> 0 | P30: 0 | Q30: 0 | R30: 0 | S30: 0
B31: 1.1.02.05.001.09.02.13 | C31: Particulares | D31: C | E31: 1.1.02.05.001.09.02 | F31: =+VLOOKUP(B31,'Cuadro 35B AXILIAR_CXC'!$B$11:$G$37,5,FALSE) -> - | G31: =+VLOOKUP(B31,'Cuadro 35B AXILIAR_CXC'!$B$11:$G$37,6,FALSE) -> 0 | P31: 0 | Q31: 0 | R31: 0 | S31: 0
B32: 1.1.02.05.001.09.02.14 | C32: Plan complementario | D32: C | E32: 1.1.02.05.001.09.02 | F32: =+VLOOKUP(B32,'Cuadro 35B AXILIAR_CXC'!$B$11:$G$37,5,FALSE) -> - | G32: =+VLOOKUP(B32,'Cuadro 35B AXILIAR_CXC'!$B$11:$G$37,6,FALSE) -> 0 | P32: 0 | Q32: 0 | R32: 0 | S32: 0
B33: 1.1.02.05.001.09.02.15 | C33: Atención a la población pobre no afiliada al régimen subsidiado | D33: C | E33: 1.1.02.05.001.09.02 | F33: =+VLOOKUP(B33,'Cuadro 35B AXILIAR_CXC'!$B$11:$G$37,5,FALSE) -> 626821920 | G33: =+VLOOKUP(B33,'Cuadro 35B AXILIAR_CXC'!$B$11:$G$37,6,FALSE) -> 0 | P33: 0 | Q33: 0 | R33: 0 | S33: 0
B34: 1.1.02.05.001.09.02.16 | C34: Fondo Nacional de Salud de las Personas Privadas de la Libertad | D34: C | E34: 1.1.02.05.001.09.02 | F34: =+VLOOKUP(B34,'Cuadro 35B AXILIAR_CXC'!$B$11:$G$37,5,FALSE) -> 0 | G34: =+VLOOKUP(B34,'Cuadro 35B AXILIAR_CXC'!$B$11:$G$37,6,FALSE) -> 0 | P34: 0 | Q34: 0 | R34: 0 | S34: 0
B35: 1.1.02.05.001.09.02.17 | C35: Medicina Prepagada | D35: C | E35: 1.1.02.05.001.09.02 | F35: =+VLOOKUP(B35,'Cuadro 35B AXILIAR_CXC'!$B$11:$G$37,5,FALSE) -> 0 | G35: =+VLOOKUP(B35,'Cuadro 35B AXILIAR_CXC'!$B$11:$G$37,6,FALSE) -> 0 | P35: 0 | Q35: 0 | R35: 0 | S35: 0
B36: 1.1.02.05.001.09.02.18 | C36: Otras ventas de servicios de salud | D36: C | E36: 1.1.02.05.001.09.02 | F36: =+VLOOKUP(B36,'Cuadro 35B AXILIAR_CXC'!$B$11:$G$37,5,FALSE) -> 0 | G36: =+VLOOKUP(B36,'Cuadro 35B AXILIAR_CXC'!$B$11:$G$37,6,FALSE) -> 0 | P36: 0 | Q36: 0 | R36: 0 | S36: 0

Sheet Cuadro 2C
B5: CUADRO 2C - AUXILIAR GASTOS COMPROMETIDOS Y CUENTAS POR PAGAR
B7: CODIGO | C7: OBJETO DE GASTO | D7: Presupuesto Vigencia PSFF | E7: INFORME DE MONITOREO | O7: INFORME DE SEGUIMIENTO
E8: Trimestre 1 | G8: Trimestre 2 | I8: Trimestre 3 | K8: Trimestre 4 | M8: Acumulado Anual | O8: EJECUCIÓN P/TAL (SIHO/CUIPO) | Q8: CONCLUSIONES SEGUIMIENTO (Analice los resultados obtenidos frente a los programados en el PSFF)
E9: VIGENCIA | F9: CUENTAS POR PAGAR | G9: VIGENCIA | H9: CUENTAS POR PAGAR | I9: VIGENCIA | J9: CUENTAS POR PAGAR | K9: VIGENCIA | L9: CUENTAS POR PAGAR | M9: VIGENCIA | N9: CUENTAS POR PAGAR | O9: VIGENCIA | P9: CUENTAS POR PAGAR
B10: 2 | C10: Gastos | D10: =+VLOOKUP(B10,'Cuadro 35'!$B$229:$F$1244,5,FALSE) -> 4012060643 | E10: =SUMIF($A11:$A$1238,$B10,E11:E$1238) -> 0 | F10: =SUMIF($A11:$A$1238,$B10,F11:F$1238) -> 0 | G10: =SUMIF($A11:$A$1238,$B10,G11:G$1238) -> 0 | H10: =SUMIF($A11:$A$1238,$B10,H11:H$1238) -> 0 | I10: =SUMIF($A11:$A$1238,$B10,I11:I$1238) -> 0 | J10: =SUMIF($A11:$A$1238,$B10,J11:J$1238) -> 0 | K10: =SUMIF($A11:$A$1238,$B10,K11:K$1238) -> 0 | L10: =SUMIF($A11:$A$1238,$B10,L11:L$1238) -> 0 | M10: =+E10+G10+I10+K10 -> 0 | N10: =+F10+H10+J10+L10 -> 0 | O10: =SUMIF($A11:$A$1025,$B10,$O11:$O$1025) ->  | P10: =SUMIF($A11:$A$1025,$B10,$P11:$P$1025) -> 
A11: 2 | B11: 2.1 | C11: Funcionamiento | D11: =+VLOOKUP(B11,'Cuadro 35'!$B$229:$F$1244,5,FALSE) -> 1247576508 | E11: =SUMIF($A12:$A$1238,$B11,E12:E$1238) -> 0 | F11: =SUMIF($A12:$A$1238,$B11,F12:F$1238) -> 0 | G11: =SUMIF($A12:$A$1238,$B11,G12:G$1238) -> 0 | H11: =SUMIF($A12:$A$1238,$B11,H12:H$1238) -> 0 | I11: =SUMIF($A12:$A$1238,$B11,I12:I$1238) -> 0 | J11: =SUMIF($A12:$A$1238,$B11,J12:J$1238) -> 0 | K11: =SUMIF($A12:$A$1238,$B11,K12:K$1238) -> 0 | L11: =SUMIF($A12:$A$1238,$B11,L12:L$1238) -> 0 | M11: 0 | N11: 0 | O11: =SUMIF($A12:$A$1025,$B11,$O12:$O$1025) ->  | P11: =SUMIF($A12:$A$1025,$B11,$P12:$P$1025) -> 
A12: 2.1 | B12: 2.1.1 | C12: Gastos de personal | D12: =+VLOOKUP(B12,'Cuadro 35'!$B$229:$F$1244,5,FALSE) -> 1077540967 | E12: =SUMIF($A13:$A$1238,$B12,E13:E$1238) -> 0 | F12: =SUMIF($A13:$A$1238,$B12,F13:F$1238) -> 0 | G12: =SUMIF($A13:$A$1238,$B12,G13:G$1238) -> 0 | H12: =SUMIF($A13:$A$1238,$B12,H13:H$1238) -> 0 | I12: =SUMIF($A13:$A$1238,$B12,I13:I$1238) -> 0 | J12: =SUMIF($A13:$A$1238,$B12,J13:J$1238) -> 0 | K12: =SUMIF($A13:$A$1238,$B12,K13:K$1238) -> 0 | L12: =SUMIF($A13:$A$1238,$B12,L13:L$1238) -> 0 | M12: 0 | N12: 0 | O12: =SUMIF($A13:$A$1025,$B12,$O13:$O$1025) -> 0 | P12: =SUMIF($A13:$A$1025,$B12,$P13:$P$1025) -> 0
A13: 2.1.1 | B13: 2.1.1.01 | C13: Planta de personal permanente | D13: =+VLOOKUP(B13,'Cuadro 35'!$B$229:$F$1244,5,FALSE) -> 730794292 | E13: =SUMIF($A14:$A$1238,$B13,E14:E$1238) -> 0 | F13: =SUMIF($A14:$A$1238,$B13,F14:F$1238) -> 0 | G13: =SUMIF($A14:$A$1238,$B13,G14:G$1238) -> 0 | H13: =SUMIF($A14:$A$1238,$B13,H14:H$1238) -> 0 | I13: =SUMIF($A14:$A$1238,$B13,I14:I$1238) -> 0 | J13: =SUMIF($A14:$A$1238,$B13,J14:J$1238) -> 0 | K13: =SUMIF($A14:$A$1238,$B13,K14:K$1238) -> 0 | L13: =SUMIF($A14:$A$1238,$B13,L14:L$1238) -> 0 | M13: 0 | N13: 0 | O13: =SUMIF($A14:$A$1025,$B13,$O14:$O$1025) -> 0 | P13: =SUMIF($A14:$A$1025,$B13,$P14:$P$1025) -> 0
A14: 2.1.1.01 | B14: 2.1.1.01.01 | C14: Factores constitutivos de salario | D14: =+VLOOKUP(B14,'Cuadro 35'!$B$229:$F$1244,5,FALSE) -> 531134156 | E14: =SUMIF($A15:$A$1238,$B14,E15:E$1238) -> 0 | F14: =SUMIF($A15:$A$1238,$B14,F15:F$1238) -> 0 | G14: =SUMIF($A15:$A$1238,$B14,G15:G$1238) -> 0 | H14: =SUMIF($A15:$A$1238,$B14,H15:H$1238) -> 0 | I14: =SUMIF($A15:$A$1238,$B14,I15:I$1238) -> 0 | J14: =SUMIF($A15:$A$1238,$B14,J15:J$1238) -> 0 | K14: =SUMIF($A15:$A$1238,$B14,K15:K$1238) -> 0 | L14: =SUMIF($A15:$A$1238,$B14,L15:L$1238) -> 0 | M14: 0 | N14: 0 | O14: =SUMIF($A15:$A$1025,$B14,$O15:$O$1025) -> 0 | P14: =SUMIF($A15:$A$1025,$B14,$P15:$P$1025) -> 0
A15: 2.1.1.01.01 | B15: 2.1.1.01.01.001 | C15: Factores salariales comunes | D15: =+VLOOKUP(B15,'Cuadro 35'!$B$229:$F$1244,5,FALSE) -> 531134156 | E15: =SUMIF($A16:$A$1238,$B15,E16:E$1238) -> 0 | F15: =SUMIF($A16:$A$1238,$B15,F16:F$1238) -> 0 | G15: =SUMIF($A16:$A$1238,$B15,G16:G$1238) -> 0 | H15: =SUMIF($A16:$A$1238,$B15,H16:H$1238) -> 0 | I15: =SUMIF($A16:$A$1238,$B15,I16:I$1238) -> 0 | J15: =SUMIF($A16:$A$1238,$B15,J16:J$1238) -> 0 | K15: =SUMIF($A16:$A$1238,$B15,K16:K$1238) -> 0 | L15: =SUMIF($A16:$A$1238,$B15,L16:L$1238) -> 0 | M15: 0 | N15: 0 | O15: =SUMIF($A16:$A$1025,$B15,$O16:$O$1025) -> 0 | P15: =SUMIF($A16:$A$1025,$B15,$P16:$P$1025) -> 0
A16: 2.1.1.01.01.001 | B16: 2.1.1.01.01.001.01 | C16: Sueldo básico | D16: =+VLOOKUP(B16,'Cuadro 35'!$B$229:$F$1244,5,FALSE) -> 402591763 | M16: 0 | N16: 0
A17: 2.1.1.01.01.001 | B17: 2.1.1.01.01.001.02 | C17: Horas extras, dominicales, festivos y recargos | D17: =+VLOOKUP(B17,'Cuadro 35'!$B$229:$F$1244,5,FALSE) -> - | M17: 0 | N17: 0
A18: 2.1.1.01.01.001 | B18: 2.1.1.01.01.001.03 | C18: Gastos de representación | D18: =+VLOOKUP(B18,'Cuadro 35'!$B$229:$F$1244,5,FALSE) -> - | M18: 0 | N18: 0
A19: 2.1.1.01.01.001 | B19: 2.1.1.01.01.001.04 | C19: Subsidio de alimentación | D19: =+VLOOKUP(B19,'Cuadro 35'!$B$229:$F$1244,5,FALSE) -> 8816021 | M19: 0 | N19: 0
A20: 2.1.1.01.01.001 | B20: 2.1.1.01.01.001.05 | C20: Auxilio de transporte | D20: =+VLOOKUP(B20,'Cuadro 35'!$B$229:$F$1244,5,FALSE) -> 5147244 | M20: 0 | N20: 0
A21: 2.1.1.01.01.001 | B21: 2.1.1.01.01.001.06 | C21: Prima de servicio | D21: =+VLOOKUP(B21,'Cuadro 35'!$B$229:$F$1244,5,FALSE) -> 17937673 | M21: 0 | N21: 0
A22: 2.1.1.01.01.001 | B22: 2.1.1.01.01.001.07 | C22: Bonificación por servicios prestados | D22: =+VLOOKUP(B22,'Cuadro 35'!$B$229:$F$1244,5,FALSE) -> 13949135 | M22: 0 | N22: 0
A23: 2.1.1.01.01.001 | B23: 2.1.1.01.01.001.08 | C23: Prestaciones sociales | D23: =+VLOOKUP(B23,'Cuadro 35'!$B$229:$F$1244,5,FALSE) -> 57612320 | E23: =SUMIF($A24:$A$1238,$B23,E24:E$1238) -> 0 | F23: =SUMIF($A24:$A$1238,$B23,F24:F$1238) -> 0 | G23: =SUMIF($A24:$A$1238,$B23,G24:G$1238) -> 0 | H23: =SUMIF($A24:$A$1238,$B23,H24:H$1238) -> 0 | I23: =SUMIF($A24:$A$1238,$B23,I24:I$1238) -> 0 | J23: =SUMIF($A24:$A$1238,$B23,J24:J$1238) -> 0 | K23: =SUMIF($A24:$A$1238,$B23,K24:K$1238) -> 0 | L23: =SUMIF($A24:$A$1238,$B23,L24:L$1238) -> 0 | M23: 0 | N23: 0 | O23: =SUMIF($A24:$A$1025,$B23,$O24:$O$1025) -> 0 | P23: =SUMIF($A24:$A$1025,$B23,$P24:$P$1025) -> 0
A24: 2.1.1.01.01.001.08 | B24: 2.1.1.01.01.001.08.01 | C24: Prima de navidad | D24: =+VLOOKUP(B24,'Cuadro 35'!$B$229:$F$1244,5,FALSE) -> 38927243 | M24: 0 | N24: 0
A25: 2.1.1.01.01.001.08 | B25: 2.1.1.01.01.001.08.02 | C25: Prima de vacaciones | D25: =+VLOOKUP(B25,'Cuadro 35'!$B$229:$F$1244,5,FALSE) -> 18685077 | M25: 0 | N25: 0
A26: 2.1.1.01.01.001 | B26: 2.1.1.01.01.001.09 | C26: Prima técnica salarial | D26: =+VLOOKUP(B26,'Cuadro 35'!$B$229:$F$1244,5,FALSE) -> - | M26: 0 | N26: 0
A27: 2.1.1.01.01.001 | B27: 2.1.1.01.01.001.10 | C27: Viáticos de los funcionarios en comisión | D27: =+VLOOKUP(B27,'Cuadro 35'!$B$229:$F$1244,5,FALSE) -> 25080000 | M27: 0 | N27: 0
A28: 2.1.1.01.01.001 | B28: 2.1.1.01.01.001.12 | C28: Aguinaldo | D28: =+VLOOKUP(B28,'Cuadro 35'!$B$229:$F$1244,5,FALSE) -> 0 | M28: 0 | N28: 0
A29: 2.1.1.01.01.001 | B29: 2.1.1.01.01.001.14 | C29: Salario Integral | D29: =+VLOOKUP(B29,'Cuadro 35'!$B$229:$F$1244,5,FALSE) -> 0 | M29: 0 | N29: 0
A30: 2.1.1.01.01 | B30: 2.1.1.01.01.002 | C30: Factores salariales especiales | D30: =+VLOOKUP(B30,'Cuadro 35'!$B$229:$F$1244,5,FALSE) -> 0 | E30: =SUMIF($A31:$A$1238,$B30,E31:E$1238) -> 0 | F30: =SUMIF($A31:$A$1238,$B30,F31:F$1238) -> 0 | G30: =SUMIF($A31:$A$1238,$B30,G31:G$1238) -> 0 | H30: =SUMIF($A31:$A$1238,$B30,H31:H$1238) -> 0 | I30: =SUMIF($A31:$A$1238,$B30,I31:I$1238) -> 0 | J30: =SUMIF($A31:$A$1238,$B30,J31:J$1238) -> 0 | K30: =SUMIF($A31:$A$1238,$B30,K31:K$1238) -> 0 | L30: =SUMIF($A31:$A$1238,$B30,L31:L$1238) -> 0 | M30: 0 | N30: 0 | O30: =SUMIF($A31:$A$1025,$B30,$O31:$O$1025) -> 0 | P30: =SUMIF($A31:$A$1025,$B30,$P31:$P$1025) -> 0
A31: 2.1.1.01.01.002 | B31: 2.1.1.01.01.002.06 | C31: Primas extraordinarias | D31: =+VLOOKUP(B31,'Cuadro 35'!$B$229:$F$1244,5,FALSE) -> 0 | M31: 0 | N31: 0
A32: 2.1.1.01.01.002 | B32: 2.1.1.01.01.002.07 | C32: Prima mensual | D32: =+VLOOKUP(B32,'Cuadro 35'!$B$229:$F$1244,5,FALSE) -> 0 | M32: 0 | N32: 0
A33: 2.1.1.01.01.002 | B33: 2.1.1.01.01.002.12 | C33: Prima de antigüedad | D33: =+VLOOKUP(B33,'Cuadro 35'!$B$229:$F$1244,5,FALSE) -> 0 | E33: =SUMIF($A34:$A$1238,$B33,E34:E$1238) -> 0 | F33: =SUMIF($A34:$A$1238,$B33,F34:F$1238) -> 0 | G33: =SUMIF($A34:$A$1238,$B33,G34:G$1238) -> 0 | H33: =SUMIF($A34:$A$1238,$B33,H34:H$1238) -> 0 | I33: =SUMIF($A34:$A$1238,$B33,I34:I$1238) -> 0 | J33: =SUMIF($A34:$A$1238,$B33,J34:J$1238) -> 0 | K33: =SUMIF($A34:$A$1238,$B33,K34:K$1238) -> 0 | L33: =SUMIF($A34:$A$1238,$B33,L34:L$1238) -> 0 | M33: 0 | N33: 0 | O33: =SUMIF($A34:$A$1025,$B33,$O34:$O$1025) -> 0 | P33: =SUMIF($A34:$A$1025,$B33,$P34:$P$1025) -> 0
A34: 2.1.1.01.01.002.12 | B34: 2.1.1.01.01.002.12.01 | C34: Beneficios a los empleados a corto plazo | D34: =+VLOOKUP(B34,'Cuadro 35'!$B$229:$F$1244,5,FALSE) -> 0 | M34: 0 | N34: 0
A35: 2.1.1.01.01.002.12 | B35: 2.1.1.01.01.002.12.02 | C35: Beneficios a los empleados a largo plazo | D35: =+VLOOKUP(B35,'Cuadro 35'!$B$229:$F$1244,5,FALSE) -> 0 | M35: 0 | N35: 0
A36: 2.1.1.01.01.002 | B36: 2.1.1.01.01.002.18 | C36: Prima de desgaste y alto riesgo visual | D36: =+VLOOKUP(B36,'Cuadro 35'!$B$229:$F$1244,5,FALSE) -> 0 | M36: 0 | N36: 0
A37: 2.1.1.01.01.002 | B37: 2.1.1.01.01.002.21 | C37: Quinquenios | D37: =+VLOOKUP(B37,'Cuadro 35'!$B$229:$F$1244,5,FALSE) -> 0 | E37: =SUMIF($A38:$A$1238,$B37,E38:E$1238) -> 0 | F37: =SUMIF($A38:$A$1238,$B37,F38:F$1238) -> 0 | G37: =SUMIF($A38:$A$1238,$B37,G38:G$1238) -> 0 | H37: =SUMIF($A38:$A$1238,$B37,H38:H$1238) -> 0 | I37: =SUMIF($A38:$A$1238,$B37,I38:I$1238) -> 0 | J37: =SUMIF($A38:$A$1238,$B37,J38:J$1238) -> 0 | K37: =SUMIF($A38:$A$1238,$B37,K38:K$1238) -> 0 | L37: =SUMIF($A38:$A$1238,$B37,L38:L$1238) -> 0 | M37: 0 | N37: 0 | O37: =SUMIF($A38:$A$1025,$B37,$O38:$O$1025) -> 0 | P37: =SUMIF($A38:$A$1025,$B37,$P38:$P$1025) -> 0
A38: 2.1.1.01.01.002.21 | B38: 2.1.1.01.01.002.21.01 | C38: Beneficios a los empleados a corto plazo | D38: =+VLOOKUP(B38,'Cuadro 35'!$B$229:$F$1244,5,FALSE) -> 0 | M38: 0 | N38: 0
A39: 2.1.1.01.01.002.21 | B39: 2.1.1.01.01.002.21.02 | C39: Beneficios a los empleados a largo plazo | D39: =+VLOOKUP(B39,'Cuadro 35'!$B$229:$F$1244,5,FALSE) -> 0 | M39: 0 | N39: 0
A40: 2.1.1.01.01.002 | B40: 2.1.1.01.01.002.34 | C40: Prima de clima o de calor | D40: =+VLOOKUP(B40,'Cuadro 35'!$B$229:$F$1244,5,FALSE) -> 0 | M40: 0 | N40: 0
A41: 2.1.1.01.01.002 | B41: 2.1.1.01.01.002.35 | C41: Prima Movil | D41: =+VLOOKUP(B41,'Cuadro 35'!$B$229:$F$1244,5,FALSE) -> 0 | M41: 0 | N41: 0
A42: 2.1.1.01.01.002 | B42: 2.1.1.01.01.002.38 | C42: Remuneración Sorteo Semanal | D42: =+VLOOKUP(B42,'Cuadro 35'!$B$229:$F$1244,5,FALSE) -> 0 | M42: 0 | N42: 0
A43: 2.1.1.01 | B43: 2.1.1.01.02 | C43: Contribuciones inherentes a la nómina | D43: =+VLOOKUP(B43,'Cuadro 35'!$B$229:$F$1244,5,FALSE) -> 197423515 | E43: =SUMIF($A44:$A$1238,$B43,E44:E$1238) -> 0 | F43: =SUMIF($A44:$A$1238,$B43,F44:F$1238) -> 0 | G43: =SUMIF($A44:$A$1238,$B43,G44:G$1238) -> 0 | H43: =SUMIF($A44:$A$1238,$B43,H44:H$1238) -> 0 | I43: =SUMIF($A44:$A$1238,$B43,I44:I$1238) -> 0 | J43: =SUMIF($A44:$A$1238,$B43,J44:J$1238) -> 0 | K43: =SUMIF($A44:$A$1238,$B43,K44:K$1238) -> 0 | L43: =SUMIF($A44:$A$1238,$B43,L44:L$1238) -> 0 | M43: 0 | N43: 0 | O43: =SUMIF($A44:$A$1025,$B43,$O44:$O$1025) -> 0 | P43: =SUMIF($A44:$A$1025,$B43,$P44:$P$1025) -> 0
A44: 2.1.1.01.02 | B44: 2.1.1.01.02.001 | C44: Aportes a la seguridad social en pensiones | D44: =+VLOOKUP(B44,'Cuadro 35'!$B$229:$F$1244,5,FALSE) -> 60994893 | M44: 0 | N44: 0
A45: 2.1.1.01.02 | B45: 2.1.1.01.02.002 | C45: Aportes a la seguridad social en salud | D45: =+VLOOKUP(B45,'Cuadro 35'!$B$229:$F$1244,5,FALSE) -> 43204716 | M45: 0 | N45: 0
A46: 2.1.1.01.02 | B46: 2.1.1.01.02.003 | C46: Aportes de cesantías | D46: =+VLOOKUP(B46,'Cuadro 35'!$B$229:$F$1244,5,FALSE) -> 42171180 | M46: 0 | N46: 0
A47: 2.1.1.01.02 | B47: 2.1.1.01.02.004 | C47: Aportes a cajas de compensación familiar | D47: =+VLOOKUP(B47,'Cuadro 35'!$B$229:$F$1244,5,FALSE) -> 20331631 | M47: 0 | N47: 0
A48: 2.1.1.01.02 | B48: 2.1.1.01.02.005 | C48: Aportes generales al sistema de riesgos laborales | D48: =+VLOOKUP(B48,'Cuadro 35'!$B$229:$F$1244,5,FALSE) -> 5306556 | M48: 0 | N48: 0
A49: 2.1.1.01.02 | B49: 2.1.1.01.02.006 | C49: Aportes al ICBF | D49: =+VLOOKUP(B49,'Cuadro 35'!$B$229:$F$1244,5,FALSE) -> 15248723 | M49: 0 | N49: 0
A50: 2.1.1.01.02 | B50: 2.1.1.01.02.007 | C50: Aportes al SENA | D50: =+VLOOKUP(B50,'Cuadro 35'!$B$229:$F$1244,5,FALSE) -> 10165816 | M50: 0 | N50: 0
A51: 2.1.1.01.02 | B51: 2.1.1.01.02.008 | C51: Aportes a la ESAP | D51: =+VLOOKUP(B51,'Cuadro 35'!$B$229:$F$1244,5,FALSE) -> 0 | M51: 0 | N51: 0
A52: 2.1.1.01.02 | B52: 2.1.1.01.02.009 | C52: Aportes a escuelas industriales e institutos técnicos | D52: =+VLOOKUP(B52,'Cuadro 35'!$B$229:$F$1244,5,FALSE) -> 0 | M52: 0 | N52: 0
A53: 2.1.1.01 | B53: 2.1.1.01.03 | C53: Remuneraciones no constitutivas de factor salarial | D53: =+VLOOKUP(B53,'Cuadro 35'!$B$229:$F$1244,5,FALSE) -> 2236621 | E53: =SUMIF($A54:$A$1238,$B53,E54:E$1238) -> 0 | F53: =SUMIF($A54:$A$1238,$B53,F54:F$1238) -> 0 | G53: =SUMIF($A54:$A$1238,$B53,G54:G$1238) -> 0 | H53: =SUMIF($A54:$A$1238,$B53,H54:H$1238) -> 0 | I53: =SUMIF($A54:$A$1238,$B53,I54:I$1238) -> 0 | J53: =SUMIF($A54:$A$1238,$B53,J54:J$1238) -> 0 | K53: =SUMIF($A54:$A$1238,$B53,K54:K$1238) -> 0 | L53: =SUMIF($A54:$A$1238,$B53,L54:L$1238) -> 0 | M53: 0 | N53: 0 | O53: =SUMIF($A54:$A$1025,$B53,$O54:$O$1025) -> 0 | P53: =SUMIF($A54:$A$1025,$B53,$P54:$P$1025) -> 0
A54: 2.1.1.01.03 | B54: 2.1.1.01.03.001 | C54: Prestaciones sociales | D54: =+VLOOKUP(B54,'Cuadro 35'!$B$229:$F$1244,5,FALSE) -> 2236621 | E54: =SUMIF($A55:$A$1238,$B54,E55:E$1238) -> 0 | F54: =SUMIF($A55:$A$1238,$B54,F55:F$1238) -> 0 | G54: =SUMIF($A55:$A$1238,$B54,G55:G$1238) -> 0 | H54: =SUMIF($A55:$A$1238,$B54,H55:H$1238) -> 0 | I54: =SUMIF($A55:$A$1238,$B54,I55:I$1238) -> 0 | J54: =SUMIF($A55:$A$1238,$B54,J55:J$1238) -> 0 | K54: =SUMIF($A55:$A$1238,$B54,K55:K$1238) -> 0 | L54: =SUMIF($A55:$A$1238,$B54,L55:L$1238) -> 0 | M54: 0 | N54: 0 | O54: =SUMIF($A55:$A$1025,$B54,$O55:$O$1025) -> 0 | P54: =SUMIF($A55:$A$1025,$B54,$P55:$P$1025) -> 0
A55: 2.1.1.01.03.001 | B55: 2.1.1.01.03.001.01 | C55: Vacaciones | D55: =+VLOOKUP(B55,'Cuadro 35'!$B$229:$F$1244,5,FALSE) -> 0 | M55: 0 | N55: 0
A56: 2.1.1.01.03.001 | B56: 2.1.1.01.03.001.02 | C56: Indemnización por vacaciones | D56: =+VLOOKUP(B56,'Cuadro 35'!$B$229:$F$1244,5,FALSE) -> 0 | M56: 0 | N56: 0
A57: 2.1.1.01.03.001 | B57: 2.1.1.01.03.001.03 | C57: Bonificación especial de recreación | D57: =+VLOOKUP(B57,'Cuadro 35'!$B$229:$F$1244,5,FALSE) -> 2236621 | M57: 0 | N57: 0
A58: 2.1.1.01.03 | B58: 2.1.1.01.03.002 | C58: Bonificación de dirección | D58: =+VLOOKUP(B58,'Cuadro 35'!$B$229:$F$1244,5,FALSE) -> 0 | M58: 0 | N58: 0
A59: 2.1.1.01.03 | B59: 2.1.1.01.03.005 | C59: Reconocimiento por permanencia en el servicio público - Bogotá D.C. | D59: =+VLOOKUP(B59,'Cuadro 35'!$B$229:$F$1244,5,FALSE) -> 0 | M59: 0 | N59: 0
A60: 2.1.1.01.03 | B60: 2.1.1.01.03.009 | C60: Prima técnica no salarial | D60: =+VLOOKUP(B60,'Cuadro 35'!$B$229:$F$1244,5,FALSE) -> 0 | M60: 0 | N60: 0
A61: 2.1.1.01.03 | B61: 2.1.1.01.03.012 | C61: Prima de riesgo | D61: =+VLOOKUP(B61,'Cuadro 35'!$B$229:$F$1244,5,FALSE) -> 0 | M61: 0 | N61: 0
A62: 2.1.1.01.03 | B62: 2.1.1.01.03.020 | C62: Estímulos a los empleados del Estado | D62: =+VLOOKUP(B62,'Cuadro 35'!$B$229:$F$1244,5,FALSE) -> 0 | M62: 0 | N62: 0
A63: 2.1.1.01.03 | B63: 2.1.1.01.03.023 | C63: Prima de coordinación | D63: =+VLOOKUP(B63,'Cuadro 35'!$B$229:$F$1244,5,FALSE) -> 0 | M63: 0 | N63: 0
A64: 2.1.1.01.03 | B64: 2.1.1.01.03.043 | C64: Quinquenios | D64: =+VLOOKUP(B64,'Cuadro 35'!$B$229:$F$1244,5,FALSE) -> 0 | E64: =SUMIF($A65:$A$1238,$B64,E65:E$1238) -> 0 | F64: =SUMIF($A65:$A$1238,$B64,F65:F$1238) -> 0 | G64: =SUMIF($A65:$A$1238,$B64,G65:G$1238) -> 0 | H64: =SUMIF($A65:$A$1238,$B64,H65:H$1238) -> 0 | I64: =SUMIF($A65:$A$1238,$B64,I65:I$1238) -> 0 | J64: =SUMIF($A65:$A$1238,$B64,J65:J$1238) -> 0 | K64: =SUMIF($A65:$A$1238,$B64,K65:K$1238) -> 0 | L64: =SUMIF($A65:$A$1238,$B64,L65:L$1238) -> 0 | M64: 0 | N64: 0 | O64: =SUMIF($A65:$A$1025,$B64,$O65:$O$1025) -> 0 | P64: =SUMIF($A65:$A$1025,$B64,$P65:$P$1025) -> 0
A65: 2.1.1.01.03.043 | B65: 2.1.1.01.03.043.01 | C65: Beneficios a los empleados a corto plazo | D65: =+VLOOKUP(B65,'Cuadro 35'!$B$229:$F$1244,5,FALSE) -> 0 | M65: 0 | N65: 0
A66: 2.1.1.01.03.043 | B66: 2.1.1.01.03.043.02 | C66: Beneficios a los empleados a largo plazo | D66: =+VLOOKUP(B66,'Cuadro 35'!$B$229:$F$1244,5,FALSE) -> 0 | M66: 0 | N66: 0
A67: 2.1.1.01.03 | B67: 2.1.1.01.03.064 | C67: Prima de productividad | D67: =+VLOOKUP(B67,'Cuadro 35'!$B$229:$F$1244,5,FALSE) -> 0 | M67: 0 | N67: 0
A68: 2.1.1.01.03 | B68: 2.1.1.01.03.068 | C68: Prima secretarial | D68: =+VLOOKUP(B68,'Cuadro 35'!$B$229:$F$1244,5,FALSE) -> 0 | M68: 0 | N68: 0
A69: 2.1.1.01.03 | B69: 2.1.1.01.03.069 | C69: Apoyo de sostenimiento aprendices SENA | D69: =+VLOOKUP(B69,'Cuadro 35'!$B$229:$F$1244,5,FALSE) -> 0 | M69: 0 | N69: 0
A70: 2.1.1.01.03 | B70: 2.1.1.01.03.073 | C70: Prima de nacimiento | D70: =+VLOOKUP(B70,'Cuadro 35'!$B$229:$F$1244,5,FALSE) -> 0 | M70: 0 | N70: 0
A71: 2.1.1.01.03 | B71: 2.1.1.01.03.083 | C71: Auxilio de movilización | D71: =+VLOOKUP(B71,'Cuadro 35'!$B$229:$F$1244,5,FALSE) -> 0 | M71: 0 | N71: 0
A72: 2.1.1.01.03 | B72: 2.1.1.01.03.093 | C72: Prima de Maternidad | D72: =+VLOOKUP(B72,'Cuadro 35'!$B$229:$F$1244,5,FALSE) -> 0 | M72: 0 | N72: 0
A73: 2.1.1.01.03 | B73: 2.1.1.01.03.099 | C73: Bonificacion Sindical | D73: =+VLOOKUP(B73,'Cuadro 35'!$B$229:$F$1244,5,FALSE) -> 0 | M73: 0 | N73: 0
A74: 2.1.1.01.03 | B74: 2.1.1.01.03.104 | C74: Incentivo por Jubilación | D74: =+VLOOKUP(B74,'Cuadro 35'!$B$229:$F$1244,5,FALSE) -> 0 | M74: =+E74+G74+I74+K74 -> 0 | N74: =+F74+H74+J74+L74 -> 0
A75: 2.1.1.01.03 | B75: 2.1.1.01.03.106 | C75: Remuneración por defunción | D75: =+VLOOKUP(B75,'Cuadro 35'!$B$229:$F$1244,5,FALSE) -> 0 | M75: 0 | N75: 0
A76: 2.1.1.01.03 | B76: 2.1.1.01.03.107 | C76: Auxilios Salud Visual | D76: =+VLOOKUP(B76,'Cuadro 35'!$B$229:$F$1244,5,FALSE) -> 0 | M76: 0 | N76: 0
A77: 2.1.1.01.03 | B77: 2.1.1.01.03.108 | C77: Auxilios Salud Dental | D77: =+VLOOKUP(B77,'Cuadro 35'!$B$229:$F$1244,5,FALSE) -> 0 | M77: 0 | N77: 0
A78: 2.1.1.01.03 | B78: 2.1.1.01.03.109 | C78: Auxilios Salud Auditiva | D78: =+VLOOKUP(B78,'Cuadro 35'!$B$229:$F$1244,5,FALSE) -> 0 | M78: 0 | N78: 0
A79: 2.1.1.01.03 | B79: 2.1.1.01.03.110 | C79: Auxilios Médicos | D79: =+VLOOKUP(B79,'Cuadro 35'!$B$229:$F$1244,5,FALSE) -> 0 | M79: 0 | N79: 0
A80: 2.1.1.01.03 | B80: 2.1.1.01.03.111 | C80: Auxilios Educativos | D80: =+VLOOKUP(B80,'Cuadro 35'!$B$229:$F$1244,5,FALSE) -> 0 | M80: 0 | N80: 0
A81: 2.1.1.01.03 | B81: 2.1.1.01.03.112 | C81: Auxilios por Antigüedad | D81: =+VLOOKUP(B81,'Cuadro 35'!$B$229:$F$1244,5,FALSE) -> 0 | M81: 0 | N81: 0
A82: 2.1.1.01.03 | B82: 2.1.1.01.03.113 | C82: Auxilios para Recreación | D82: =+VLOOKUP(B82,'Cuadro 35'!$B$229:$F$1244,5,FALSE) -> 0 | M82: 0 | N82: 0
A83: 2.1.1.01.03 | B83: 2.1.1.01.03.114 | C83: Auxilios para Desplazamiento | D83: =+VLOOKUP(B83,'Cuadro 35'!$B$229:$F$1244,5,FALSE) -> 0 | M83: 0 | N83: 0
A84: 2.1.1.01.03 | B84: 2.1.1.01.03.115 | C84: Prima compensatoria | D84: =+VLOOKUP(B84,'Cuadro 35'!$B$229:$F$1244,5,FALSE) -> 0 | M84: 0 | N84: 0
A85: 2.1.1.01.03 | B85: 2.1.1.01.03.116 | C85: Bonificación por Alto Riesgo | D85: =+VLOOKUP(B85,'Cuadro 35'!$B$229:$F$1244,5,FALSE) -> 0 | M85: 0 | N85: 0
A86: 2.1.1.01.03 | B86: 2.1.1.01.03.117 | C86: Prima Especial | D86: =+VLOOKUP(B86,'Cuadro 35'!$B$229:$F$1244,5,FALSE) -> 0 | M86: 0 | N86: 0
A87: 2.1.1.01.03 | B87: 2.1.1.01.03.121 | C87: Bonificación permanente extralegal | D87: =+VLOOKUP(B87,'Cuadro 35'!$B$229:$F$1244,5,FALSE) -> 0 | M87: 0 | N87: 0
A88: 2.1.1 | B88: 2.1.1.02 | C88: Personal supernumerario y planta temporal | D88: =+VLOOKUP(B88,'Cuadro 35'!$B$229:$F$1244,5,FALSE) -> 346746675 | E88: =SUMIF($A89:$A$1238,$B88,E89:E$1238) -> 0 | F88: =SUMIF($A89:$A$1238,$B88,F89:F$1238) -> 0 | G88: =SUMIF($A89:$A$1238,$B88,G89:G$1238) -> 0 | H88: =SUMIF($A89:$A$1238,$B88,H89:H$1238) -> 0 | I88: =SUMIF($A89:$A$1238,$B88,I89:I$1238) -> 0 | J88: =SUMIF($A89:$A$1238,$B88,J89:J$1238) -> 0 | K88: =SUMIF($A89:$A$1238,$B88,K89:K$1238) -> 0 | L88: =SUMIF($A89:$A$1238,$B88,L89:L$1238) -> 0 | M88: 0 | N88: 0 | O88: =SUMIF($A89:$A$1025,$B88,$O89:$O$1025) -> 0 | P88: =SUMIF($A89:$A$1025,$B88,$P89:$P$1025) -> 0
A89: 2.1.1.02 | B89: 2.1.1.02.01 | C89: Factores constitutivos de salario | D89: =+VLOOKUP(B89,'Cuadro 35'!$B$229:$F$1244,5,FALSE) -> 346746675 | E89: =SUMIF($A90:$A$1238,$B89,E90:E$1238) -> 0 | F89: =SUMIF($A90:$A$1238,$B89,F90:F$1238) -> 0 | G89: =SUMIF($A90:$A$1238,$B89,G90:G$1238) -> 0 | H89: =SUMIF($A90:$A$1238,$B89,H90:H$1238) -> 0 | I89: =SUMIF($A90:$A$1238,$B89,I90:I$1238) -> 0 | J89: =SUMIF($A90:$A$1238,$B89,J90:J$1238) -> 0 | K89: =SUMIF($A90:$A$1238,$B89,K90:K$1238) -> 0 | L89: =SUMIF($A90:$A$1238,$B89,L90:L$1238) -> 0 | M89: 0 | N89: 0 | O89: =SUMIF($A90:$A$1025,$B89,$O90:$O$1025) -> 0 | P89: =SUMIF($A90:$A$1025,$B89,$P90:$P$1025) -> 0
A90: 2.1.1.02.01 | B90: 2.1.1.02.01.001 | C90: Factores salariales comunes | D90: =+VLOOKUP(B90,'Cuadro 35'!$B$229:$F$1244,5,FALSE) -> 346746675 | E90: =SUMIF($A91:$A$1238,$B90,E91:E$1238) -> 0 | F90: =SUMIF($A91:$A$1238,$B90,F91:F$1238) -> 0 | G90: =SUMIF($A91:$A$1238,$B90,G91:G$1238) -> 0 | H90: =SUMIF($A91:$A$1238,$B90,H91:H$1238) -> 0 | I90: =SUMIF($A91:$A$1238,$B90,I91:I$1238) -> 0 | J90: =SUMIF($A91:$A$1238,$B90,J91:J$1238) -> 0 | K90: =SUMIF($A91:$A$1238,$B90,K91:K$1238) -> 0 | L90: =SUMIF($A91:$A$1238,$B90,L91:L$1238) -> 0 | M90: 0 | N90: 0 | O90: =SUMIF($A91:$A$1025,$B90,$O91:$O$1025) -> 0 | P90: =SUMIF($A91:$A$1025,$B90,$P91:$P$1025) -> 0
A91: 2.1.1.02.01.001 | B91: 2.1.1.02.01.001.01 | C91: Sueldo básico | D91: =+VLOOKUP(B91,'Cuadro 35'!$B$229:$F$1244,5,FALSE) -> 346746675 | M91: 0 | N91: 0
A92: 2.1.1.02.01.001 | B92: 2.1.1.02.01.001.02 | C92: Horas extras, dominicales, festivos y recargos | D92: =+VLOOKUP(B92,'Cuadro 35'!$B$229:$F$1244,5,FALSE) -> 0 | M92: 0 | N92: 0
A93: 2.1.1.02.01.001 | B93: 2.1.1.02.01.001.03 | C93: Gastos de representación | D93: =+VLOOKUP(B93,'Cuadro 35'!$B$229:$F$1244,5,FALSE) -> 0 | M93: 0 | N93: 0
A94: 2.1.1.02.01.001 | B94: 2.1.1.02.01.001.04 | C94: Subsidio de alimentación | D94: =+VLOOKUP(B94,'Cuadro 35'!$B$229:$F$1244,5,FALSE) -> 0 | M94: 0 | N94: 0
A95: 2.1.1.02.01.001 | B95: 2.1.1.02.01.001.05 | C95: Auxilio de transporte | D95: =+VLOOKUP(B95,'Cuadro 35'!$B$229:$F$1244,5,FALSE) -> 0 | M95: 0 | N95: 0
A96: 2.1.1.02.01.001 | B96: 2.1.1.02.01.001.06 | C96: Prima de servicio | D96: =+VLOOKUP(B96,'Cuadro 35'!$B$229:$F$1244,5,FALSE) -> 0 | M96: 0 | N96: 0
A97: 2.1.1.02.01.001 | B97: 2.1.1.02.01.001.07 | C97: Bonificación por servicios prestados | D97: =+VLOOKUP(B97,'Cuadro 35'!$B$229:$F$1244,5,FALSE) -> 0 | M97: 0 | N97: 0
A98: 2.1.1.02.01.001 | B98: 2.1.1.02.01.001.08 | C98: Prestaciones sociales | D98: =+VLOOKUP(B98,'Cuadro 35'!$B$229:$F$1244,5,FALSE) -> 0 | E98: =SUMIF($A99:$A$1238,$B98,E99:E$1238) -> 0 | F98: =SUMIF($A99:$A$1238,$B98,F99:F$1238) -> 0 | G98: =SUMIF($A99:$A$1238,$B98,G99:G$1238) -> 0 | H98: =SUMIF($A99:$A$1238,$B98,H99:H$1238) -> 0 | I98: =SUMIF($A99:$A$1238,$B98,I99:I$1238) -> 0 | J98: =SUMIF($A99:$A$1238,$B98,J99:J$1238) -> 0 | K98: =SUMIF($A99:$A$1238,$B98,K99:K$1238) -> 0 | L98: =SUMIF($A99:$A$1238,$B98,L99:L$1238) -> 0 | M98: 0 | N98: 0 | O98: =SUMIF($A99:$A$1025,$B98,$O99:$O$1025) -> 0 | P98: =SUMIF($A99:$A$1025,$B98,$P99:$P$1025) -> 0
A99: 2.1.1.02.01.001.08 | B99: 2.1.1.02.01.001.08.01 | C99: Prima de navidad | D99: =+VLOOKUP(B99,'Cuadro 35'!$B$229:$F$1244,5,FALSE) -> 0 | M99: 0 | N99: 0
A100: 2.1.1.02.01.001.08 | B100: 2.1.1.02.01.001.08.02 | C100: Prima de vacaciones | D100: =+VLOOKUP(B100,'Cuadro 35'!$B$229:$F$1244,5,FALSE) -> 0 | M100: 0 | N100: 0
A101: 2.1.1.02.01.001 | B101: 2.1.1.02.01.001.09 | C101: Prima técnica salarial | D101: =+VLOOKUP(B101,'Cuadro 35'!$B$229:$F$1244,5,FALSE) -> 0 | M101: 0 | N101: 0
A102: 2.1.1.02.01.001 | B102: 2.1.1.02.01.001.10 | C102: Viáticos de los funcionarios en comisión | D102: =+VLOOKUP(B102,'Cuadro 35'!$B$229:$F$1244,5,FALSE) -> 0 | M102: 0 | N102: 0
A103: 2.1.1.02.01.001 | B103: 2.1.1.02.01.001.11 | C103: Auxilio de conectividad digital | D103: =+VLOOKUP(B103,'Cuadro 35'!$B$229:$F$1244,5,FALSE) -> 0 | M103: 0 | N103: 0
A104: 2.1.1.02.01 | B104: 2.1.1.02.01.002 | C104: Factores salariales especiales | D104: =+VLOOKUP(B104,'Cuadro 35'!$B$229:$F$1244,5,FALSE) -> 0 | E104: =SUMIF($A105:$A$1238,$B104,E105:E$1238) -> 0 | F104: =SUMIF($A105:$A$1238,$B104,F105:F$1238) -> 0 | G104: =SUMIF($A105:$A$1238,$B104,G105:G$1238) -> 0 | H104: =SUMIF($A105:$A$1238,$B104,H105:H$1238) -> 0 | I104: =SUMIF($A105:$A$1238,$B104,I105:I$1238) -> 0 | J104: =SUMIF($A105:$A$1238,$B104,J105:J$1238) -> 0 | K104: =SUMIF($A105:$A$1238,$B104,K105:K$1238) -> 0 | L104: =SUMIF($A105:$A$1238,$B104,L105:L$1238) -> 0 | M104: 0 | N104: 0 | O104: =SUMIF($A105:$A$1025,$B104,$O105:$O$1025) -> 0 | P104: =SUMIF($A105:$A$1025,$B104,$P105:$P$1025) -> 0
A105: 2.1.1.02.01.002 | B105: 2.1.1.02.01.002.06 | C105: Primas extraordinarias | D105: =+VLOOKUP(B105,'Cuadro 35'!$B$229:$F$1244,5,FALSE) -> 0 | M105: 0 | N105: 0
A106: 2.1.1.02.01.002 | B106: 2.1.1.02.01.002.08 | C106: Auxilio especial de transporte | D106: =+VLOOKUP(B106,'Cuadro 35'!$B$229:$F$1244,5,FALSE) -> 0 | M106: 0 | N106: 0
A107: 2.1.1.02.01.002 | B107: 2.1.1.02.01.002.12 | C107: Prima de antigüedad | D107: =+VLOOKUP(B107,'Cuadro 35'!$B$229:$F$1244,5,FALSE) -> 0 | E107: =SUMIF($A108:$A$1238,$B107,E108:E$1238) -> 0 | F107: =SUMIF($A108:$A$1238,$B107,F108:F$1238) -> 0 | G107: =SUMIF($A108:$A$1238,$B107,G108:G$1238) -> 0 | H107: =SUMIF($A108:$A$1238,$B107,H108:H$1238) -> 0 | I107: =SUMIF($A108:$A$1238,$B107,I108:I$1238) -> 0 | J107: =SUMIF($A108:$A$1238,$B107,J108:J$1238) -> 0 | K107: =SUMIF($A108:$A$1238,$B107,K108:K$1238) -> 0 | L107: =SUMIF($A108:$A$1238,$B107,L108:L$1238) -> 0 | M107: 0 | N107: 0 | O107: =SUMIF($A108:$A$1025,$B107,$O108:$O$1025) -> 0 | P107: =SUMIF($A108:$A$1025,$B107,$P108:$P$1025) -> 0
A108: 2.1.1.02.01.002.12 | B108: 2.1.1.02.01.002.12.01 | C108: Beneficios a los empleados a corto plazo | D108: =+VLOOKUP(B108,'Cuadro 35'!$B$229:$F$1244,5,FALSE) -> 0 | M108: 0 | N108: 0
A109: 2.1.1.02.01.002.12 | B109: 2.1.1.02.01.002.12.02 | C109: Beneficios a los empleados a largo plazo | D109: =+VLOOKUP(B109,'Cuadro 35'!$B$229:$F$1244,5,FALSE) -> 0 | M109: 0 | N109: 0
A110: 2.1.1.02.01.002 | B110: 2.1.1.02.01.002.17 | C110: Prima de desgaste y alto riesgo visual | D110: =+VLOOKUP(B110,'Cuadro 35'!$B$229:$F$1244,5,FALSE) -> 0 | M110: 0 | N110: 0
A111: 2.1.1.02.01.002 | B111: 2.1.1.02.01.002.36 | C111: Prima Móvil | D111: =+VLOOKUP(B111,'Cuadro 35'!$B$229:$F$1244,5,FALSE) -> 0 | M111: 0 | N111: 0
A112: 2.1.1.02 | B112: 2.1.1.02.02 | C112: Contribuciones inherentes a la nómina | D112: =+VLOOKUP(B112,'Cuadro 35'!$B$229:$F$1244,5,FALSE) -> 0 | E112: =SUMIF($A113:$A$1238,$B112,E113:E$1238) -> 0 | F112: =SUMIF($A113:$A$1238,$B112,F113:F$1238) -> 0 | G112: =SUMIF($A113:$A$1238,$B112,G113:G$1238) -> 0 | H112: =SUMIF($A113:$A$1238,$B112,H113:H$1238) -> 0 | I112: =SUMIF($A113:$A$1238,$B112,I113:I$1238) -> 0 | J112: =SUMIF($A113:$A$1238,$B112,J113:J$1238) -> 0 | K112: =SUMIF($A113:$A$1238,$B112,K113:K$1238) -> 0 | L112: =SUMIF($A113:$A$1238,$B112,L113:L$1238) -> 0 | M112: 0 | N112: 0 | O112: =SUMIF($A113:$A$1025,$B112,$O113:$O$1025) -> 0 | P112: =SUMIF($A113:$A$1025,$B112,$P113:$P$1025) -> 0
A113: 2.1.1.02.02 | B113: 2.1.1.02.02.001 | C113: Aportes a la seguridad social en pensiones | D113: =+VLOOKUP(B113,'Cuadro 35'!$B$229:$F$1244,5,FALSE) -> 0 | M113: 0 | N113: 0
A114: 2.1.1.02.02 | B114: 2.1.1.02.02.002 | C114: Aportes a la seguridad social en salud | D114: =+VLOOKUP(B114,'Cuadro 35'!$B$229:$F$1244,5,FALSE) -> 0 | M114: 0 | N114: 0
A115: 2.1.1.02.02 | B115: 2.1.1.02.02.003 | C115: Aportes de cesantías | D115: =+VLOOKUP(B115,'Cuadro 35'!$B$229:$F$1244,5,FALSE) -> 0 | M115: 0 | N115: 0
A116: 2.1.1.02.02 | B116: 2.1.1.02.02.004 | C116: Aportes a cajas de compensación familiar | D116: =+VLOOKUP(B116,'Cuadro 35'!$B$229:$F$1244,5,FALSE) -> 0 | M116: 0 | N116: 0
A117: 2.1.1.02.02 | B117: 2.1.1.02.02.005 | C117: Aportes generales al sistema de riesgos laborales | D117: =+VLOOKUP(B117,'Cuadro 35'!$B$229:$F$1244,5,FALSE) -> 0 | M117: 0 | N117: 0
A118: 2.1.1.02.02 | B118: 2.1.1.02.02.006 | C118: Aportes al ICBF | D118: =+VLOOKUP(B118,'Cuadro 35'!$B$229:$F$1244,5,FALSE) -> 0 | M118: 0 | N118: 0
A119: 2.1.1.02.02 | B119: 2.1.1.02.02.007 | C119: Aportes al SENA | D119: =+VLOOKUP(B119,'Cuadro 35'!$B$229:$F$1244,5,FALSE) -> 0 | M119: 0 | N119: 0
A120: 2.1.1.02.02 | B120: 2.1.1.02.02.008 | C120: Aportes a la ESAP | D120: =+VLOOKUP(B120,'Cuadro 35'!$B$229:$F$1244,5,FALSE) -> 0 | M120: 0 | N120: 0
A121: 2.1.1.02.02 | B121: 2.1.1.02.02.009 | C121: Aportes a escuelas industriales e institutos técnicos | D121: =+VLOOKUP(B121,'Cuadro 35'!$B$229:$F$1244,5,FALSE) -> 0 | M121: 0 | N121: 0
A122: 2.1.1.02 | B122: 2.1.1.02.03 | C122: Remuneraciones no constitutivas de factor salarial | D122: =+VLOOKUP(B122,'Cuadro 35'!$B$229:$F$1244,5,FALSE) -> 0 | E122: =SUMIF($A123:$A$1238,$B122,E123:E$1238) -> 0 | F122: =SUMIF($A123:$A$1238,$B122,F123:F$1238) -> 0 | G122: =SUMIF($A123:$A$1238,$B122,G123:G$1238) -> 0 | H122: =SUMIF($A123:$A$1238,$B122,H123:H$1238) -> 0 | I122: =SUMIF($A123:$A$1238,$B122,I123:I$1238) -> 0 | J122: =SUMIF($A123:$A$1238,$B122,J123:J$1238) -> 0 | K122: =SUMIF($A123:$A$1238,$B122,K123:K$1238) -> 0 | L122: =SUMIF($A123:$A$1238,$B122,L123:L$1238) -> 0 | M122: 0 | N122: 0 | O122: =SUMIF($A123:$A$1025,$B122,$O123:$O$1025) -> 0 | P122: =SUMIF($A123:$A$1025,$B122,$P123:$P$1025) -> 0
A123: 2.1.1.02.03 | B123: 2.1.1.02.03.001 | C123: Prestaciones sociales | D123: =+VLOOKUP(B123,'Cuadro 35'!$B$229:$F$1244,5,FALSE) -> 0 | E123: =SUMIF($A124:$A$1238,$B123,E124:E$1238) -> 0 | F123: =SUMIF($A124:$A$1238,$B123,F124:F$1238) -> 0 | G123: =SUMIF($A124:$A$1238,$B123,G124:G$1238) -> 0 | H123: =SUMIF($A124:$A$1238,$B123,H124:H$1238) -> 0 | I123: =SUMIF($A124:$A$1238,$B123,I124:I$1238) -> 0 | J123: =SUMIF($A124:$A$1238,$B123,J124:J$1238) -> 0 | K123: =SUMIF($A124:$A$1238,$B123,K124:K$1238) -> 0 | L123: =SUMIF($A124:$A$1238,$B123,L124:L$1238) -> 0 | M123: 0 | N123: 0 | O123: =SUMIF($A124:$A$1025,$B123,$O124:$O$1025) -> 0 | P123: =SUMIF($A124:$A$1025,$B123,$P124:$P$1025) -> 0
A124: 2.1.1.02.03.001 | B124: 2.1.1.02.03.001.01 | C124: Vacaciones | D124: =+VLOOKUP(B124,'Cuadro 35'!$B$229:$F$1244,5,FALSE) -> 0 | M124: 0 | N124: 0
A125: 2.1.1.02.03.001 | B125: 2.1.1.02.03.001.02 | C125: Indemnización por vacaciones | D125: =+VLOOKUP(B125,'Cuadro 35'!$B$229:$F$1244,5,FALSE) -> 0 | M125: 0 | N125: 0
A126: 2.1.1.02.03.001 | B126: 2.1.1.02.03.001.03 | C126: Bonificación especial de recreación | D126: =+VLOOKUP(B126,'Cuadro 35'!$B$229:$F$1244,5,FALSE) -> 0 | M126: 0 | N126: 0
A127: 2.1.1.02.03.001 | B127: 2.1.1.02.03.001.04 | C127: Bonificación de dirección para altos funcionarios del Estado | D127: =+VLOOKUP(B127,'Cuadro 35'!$B$229:$F$1244,5,FALSE) -> 0 | M127: 0 | N127: 0
A128: 2.1.1.02.03 | B128: 2.1.1.02.03.002 | C128: Prima técnica no salarial | D128: =+VLOOKUP(B128,'Cuadro 35'!$B$229:$F$1244,5,FALSE) -> 0 | M128: 0 | N128: 0
A129: 2.1.1.02.03 | B129: 2.1.1.02.03.005 | C129: Prima de riesgo | D129: =+VLOOKUP(B129,'Cuadro 35'!$B$229:$F$1244,5,FALSE) -> 0 | M129: 0 | N129: 0
A130: 2.1.1.02.03 | B130: 2.1.1.02.03.012 | C130: Prima de clima o prima de calor | D130: =+VLOOKUP(B130,'Cuadro 35'!$B$229:$F$1244,5,FALSE) -> 0 | M130: 0 | N130: 0
A131: 2.1.1.02.03 | B131: 2.1.1.02.03.013 | C131: Estímulos a los empleados del Estado | D131: =+VLOOKUP(B131,'Cuadro 35'!$B$229:$F$1244,5,FALSE) -> 0 | M131: 0 | N131: 0
A132: 2.1.1.02.03 | B132: 2.1.1.02.03.016 | C132: Prima de coordinación | D132: =+VLOOKUP(B132,'Cuadro 35'!$B$229:$F$1244,5,FALSE) -> 0 | M132: 0 | N132: 0
A133: 2.1.1.02.03 | B133: 2.1.1.02.03.030 | C133: Bonificación de dirección | D133: =+VLOOKUP(B133,'Cuadro 35'!$B$229:$F$1244,5,FALSE) -> 0 | M133: 0 | N133: 0
A134: 2.1.1.02.03 | B134: 2.1.1.02.03.036 | C134: Quinquenios | D134: =+VLOOKUP(B134,'Cuadro 35'!$B$229:$F$1244,5,FALSE) -> 0 | E134: =SUMIF($A135:$A$1238,$B134,E135:E$1238) -> 0 | F134: =SUMIF($A135:$A$1238,$B134,F135:F$1238) -> 0 | G134: =SUMIF($A135:$A$1238,$B134,G135:G$1238) -> 0 | H134: =SUMIF($A135:$A$1238,$B134,H135:H$1238) -> 0 | I134: =SUMIF($A135:$A$1238,$B134,I135:I$1238) -> 0 | J134: =SUMIF($A135:$A$1238,$B134,J135:J$1238) -> 0 | K134: =SUMIF($A135:$A$1238,$B134,K135:K$1238) -> 0 | L134: =SUMIF($A135:$A$1238,$B134,L135:L$1238) -> 0 | M134: 0 | N134: 0 | O134: =SUMIF($A135:$A$1025,$B134,$O135:$O$1025) -> 0 | P134: =SUMIF($A135:$A$1025,$B134,$P135:$P$1025) -> 0
A135: 2.1.1.02.03.036 | B135: 2.1.1.02.03.036.01 | C135: Beneficios a los empleados a corto plazo | D135: =+VLOOKUP(B135,'Cuadro 35'!$B$229:$F$1244,5,FALSE) -> 0 | M135: 0 | N135: 0
A136: 2.1.1.02.03.036 | B136: 2.1.1.02.03.036.02 | C136: Beneficios a los empleados a largo plazo | D136: =+VLOOKUP(B136,'Cuadro 35'!$B$229:$F$1244,5,FALSE) -> 0 | M136: 0 | N136: 0
A137: 2.1.1.02.03 | B137: 2.1.1.02.03.044 | C137: Prima secretarial | D137: =+VLOOKUP(B137,'Cuadro 35'!$B$229:$F$1244,5,FALSE) -> 0 | M137: 0 | N137: 0
A138: 2.1.1.02.03 | B138: 2.1.1.02.03.076 | C138: Auxilio de movilización | D138: =+VLOOKUP(B138,'Cuadro 35'!$B$229:$F$1244,5,FALSE) -> 0 | M138: =+E138+G138+I138+K138 -> 0 | N138: =+F138+H138+J138+L138 -> 0
A139: 2.1.1.02.03 | B139: 2.1.1.02.03.086 | C139: Prima o auxilio de Maternidad | D139: =+VLOOKUP(B139,'Cuadro 35'!$B$229:$F$1244,5,FALSE) -> 0 | M139: 0 | N139: 0
A140: 2.1.1.02.03 | B140: 2.1.1.02.03.087 | C140: Prima de Transporte y Manutención | D140: =+VLOOKUP(B140,'Cuadro 35'!$B$229:$F$1244,5,FALSE) -> 0 | M140: 0 | N140: 0
A141: 2.1.1.02.03 | B141: 2.1.1.02.03.088 | C141: Prima de Matrimonio | D141: =+VLOOKUP(B141,'Cuadro 35'!$B$229:$F$1244,5,FALSE) -> 0 | M141: 0 | N141: 0
A142: 2.1.1.02.03 | B142: 2.1.1.02.03.089 | C142: Bonificación cargo académico administrativo | D142: =+VLOOKUP(B142,'Cuadro 35'!$B$229:$F$1244,5,FALSE) -> 0 | M142: 0 | N142: 0
A143: 2.1.1.02.03 | B143: 2.1.1.02.03.090 | C143: Bonificación por productividad académica | D143: =+VLOOKUP(B143,'Cuadro 35'!$B$229:$F$1244,5,FALSE) -> 0 | M143: 0 | N143: 0
A144: 2.1.1.02.03 | B144: 2.1.1.02.03.092 | C144: Bonificación Sindical | D144: =+VLOOKUP(B144,'Cuadro 35'!$B$229:$F$1244,5,FALSE) -> 0 | M144: 0 | N144: 0
A145: 2.1.1.02.03 | B145: 2.1.1.02.03.093 | C145: Trienios | D145: =+VLOOKUP(B145,'Cuadro 35'!$B$229:$F$1244,5,FALSE) -> 0 | M145: 0 | N145: 0
A146: 2.1.1.02.03 | B146: 2.1.1.02.03.097 | C146: Incentivo por Jubilación | D146: =+VLOOKUP(B146,'Cuadro 35'!$B$229:$F$1244,5,FALSE) -> 0 | M146: 0 | N146: 0
A147: 2.1.1.02.03 | B147: 2.1.1.02.03.099 | C147: Remuneración por defunción | D147: =+VLOOKUP(B147,'Cuadro 35'!$B$229:$F$1244,5,FALSE) -> 0 | M147: 0 | N147: 0
A148: 2.1.1.02.03 | B148: 2.1.1.02.03.100 | C148: Auxilios Salud Visual | D148: =+VLOOKUP(B148,'Cuadro 35'!$B$229:$F$1244,5,FALSE) -> 0 | M148: 0 | N148: 0
A149: 2.1.1.02.03 | B149: 2.1.1.02.03.101 | C149: Auxilios Salud Dental | D149: =+VLOOKUP(B149,'Cuadro 35'!$B$229:$F$1244,5,FALSE) -> 0 | M149: 0 | N149: 0
A150: 2.1.1.02.03 | B150: 2.1.1.02.03.102 | C150: Auxilios Salud Auditiva | D150: =+VLOOKUP(B150,'Cuadro 35'!$B$229:$F$1244,5,FALSE) -> 0 | M150: 0 | N150: 0
A151: 2.1.1.02.03 | B151: 2.1.1.02.03.103 | C151: Auxilios Médicos | D151: =+VLOOKUP(B151,'Cuadro 35'!$B$229:$F$1244,5,FALSE) -> 0 | M151: 0 | N151: 0
A152: 2.1.1.02.03 | B152: 2.1.1.02.03.104 | C152: Auxilios Educativos | D152: =+VLOOKUP(B152,'Cuadro 35'!$B$229:$F$1244,5,FALSE) -> 0 | M152: 0 | N152: 0
A153: 2.1.1.02.03 | B153: 2.1.1.02.03.105 | C153: Auxilios por Antigüedad | D153: =+VLOOKUP(B153,'Cuadro 35'!$B$229:$F$1244,5,FALSE) -> 0 | M153: 0 | N153: 0
A154: 2.1.1.02.03 | B154: 2.1.1.02.03.106 | C154: Auxilios para Recreación | D154: =+VLOOKUP(B154,'Cuadro 35'!$B$229:$F$1244,5,FALSE) -> 0 | M154: 0 | N154: 0
A155: 2.1.1.02.03 | B155: 2.1.1.02.03.107 | C155: Auxilios para Desplazamiento | D155: =+VLOOKUP(B155,'Cuadro 35'!$B$229:$F$1244,5,FALSE) -> 0 | M155: 0 | N155: 0
A156: 2.1.1.02.03 | B156: 2.1.1.02.03.108 | C156: Prima compensatoria | D156: =+VLOOKUP(B156,'Cuadro 35'!$B$229:$F$1244,5,FALSE) -> 0 | M156: 0 | N156: 0
A157: 2.1.1.02.03 | B157: 2.1.1.02.03.109 | C157: Bonificación por Alto Riesgo | D157: =+VLOOKUP(B157,'Cuadro 35'!$B$229:$F$1244,5,FALSE) -> 0 | M157: 0 | N157: 0
A158: 2.1.1.02.03 | B158: 2.1.1.02.03.110 | C158: Prima Especial | D158: =+VLOOKUP(B158,'Cuadro 35'!$B$229:$F$1244,5,FALSE) -> 0 | M158: 0 | N158: 0
A159: 2.1.1.02.03 | B159: 2.1.1.02.03.114 | C159: Bonificación permanente extralegal | D159: =+VLOOKUP(B159,'Cuadro 35'!$B$229:$F$1244,5,FALSE) -> 0 | M159: 0 | N159: 0
A160: 2.1.1.02.03 | B160: 2.1.1.02.03.118 | C160: Participación en utilidades | D160: =+VLOOKUP(B160,'Cuadro 35'!$B$229:$F$1244,5,FALSE) -> 0 | M160: 0 | N160: 0
A161: 2.1.1.02.03 | B161: 2.1.1.02.03.119 | C161: Reconocimiento por permanencia en el servicio público - Bogotá D.C. | D161: =+VLOOKUP(B161,'Cuadro 35'!$B$229:$F$1244,5,FALSE) -> 0 | M161: 0 | N161: 0
A162: 2.1 | B162: 2.1.2 | C162: Adquisición de bienes y servicios | D162: =+VLOOKUP(B162,'Cuadro 35'!$B$229:$F$1244,5,FALSE) -> 167035541 | E162: =SUMIF($A163:$A$1238,$B162,E163:E$1238) -> 0 | F162: =SUMIF($A163:$A$1238,$B162,F163:F$1238) -> 0 | G162: =SUMIF($A163:$A$1238,$B162,G163:G$1238) -> 0 | H162: =SUMIF($A163:$A$1238,$B162,H163:H$1238) -> 0 | I162: =SUMIF($A163:$A$1238,$B162,I163:I$1238) -> 0 | J162: =SUMIF($A163:$A$1238,$B162,J163:J$1238) -> 0 | K162: =SUMIF($A163:$A$1238,$B162,K163:K$1238) -> 0 | L162: =SUMIF($A163:$A$1238,$B162,L163:L$1238) -> 0 | M162: 0 | N162: 0 | O162: =SUMIF($A163:$A$1025,$B162,$O163:$O$1025) -> 0 | P162: =SUMIF($A163:$A$1025,$B162,$P163:$P$1025) -> 0
A163: 2.1.2 | B163: 2.1.2.01 | C163: Adquisición de activos no financieros | D163: =+VLOOKUP(B163,'Cuadro 35'!$B$229:$F$1244,5,FALSE) -> 22990000 | E163: =SUMIF($A164:$A$1238,$B163,E164:E$1238) -> 0 | F163: =SUMIF($A164:$A$1238,$B163,F164:F$1238) -> 0 | G163: =SUMIF($A164:$A$1238,$B163,G164:G$1238) -> 0 | H163: =SUMIF($A164:$A$1238,$B163,H164:H$1238) -> 0 | I163: =SUMIF($A164:$A$1238,$B163,I164:I$1238) -> 0 | J163: =SUMIF($A164:$A$1238,$B163,J164:J$1238) -> 0 | K163: =SUMIF($A164:$A$1238,$B163,K164:K$1238) -> 0 | L163: =SUMIF($A164:$A$1238,$B163,L164:L$1238) -> 0 | M163: 0 | N163: 0 | O163: =SUMIF($A164:$A$1025,$B163,$O164:$O$1025) -> 0 | P163: =SUMIF($A164:$A$1025,$B163,$P164:$P$1025) -> 0
A164: 2.1.2.01 | B164: 2.1.2.01.01 | C164: Activos fijos | D164: =+VLOOKUP(B164,'Cuadro 35'!$B$229:$F$1244,5,FALSE) -> 22990000 | E164: =SUMIF($A165:$A$1238,$B164,E165:E$1238) -> 0 | F164: =SUMIF($A165:$A$1238,$B164,F165:F$1238) -> 0 | G164: =SUMIF($A165:$A$1238,$B164,G165:G$1238) -> 0 | H164: =SUMIF($A165:$A$1238,$B164,H165:H$1238) -> 0 | I164: =SUMIF($A165:$A$1238,$B164,I165:I$1238) -> 0 | J164: =SUMIF($A165:$A$1238,$B164,J165:J$1238) -> 0 | K164: =SUMIF($A165:$A$1238,$B164,K165:K$1238) -> 0 | L164: =SUMIF($A165:$A$1238,$B164,L165:L$1238) -> 0 | M164: 0 | N164: 0 | O164: =SUMIF($A165:$A$1025,$B164,$O165:$O$1025) -> 0 | P164: =SUMIF($A165:$A$1025,$B164,$P165:$P$1025) -> 0
A165: 2.1.2.01.01 | B165: 2.1.2.01.01.001 | C165: Edificaciones y estructuras | D165: =+VLOOKUP(B165,'Cuadro 35'!$B$229:$F$1244,5,FALSE) -> 0 | E165: =SUMIF($A166:$A$1238,$B165,E166:E$1238) -> 0 | F165: =SUMIF($A166:$A$1238,$B165,F166:F$1238) -> 0 | G165: =SUMIF($A166:$A$1238,$B165,G166:G$1238) -> 0 | H165: =SUMIF($A166:$A$1238,$B165,H166:H$1238) -> 0 | I165: =SUMIF($A166:$A$1238,$B165,I166:I$1238) -> 0 | J165: =SUMIF($A166:$A$1238,$B165,J166:J$1238) -> 0 | K165: =SUMIF($A166:$A$1238,$B165,K166:K$1238) -> 0 | L165: =SUMIF($A166:$A$1238,$B165,L166:L$1238) -> 0 | M165: 0 | N165: 0 | O165: =SUMIF($A166:$A$1025,$B165,$O166:$O$1025) -> 0 | P165: =SUMIF($A166:$A$1025,$B165,$P166:$P$1025) -> 0
A166: 2.1.2.01.01.001 | B166: 2.1.2.01.01.001.01 | C166: Viviendas | D166: =+VLOOKUP(B166,'Cuadro 35'!$B$229:$F$1244,5,FALSE) -> 0 | E166: =SUMIF($A167:$A$1238,$B166,E167:E$1238) -> 0 | F166: =SUMIF($A167:$A$1238,$B166,F167:F$1238) -> 0 | G166: =SUMIF($A167:$A$1238,$B166,G167:G$1238) -> 0 | H166: =SUMIF($A167:$A$1238,$B166,H167:H$1238) -> 0 | I166: =SUMIF($A167:$A$1238,$B166,I167:I$1238) -> 0 | J166: =SUMIF($A167:$A$1238,$B166,J167:J$1238) -> 0 | K166: =SUMIF($A167:$A$1238,$B166,K167:K$1238) -> 0 | L166: =SUMIF($A167:$A$1238,$B166,L167:L$1238) -> 0 | M166: 0 | N166: 0 | O166: =SUMIF($A167:$A$1025,$B166,$O167:$O$1025) -> 0 | P166: =SUMIF($A167:$A$1025,$B166,$P167:$P$1025) -> 0
A167: 2.1.2.01.01.001.01 | B167: 2.1.2.01.01.001.01.01 | C167: Edificios utilizados para residencia | D167: =+VLOOKUP(B167,'Cuadro 35'!$B$229:$F$1244,5,FALSE) -> 0 | M167: 0 | N167: 0
A168: 2.1.2.01.01.001.01 | B168: 2.1.2.01.01.001.01.02 | C168: Casas flotantes | D168: =+VLOOKUP(B168,'Cuadro 35'!$B$229:$F$1244,5,FALSE) -> 0 | M168: 0 | N168: 0
A169: 2.1.2.01.01.001.01 | B169: 2.1.2.01.01.001.01.03 | C169: Barcazas | D169: =+VLOOKUP(B169,'Cuadro 35'!$B$229:$F$1244,5,FALSE) -> 0 | M169: 0 | N169: 0
A170: 2.1.2.01.01.001.01 | B170: 2.1.2.01.01.001.01.04 | C170: Viviendas móviles | D170: =+VLOOKUP(B170,'Cuadro 35'!$B$229:$F$1244,5,FALSE) -> 0 | M170: 0 | N170: 0
A171: 2.1.2.01.01.001.01 | B171: 2.1.2.01.01.001.01.05 | C171: Coches habitación | D171: =+VLOOKUP(B171,'Cuadro 35'!$B$229:$F$1244,5,FALSE) -> 0 | M171: 0 | N171: 0
A172: 2.1.2.01.01.001.01 | B172: 2.1.2.01.01.001.01.06 | C172: Monumentos públicos considerados principalmente como viviendas | D172: =+VLOOKUP(B172,'Cuadro 35'!$B$229:$F$1244,5,FALSE) -> 0 | M172: 0 | N172: 0
A173: 2.1.2.01.01.001.01 | B173: 2.1.2.01.01.001.01.07 | C173: Viviendas para personal militar | D173: =+VLOOKUP(B173,'Cuadro 35'!$B$229:$F$1244,5,FALSE) -> 0 | M173: 0 | N173: 0
A174: 2.1.2.01.01.001.01 | B174: 2.1.2.01.01.001.01.08 | C174: Construcciones prefabricadas | D174: =+VLOOKUP(B174,'Cuadro 35'!$B$229:$F$1244,5,FALSE) -> 0 | M174: 0 | N174: 0
A175: 2.1.2.01.01.001.01 | B175: 2.1.2.01.01.001.01.09 | C175: Otros edificios utilizados como residencia | D175: =+VLOOKUP(B175,'Cuadro 35'!$B$229:$F$1244,5,FALSE) -> 0 | M175: 0 | N175: 0
A176: 2.1.2.01.01.001 | B176: 2.1.2.01.01.001.02 | C176: Edificaciones distintas a viviendas | D176: =+VLOOKUP(B176,'Cuadro 35'!$B$229:$F$1244,5,FALSE) -> 0 | E176: =SUMIF($A177:$A$1238,$B176,E177:E$1238) -> 0 | F176: =SUMIF($A177:$A$1238,$B176,F177:F$1238) -> 0 | G176: =SUMIF($A177:$A$1238,$B176,G177:G$1238) -> 0 | H176: =SUMIF($A177:$A$1238,$B176,H177:H$1238) -> 0 | I176: =SUMIF($A177:$A$1238,$B176,I177:I$1238) -> 0 | J176: =SUMIF($A177:$A$1238,$B176,J177:J$1238) -> 0 | K176: =SUMIF($A177:$A$1238,$B176,K177:K$1238) -> 0 | L176: =SUMIF($A177:$A$1238,$B176,L177:L$1238) -> 0 | M176: 0 | N176: 0 | O176: =SUMIF($A177:$A$1025,$B176,$O177:$O$1025) -> 0 | P176: =SUMIF($A177:$A$1025,$B176,$P177:$P$1025) -> 0
A177: 2.1.2.01.01.001.02 | B177: 2.1.2.01.01.001.02.01 | C177: Monumentos públicos no residenciales | D177: =+VLOOKUP(B177,'Cuadro 35'!$B$229:$F$1244,5,FALSE) -> 0 | M177: 0 | N177: 0
A178: 2.1.2.01.01.001.02 | B178: 2.1.2.01.01.001.02.02 | C178: Edificios industriales | D178: =+VLOOKUP(B178,'Cuadro 35'!$B$229:$F$1244,5,FALSE) -> 0 | M178: 0 | N178: 0
A179: 2.1.2.01.01.001.02 | B179: 2.1.2.01.01.001.02.03 | C179: Edificios comerciales | D179: =+VLOOKUP(B179,'Cuadro 35'!$B$229:$F$1244,5,FALSE) -> 0 | M179: 0 | N179: 0
A180: 2.1.2.01.01.001.02 | B180: 2.1.2.01.01.001.02.04 | C180: Edificios públicos de entretenimiento | D180: =+VLOOKUP(B180,'Cuadro 35'!$B$229:$F$1244,5,FALSE) -> 0 | M180: 0 | N180: 0
A181: 2.1.2.01.01.001.02 | B181: 2.1.2.01.01.001.02.05 | C181: Edificios de hoteles | D181: =+VLOOKUP(B181,'Cuadro 35'!$B$229:$F$1244,5,FALSE) -> 0 | M181: 0 | N181: 0
A182: 2.1.2.01.01.001.02 | B182: 2.1.2.01.01.001.02.06 | C182: Restaurantes | D182: =+VLOOKUP(B182,'Cuadro 35'!$B$229:$F$1244,5,FALSE) -> 0 | M182: 0 | N182: 0
A183: 2.1.2.01.01.001.02 | B183: 2.1.2.01.01.001.02.07 | C183: Edificios educativos | D183: =+VLOOKUP(B183,'Cuadro 35'!$B$229:$F$1244,5,FALSE) -> 0 | M183: 0 | N183: 0
A184: 2.1.2.01.01.001.02 | B184: 2.1.2.01.01.001.02.08 | C184: Edificios relacionados con salud | D184: =+VLOOKUP(B184,'Cuadro 35'!$B$229:$F$1244,5,FALSE) -> 0 | M184: 0 | N184: 0
A185: 2.1.2.01.01.001.02 | B185: 2.1.2.01.01.001.02.11 | C185: Instalaciones recreativas | D185: =+VLOOKUP(B185,'Cuadro 35'!$B$229:$F$1244,5,FALSE) -> 0 | M185: 0 | N185: 0
A186: 2.1.2.01.01.001.02 | B186: 2.1.2.01.01.001.02.12 | C186: Centros de convenciones y congresos | D186: =+VLOOKUP(B186,'Cuadro 35'!$B$229:$F$1244,5,FALSE) -> 0 | M186: 0 | N186: 0
A187: 2.1.2.01.01.001.02 | B187: 2.1.2.01.01.001.02.13 | C187: Edificios agrícolas no residenciales | D187: =+VLOOKUP(B187,'Cuadro 35'!$B$229:$F$1244,5,FALSE) -> 0 | M187: 0 | N187: 0
A188: 2.1.2.01.01.001.02 | B188: 2.1.2.01.01.001.02.14 | C188: Otros edificios no residenciales | D188: =+VLOOKUP(B188,'Cuadro 35'!$B$229:$F$1244,5,FALSE) -> 0 | M188: 0 | N188: 0
A189: 2.1.2.01.01.001 | B189: 2.1.2.01.01.001.03 | C189: Otras estructuras | D189: =+VLOOKUP(B189,'Cuadro 35'!$B$229:$F$1244,5,FALSE) -> 0 | E189: =SUMIF($A190:$A$1238,$B189,E190:E$1238) -> 0 | F189: =SUMIF($A190:$A$1238,$B189,F190:F$1238) -> 0 | G189: =SUMIF($A190:$A$1238,$B189,G190:G$1238) -> 0 | H189: =SUMIF($A190:$A$1238,$B189,H190:H$1238) -> 0 | I189: =SUMIF($A190:$A$1238,$B189,I190:I$1238) -> 0 | J189: =SUMIF($A190:$A$1238,$B189,J190:J$1238) -> 0 | K189: =SUMIF($A190:$A$1238,$B189,K190:K$1238) -> 0 | L189: =SUMIF($A190:$A$1238,$B189,L190:L$1238) -> 0 | M189: 0 | N189: 0 | O189: =SUMIF($A190:$A$1025,$B189,$O190:$O$1025) -> 0 | P189: =SUMIF($A190:$A$1025,$B189,$P190:$P$1025) -> 0
A190: 2.1.2.01.01.001.03 | B190: 2.1.2.01.01.001.03.01 | C190: Monumentos públicos | D190: =+VLOOKUP(B190,'Cuadro 35'!$B$229:$F$1244,5,FALSE) -> 0 | M190: 0 | N190: 0
A191: 2.1.2.01.01.001.03 | B191: 2.1.2.01.01.001.03.02 | C191: Autopistas, carreteras, calles | D191: =+VLOOKUP(B191,'Cuadro 35'!$B$229:$F$1244,5,FALSE) -> 0 | M191: 0 | N191: 0
A192: 2.1.2.01.01.001.03 | B192: 2.1.2.01.01.001.03.03 | C192: Ferrocarriles | D192: =+VLOOKUP(B192,'Cuadro 35'!$B$229:$F$1244,5,FALSE) -> 0 | M192: 0 | N192: 0
A193: 2.1.2.01.01.001.03 | B193: 2.1.2.01.01.001.03.04 | C193: Pistas de aterrizaje | D193: =+VLOOKUP(B193,'Cuadro 35'!$B$229:$F$1244,5,FALSE) -> 0 | M193: 0 | N193: 0
A194: 2.1.2.01.01.001.03 | B194: 2.1.2.01.01.001.03.05 | C194: Puentes | D194: =+VLOOKUP(B194,'Cuadro 35'!$B$229:$F$1244,5,FALSE) -> 0 | M194: 0 | N194: 0
A195: 2.1.2.01.01.001.03 | B195: 2.1.2.01.01.001.03.06 | C195: Carreteras elevadas | D195: =+VLOOKUP(B195,'Cuadro 35'!$B$229:$F$1244,5,FALSE) -> 0 | M195: 0 | N195: 0
A196: 2.1.2.01.01.001.03 | B196: 2.1.2.01.01.001.03.07 | C196: Túneles | D196: =+VLOOKUP(B196,'Cuadro 35'!$B$229:$F$1244,5,FALSE) -> 0 | M196: 0 | N196: 0
A197: 2.1.2.01.01.001.03 | B197: 2.1.2.01.01.001.03.08 | C197: Acueductos y otros conductos de suministros de aguas, excepto gasoductos | D197: =+VLOOKUP(B197,'Cuadro 35'!$B$229:$F$1244,5,FALSE) -> 0 | M197: 0 | N197: 0
A198: 2.1.2.01.01.001.03 | B198: 2.1.2.01.01.001.03.09 | C198: Puertos, vías navegables e instalaciones conexas | D198: =+VLOOKUP(B198,'Cuadro 35'!$B$229:$F$1244,5,FALSE) -> 0 | M198: 0 | N198: 0
A199: 2.1.2.01.01.001.03 | B199: 2.1.2.01.01.001.03.10 | C199: Represas | D199: =+VLOOKUP(B199,'Cuadro 35'!$B$229:$F$1244,5,FALSE) -> 0 | M199: 0 | N199: 0
A200: 2.1.2.01.01.001.03 | B200: 2.1.2.01.01.001.03.11 | C200: Sistemas de riego y obras hidráulicas | D200: =+VLOOKUP(B200,'Cuadro 35'!$B$229:$F$1244,5,FALSE) -> 0 | M200: 0 | N200: 0
A201: 2.1.2.01.01.001.03 | B201: 2.1.2.01.01.001.03.12 | C201: Tuberías de larga distancia | D201: =+VLOOKUP(B201,'Cuadro 35'!$B$229:$F$1244,5,FALSE) -> 0 | M201: 0 | N201: 0
A202: 2.1.2.01.01.001.03 | B202: 2.1.2.01.01.001.03.13 | C202: Obras para la comunicación de larga distancia y las líneas eléctricas (cables) | D202: =+VLOOKUP(B202,'Cuadro 35'!$B$229:$F$1244,5,FALSE) -> 0 | M202: =+E202+G202+I202+K202 -> 0 | N202: =+F202+H202+J202+L202 -> 0
A203: 2.1.2.01.01.001.03 | B203: 2.1.2.01.01.001.03.14 | C203: Gasoductos y oleoductos | D203: =+VLOOKUP(B203,'Cuadro 35'!$B$229:$F$1244,5,FALSE) -> 0 | M203: 0 | N203: 0
A204: 2.1.2.01.01.001.03 | B204: 2.1.2.01.01.001.03.15 | C204: Cables locales y obras conexas | D204: =+VLOOKUP(B204,'Cuadro 35'!$B$229:$F$1244,5,FALSE) -> 0 | M204: 0 | N204: 0
A205: 2.1.2.01.01.001.03 | B205: 2.1.2.01.01.001.03.16 | C205: Alcantarillas y plantas de tratamiento de agua | D205: =+VLOOKUP(B205,'Cuadro 35'!$B$229:$F$1244,5,FALSE) -> 0 | M205: 0 | N205: 0
... 820 more rows

Sheet Cuadro 3
V4: NIVEL | W4: =IF('Datos ESE'!C9=0," ",'Datos ESE'!C9) -> 1
A6: CUADRO 3 PRODUCCION
B7: PERIODO DE CORTE | C7: =+'Datos ESE'!C2 -> 2023 | D7: ESE | E7: =IF(+'Datos ESE'!C7=0," ",'Datos ESE'!C7) -> ESE HOSPITAL SAN JOSE DE CONDOTO
A8: UNIDAD FUNCIONAL | C8: CENTRO DE COSTOS | F8: PORTAFOLIO DE SERVICIOS | H8: PROGRAMADO VIGENCIA PSFF | I8: INFORME DE MONITOREO (USO EFECTIVO DE SERVICIOS) | O8: INFORME DE SEGUIMIENTO (USO EFECTIVO DE SERVICIOS) | S8: Concepto | T8: Nivel de atención | W8: Ponderación | X8: INFORME DE MONITOREO PRODUCCIÓN E.S.E. EN UVR | AC8: INFORME DE SEGUIMIENTO
A9: COD | B9: UNIDAD | C9: COD | D9: CENTRO | F9: COD | G9: SERVICIOS | I9: Trimestre 1 | J9: Trimestre 2 | K9: Trimestre 3 | L9: Trimestre 4 | M9: Acumulado Anual | N9: PORCENTAJE DE CUMPLIENTO (%) | O9: ACUMULADO AL CORTE DEL TRIMESTRE | P9: CUMPLIMIENTO (%) | Q9: CONCLUSIONES SEGUIMIENTO (Analice los resultados obtenidos frente a los programados en el PSFF) | R9: Blanco | T9: 1 | U9: 2 | V9: 3 | X9: =I9 -> Trimestre 1 | Y9: =J9 -> Trimestre 2 | Z9: =K9 -> Trimestre 3 | AA9: =L9 -> Trimestre 4 | AB9: =M9 -> Acumulado Anual | AC9: ACUMULADO ANUAL
A10: 1 | B10: URGENCIAS | C10: 1.1 | D10: Consulta y procedimientos | E10: =MID(F10,1,1) -> 1 | F10: 1.1.01 | G10: Consultas de medicina general urgentes | H10: =IFERROR(+VLOOKUP(F10,'Cuadro 32'!E5:K193,7,FALSE)," ") -> 3421.702246 | M10: =SUM(I10:L10) -> 0 | N10: =IFERROR(+M10/H10,0) -> 0 | P10: =IFERROR(+O10/H10,0) -> 0 | S10: =G10 -> Consultas de medicina general urgentes | T10: 5.27 | U10: 5.27 | V10: 5.27 | W10: =IF($W$4=$T$9,T10,(IF($W$4=$U$9,U10,V10))) -> 5.27 | X10: =+I10*$W10 -> 0 | Y10: =+J10*$W10 -> 0 | Z10: =+K10*$W10 -> 0 | AA10: =+L10*$W10 -> 0 | AB10: =+M10*$W10 -> 0 | AC10: =+O10*W10 -> 0
E11: 1 | F11: 1.1.02 | G11: Consultas Especializadas en Urgencias ( o interconsultas) | H11: =IFERROR(+VLOOKUP(F11,'Cuadro 32'!E6:K194,7,FALSE)," ") -> 0 | M11: 0 | N11: 0 | P11: 0 | S11: Consultas Especializadas en Urgencias ( o interconsultas) | U11: 7.53 | V11: 7.53 | W11: 0 | X11: 0 | Y11: 0 | Z11: 0 | AA11: 0 | AB11: 0 | AC11: 0
E12: 1 | F12: 1.1.03 | G12: Urgencias en salud mental o psiquiatría | H12: =IFERROR(+VLOOKUP(F12,'Cuadro 32'!E7:K195,7,FALSE)," ") -> 0 | M12: 0 | N12: 0 | P12: 0 | S12: Urgencias en salud mental o psiquiatría | T12: 5.27 | U12: 5.27 | V12: 5.27 | W12: 5.27 | X12: 0 | Y12: 0 | Z12: 0 | AA12: 0 | AB12: 0 | AC12: 0
E13: 1 | F13: 1.1.04 | G13: Sala de yeso | H13: =IFERROR(+VLOOKUP(F13,'Cuadro 32'!E8:K196,7,FALSE)," ") -> 0 | M13: 0 | N13: 0 | P13: 0 | S13: Sala de yeso | T13: 5.27 | U13: =U11 -> 7.53 | V13: =V11 -> 7.53 | W13: 5.27 | X13: 0 | Y13: 0 | Z13: 0 | AA13: 0 | AB13: 0 | AC13: 0
E14: 1 | F14: 1.1.05 | G14: Sala de reanimación | H14: =IFERROR(+VLOOKUP(F14,'Cuadro 32'!E9:K197,7,FALSE)," ") -> 0 | M14: 0 | N14: 0 | P14: 0 | S14: Sala de reanimación | T14: =T13 -> 5.27 | U14: 7.53 | V14: 7.53 | W14: 5.27 | X14: 0 | Y14: 0 | Z14: 0 | AA14: 0 | AB14: 0 | AC14: 0
E15: 1 | F15: 1.1.06 | G15: Sala general de procedimientos menores | H15: =IFERROR(+VLOOKUP(F15,'Cuadro 32'!E10:K198,7,FALSE)," ") -> 1231.172857 | M15: 0 | N15: 0 | P15: 0 | S15: Sala general de procedimientos menores | T15: 5.27 | U15: 7.53 | V15: 7.53 | W15: 5.27 | X15: 0 | Y15: 0 | Z15: 0 | AA15: 0 | AB15: 0 | AC15: 0
C16: 1.2 | D16: Observación | E16: 1 | F16: 1.2.01 | G16: Sala de enfermedades respiratorias agudas - ERA | H16: =IFERROR(+VLOOKUP(F16,'Cuadro 32'!E11:K199,7,FALSE)," ") -> 0 | M16: 0 | N16: 0 | P16: 0 | S16: Sala de enfermedades respiratorias agudas - ERA | T16: 5.27 | U16: 7.53 | V16: 7.53 | W16: 5.27 | X16: 0 | Y16: 0 | Z16: 0 | AA16: 0 | AB16: 0 | AC16: 0
E17: 1 | F17: 1.2.02 | G17: Sala de rehidratación oral | H17: =IFERROR(+VLOOKUP(F17,'Cuadro 32'!E12:K200,7,FALSE)," ") -> 0 | M17: 0 | N17: 0 | P17: 0 | S17: Sala de rehidratación oral | T17: 5.27 | U17: 7.53 | V17: 7.53 | W17: 5.27 | X17: 0 | Y17: 0 | Z17: 0 | AA17: 0 | AB17: 0 | AC17: 0
E18: 1 | F18: 1.2.03 | G18: Pacientes en observación | H18: =IFERROR(+VLOOKUP(F18,'Cuadro 32'!E13:K201,7,FALSE)," ") -> 1080.812543 | M18: 0 | N18: 0 | P18: 0 | S18: Pacientes en observación | T18: 5.27 | U18: 7.53 | V18: 7.53 | W18: 5.27 | X18: 0 | Y18: 0 | Z18: 0 | AA18: 0 | AB18: 0 | AC18: 0
A19: 2 | B19: SERVICIOS AMBULATORIOS | C19: 2.1 | D19: Consulta externa y procedimientos | E19: 2 | F19: 2.1.01 | G19: Consultas de medicina general electivas | H19: =IFERROR(+VLOOKUP(F19,'Cuadro 32'!E14:K202,7,FALSE)," ") -> 12962.24792 | M19: 0 | N19: 0 | P19: 0 | S19: Consultas de medicina general electivas | T19: 1.82 | U19: 1.82 | V19: 1.82 | W19: 1.82 | X19: 0 | Y19: 0 | Z19: 0 | AA19: 0 | AB19: 0 | AC19: 0
C20: 2.2 | D20: Actividades de promoción y prevención | E20: 2 | F20: 2.2.01 | G20: Vacunación | H20: =IFERROR(+VLOOKUP(F20,'Cuadro 32'!E15:K203,7,FALSE)," ") -> 8346.87599 | M20: 0 | N20: 0 | P20: 0 | S20: Vacunación | T20: 0.15 | U20: 0.15 | V20: 0.15 | W20: 0.15 | X20: 0 | Y20: 0 | Z20: 0 | AA20: 0 | AB20: 0 | AC20: 0
E21: 2 | F21: 2.2.02 | G21: Atención preventiva salud oral higiene oral | H21: =IFERROR(+VLOOKUP(F21,'Cuadro 32'!E16:K204,7,FALSE)," ") -> 1728.015149 | M21: 0 | N21: 0 | P21: 0 | S21: Atención preventiva salud oral higiene oral | T21: =T24 -> 0.75 | U21: 0.75 | V21: 0.75 | W21: 0.75 | X21: 0 | Y21: 0 | Z21: 0 | AA21: 0 | AB21: 0 | AC21: 0
E22: 2 | F22: 2.2.03 | G22: Planificación familiar | H22: =IFERROR(+VLOOKUP(F22,'Cuadro 32'!E17:K205,7,FALSE)," ") -> 0 | M22: 0 | N22: 0 | P22: 0 | S22: Planificación familiar | T22: 0.75 | U22: 0.75 | V22: 0.75 | W22: 0.75 | X22: 0 | Y22: 0 | Z22: 0 | AA22: 0 | AB22: 0 | AC22: 0
E23: 2 | F23: 2.2.04 | G23: Promoción en salud | H23: =IFERROR(+VLOOKUP(F23,'Cuadro 32'!E18:K206,7,FALSE)," ") -> 0 | M23: 0 | N23: 0 | P23: 0 | S23: Promoción en salud | T23: 0.75 | U23: 0.75 | V23: 0.75 | W23: 0.75 | X23: 0 | Y23: 0 | Z23: 0 | AA23: 0 | AB23: 0 | AC23: 0
E24: 2 | F24: 2.2.05 | G24: Controles de Enfermeria de PyP | H24: =IFERROR(+VLOOKUP(F24,'Cuadro 32'!E19:K207,7,FALSE)," ") -> 2211.05922 | M24: 0 | N24: 0 | P24: 0 | S24: Controles de Enfermeria de PyP | T24: 0.75 | U24: 0.75 | V24: 0.75 | W24: 0.75 | X24: 0 | Y24: 0 | Z24: 0 | AA24: 0 | AB24: 0 | AC24: 0
E25: 2 | F25: 2.2.06 | G25: Otros controles de enfermería de PyP (Diferentes a atención prenatal - Crecimiento y desarrollo) | H25: =IFERROR(+VLOOKUP(F25,'Cuadro 32'!E20:K208,7,FALSE)," ") -> 360.8712216 | M25: 0 | N25: 0 | P25: 0 | S25: Otros controles de enfermería de PyP (Diferentes a atención prenatal - Crecimiento y desarrollo) | T25: 0.75 | U25: 0.75 | V25: 0.75 | W25: 0.75 | X25: 0 | Y25: 0 | Z25: 0 | AA25: 0 | AB25: 0 | AC25: 0
E26: 2 | F26: 2.2.07 | G26: Otras actividades de promoción y prevención | H26: =IFERROR(+VLOOKUP(F26,'Cuadro 32'!E21:K209,7,FALSE)," ") -> 0 | M26: 0 | N26: 0 | P26: 0 | S26: Otras actividades de promoción y prevención | T26: 0.75 | U26: 0.75 | V26: 0.75 | W26: 0.75 | X26: 0 | Y26: 0 | Z26: 0 | AA26: 0 | AB26: 0 | AC26: 0
C27: 2.3 | D27: Otras actividades | E27: 2 | F27: 2.3.01 | G27: Otras actividades de apoyo | H27: =IFERROR(+VLOOKUP(F27,'Cuadro 32'!E22:K210,7,FALSE)," ") -> 0 | M27: 0 | N27: 0 | P27: 0 | S27: Otras actividades de apoyo | T27: 0.75 | U27: 0.75 | V27: 0.75 | W27: 0.75 | X27: 0 | Y27: 0 | Z27: 0 | AA27: 0 | AB27: 0 | AC27: 0
C28: 2.4 | D28: Actividades de salud oral | E28: 2 | F28: 2.4.01 | G28: Total consultas odontológicas realizadas (valoración) | H28: =IFERROR(+VLOOKUP(F28,'Cuadro 32'!E23:K211,7,FALSE)," ") -> 5379.707392 | M28: 0 | N28: 0 | P28: 0 | S28: Total consultas odontológicas realizadas (valoración) | T28: 1.82 | U28: 1.82 | V28: 1.82 | W28: 1.82 | X28: 0 | Y28: 0 | Z28: 0 | AA28: 0 | AB28: 0 | AC28: 0
E29: 2 | F29: 2.4.02 | G29: Sellantes aplicados | H29: =IFERROR(+VLOOKUP(F29,'Cuadro 32'!E24:K212,7,FALSE)," ") -> 9239.61542 | M29: 0 | N29: 0 | P29: 0 | S29: Sellantes aplicados | T29: 1.06 | U29: 1.06 | V29: 1.06 | W29: 1.06 | X29: 0 | Y29: 0 | Z29: 0 | AA29: 0 | AB29: 0 | AC29: 0
E30: 2 | F30: 2.4.03 | G30: Superficies obturadas | H30: =IFERROR(+VLOOKUP(F30,'Cuadro 32'!E25:K213,7,FALSE)," ") -> 676.8433608 | M30: 0 | N30: 0 | P30: 0 | S30: Superficies obturadas | T30: 1.06 | U30: 1.06 | V30: 1.06 | W30: 1.06 | X30: 0 | Y30: 0 | Z30: 0 | AA30: 0 | AB30: 0 | AC30: 0
E31: 2 | F31: 2.4.04 | G31: Exodoncias | H31: =IFERROR(+VLOOKUP(F31,'Cuadro 32'!E26:K214,7,FALSE)," ") -> 456.5721401 | M31: 0 | N31: 0 | P31: 0 | S31: Exodoncias | T31: 2.1 | U31: 2.1 | V31: 2.1 | W31: 2.1 | X31: 0 | Y31: 0 | Z31: 0 | AA31: 0 | AB31: 0 | AC31: 0
C32: 2.5 | D32: Consulta especializada | E32: 2 | F32: 2.5.01 | G32: Anestesia | H32: =IFERROR(+VLOOKUP(F32,'Cuadro 32'!E27:K215,7,FALSE)," ") -> 0 | M32: 0 | N32: 0 | P32: 0 | S32: Anestesia | T32: 2.6 | U32: 2.6 | V32: 2.6 | W32: 2.6 | X32: 0 | Y32: 0 | Z32: 0 | AA32: 0 | AB32: 0 | AC32: 0
E33: 2 | F33: 2.5.02 | G33: Cardiología | H33: =IFERROR(+VLOOKUP(F33,'Cuadro 32'!E28:K216,7,FALSE)," ") -> 0 | M33: 0 | N33: 0 | P33: 0 | S33: Cardiología | T33: 2.6 | U33: 2.6 | V33: 2.6 | W33: 2.6 | X33: 0 | Y33: 0 | Z33: 0 | AA33: 0 | AB33: 0 | AC33: 0
E34: 2 | F34: 2.5.03 | G34: Cirugía cardiovascular | H34: =IFERROR(+VLOOKUP(F34,'Cuadro 32'!E29:K217,7,FALSE)," ") -> 0 | M34: 0 | N34: 0 | P34: 0 | S34: Cirugía cardiovascular | T34: 2.6 | U34: 2.6 | V34: 2.6 | W34: 2.6 | X34: 0 | Y34: 0 | Z34: 0 | AA34: 0 | AB34: 0 | AC34: 0
E35: 2 | F35: 2.5.04 | G35: Cirugía general | H35: =IFERROR(+VLOOKUP(F35,'Cuadro 32'!E30:K218,7,FALSE)," ") -> 0 | M35: 0 | N35: 0 | P35: 0 | S35: Cirugía general | T35: 2.6 | U35: 2.6 | V35: 2.6 | W35: 2.6 | X35: 0 | Y35: 0 | Z35: 0 | AA35: 0 | AB35: 0 | AC35: 0
E36: 2 | F36: 2.5.05 | G36: Cirugía neurológica | H36: =IFERROR(+VLOOKUP(F36,'Cuadro 32'!E31:K219,7,FALSE)," ") -> 0 | M36: 0 | N36: 0 | P36: 0 | S36: Cirugía neurológica | T36: 2.6 | U36: 2.6 | V36: 2.6 | W36: 2.6 | X36: 0 | Y36: 0 | Z36: 0 | AA36: 0 | AB36: 0 | AC36: 0
E37: 2 | F37: 2.5.06 | G37: Cirugía pediátrica | H37: =IFERROR(+VLOOKUP(F37,'Cuadro 32'!E32:K220,7,FALSE)," ") -> 0 | M37: 0 | N37: 0 | P37: 0 | S37: Cirugía pediátrica | T37: 2.6 | U37: 2.6 | V37: 2.6 | W37: 2.6 | X37: 0 | Y37: 0 | Z37: 0 | AA37: 0 | AB37: 0 | AC37: 0
E38: 2 | F38: 2.5.07 | G38: Dermatología | H38: =IFERROR(+VLOOKUP(F38,'Cuadro 32'!E33:K221,7,FALSE)," ") -> 0 | M38: 0 | N38: 0 | P38: 0 | S38: Dermatología | T38: 2.6 | U38: 2.6 | V38: 2.6 | W38: 2.6 | X38: 0 | Y38: 0 | Z38: 0 | AA38: 0 | AB38: 0 | AC38: 0
E39: 2 | F39: 2.5.08 | G39: Dolor y cuidados paliativos | H39: =IFERROR(+VLOOKUP(F39,'Cuadro 32'!E34:K222,7,FALSE)," ") -> 0 | M39: 0 | N39: 0 | P39: 0 | S39: Dolor y cuidados paliativos | T39: 2.6 | U39: 2.6 | V39: 2.6 | W39: 2.6 | X39: 0 | Y39: 0 | Z39: 0 | AA39: 0 | AB39: 0 | AC39: 0
E40: 2 | F40: 2.5.09 | G40: Endocrinología | H40: =IFERROR(+VLOOKUP(F40,'Cuadro 32'!E35:K223,7,FALSE)," ") -> 0 | M40: 0 | N40: 0 | P40: 0 | S40: Endocrinología | T40: 2.6 | U40: 2.6 | V40: 2.6 | W40: 2.6 | X40: 0 | Y40: 0 | Z40: 0 | AA40: 0 | AB40: 0 | AC40: 0
E41: 2 | F41: 2.5.10 | G41: Endodoncia | H41: =IFERROR(+VLOOKUP(F41,'Cuadro 32'!E36:K224,7,FALSE)," ") -> 0 | M41: 0 | N41: 0 | P41: 0 | S41: Endodoncia | T41: 2.6 | U41: 2.6 | V41: 2.6 | W41: 2.6 | X41: 0 | Y41: 0 | Z41: 0 | AA41: 0 | AB41: 0 | AC41: 0
E42: =MID(F42,1,1) -> 2 | F42: 2.5.11 | G42: Estomatología | H42: =IFERROR(+VLOOKUP(F42,'Cuadro 32'!E37:K225,7,FALSE)," ") -> 0 | M42: =SUM(I42:L42) -> 0 | N42: =IFERROR(+M42/H42,0) -> 0 | P42: =IFERROR(+O42/H42,0) -> 0 | S42: =G42 -> Estomatología | T42: 2.6 | U42: 2.6 | V42: 2.6 | W42: =IF($W$4=$T$9,T42,(IF($W$4=$U$9,U42,V42))) -> 2.6 | X42: =+I42*$W42 -> 0 | Y42: =+J42*$W42 -> 0 | Z42: =+K42*$W42 -> 0 | AA42: =+L42*$W42 -> 0 | AB42: =+M42*$W42 -> 0 | AC42: =+O42*W42 -> 0
E43: 2 | F43: 2.5.12 | G43: Gastroenterología | H43: =IFERROR(+VLOOKUP(F43,'Cuadro 32'!E38:K226,7,FALSE)," ") -> 0 | M43: 0 | N43: 0 | P43: 0 | S43: Gastroenterología | T43: 2.6 | U43: 2.6 | V43: 2.6 | W43: 2.6 | X43: 0 | Y43: 0 | Z43: 0 | AA43: 0 | AB43: 0 | AC43: 0
E44: 2 | F44: 2.5.13 | G44: Genética | H44: =IFERROR(+VLOOKUP(F44,'Cuadro 32'!E39:K227,7,FALSE)," ") -> 0 | M44: 0 | N44: 0 | P44: 0 | S44: Genética | T44: 2.6 | U44: 2.6 | V44: 2.6 | W44: 2.6 | X44: 0 | Y44: 0 | Z44: 0 | AA44: 0 | AB44: 0 | AC44: 0
E45: 2 | F45: 2.5.14 | G45: Geriatría | H45: =IFERROR(+VLOOKUP(F45,'Cuadro 32'!E40:K228,7,FALSE)," ") -> 0 | M45: 0 | N45: 0 | P45: 0 | S45: Geriatría | T45: 2.6 | U45: 2.6 | V45: 2.6 | W45: 2.6 | X45: 0 | Y45: 0 | Z45: 0 | AA45: 0 | AB45: 0 | AC45: 0
E46: 2 | F46: 2.5.15 | G46: Gerontología | H46: =IFERROR(+VLOOKUP(F46,'Cuadro 32'!E41:K229,7,FALSE)," ") -> 0 | M46: 0 | N46: 0 | P46: 0 | S46: Gerontología | T46: 2.6 | U46: 2.6 | V46: 2.6 | W46: 2.6 | X46: 0 | Y46: 0 | Z46: 0 | AA46: 0 | AB46: 0 | AC46: 0
E47: 2 | F47: 2.5.16 | G47: Ginecobstretricia | H47: =IFERROR(+VLOOKUP(F47,'Cuadro 32'!E42:K230,7,FALSE)," ") -> 0 | M47: 0 | N47: 0 | P47: 0 | S47: Ginecobstretricia | T47: 2.6 | U47: 2.6 | V47: 2.6 | W47: 2.6 | X47: 0 | Y47: 0 | Z47: 0 | AA47: 0 | AB47: 0 | AC47: 0
E48: 2 | F48: 2.5.17 | G48: Hematología | H48: =IFERROR(+VLOOKUP(F48,'Cuadro 32'!E43:K231,7,FALSE)," ") -> 0 | M48: 0 | N48: 0 | P48: 0 | S48: Hematología | T48: 2.6 | U48: 2.6 | V48: 2.6 | W48: 2.6 | X48: 0 | Y48: 0 | Z48: 0 | AA48: 0 | AB48: 0 | AC48: 0
E49: 2 | F49: 2.5.18 | G49: Implantología | H49: =IFERROR(+VLOOKUP(F49,'Cuadro 32'!E44:K232,7,FALSE)," ") -> 0 | M49: 0 | N49: 0 | P49: 0 | S49: Implantología | T49: 2.6 | U49: 2.6 | V49: 2.6 | W49: 2.6 | X49: 0 | Y49: 0 | Z49: 0 | AA49: 0 | AB49: 0 | AC49: 0
E50: 2 | F50: 2.5.19 | G50: Infectología | H50: =IFERROR(+VLOOKUP(F50,'Cuadro 32'!E45:K233,7,FALSE)," ") -> 0 | M50: 0 | N50: 0 | P50: 0 | S50: Infectología | T50: 2.6 | U50: 2.6 | V50: 2.6 | W50: 2.6 | X50: 0 | Y50: 0 | Z50: 0 | AA50: 0 | AB50: 0 | AC50: 0
E51: 2 | F51: 2.5.20 | G51: Inmunología | H51: =IFERROR(+VLOOKUP(F51,'Cuadro 32'!E46:K234,7,FALSE)," ") -> 0 | M51: 0 | N51: 0 | P51: 0 | S51: Inmunología | T51: 2.6 | U51: 2.6 | V51: 2.6 | W51: 2.6 | X51: 0 | Y51: 0 | Z51: 0 | AA51: 0 | AB51: 0 | AC51: 0
E52: 2 | F52: 2.5.21 | G52: Medicina familiar | H52: =IFERROR(+VLOOKUP(F52,'Cuadro 32'!E47:K235,7,FALSE)," ") -> 0 | M52: 0 | N52: 0 | P52: 0 | S52: Medicina familiar | T52: 2.6 | U52: 2.6 | V52: 2.6 | W52: 2.6 | X52: 0 | Y52: 0 | Z52: 0 | AA52: 0 | AB52: 0 | AC52: 0
E53: 2 | F53: 2.5.22 | G53: Medicina física y del deporte | H53: =IFERROR(+VLOOKUP(F53,'Cuadro 32'!E48:K236,7,FALSE)," ") -> 0 | M53: 0 | N53: 0 | P53: 0 | S53: Medicina física y del deporte | T53: 2.6 | U53: 2.6 | V53: 2.6 | W53: 2.6 | X53: 0 | Y53: 0 | Z53: 0 | AA53: 0 | AB53: 0 | AC53: 0
E54: 2 | F54: 2.5.23 | G54: Medicina física y rehabilitación | H54: =IFERROR(+VLOOKUP(F54,'Cuadro 32'!E49:K237,7,FALSE)," ") -> 0 | M54: 0 | N54: 0 | P54: 0 | S54: Medicina física y rehabilitación | T54: 2.6 | U54: 2.6 | V54: 2.6 | W54: 2.6 | X54: 0 | Y54: 0 | Z54: 0 | AA54: 0 | AB54: 0 | AC54: 0
E55: 2 | F55: 2.5.24 | G55: Medicina interna | H55: =IFERROR(+VLOOKUP(F55,'Cuadro 32'!E50:K238,7,FALSE)," ") -> 0 | M55: 0 | N55: 0 | P55: 0 | S55: Medicina interna | T55: 2.6 | U55: 2.6 | V55: 2.6 | W55: 2.6 | X55: 0 | Y55: 0 | Z55: 0 | AA55: 0 | AB55: 0 | AC55: 0
E56: 2 | F56: 2.5.25 | G56: Nefrología | H56: =IFERROR(+VLOOKUP(F56,'Cuadro 32'!E51:K239,7,FALSE)," ") -> 0 | M56: 0 | N56: 0 | P56: 0 | S56: Nefrología | T56: 2.6 | U56: 2.6 | V56: 2.6 | W56: 2.6 | X56: 0 | Y56: 0 | Z56: 0 | AA56: 0 | AB56: 0 | AC56: 0
E57: 2 | F57: 2.5.26 | G57: Neumología | H57: =IFERROR(+VLOOKUP(F57,'Cuadro 32'!E52:K240,7,FALSE)," ") -> 0 | M57: 0 | N57: 0 | P57: 0 | S57: Neumología | T57: 2.6 | U57: 2.6 | V57: 2.6 | W57: 2.6 | X57: 0 | Y57: 0 | Z57: 0 | AA57: 0 | AB57: 0 | AC57: 0
E58: 2 | F58: 2.5.27 | G58: Neurología | H58: =IFERROR(+VLOOKUP(F58,'Cuadro 32'!E53:K241,7,FALSE)," ") -> 0 | M58: 0 | N58: 0 | P58: 0 | S58: Neurología | T58: 2.6 | U58: 2.6 | V58: 2.6 | W58: 2.6 | X58: 0 | Y58: 0 | Z58: 0 | AA58: 0 | AB58: 0 | AC58: 0
E59: 2 | F59: 2.5.28 | G59: Nutrición y dietética | H59: =IFERROR(+VLOOKUP(F59,'Cuadro 32'!E54:K242,7,FALSE)," ") -> 0 | M59: 0 | N59: 0 | P59: 0 | S59: Nutrición y dietética | T59: =T62 -> 0.75 | U59: =U62 -> 0.75 | V59: =V62 -> 0.75 | W59: 0.75 | X59: 0 | Y59: 0 | Z59: 0 | AA59: 0 | AB59: 0 | AC59: 0
E60: 2 | F60: 2.5.29 | G60: Oftalmología | H60: =IFERROR(+VLOOKUP(F60,'Cuadro 32'!E55:K243,7,FALSE)," ") -> 0 | M60: 0 | N60: 0 | P60: 0 | S60: Oftalmología | T60: 2.6 | U60: 2.6 | V60: 2.6 | W60: 2.6 | X60: 0 | Y60: 0 | Z60: 0 | AA60: 0 | AB60: 0 | AC60: 0
E61: 2 | F61: 2.5.30 | G61: Oncología clínica | H61: =IFERROR(+VLOOKUP(F61,'Cuadro 32'!E56:K244,7,FALSE)," ") -> 0 | M61: 0 | N61: 0 | P61: 0 | S61: Oncología clínica | T61: 2.6 | U61: 2.6 | V61: 2.6 | W61: 2.6 | X61: 0 | Y61: 0 | Z61: 0 | AA61: 0 | AB61: 0 | AC61: 0
E62: 2 | F62: 2.5.31 | G62: Optometría | H62: =IFERROR(+VLOOKUP(F62,'Cuadro 32'!E57:K245,7,FALSE)," ") -> 0 | M62: 0 | N62: 0 | P62: 0 | S62: Optometría | T62: =T24 -> 0.75 | U62: =U24 -> 0.75 | V62: =V24 -> 0.75 | W62: 0.75 | X62: 0 | Y62: 0 | Z62: 0 | AA62: 0 | AB62: 0 | AC62: 0
E63: 2 | F63: 2.5.32 | G63: Ortodoncia | H63: =IFERROR(+VLOOKUP(F63,'Cuadro 32'!E58:K246,7,FALSE)," ") -> 0 | M63: 0 | N63: 0 | P63: 0 | S63: Ortodoncia | T63: 2.6 | U63: 2.6 | V63: 2.6 | W63: 2.6 | X63: 0 | Y63: 0 | Z63: 0 | AA63: 0 | AB63: 0 | AC63: 0
E64: 2 | F64: 2.5.33 | G64: Ortopedia y/o traumatología | H64: =IFERROR(+VLOOKUP(F64,'Cuadro 32'!E59:K247,7,FALSE)," ") -> 0 | M64: 0 | N64: 0 | P64: 0 | S64: Ortopedia y/o traumatología | T64: 2.6 | U64: 2.6 | V64: 2.6 | W64: 2.6 | X64: 0 | Y64: 0 | Z64: 0 | AA64: 0 | AB64: 0 | AC64: 0
E65: 2 | F65: 2.5.34 | G65: Otorrinolaringología | H65: =IFERROR(+VLOOKUP(F65,'Cuadro 32'!E60:K248,7,FALSE)," ") -> 0 | M65: 0 | N65: 0 | P65: 0 | S65: Otorrinolaringología | T65: 2.6 | U65: 2.6 | V65: 2.6 | W65: 2.6 | X65: 0 | Y65: 0 | Z65: 0 | AA65: 0 | AB65: 0 | AC65: 0
E66: 2 | F66: 2.5.35 | G66: Patología | H66: =IFERROR(+VLOOKUP(F66,'Cuadro 32'!E61:K249,7,FALSE)," ") -> 0 | M66: 0 | N66: 0 | P66: 0 | S66: Patología | T66: 2.6 | U66: 2.6 | V66: 2.6 | W66: 2.6 | X66: 0 | Y66: 0 | Z66: 0 | AA66: 0 | AB66: 0 | AC66: 0
E67: 2 | F67: 2.5.36 | G67: Pediatría | H67: =IFERROR(+VLOOKUP(F67,'Cuadro 32'!E62:K250,7,FALSE)," ") -> 0 | M67: 0 | N67: 0 | P67: 0 | S67: Pediatría | T67: 2.6 | U67: 2.6 | V67: 2.6 | W67: 2.6 | X67: 0 | Y67: 0 | Z67: 0 | AA67: 0 | AB67: 0 | AC67: 0
E68: 2 | F68: 2.5.37 | G68: Periodoncia | H68: =IFERROR(+VLOOKUP(F68,'Cuadro 32'!E63:K251,7,FALSE)," ") -> 0 | M68: 0 | N68: 0 | P68: 0 | S68: Periodoncia | T68: 2.6 | U68: 2.6 | V68: 2.6 | W68: 2.6 | X68: 0 | Y68: 0 | Z68: 0 | AA68: 0 | AB68: 0 | AC68: 0
E69: 2 | F69: 2.5.38 | G69: Psicología | H69: =IFERROR(+VLOOKUP(F69,'Cuadro 32'!E64:K252,7,FALSE)," ") -> 0 | M69: 0 | N69: 0 | P69: 0 | S69: Psicología | T69: =T62 -> 0.75 | U69: =U62 -> 0.75 | V69: =V62 -> 0.75 | W69: 0.75 | X69: 0 | Y69: 0 | Z69: 0 | AA69: 0 | AB69: 0 | AC69: 0
E70: 2 | F70: 2.5.39 | G70: Psiquiatría | H70: =IFERROR(+VLOOKUP(F70,'Cuadro 32'!E65:K253,7,FALSE)," ") -> 0 | M70: 0 | N70: 0 | P70: 0 | S70: Psiquiatría | T70: 2.6 | U70: 2.6 | V70: 2.6 | W70: 2.6 | X70: 0 | Y70: 0 | Z70: 0 | AA70: 0 | AB70: 0 | AC70: 0
E71: 2 | F71: 2.5.40 | G71: Rehabilitación oncológica | H71: =IFERROR(+VLOOKUP(F71,'Cuadro 32'!E66:K254,7,FALSE)," ") -> 0 | M71: 0 | N71: 0 | P71: 0 | S71: Rehabilitación oncológica | T71: 2.6 | U71: 2.6 | V71: 2.6 | W71: 2.6 | X71: 0 | Y71: 0 | Z71: 0 | AA71: 0 | AB71: 0 | AC71: 0
E72: 2 | F72: 2.5.41 | G72: Rehabilitación oral | H72: =IFERROR(+VLOOKUP(F72,'Cuadro 32'!E67:K255,7,FALSE)," ") -> 0 | M72: 0 | N72: 0 | P72: 0 | S72: Rehabilitación oral | T72: 2.6 | U72: 2.6 | V72: 2.6 | W72: 2.6 | X72: 0 | Y72: 0 | Z72: 0 | AA72: 0 | AB72: 0 | AC72: 0
E73: 2 | F73: 2.5.42 | G73: Reumatología | H73: =IFERROR(+VLOOKUP(F73,'Cuadro 32'!E68:K256,7,FALSE)," ") -> 0 | M73: 0 | N73: 0 | P73: 0 | S73: Reumatología | T73: 2.6 | U73: 2.6 | V73: 2.6 | W73: 2.6 | X73: 0 | Y73: 0 | Z73: 0 | AA73: 0 | AB73: 0 | AC73: 0
E74: =MID(F74,1,1) -> 2 | F74: 2.5.43 | G74: Salud ocupacional | H74: =IFERROR(+VLOOKUP(F74,'Cuadro 32'!E69:K257,7,FALSE)," ") -> 0 | M74: =SUM(I74:L74) -> 0 | N74: =IFERROR(+M74/H74,0) -> 0 | P74: =IFERROR(+O74/H74,0) -> 0 | S74: =G74 -> Salud ocupacional | T74: =T69 -> 0.75 | U74: =U69 -> 0.75 | V74: =V69 -> 0.75 | W74: =IF($W$4=$T$9,T74,(IF($W$4=$U$9,U74,V74))) -> 0.75 | X74: =+I74*$W74 -> 0 | Y74: =+J74*$W74 -> 0 | Z74: =+K74*$W74 -> 0 | AA74: =+L74*$W74 -> 0 | AB74: =+M74*$W74 -> 0 | AC74: =+O74*W74 -> 0
E75: 2 | F75: 2.5.44 | G75: Medicina alternativa - terapia alternativa | H75: =IFERROR(+VLOOKUP(F75,'Cuadro 32'!E70:K258,7,FALSE)," ") -> 0 | M75: 0 | N75: 0 | P75: 0 | S75: Medicina alternativa - terapia alternativa | T75: 2.6 | U75: 2.6 | V75: 2.6 | W75: 2.6 | X75: 0 | Y75: 0 | Z75: 0 | AA75: 0 | AB75: 0 | AC75: 0
E76: 2 | F76: 2.5.45 | G76: Toxicología | H76: =IFERROR(+VLOOKUP(F76,'Cuadro 32'!E71:K259,7,FALSE)," ") -> 0 | M76: 0 | N76: 0 | P76: 0 | S76: Toxicología | T76: 2.6 | U76: 2.6 | V76: 2.6 | W76: 2.6 | X76: 0 | Y76: 0 | Z76: 0 | AA76: 0 | AB76: 0 | AC76: 0
E77: 2 | F77: 2.5.46 | G77: Urología | H77: =IFERROR(+VLOOKUP(F77,'Cuadro 32'!E72:K260,7,FALSE)," ") -> 0 | M77: 0 | N77: 0 | P77: 0 | S77: Urología | T77: 2.6 | U77: 2.6 | V77: 2.6 | W77: 2.6 | X77: 0 | Y77: 0 | Z77: 0 | AA77: 0 | AB77: 0 | AC77: 0
E78: 2 | F78: 2.5.47 | G78: Otras consultas de especialidad; cuál? | H78: =IFERROR(+VLOOKUP(F78,'Cuadro 32'!E73:K261,7,FALSE)," ") -> 0 | M78: 0 | N78: 0 | P78: 0 | S78: Otras consultas de especialidad; cuál? | T78: 2.6 | U78: 2.6 | V78: 2.6 | W78: 2.6 | X78: 0 | Y78: 0 | Z78: 0 | AA78: 0 | AB78: 0 | AC78: 0
E79: 2 | F79: 2.5.48 | G79: Consulta prioritaria | H79: =IFERROR(+VLOOKUP(F79,'Cuadro 32'!E74:K262,7,FALSE)," ") -> 0 | M79: 0 | N79: 0 | P79: 0 | S79: Consulta prioritaria | T79: =T19 -> 1.82 | U79: =U19 -> 1.82 | V79: =V19 -> 1.82 | W79: 1.82 | X79: 0 | Y79: 0 | Z79: 0 | AA79: 0 | AB79: 0 | AC79: 0
E80: 2 | F80: 2.5.49 | G80: Cardiología pediátrica | H80: =IFERROR(+VLOOKUP(F80,'Cuadro 32'!E75:K263,7,FALSE)," ") -> 0 | M80: 0 | N80: 0 | P80: 0 | S80: Cardiología pediátrica | T80: 2.6 | U80: 2.6 | V80: 2.6 | W80: 2.6 | X80: 0 | Y80: 0 | Z80: 0 | AA80: 0 | AB80: 0 | AC80: 0
E81: 2 | F81: 2.5.50 | G81: Cirugía de cabeza y cuello | H81: =IFERROR(+VLOOKUP(F81,'Cuadro 32'!E76:K264,7,FALSE)," ") -> 0 | M81: 0 | N81: 0 | P81: 0 | S81: Cirugía de cabeza y cuello | T81: 2.6 | U81: 2.6 | V81: 2.6 | W81: 2.6 | X81: 0 | Y81: 0 | Z81: 0 | AA81: 0 | AB81: 0 | AC81: 0
E82: 2 | F82: 2.5.51 | G82: Cirugía de mano | H82: =IFERROR(+VLOOKUP(F82,'Cuadro 32'!E77:K265,7,FALSE)," ") -> 0 | M82: 0 | N82: 0 | P82: 0 | S82: Cirugía de mano | T82: 2.6 | U82: 2.6 | V82: 2.6 | W82: 2.6 | X82: 0 | Y82: 0 | Z82: 0 | AA82: 0 | AB82: 0 | AC82: 0
E83: 2 | F83: 2.5.52 | G83: Cirugía de mama y tumores tejidos blandos | H83: =IFERROR(+VLOOKUP(F83,'Cuadro 32'!E78:K266,7,FALSE)," ") -> 0 | M83: 0 | N83: 0 | P83: 0 | S83: Cirugía de mama y tumores tejidos blandos | T83: 2.6 | U83: 2.6 | V83: 2.6 | W83: 2.6 | X83: 0 | Y83: 0 | Z83: 0 | AA83: 0 | AB83: 0 | AC83: 0
E84: 2 | F84: 2.5.53 | G84: Cirugía dermatológica | H84: =IFERROR(+VLOOKUP(F84,'Cuadro 32'!E79:K267,7,FALSE)," ") -> 0 | M84: 0 | N84: 0 | P84: 0 | S84: Cirugía dermatológica | T84: 2.6 | U84: 2.6 | V84: 2.6 | W84: 2.6 | X84: 0 | Y84: 0 | Z84: 0 | AA84: 0 | AB84: 0 | AC84: 0
E85: 2 | F85: 2.5.54 | G85: Cirugía de tórax | H85: =IFERROR(+VLOOKUP(F85,'Cuadro 32'!E80:K268,7,FALSE)," ") -> 0 | M85: 0 | N85: 0 | P85: 0 | S85: Cirugía de tórax | T85: 2.6 | U85: 2.6 | V85: 2.6 | W85: 2.6 | X85: 0 | Y85: 0 | Z85: 0 | AA85: 0 | AB85: 0 | AC85: 0
E86: 2 | F86: 2.5.55 | G86: Cirugía gastrointestinal | H86: =IFERROR(+VLOOKUP(F86,'Cuadro 32'!E81:K269,7,FALSE)," ") -> 0 | M86: 0 | N86: 0 | P86: 0 | S86: Cirugía gastrointestinal | T86: 2.6 | U86: 2.6 | V86: 2.6 | W86: 2.6 | X86: 0 | Y86: 0 | Z86: 0 | AA86: 0 | AB86: 0 | AC86: 0
E87: 2 | F87: 2.5.56 | G87: Cirugía ginecológica laparoscópica | H87: =IFERROR(+VLOOKUP(F87,'Cuadro 32'!E82:K270,7,FALSE)," ") -> 0 | M87: 0 | N87: 0 | P87: 0 | S87: Cirugía ginecológica laparoscópica | T87: 2.6 | U87: 2.6 | V87: 2.6 | W87: 2.6 | X87: 0 | Y87: 0 | Z87: 0 | AA87: 0 | AB87: 0 | AC87: 0
E88: 2 | F88: 2.5.57 | G88: Cirugía plástica y estética | H88: =IFERROR(+VLOOKUP(F88,'Cuadro 32'!E83:K271,7,FALSE)," ") -> 0 | M88: 0 | N88: 0 | P88: 0 | S88: Cirugía plástica y estética | T88: 2.6 | U88: 2.6 | V88: 2.6 | W88: 2.6 | X88: 0 | Y88: 0 | Z88: 0 | AA88: 0 | AB88: 0 | AC88: 0
E89: 2 | F89: 2.5.58 | G89: Cirugía plástica oncológica | H89: =IFERROR(+VLOOKUP(F89,'Cuadro 32'!E84:K272,7,FALSE)," ") -> 0 | M89: 0 | N89: 0 | P89: 0 | S89: Cirugía plástica oncológica | T89: 2.6 | U89: 2.6 | V89: 2.6 | W89: 2.6 | X89: 0 | Y89: 0 | Z89: 0 | AA89: 0 | AB89: 0 | AC89: 0
E90: 2 | F90: 2.5.59 | G90: Cirugía vascular | H90: =IFERROR(+VLOOKUP(F90,'Cuadro 32'!E85:K273,7,FALSE)," ") -> 0 | M90: 0 | N90: 0 | P90: 0 | S90: Cirugía vascular | T90: 2.6 | U90: 2.6 | V90: 2.6 | W90: 2.6 | X90: 0 | Y90: 0 | Z90: 0 | AA90: 0 | AB90: 0 | AC90: 0
E91: 2 | F91: 2.5.60 | G91: Cirugía oncológica | H91: =IFERROR(+VLOOKUP(F91,'Cuadro 32'!E86:K274,7,FALSE)," ") -> 0 | M91: 0 | N91: 0 | P91: 0 | S91: Cirugía oncológica | T91: 2.6 | U91: 2.6 | V91: 2.6 | W91: 2.6 | X91: 0 | Y91: 0 | Z91: 0 | AA91: 0 | AB91: 0 | AC91: 0
E92: 2 | F92: 2.5.61 | G92: Cirugía oncológica pediátrica | H92: =IFERROR(+VLOOKUP(F92,'Cuadro 32'!E87:K275,7,FALSE)," ") -> 0 | M92: 0 | N92: 0 | P92: 0 | S92: Cirugía oncológica pediátrica | T92: 2.6 | U92: 2.6 | V92: 2.6 | W92: 2.6 | X92: 0 | Y92: 0 | Z92: 0 | AA92: 0 | AB92: 0 | AC92: 0
E93: 2 | F93: 2.5.62 | G93: Dermatología oncológica | H93: =IFERROR(+VLOOKUP(F93,'Cuadro 32'!E88:K276,7,FALSE)," ") -> 0 | M93: 0 | N93: 0 | P93: 0 | S93: Dermatología oncológica | T93: 2.6 | U93: 2.6 | V93: 2.6 | W93: 2.6 | X93: 0 | Y93: 0 | Z93: 0 | AA93: 0 | AB93: 0 | AC93: 0
E94: 2 | F94: 2.5.63 | G94: Coloproctología | H94: =IFERROR(+VLOOKUP(F94,'Cuadro 32'!E89:K277,7,FALSE)," ") -> 0 | M94: 0 | N94: 0 | P94: 0 | S94: Coloproctología | T94: 2.6 | U94: 2.6 | V94: 2.6 | W94: 2.6 | X94: 0 | Y94: 0 | Z94: 0 | AA94: 0 | AB94: 0 | AC94: 0
E95: 2 | F95: 2.5.64 | G95: Electrofisiología. marcapasos y arritmias cardíaca | H95: =IFERROR(+VLOOKUP(F95,'Cuadro 32'!E90:K278,7,FALSE)," ") -> 0 | M95: 0 | N95: 0 | P95: 0 | S95: Electrofisiología. marcapasos y arritmias cardíaca | T95: 2.6 | U95: 2.6 | V95: 2.6 | W95: 2.6 | X95: 0 | Y95: 0 | Z95: 0 | AA95: 0 | AB95: 0 | AC95: 0
E96: 2 | F96: 2.5.65 | G96: Ginecología oncológica | H96: =IFERROR(+VLOOKUP(F96,'Cuadro 32'!E91:K279,7,FALSE)," ") -> 0 | M96: 0 | N96: 0 | P96: 0 | S96: Ginecología oncológica | T96: 2.6 | U96: 2.6 | V96: 2.6 | W96: 2.6 | X96: 0 | Y96: 0 | Z96: 0 | AA96: 0 | AB96: 0 | AC96: 0
E97: 2 | F97: 2.5.66 | G97: Hematología y oncología clínica | H97: =IFERROR(+VLOOKUP(F97,'Cuadro 32'!E92:K280,7,FALSE)," ") -> 0 | M97: 0 | N97: 0 | P97: 0 | S97: Hematología y oncología clínica | T97: 2.6 | U97: 2.6 | V97: 2.6 | W97: 2.6 | X97: 0 | Y97: 0 | Z97: 0 | AA97: 0 | AB97: 0 | AC97: 0
E98: 2 | F98: 2.5.67 | G98: Medicina nuclear | H98: =IFERROR(+VLOOKUP(F98,'Cuadro 32'!E93:K281,7,FALSE)," ") -> 0 | M98: 0 | N98: 0 | P98: 0 | S98: Medicina nuclear | T98: 2.6 | U98: 2.6 | V98: 2.6 | W98: 2.6 | X98: 0 | Y98: 0 | Z98: 0 | AA98: 0 | AB98: 0 | AC98: 0
E99: 2 | F99: 2.5.68 | G99: Nefrología pediátrica | H99: =IFERROR(+VLOOKUP(F99,'Cuadro 32'!E94:K282,7,FALSE)," ") -> 0 | M99: 0 | N99: 0 | P99: 0 | S99: Nefrología pediátrica | T99: 2.6 | U99: 2.6 | V99: 2.6 | W99: 2.6 | X99: 0 | Y99: 0 | Z99: 0 | AA99: 0 | AB99: 0 | AC99: 0
E100: 2 | F100: 2.5.69 | G100: Neonatología | H100: =IFERROR(+VLOOKUP(F100,'Cuadro 32'!E95:K283,7,FALSE)," ") -> 0 | M100: 0 | N100: 0 | P100: 0 | S100: Neonatología | T100: 2.6 | U100: 2.6 | V100: 2.6 | W100: 2.6 | X100: 0 | Y100: 0 | Z100: 0 | AA100: 0 | AB100: 0 | AC100: 0
E101: 2 | F101: 2.5.70 | G101: Neumología pediátrica | H101: =IFERROR(+VLOOKUP(F101,'Cuadro 32'!E96:K284,7,FALSE)," ") -> 0 | M101: 0 | N101: 0 | P101: 0 | S101: Neumología pediátrica | T101: 2.6 | U101: 2.6 | V101: 2.6 | W101: 2.6 | X101: 0 | Y101: 0 | Z101: 0 | AA101: 0 | AB101: 0 | AC101: 0
E102: 2 | F102: 2.5.71 | G102: Neurocirugía | H102: =IFERROR(+VLOOKUP(F102,'Cuadro 32'!E97:K285,7,FALSE)," ") -> 0 | M102: 0 | N102: 0 | P102: 0 | S102: Neurocirugía | T102: 2.6 | U102: 2.6 | V102: 2.6 | W102: 2.6 | X102: 0 | Y102: 0 | Z102: 0 | AA102: 0 | AB102: 0 | AC102: 0
E103: 2 | F103: 2.5.72 | G103: Neuropediatría | H103: =IFERROR(+VLOOKUP(F103,'Cuadro 32'!E98:K286,7,FALSE)," ") -> 0 | M103: 0 | N103: 0 | P103: 0 | S103: Neuropediatría | T103: 2.6 | U103: 2.6 | V103: 2.6 | W103: 2.6 | X103: 0 | Y103: 0 | Z103: 0 | AA103: 0 | AB103: 0 | AC103: 0
E104: 2 | F104: 2.5.73 | G104: Oftalmología oncológica | H104: =IFERROR(+VLOOKUP(F104,'Cuadro 32'!E99:K287,7,FALSE)," ") -> 0 | M104: 0 | N104: 0 | P104: 0 | S104: Oftalmología oncológica | T104: 2.6 | U104: 2.6 | V104: 2.6 | W104: 2.6 | X104: 0 | Y104: 0 | Z104: 0 | AA104: 0 | AB104: 0 | AC104: 0
E105: 2 | F105: 2.5.74 | G105: Oncología y hematología pediátrica | H105: =IFERROR(+VLOOKUP(F105,'Cuadro 32'!E100:K288,7,FALSE)," ") -> 0 | M105: 0 | N105: 0 | P105: 0 | S105: Oncología y hematología pediátrica | T105: 2.6 | U105: 2.6 | V105: 2.6 | W105: 2.6 | X105: 0 | Y105: 0 | Z105: 0 | AA105: 0 | AB105: 0 | AC105: 0
E106: =MID(F106,1,1) -> 2 | F106: 2.5.75 | G106: Ortopedia infantil | H106: =IFERROR(+VLOOKUP(F106,'Cuadro 32'!E101:K289,7,FALSE)," ") -> 0 | M106: =SUM(I106:L106) -> 0 | N106: =IFERROR(+M106/H106,0) -> 0 | P106: =IFERROR(+O106/H106,0) -> 0 | S106: =G106 -> Ortopedia infantil | T106: 2.6 | U106: 2.6 | V106: 2.6 | W106: =IF($W$4=$T$9,T106,(IF($W$4=$U$9,U106,V106))) -> 2.6 | X106: =+I106*$W106 -> 0 | Y106: =+J106*$W106 -> 0 | Z106: =+K106*$W106 -> 0 | AA106: =+L106*$W106 -> 0 | AB106: =+M106*$W106 -> 0 | AC106: =+O106*W106 -> 0
E107: 2 | F107: 2.5.76 | G107: Ortopedia oncológica | H107: =IFERROR(+VLOOKUP(F107,'Cuadro 32'!E102:K290,7,FALSE)," ") -> 0 | M107: 0 | N107: 0 | P107: 0 | S107: Ortopedia oncológica | T107: 2.6 | U107: 2.6 | V107: 2.6 | W107: 2.6 | X107: 0 | Y107: 0 | Z107: 0 | AA107: 0 | AB107: 0 | AC107: 0
E108: 2 | F108: 2.5.77 | G108: Patología oncológica | H108: =IFERROR(+VLOOKUP(F108,'Cuadro 32'!E103:K291,7,FALSE)," ") -> 0 | M108: 0 | N108: 0 | P108: 0 | S108: Patología oncológica | T108: 2.6 | U108: 2.6 | V108: 2.6 | W108: 2.6 | X108: 0 | Y108: 0 | Z108: 0 | AA108: 0 | AB108: 0 | AC108: 0
E109: 2 | F109: 2.5.78 | G109: Urología oncología | H109: =IFERROR(+VLOOKUP(F109,'Cuadro 32'!E104:K292,7,FALSE)," ") -> 0 | M109: 0 | N109: 0 | P109: 0 | S109: Urología oncología | T109: 2.6 | U109: 2.6 | V109: 2.6 | W109: 2.6 | X109: 0 | Y109: 0 | Z109: 0 | AA109: 0 | AB109: 0 | AC109: 0
E110: 2 | F110: 2.5.79 | G110: Odontopediatría | H110: =IFERROR(+VLOOKUP(F110,'Cuadro 32'!E105:K293,7,FALSE)," ") -> 0 | M110: 0 | N110: 0 | P110: 0 | S110: Odontopediatría | T110: 2.6 | U110: 2.6 | V110: 2.6 | W110: 2.6 | X110: 0 | Y110: 0 | Z110: 0 | AA110: 0 | AB110: 0 | AC110: 0
A111: 3 | B111: HOSPITALIZACIÓN | C111: 3.1 | D111: Cuidados intensivos | E111: 3 | F111: 3.1.01 | G111: Cuidado intensivo pediátrico | H111: =IFERROR(+VLOOKUP(F111,'Cuadro 32'!E106:K294,7,FALSE)," ") -> 0 | M111: 0 | N111: 0 | P111: 0 | S111: Cuidado intensivo pediátrico | U111: 108.55 | V111: 108.55 | W111: 0 | X111: 0 | Y111: 0 | Z111: 0 | AA111: 0 | AB111: 0 | AC111: 0
E112: 3 | F112: 3.1.02 | G112: Cuidado intensivo adultos | H112: =IFERROR(+VLOOKUP(F112,'Cuadro 32'!E107:K295,7,FALSE)," ") -> 0 | M112: 0 | N112: 0 | P112: 0 | S112: Cuidado intensivo adultos | U112: 108.55 | V112: 108.55 | W112: 0 | X112: 0 | Y112: 0 | Z112: 0 | AA112: 0 | AB112: 0 | AC112: 0
C113: 3.2 | D113: Cuidados intermedios | E113: 3 | F113: 3.2.01 | G113: Cuidado intermedio pediátrico | H113: =IFERROR(+VLOOKUP(F113,'Cuadro 32'!E108:K296,7,FALSE)," ") -> 0 | M113: 0 | N113: 0 | P113: 0 | S113: Cuidado intermedio pediátrico | U113: 51.33 | V113: 51.33 | W113: 0 | X113: 0 | Y113: 0 | Z113: 0 | AA113: 0 | AB113: 0 | AC113: 0
E114: 3 | F114: 3.2.02 | G114: Cuidado intermedio adultos | H114: =IFERROR(+VLOOKUP(F114,'Cuadro 32'!E109:K297,7,FALSE)," ") -> 0 | M114: 0 | N114: 0 | P114: 0 | S114: Cuidado intermedio adultos | U114: 51.33 | V114: 51.33 | W114: 0 | X114: 0 | Y114: 0 | Z114: 0 | AA114: 0 | AB114: 0 | AC114: 0
C115: 3.3 | D115: Estancia general | E115: 3 | F115: 3.3.01 | G115: General adultos | H115: =IFERROR(+VLOOKUP(F115,'Cuadro 32'!E110:K298,7,FALSE)," ") -> 175.4912795 | M115: 0 | N115: 0 | P115: 0 | S115: General adultos | T115: 10.74 | U115: 11.64 | V115: 15.64 | W115: 10.74 | X115: 0 | Y115: 0 | Z115: 0 | AA115: 0 | AB115: 0 | AC115: 0
E116: 3 | F116: 3.3.02 | G116: General pediátrica | H116: =IFERROR(+VLOOKUP(F116,'Cuadro 32'!E111:K299,7,FALSE)," ") -> 57.19257863 | M116: 0 | N116: 0 | P116: 0 | S116: General pediátrica | T116: 10.74 | U116: 11.64 | V116: 15.64 | W116: 10.74 | X116: 0 | Y116: 0 | Z116: 0 | AA116: 0 | AB116: 0 | AC116: 0
E117: 3 | F117: 3.3.03 | G117: Obstetricia | H117: =IFERROR(+VLOOKUP(F117,'Cuadro 32'!E112:K300,7,FALSE)," ") -> 91.61775507 | M117: 0 | N117: 0 | P117: 0 | S117: Obstetricia | T117: 10.74 | U117: 11.64 | V117: 15.64 | W117: 10.74 | X117: 0 | Y117: 0 | Z117: 0 | AA117: 0 | AB117: 0 | AC117: 0
C118: 3.4 | D118: Otros cuidados especiales | E118: 3 | F118: 3.4.01 | G118: Farmacodependencia | H118: =IFERROR(+VLOOKUP(F118,'Cuadro 32'!E113:K301,7,FALSE)," ") -> 0 | M118: 0 | N118: 0 | P118: 0 | S118: Farmacodependencia | T118: 10.74 | U118: 11.64 | V118: 15.64 | W118: 10.74 | X118: 0 | Y118: 0 | Z118: 0 | AA118: 0 | AB118: 0 | AC118: 0
E119: 3 | F119: 3.4.02 | G119: Hospitalización domiciliaria | H119: =IFERROR(+VLOOKUP(F119,'Cuadro 32'!E114:K302,7,FALSE)," ") -> 0 | M119: 0 | N119: 0 | P119: 0 | S119: Hospitalización domiciliaria | T119: 10.74 | U119: 11.64 | V119: 15.64 | W119: 10.74 | X119: 0 | Y119: 0 | Z119: 0 | AA119: 0 | AB119: 0 | AC119: 0
C120: 3.5 | D120: Quemados | E120: 3 | F120: 3.5.01 | G120: Unidad de quemados adultos | H120: =IFERROR(+VLOOKUP(F120,'Cuadro 32'!E115:K303,7,FALSE)," ") -> 0 | M120: 0 | N120: 0 | P120: 0 | S120: Unidad de quemados adultos | V120: 108.55 | W120: 0 | X120: 0 | Y120: 0 | Z120: 0 | AA120: 0 | AB120: 0 | AC120: 0
E121: 3 | F121: 3.5.02 | G121: Quemados pediátrico | H121: =IFERROR(+VLOOKUP(F121,'Cuadro 32'!E116:K304,7,FALSE)," ") -> 0 | M121: 0 | N121: 0 | P121: 0 | S121: Quemados pediátrico | V121: 108.55 | W121: 0 | X121: 0 | Y121: 0 | Z121: 0 | AA121: 0 | AB121: 0 | AC121: 0
C122: 3.6 | D122: Recién nacidos | E122: 3 | F122: 3.6.01 | G122: Cuidado intermedio neonatal | H122: =IFERROR(+VLOOKUP(F122,'Cuadro 32'!E117:K305,7,FALSE)," ") -> 0 | M122: 0 | N122: 0 | P122: 0 | S122: Cuidado intermedio neonatal | U122: 51.33 | V122: 51.33 | W122: 0 | X122: 0 | Y122: 0 | Z122: 0 | AA122: 0 | AB122: 0 | AC122: 0
E123: 3 | F123: 3.6.02 | G123: Cuidado intensivo neonatal | H123: =IFERROR(+VLOOKUP(F123,'Cuadro 32'!E118:K306,7,FALSE)," ") -> 0 | M123: 0 | N123: 0 | P123: 0 | S123: Cuidado intensivo neonatal | U123: 108.55 | V123: 108.55 | W123: 0 | X123: 0 | Y123: 0 | Z123: 0 | AA123: 0 | AB123: 0 | AC123: 0
C124: 3.7 | D124: Salud mental | E124: 3 | F124: 3.7.01 | G124: Psiquiatría o unidad de salud mental | H124: =IFERROR(+VLOOKUP(F124,'Cuadro 32'!E119:K307,7,FALSE)," ") -> 0 | M124: 0 | N124: 0 | P124: 0 | S124: Psiquiatría o unidad de salud mental | U124: 11.64 | V124: 15.64 | W124: 0 | X124: 0 | Y124: 0 | Z124: 0 | AA124: 0 | AB124: 0 | AC124: 0
E125: 3 | F125: 3.7.02 | G125: Hospitalización dia | H125: =IFERROR(+VLOOKUP(F125,'Cuadro 32'!E120:K308,7,FALSE)," ") -> 0 | M125: 0 | N125: 0 | P125: 0 | S125: Hospitalización dia | U125: 11.64 | V125: 15.64 | W125: 0 | X125: 0 | Y125: 0 | Z125: 0 | AA125: 0 | AB125: 0 | AC125: 0
E126: 3 | F126: 3.7.03 | G126: Cuidado agudo en salud mental o psiquiatría | H126: =IFERROR(+VLOOKUP(F126,'Cuadro 32'!E121:K309,7,FALSE)," ") -> 0 | M126: 0 | N126: 0 | P126: 0 | S126: Cuidado agudo en salud mental o psiquiatría | U126: 11.64 | V126: 15.64 | W126: 0 | X126: 0 | Y126: 0 | Z126: 0 | AA126: 0 | AB126: 0 | AC126: 0
E127: 3 | F127: 3.7.04 | G127: Cuidado intermedio en salud mental o psiquiatría | H127: =IFERROR(+VLOOKUP(F127,'Cuadro 32'!E122:K310,7,FALSE)," ") -> 0 | M127: 0 | N127: 0 | P127: 0 | S127: Cuidado intermedio en salud mental o psiquiatría | U127: 11.64 | V127: 15.64 | W127: 0 | X127: 0 | Y127: 0 | Z127: 0 | AA127: 0 | AB127: 0 | AC127: 0
A128: 4 | B128: QUIRÓFANOS Y SALAS DE PARTO | C128: 4.1 | D128: Salas de parto | E128: 4 | F128: 4.1.01 | G128: Partos vaginales | H128: =IFERROR(+VLOOKUP(F128,'Cuadro 32'!E123:K311,7,FALSE)," ") -> 89.14689422 | M128: 0 | N128: 0 | P128: 0 | S128: Partos vaginales | T128: 65 | U128: 65 | V128: 65 | W128: 65 | X128: 0 | Y128: 0 | Z128: 0 | AA128: 0 | AB128: 0 | AC128: 0
C129: 4.2 | D129: Quirófanos | E129: 4 | F129: 4.2.01 | G129: Partos cesárea | H129: =IFERROR(+VLOOKUP(F129,'Cuadro 32'!E124:K312,7,FALSE)," ") -> 0 | M129: 0 | N129: 0 | P129: 0 | S129: Partos cesárea | T129: 77.5 | U129: 77.5 | V129: 77.5 | W129: 77.5 | X129: 0 | Y129: 0 | Z129: 0 | AA129: 0 | AB129: 0 | AC129: 0
E130: 4 | F130: 4.2.02 | G130: Cirugía de cabeza y cuello | H130: =IFERROR(+VLOOKUP(F130,'Cuadro 32'!E125:K313,7,FALSE)," ") -> 0 | M130: 0 | N130: 0 | P130: 0 | S130: Cirugía de cabeza y cuello | V130: 262.1 | W130: 0 | X130: 0 | Y130: 0 | Z130: 0 | AA130: 0 | AB130: 0 | AC130: 0
E131: 4 | F131: 4.2.03 | G131: Cirugía cardiovascular | H131: =IFERROR(+VLOOKUP(F131,'Cuadro 32'!E126:K314,7,FALSE)," ") -> 0 | M131: 0 | N131: 0 | P131: 0 | S131: Cirugía cardiovascular | V131: 262.1 | W131: 0 | X131: 0 | Y131: 0 | Z131: 0 | AA131: 0 | AB131: 0 | AC131: 0
E132: 4 | F132: 4.2.04 | G132: Cirugía general | H132: =IFERROR(+VLOOKUP(F132,'Cuadro 32'!E127:K315,7,FALSE)," ") -> 0 | M132: 0 | N132: 0 | P132: 0 | S132: Cirugía general | T132: 82 | U132: 138.09 | V132: 262.1 | W132: 82 | X132: 0 | Y132: 0 | Z132: 0 | AA132: 0 | AB132: 0 | AC132: 0
E133: 4 | F133: 4.2.05 | G133: Cirugía ginecológica | H133: =IFERROR(+VLOOKUP(F133,'Cuadro 32'!E128:K316,7,FALSE)," ") -> 0 | M133: 0 | N133: 0 | P133: 0 | S133: Cirugía ginecológica | T133: 82 | U133: 138.09 | V133: 262.1 | W133: 82 | X133: 0 | Y133: 0 | Z133: 0 | AA133: 0 | AB133: 0 | AC133: 0
E134: 4 | F134: 4.2.06 | G134: Cirugía maxilofacial | H134: =IFERROR(+VLOOKUP(F134,'Cuadro 32'!E129:K317,7,FALSE)," ") -> 0 | M134: 0 | N134: 0 | P134: 0 | S134: Cirugía maxilofacial | U134: 138.09 | V134: 262.1 | W134: 0 | X134: 0 | Y134: 0 | Z134: 0 | AA134: 0 | AB134: 0 | AC134: 0
E135: 4 | F135: 4.2.07 | G135: Cirugía neurológica | H135: =IFERROR(+VLOOKUP(F135,'Cuadro 32'!E130:K318,7,FALSE)," ") -> 0 | M135: 0 | N135: 0 | P135: 0 | S135: Cirugía neurológica | V135: 262.1 | W135: 0 | X135: 0 | Y135: 0 | Z135: 0 | AA135: 0 | AB135: 0 | AC135: 0
E136: 4 | F136: 4.2.08 | G136: Cirugía ortopédica | H136: =IFERROR(+VLOOKUP(F136,'Cuadro 32'!E131:K319,7,FALSE)," ") -> 0 | M136: 0 | N136: 0 | P136: 0 | S136: Cirugía ortopédica | T136: 82 | U136: 138.09 | V136: 262.1 | W136: 82 | X136: 0 | Y136: 0 | Z136: 0 | AA136: 0 | AB136: 0 | AC136: 0
E137: 4 | F137: 4.2.09 | G137: Cirugía oftalmológica | H137: =IFERROR(+VLOOKUP(F137,'Cuadro 32'!E132:K320,7,FALSE)," ") -> 0 | M137: 0 | N137: 0 | P137: 0 | S137: Cirugía oftalmológica | U137: 138.09 | V137: 262.1 | W137: 0 | X137: 0 | Y137: 0 | Z137: 0 | AA137: 0 | AB137: 0 | AC137: 0
E138: =MID(F138,1,1) -> 4 | F138: 4.2.10 | G138: Cirugía otorrinolaringología | H138: =IFERROR(+VLOOKUP(F138,'Cuadro 32'!E133:K321,7,FALSE)," ") -> 0 | M138: =SUM(I138:L138) -> 0 | N138: =IFERROR(+M138/H138,0) -> 0 | P138: =IFERROR(+O138/H138,0) -> 0 | S138: =G138 -> Cirugía otorrinolaringología | U138: 138.09 | V138: 262.1 | W138: =IF($W$4=$T$9,T138,(IF($W$4=$U$9,U138,V138))) -> 0 | X138: =+I138*$W138 -> 0 | Y138: =+J138*$W138 -> 0 | Z138: =+K138*$W138 -> 0 | AA138: =+L138*$W138 -> 0 | AB138: =+M138*$W138 -> 0 | AC138: =+O138*W138 -> 0
E139: 4 | F139: 4.2.11 | G139: Cirugía oncológica | H139: =IFERROR(+VLOOKUP(F139,'Cuadro 32'!E134:K322,7,FALSE)," ") -> 0 | M139: 0 | N139: 0 | P139: 0 | S139: Cirugía oncológica | U139: 138.09 | V139: 262.1 | W139: 0 | X139: 0 | Y139: 0 | Z139: 0 | AA139: 0 | AB139: 0 | AC139: 0
E140: 4 | F140: 4.2.12 | G140: Cirugía oral | H140: =IFERROR(+VLOOKUP(F140,'Cuadro 32'!E135:K323,7,FALSE)," ") -> 0 | M140: 0 | N140: 0 | P140: 0 | S140: Cirugía oral | U140: 138.09 | V140: 262.1 | W140: 0 | X140: 0 | Y140: 0 | Z140: 0 | AA140: 0 | AB140: 0 | AC140: 0
E141: 4 | F141: 4.2.13 | G141: Cirugía pediátrica | H141: =IFERROR(+VLOOKUP(F141,'Cuadro 32'!E136:K324,7,FALSE)," ") -> 0 | M141: 0 | N141: 0 | P141: 0 | S141: Cirugía pediátrica | U141: 138.09 | V141: 262.1 | W141: 0 | X141: 0 | Y141: 0 | Z141: 0 | AA141: 0 | AB141: 0 | AC141: 0
E142: 4 | F142: 4.2.14 | G142: Cirugía plástica y estética | H142: =IFERROR(+VLOOKUP(F142,'Cuadro 32'!E137:K325,7,FALSE)," ") -> 0 | M142: 0 | N142: 0 | P142: 0 | S142: Cirugía plástica y estética | U142: 138.09 | V142: 262.1 | W142: 0 | X142: 0 | Y142: 0 | Z142: 0 | AA142: 0 | AB142: 0 | AC142: 0
E143: 4 | F143: 4.2.15 | G143: Cirugía vascular y angiológica | H143: =IFERROR(+VLOOKUP(F143,'Cuadro 32'!E138:K326,7,FALSE)," ") -> 0 | M143: 0 | N143: 0 | P143: 0 | S143: Cirugía vascular y angiológica | V143: 262.1 | W143: 0 | X143: 0 | Y143: 0 | Z143: 0 | AA143: 0 | AB143: 0 | AC143: 0
E144: 4 | F144: 4.2.16 | G144: Cirugía urológica | H144: =IFERROR(+VLOOKUP(F144,'Cuadro 32'!E139:K327,7,FALSE)," ") -> 0 | M144: 0 | N144: 0 | P144: 0 | S144: Cirugía urológica | U144: 138.09 | V144: 262.1 | W144: 0 | X144: 0 | Y144: 0 | Z144: 0 | AA144: 0 | AB144: 0 | AC144: 0
E145: 4 | F145: 4.2.17 | G145: Otras cirugías | H145: =IFERROR(+VLOOKUP(F145,'Cuadro 32'!E140:K328,7,FALSE)," ") -> 0 | M145: 0 | N145: 0 | P145: 0 | S145: Otras cirugías | T145: 82 | U145: 138.09 | V145: 262.1 | W145: 82 | X145: 0 | Y145: 0 | Z145: 0 | AA145: 0 | AB145: 0 | AC145: 0
E146: 4 | F146: 4.2.18 | G146: Cirugía endovascular neurología | H146: =IFERROR(+VLOOKUP(F146,'Cuadro 32'!E141:K329,7,FALSE)," ") -> 0 | M146: 0 | N146: 0 | P146: 0 | S146: Cirugía endovascular neurología | V146: 262.1 | W146: 0 | X146: 0 | Y146: 0 | Z146: 0 | AA146: 0 | AB146: 0 | AC146: 0
E147: 4 | F147: 4.2.19 | G147: Transplante renal | H147: =IFERROR(+VLOOKUP(F147,'Cuadro 32'!E142:K330,7,FALSE)," ") -> 0 | M147: 0 | N147: 0 | P147: 0 | S147: Transplante renal | V147: 262.1 | W147: 0 | X147: 0 | Y147: 0 | Z147: 0 | AA147: 0 | AB147: 0 | AC147: 0
E148: 4 | F148: 4.2.20 | G148: Transplante de corazón | H148: =IFERROR(+VLOOKUP(F148,'Cuadro 32'!E143:K331,7,FALSE)," ") -> 0 | M148: 0 | N148: 0 | P148: 0 | S148: Transplante de corazón | V148: 262.1 | W148: 0 | X148: 0 | Y148: 0 | Z148: 0 | AA148: 0 | AB148: 0 | AC148: 0
E149: 4 | F149: 4.2.21 | G149: Transplante de hígado | H149: =IFERROR(+VLOOKUP(F149,'Cuadro 32'!E144:K332,7,FALSE)," ") -> 0 | M149: 0 | N149: 0 | P149: 0 | S149: Transplante de hígado | V149: 262.1 | W149: 0 | X149: 0 | Y149: 0 | Z149: 0 | AA149: 0 | AB149: 0 | AC149: 0
E150: 4 | F150: 4.2.22 | G150: Transplante de pulmón | H150: =IFERROR(+VLOOKUP(F150,'Cuadro 32'!E145:K333,7,FALSE)," ") -> 0 | M150: 0 | N150: 0 | P150: 0 | S150: Transplante de pulmón | V150: 262.1 | W150: 0 | X150: 0 | Y150: 0 | Z150: 0 | AA150: 0 | AB150: 0 | AC150: 0
E151: 4 | F151: 4.2.23 | G151: Transplante de riñón - páncreas | H151: =IFERROR(+VLOOKUP(F151,'Cuadro 32'!E146:K334,7,FALSE)," ") -> 0 | M151: 0 | N151: 0 | P151: 0 | S151: Transplante de riñón - páncreas | V151: 262.1 | W151: 0 | X151: 0 | Y151: 0 | Z151: 0 | AA151: 0 | AB151: 0 | AC151: 0
E152: 4 | F152: 4.2.24 | G152: Transplante de córnea | H152: =IFERROR(+VLOOKUP(F152,'Cuadro 32'!E147:K335,7,FALSE)," ") -> 0 | M152: 0 | N152: 0 | P152: 0 | S152: Transplante de córnea | V152: 262.1 | W152: 0 | X152: 0 | Y152: 0 | Z152: 0 | AA152: 0 | AB152: 0 | AC152: 0
E153: 4 | F153: 4.2.25 | G153: Implante de tejido óseo | H153: =IFERROR(+VLOOKUP(F153,'Cuadro 32'!E148:K336,7,FALSE)," ") -> 0 | M153: 0 | N153: 0 | P153: 0 | S153: Implante de tejido óseo | V153: 262.1 | W153: 0 | X153: 0 | Y153: 0 | Z153: 0 | AA153: 0 | AB153: 0 | AC153: 0
E154: 4 | F154: 4.2.26 | G154: Otros implantes y transplantes | H154: =IFERROR(+VLOOKUP(F154,'Cuadro 32'!E149:K337,7,FALSE)," ") -> 0 | M154: 0 | N154: 0 | P154: 0 | S154: Otros implantes y transplantes | V154: 262.1 | W154: 0 | X154: 0 | Y154: 0 | Z154: 0 | AA154: 0 | AB154: 0 | AC154: 0
E155: 4 | F155: 4.2.27 | G155: Cirugía oncológica pediátrica | H155: =IFERROR(+VLOOKUP(F155,'Cuadro 32'!E150:K338,7,FALSE)," ") -> 0 | M155: 0 | N155: 0 | P155: 0 | S155: Cirugía oncológica pediátrica | V155: 262.1 | W155: 0 | X155: 0 | Y155: 0 | Z155: 0 | AA155: 0 | AB155: 0 | AC155: 0
E156: 4 | F156: 4.2.28 | G156: Transplante médula ósea o células madre | H156: =IFERROR(+VLOOKUP(F156,'Cuadro 32'!E151:K339,7,FALSE)," ") -> 0 | M156: 0 | N156: 0 | P156: 0 | S156: Transplante médula ósea o células madre | V156: 262.1 | W156: 0 | X156: 0 | Y156: 0 | Z156: 0 | AA156: 0 | AB156: 0 | AC156: 0
E157: 4 | F157: 4.2.29 | G157: Implante de piel | H157: =IFERROR(+VLOOKUP(F157,'Cuadro 32'!E152:K340,7,FALSE)," ") -> 0 | M157: 0 | N157: 0 | P157: 0 | S157: Implante de piel | V157: 262.1 | W157: 0 | X157: 0 | Y157: 0 | Z157: 0 | AA157: 0 | AB157: 0 | AC157: 0
E158: 4 | F158: 4.2.30 | G158: Implante válvulas cardíacas | H158: =IFERROR(+VLOOKUP(F158,'Cuadro 32'!E153:K341,7,FALSE)," ") -> 0 | M158: 0 | N158: 0 | P158: 0 | S158: Implante válvulas cardíacas | V158: 262.1 | W158: 0 | X158: 0 | Y158: 0 | Z158: 0 | AA158: 0 | AB158: 0 | AC158: 0
E159: 4 | F159: 4.2.31 | G159: Cirugía de la mano | H159: =IFERROR(+VLOOKUP(F159,'Cuadro 32'!E154:K342,7,FALSE)," ") -> 0 | M159: 0 | N159: 0 | P159: 0 | S159: Cirugía de la mano | V159: 262.1 | W159: 0 | X159: 0 | Y159: 0 | Z159: 0 | AA159: 0 | AB159: 0 | AC159: 0
E160: 4 | F160: 4.2.32 | G160: Cirugía de mama y tumores tejidos blandos | H160: =IFERROR(+VLOOKUP(F160,'Cuadro 32'!E155:K343,7,FALSE)," ") -> 0 | M160: 0 | N160: 0 | P160: 0 | S160: Cirugía de mama y tumores tejidos blandos | V160: 262.1 | W160: 0 | X160: 0 | Y160: 0 | Z160: 0 | AA160: 0 | AB160: 0 | AC160: 0
E161: 4 | F161: 4.2.33 | G161: Cirugía dermatológica | H161: =IFERROR(+VLOOKUP(F161,'Cuadro 32'!E156:K344,7,FALSE)," ") -> 0 | M161: 0 | N161: 0 | P161: 0 | S161: Cirugía dermatológica | U161: 138.09 | V161: 262.1 | W161: 0 | X161: 0 | Y161: 0 | Z161: 0 | AA161: 0 | AB161: 0 | AC161: 0
E162: 4 | F162: 4.2.34 | G162: Cirugía de tórax | H162: =IFERROR(+VLOOKUP(F162,'Cuadro 32'!E157:K345,7,FALSE)," ") -> 0 | M162: 0 | N162: 0 | P162: 0 | S162: Cirugía de tórax | U162: 138.09 | V162: 262.1 | W162: 0 | X162: 0 | Y162: 0 | Z162: 0 | AA162: 0 | AB162: 0 | AC162: 0
E163: 4 | F163: 4.2.35 | G163: Cirugía gastrointestinal | H163: =IFERROR(+VLOOKUP(F163,'Cuadro 32'!E158:K346,7,FALSE)," ") -> 0 | M163: 0 | N163: 0 | P163: 0 | S163: Cirugía gastrointestinal | U163: 138.09 | V163: 262.1 | W163: 0 | X163: 0 | Y163: 0 | Z163: 0 | AA163: 0 | AB163: 0 | AC163: 0
E164: 4 | F164: 4.2.36 | G164: Cirugía plástica oncológica | H164: =IFERROR(+VLOOKUP(F164,'Cuadro 32'!E159:K347,7,FALSE)," ") -> 0 | M164: 0 | N164: 0 | P164: 0 | S164: Cirugía plástica oncológica | U164: 138.09 | V164: 262.1 | W164: 0 | X164: 0 | Y164: 0 | Z164: 0 | AA164: 0 | AB164: 0 | AC164: 0
A165: 5 | B165: APOYO DIAGNÓSTICO | C165: 5.1 | D165: Anatomía patológica | E165: 5 | F165: 5.1.01 | G165: Toma de muestras citologías cérvico-uterinas | H165: =IFERROR(+VLOOKUP(F165,'Cuadro 32'!E160:K348,7,FALSE)," ") -> 1080.458632 | M165: 0 | N165: 0 | P165: 0 | S165: Toma de muestras citologías cérvico-uterinas | T165: 2 | U165: 2 | V165: 2 | W165: 2 | X165: 0 | Y165: 0 | Z165: 0 | AA165: 0 | AB165: 0 | AC165: 0
E166: 5 | F166: 5.1.02 | G166: Laboratorio citologías cérvico-uterinas | H166: =IFERROR(+VLOOKUP(F166,'Cuadro 32'!E161:K349,7,FALSE)," ") -> 1098.757964 | M166: 0 | N166: 0 | P166: 0 | S166: Laboratorio citologías cérvico-uterinas | T166: 1.98 | U166: 3.1 | V166: 6.98 | W166: 1.98 | X166: 0 | Y166: 0 | Z166: 0 | AA166: 0 | AB166: 0 | AC166: 0
E167: 5 | F167: 5.1.03 | G167: Laboratorio de patología | H167: =IFERROR(+VLOOKUP(F167,'Cuadro 32'!E162:K350,7,FALSE)," ") -> 0 | M167: 0 | N167: 0 | P167: 0 | S167: Laboratorio de patología | U167: 3.1 | V167: 6.98 | W167: 0 | X167: 0 | Y167: 0 | Z167: 0 | AA167: 0 | AB167: 0 | AC167: 0
E168: 5 | F168: 5.1.04 | G168: Laboratorio de histotecnología | H168: =IFERROR(+VLOOKUP(F168,'Cuadro 32'!E163:K351,7,FALSE)," ") -> 0 | M168: 0 | N168: 0 | P168: 0 | S168: Laboratorio de histotecnología | T168: 1.98 | U168: 3.1 | V168: 6.98 | W168: 1.98 | X168: 0 | Y168: 0 | Z168: 0 | AA168: 0 | AB168: 0 | AC168: 0
C169: 5.2 | D169: Imagenología | E169: 5 | F169: 5.2.01 | G169: Radiología e imágenes diagnostico | H169: =IFERROR(+VLOOKUP(F169,'Cuadro 32'!E164:K352,7,FALSE)," ") -> 0 | M169: 0 | N169: 0 | P169: 0 | S169: Radiología e imágenes diagnostico | T169: 4.73 | U169: 6.51 | V169: 37.4 | W169: 4.73 | X169: 0 | Y169: 0 | Z169: 0 | AA169: 0 | AB169: 0 | AC169: 0
E170: =MID(F170,1,1) -> 5 | F170: 5.2.02 | G170: Ultrasonido | H170: =IFERROR(+VLOOKUP(F170,'Cuadro 32'!E165:K353,7,FALSE)," ") -> 0 | M170: =SUM(I170:L170) -> 0 | N170: =IFERROR(+M170/H170,0) -> 0 | P170: =IFERROR(+O170/H170,0) -> 0 | S170: =G170 -> Ultrasonido | T170: 4.73 | U170: 6.51 | V170: 37.4 | W170: =IF($W$4=$T$9,T170,(IF($W$4=$U$9,U170,V170))) -> 4.73 | X170: =+I170*$W170 -> 0 | Y170: =+J170*$W170 -> 0 | Z170: =+K170*$W170 -> 0 | AA170: =+L170*$W170 -> 0 | AB170: =+M170*$W170 -> 0 | AC170: =+O170*W170 -> 0
E171: 5 | F171: 5.2.03 | G171: Toma e interpretación radiologías odontológicas | H171: =IFERROR(+VLOOKUP(F171,'Cuadro 32'!E166:K354,7,FALSE)," ") -> 0 | M171: 0 | N171: 0 | P171: 0 | S171: Toma e interpretación radiologías odontológicas | T171: 4.73 | U171: 6.51 | V171: 37.4 | W171: 4.73 | X171: 0 | Y171: 0 | Z171: 0 | AA171: 0 | AB171: 0 | AC171: 0
C172: 5.3 | D172: Laboratorio clínico | E172: 5 | F172: 5.3.01 | G172: Laboratorio clínico | H172: =IFERROR(+VLOOKUP(F172,'Cuadro 32'!E167:K355,7,FALSE)," ") -> 16661.83455 | M172: 0 | N172: 0 | P172: 0 | S172: Laboratorio clínico | T172: 1.98 | U172: 3.1 | V172: 6.98 | W172: 1.98 | X172: 0 | Y172: 0 | Z172: 0 | AA172: 0 | AB172: 0 | AC172: 0
E173: 5 | F173: 5.3.02 | G173: Toma de muestras de lab Clínico | H173: =IFERROR(+VLOOKUP(F173,'Cuadro 32'!E168:K356,7,FALSE)," ") -> 2724.787173 | M173: 0 | N173: 0 | P173: 0 | S173: Toma de muestras de lab Clínico | T173: 1.98 | U173: 3.1 | V173: 6.98 | W173: 1.98 | X173: 0 | Y173: 0 | Z173: 0 | AA173: 0 | AB173: 0 | AC173: 0
C174: 5.4 | D174: Otras unidades de apoyo diagnóstico | E174: 5 | F174: 5.4.01 | G174: Endoscopia digestiva | H174: =IFERROR(+VLOOKUP(F174,'Cuadro 32'!E169:K357,7,FALSE)," ") -> 0 | M174: 0 | N174: 0 | P174: 0 | S174: Endoscopia digestiva | T174: 82 | U174: 138.09 | V174: 262.1 | W174: 82 | X174: 0 | Y174: 0 | Z174: 0 | AA174: 0 | AB174: 0 | AC174: 0
E175: 5 | F175: 5.4.02 | G175: Neumología - fibrobroncoscopia | H175: =IFERROR(+VLOOKUP(F175,'Cuadro 32'!E170:K358,7,FALSE)," ") -> 0 | M175: 0 | N175: 0 | P175: 0 | S175: Neumología - fibrobroncoscopia | U175: 138.09 | V175: 262.1 | W175: 0 | X175: 0 | Y175: 0 | Z175: 0 | AA175: 0 | AB175: 0 | AC175: 0
E176: 5 | F176: 5.4.03 | G176: Urología - litotripsia urológica | H176: =IFERROR(+VLOOKUP(F176,'Cuadro 32'!E171:K359,7,FALSE)," ") -> 0 | M176: 0 | N176: 0 | P176: 0 | S176: Urología - litotripsia urológica | U176: 138.09 | V176: 262.1 | W176: 0 | X176: 0 | Y176: 0 | Z176: 0 | AA176: 0 | AB176: 0 | AC176: 0
E177: 5 | F177: 5.4.04 | G177: Medicina nuclear | H177: =IFERROR(+VLOOKUP(F177,'Cuadro 32'!E172:K360,7,FALSE)," ") -> 0 | M177: 0 | N177: 0 | P177: 0 | S177: Medicina nuclear | V177: 262.1 | W177: 0 | X177: 0 | Y177: 0 | Z177: 0 | AA177: 0 | AB177: 0 | AC177: 0
E178: 5 | F178: 5.4.05 | G178: Electrodiagnóstico | H178: =IFERROR(+VLOOKUP(F178,'Cuadro 32'!E173:K361,7,FALSE)," ") -> 0 | M178: 0 | N178: 0 | P178: 0 | S178: Electrodiagnóstico | T178: 2.6 | U178: 2.6 | V178: 2.6 | W178: 2.6 | X178: 0 | Y178: 0 | Z178: 0 | AA178: 0 | AB178: 0 | AC178: 0
E179: 5 | F179: 5.4.06 | G179: Neumología laboratorio función pulmonar | H179: =IFERROR(+VLOOKUP(F179,'Cuadro 32'!E174:K362,7,FALSE)," ") -> 0 | M179: 0 | N179: 0 | P179: 0 | S179: Neumología laboratorio función pulmonar | V179: 262.1 | W179: 0 | X179: 0 | Y179: 0 | Z179: 0 | AA179: 0 | AB179: 0 | AC179: 0
A180: 6 | B180: APOYO TERAPÉUTICO | C180: 6.1 | D180: Banco de componentes anatómicos | E180: 6 | F180: 6.1.01 | G180: Banco de componentes anatómicos | H180: =IFERROR(+VLOOKUP(F180,'Cuadro 32'!E175:K363,7,FALSE)," ") -> 0 | M180: 0 | N180: 0 | P180: 0 | S180: Banco de componentes anatómicos | V180: 262.1 | W180: 0 | X180: 0 | Y180: 0 | Z180: 0 | AA180: 0 | AB180: 0 | AC180: 0
C181: 6.2 | D181: Banco de sangre | E181: 6 | F181: 6.2.01 | G181: Transfusión sanguínea | H181: =IFERROR(+VLOOKUP(F181,'Cuadro 32'!E176:K364,7,FALSE)," ") -> 0 | M181: 0 | N181: 0 | P181: 0 | S181: Transfusión sanguínea | T181: 4.73 | U181: 6.51 | V181: 37.4 | W181: 4.73 | X181: 0 | Y181: 0 | Z181: 0 | AA181: 0 | AB181: 0 | AC181: 0
C182: 6.3 | D182: Farmacia e insumos hospitalarios | E182: 6 | F182: 6.3.01 | G182: Servicio farmacéutico | H182: =IFERROR(+VLOOKUP(F182,'Cuadro 32'!E177:K365,7,FALSE)," ") -> 0 | M182: 0 | N182: 0 | P182: 0 | S182: Servicio farmacéutico | T182: 0.75 | U182: 1.82 | V182: 1.82 | W182: 0.75 | X182: 0 | Y182: 0 | Z182: 0 | AA182: 0 | AB182: 0 | AC182: 0
C183: 6.4 | D183: Otras unidades de apoyo terapéutico | E183: 6 | F183: 6.4.01 | G183: Otras unidades de apoyo terapéutico | H183: =IFERROR(+VLOOKUP(F183,'Cuadro 32'!E178:K366,7,FALSE)," ") -> 0 | M183: 0 | N183: 0 | P183: 0 | S183: Otras unidades de apoyo terapéutico | T183: 2.6 | U183: 2.6 | V183: 2.6 | W183: 2.6 | X183: 0 | Y183: 0 | Z183: 0 | AA183: 0 | AB183: 0 | AC183: 0
C184: 6.5 | D184: Rehabilitación y terapias | E184: 6 | F184: 6.5.01 | G184: Fisioterapia | H184: =IFERROR(+VLOOKUP(F184,'Cuadro 32'!E179:K367,7,FALSE)," ") -> 0 | M184: 0 | N184: 0 | P184: 0 | S184: Fisioterapia | T184: 0.75 | U184: 0.75 | V184: 0.75 | W184: 0.75 | X184: 0 | Y184: 0 | Z184: 0 | AA184: 0 | AB184: 0 | AC184: 0
E185: 6 | F185: 6.5.02 | G185: Fonoaudiología y/o terapia de lenguaje | H185: =IFERROR(+VLOOKUP(F185,'Cuadro 32'!E180:K368,7,FALSE)," ") -> 0 | M185: 0 | N185: 0 | P185: 0 | S185: Fonoaudiología y/o terapia de lenguaje | T185: 0.75 | U185: 0.75 | V185: 0.75 | W185: 0.75 | X185: 0 | Y185: 0 | Z185: 0 | AA185: 0 | AB185: 0 | AC185: 0
E186: 6 | F186: 6.5.03 | G186: Terapia ocupacional | H186: =IFERROR(+VLOOKUP(F186,'Cuadro 32'!E181:K369,7,FALSE)," ") -> 0 | M186: 0 | N186: 0 | P186: 0 | S186: Terapia ocupacional | T186: 0.75 | U186: 0.75 | V186: 0.75 | W186: 0.75 | X186: 0 | Y186: 0 | Z186: 0 | AA186: 0 | AB186: 0 | AC186: 0
E187: 6 | F187: 6.5.04 | G187: Terapia respiratoria | H187: =IFERROR(+VLOOKUP(F187,'Cuadro 32'!E182:K370,7,FALSE)," ") -> 0 | M187: 0 | N187: 0 | P187: 0 | S187: Terapia respiratoria | T187: 0.75 | U187: 0.75 | V187: 0.75 | W187: 0.75 | X187: 0 | Y187: 0 | Z187: 0 | AA187: 0 | AB187: 0 | AC187: 0
E188: 6 | F188: 6.5.05 | G188: Radioterapia | H188: =IFERROR(+VLOOKUP(F188,'Cuadro 32'!E183:K371,7,FALSE)," ") -> 0 | M188: 0 | N188: 0 | P188: 0 | S188: Radioterapia | V188: 51.33 | W188: 0 | X188: 0 | Y188: 0 | Z188: 0 | AA188: 0 | AB188: 0 | AC188: 0
C189: 6.6 | D189: Terapias oncológicas | E189: 6 | F189: 6.6.01 | G189: Oncología clínica | H189: =IFERROR(+VLOOKUP(F189,'Cuadro 32'!E184:K372,7,FALSE)," ") -> 0 | M189: 0 | N189: 0 | P189: 0 | S189: Oncología clínica | V189: 51.33 | W189: 0 | X189: 0 | Y189: 0 | Z189: 0 | AA189: 0 | AB189: 0 | AC189: 0
C190: 6.7 | D190: Unidad hemodinamia | E190: 6 | F190: 6.7.01 | G190: Diagnostico cardiovascular | H190: =IFERROR(+VLOOKUP(F190,'Cuadro 32'!E185:K373,7,FALSE)," ") -> 0 | M190: 0 | N190: 0 | P190: 0 | S190: Diagnostico cardiovascular | U190: 138.09 | V190: 262.1 | W190: 0 | X190: 0 | Y190: 0 | Z190: 0 | AA190: 0 | AB190: 0 | AC190: 0
E191: 6 | F191: 6.7.02 | G191: Hemodinamia | H191: =IFERROR(+VLOOKUP(F191,'Cuadro 32'!E186:K374,7,FALSE)," ") -> 0 | M191: 0 | N191: 0 | P191: 0 | S191: Hemodinamia | U191: 138.09 | V191: 262.1 | W191: 0 | X191: 0 | Y191: 0 | Z191: 0 | AA191: 0 | AB191: 0 | AC191: 0
E192: 6 | F192: 6.7.03 | G192: Ecocardiografía | H192: =IFERROR(+VLOOKUP(F192,'Cuadro 32'!E187:K375,7,FALSE)," ") -> 0 | M192: 0 | N192: 0 | P192: 0 | S192: Ecocardiografía | U192: =U170 -> 6.51 | V192: =V170 -> 37.4 | W192: 0 | X192: 0 | Y192: 0 | Z192: 0 | AA192: 0 | AB192: 0 | AC192: 0
C193: 6.8 | D193: Unidad renal | E193: 6 | F193: 6.8.01 | G193: Nefrología - diálisis renal | H193: =IFERROR(+VLOOKUP(F193,'Cuadro 32'!E188:K376,7,FALSE)," ") -> 0 | M193: 0 | N193: 0 | P193: 0 | S193: Nefrología - diálisis renal | V193: 262.1 | W193: 0 | X193: 0 | Y193: 0 | Z193: 0 | AA193: 0 | AB193: 0 | AC193: 0
E194: 6 | F194: 6.8.02 | G194: Urología procedimiento | H194: =IFERROR(+VLOOKUP(F194,'Cuadro 32'!E189:K377,7,FALSE)," ") -> 0 | M194: 0 | N194: 0 | P194: 0 | S194: Urología procedimiento | T194: =T191 -> 0 | U194: =U191 -> 138.09 | V194: =V191 -> 262.1 | W194: 0 | X194: 0 | Y194: 0 | Z194: 0 | AA194: 0 | AB194: 0 | AC194: 0
A195: 7 | B195: SERVICIOS CONEXOS A LA SALUD | C195: 7.01 | D195: Servicios conexos a la salud - Medio Ambiente | E195: 7 | F195: 7.01.01 | G195: Medio Ambiente | H195: 0 | M195: 0 | N195: 0 | P195: 0 | S195: Medio Ambiente | T195: 2.37 | U195: 2.37 | V195: 2.37 | W195: 2.37 | X195: 0 | Y195: 0 | Z195: 0 | AA195: 0 | AB195: 0 | AC195: 0
C196: 7.02 | D196: Servicios conexos a la salud - Ancianatos y albergues | E196: 7 | F196: 7.02.01 | G196: Ancianatos y albergues | H196: 0 | M196: 0 | N196: 0 | P196: 0 | S196: Ancianatos y albergues | T196: 10.74 | U196: 10.74 | V196: 10.74 | W196: 10.74 | X196: 0 | Y196: 0 | Z196: 0 | AA196: 0 | AB196: 0 | AC196: 0
C197: 7.03 | D197: Servicios conexos a la salud - Centros y puestos de salud | E197: 7 | F197: 7.03.01 | G197: Centros y puestos de salud | H197: 0 | M197: 0 | N197: 0 | P197: 0 | S197: Centros y puestos de salud | T197: 1.82 | U197: 1.82 | V197: 1.82 | W197: 1.82 | X197: 0 | Y197: 0 | Z197: 0 | AA197: 0 | AB197: 0 | AC197: 0
C198: 7.04 | D198: Servicios conexos a la salud - Servicios docentes | E198: 7 | F198: 7.04.01 | G198: Servicios docentes | H198: 0 | M198: 0 | N198: 0 | P198: 0 | S198: Servicios docentes | T198: 2.6 | U198: 2.6 | V198: 2.6 | W198: 2.6 | X198: 0 | Y198: 0 | Z198: 0 | AA198: 0 | AB198: 0 | AC198: 0
C199: 7.05 | D199: Servicios conexos a la salud - Investigación científica | E199: 7 | F199: 7.05.01 | G199: Investigación científica | H199: 0 | M199: 0 | N199: 0 | P199: 0 | S199: Investigación científica | V199: 363.03 | W199: 0 | X199: 0 | Y199: 0 | Z199: 0 | AA199: 0 | AB199: 0 | AC199: 0
C200: 7.06 | D200: Servicios conexos a la salud - Medicina legal | E200: 7 | F200: 7.06.01 | G200: Medicina Legal | H200: =+'Cuadro 32'!K190 -> 0 | M200: 0 | N200: 0 | P200: 0 | S200: Medicina Legal | T200: 7.53 | U200: 7.53 | V200: 7.53 | W200: 7.53 | X200: 0 | Y200: 0 | Z200: 0 | AA200: 0 | AB200: 0 | AC200: 0
C201: 7.07 | D201: Servicios conexos a la salud - Servicios de ambulancias | E201: 7 | F201: 7.07.01 | G201: Servicios de ambulancias | H201: =+'Cuadro 32'!K191+'Cuadro 32'!K192 -> 282.7678309 | M201: 0 | N201: 0 | P201: 0 | S201: Servicios de ambulancias | T201: 7.53 | U201: 11.64 | V201: 11.64 | W201: 7.53 | X201: 0 | Y201: 0 | Z201: 0 | AA201: 0 | AB201: 0 | AC201: 0
C202: 7.08 | D202: Servicios conexos a la salud - Otros servicios | E202: =MID(F202,1,1) -> 7 | F202: 7.08.01 | G202: Otros servicios conexos a la salud | H202: =+'Cuadro 32'!K193 -> 2843.10473 | M202: =SUM(I202:L202) -> 0 | N202: =IFERROR(+M202/H202,0) -> 0 | P202: =IFERROR(+O202/H202,0) -> 0 | S202: Otros servicios conexos a la salud | T202: 0.75 | U202: 0.75 | V202: 0.75 | W202: =IF($W$4=$T$9,T202,(IF($W$4=$U$9,U202,V202))) -> 0.75 | X202: 0 | Y202: 0 | Z202: 0 | AA202: 0 | AB202: 0 | AC202: 0
G203: TOTAL UVR | I203: =+X203 -> 0 | J203: =+Y203 -> 0 | K203: =+Z203 -> 0 | L203: =+AA203 -> 0 | M203: =+AB203 -> 0 | O203: =SUM(O10:O202) -> 0 | P203: =SUM(P10:P202) -> 0 | T203: TOTAL UVR | X203: =SUM(X10:X202) -> 0 | Y203: 0 | Z203: 0 | AA203: 0 | AB203: 0 | AC203: 0
I205: INFORME DE MONITOREO UVR | O205: INFORME DE SEGUIMIENTO UVR
... 9 more rows

Sheet Cuadro 4
B4: CUADRO No. 4 INFORME EJECUCIÓN TRIMESTRAL DEL PAGO DEL PASIVO PROGRAMA DE SANEAMIENTO FISCAL Y FINANCIERO
B5: PERIODO DE CORTE | C5: =+'Datos ESE'!C2 -> 2023 | D5: ESE | E5: =IF(+'Datos ESE'!C7=0," ",'Datos ESE'!C7) -> ESE HOSPITAL SAN JOSE DE CONDOTO | I5: TRIMESTRE 1 | M5: TRIMESTRE 2 | Q5: TRIMESTRE 3 | U5: TRIMESTRE 4
A6: Código Cuenta Contable | B6: Código Subcuenta Contable | C6: Nombre de la subcuenta contable | D6: Nit Tercero | E6: Nombre - Razón Social | F6: Prioridad de Pago | G6: VALOR TOTAL PROGRAMADO DE PASIVOS A LA FECHA DE INICIO DEL PSFF | H6: SALDO NETO AL CIERRE DE LA VIGENCIA ANTERIOR | I6: Ajustes contables (+ / -) (T1) | J6: Pagos (T1) | K6: Saldo Neto al cierre del Trimestre 1 | L6: OBSERVACIONES Y COMENTARIOS (T1) | M6: Ajustes contables (+ / -) (T2) | N6: Pagos (T2) | O6: Saldo Neto al cierre del Trimestre 2 | P6: OBSERVACIONES Y COMENTARIOS (T2) | Q6: Ajustes contables (+ / -) (T3) | R6: Pagos (T3) | S6: Saldo Neto al cierre del Trimestre 3 | T6: OBSERVACIONES Y COMENTARIOS (T3) | U6: Ajustes contables (+ / -) (T4) | V6: Pagos (T4) | W6: Saldo Neto al cierre del Trimestre 4 | X6: OBSERVACIONES Y COMENTARIOS (T4) | Y6: Cod_Prioridad | Z6: Llevar | AA6: Cargar | AB6: Revisar Duplicados (Revisar las columnas cuyo registro este en rojo)
A7: =IFERROR(SUBSTITUTE(MID(B7,1,3),",","."),"") ->  | C7: =IFERROR(+VLOOKUP(B7,Tabla192[[#All],[Subcuenta]:[Cuenta]],2,FALSE)," ") ->  | I7: 0 | J7: 0 | K7: =H7+I7-J7 -> 0 | L7: 0 | M7: 0 | N7: 0 | O7: =K7+M7-N7 -> 0 | P7: 0 | Q7: 0 | R7: 0 | S7: =O7+Q7-R7 -> 0 | T7: 0 | U7: 0 | V7: 0 | W7: =S7+U7-V7 -> 0 | X7: 0 | Y7: =IFERROR(VLOOKUP(F7,#REF!,2,FALSE),"") ->  | Z7: =1 -> 1 | AA7: =IF(ISBLANK(B7),0,1) -> 0 | AB7: =IF(TRIM(B7&D7)="",ROW(AA7),B7&D7) -> 7
C8: =IFERROR(+VLOOKUP(B8,Tabla192[[#All],[Subcuenta]:[Cuenta]],2,FALSE)," ") ->  | I8: 0 | J8: 0 | K8: 0 | L8: 0 | M8: 0 | N8: 0 | O8: 0 | P8: 0 | Q8: 0 | R8: 0 | S8: 0 | T8: 0 | U8: 0 | V8: 0 | W8: 0 | X8: 0 | Y8: =IFERROR(VLOOKUP(F8,#REF!,2,FALSE),"") ->  | Z8: =1 -> 1 | AA8: 0 | AB8: 8
C9: =IFERROR(+VLOOKUP(B9,Tabla192[[#All],[Subcuenta]:[Cuenta]],2,FALSE)," ") ->  | I9: 0 | J9: 0 | K9: 0 | L9: 0 | M9: 0 | N9: 0 | O9: 0 | P9: 0 | Q9: 0 | R9: 0 | S9: 0 | T9: 0 | U9: 0 | V9: 0 | W9: 0 | X9: 0 | Y9: =IFERROR(VLOOKUP(F9,#REF!,2,FALSE),"") ->  | Z9: =1 -> 1 | AA9: 0 | AB9: 9
C10: =IFERROR(+VLOOKUP(B10,Tabla192[[#All],[Subcuenta]:[Cuenta]],2,FALSE)," ") ->  | I10: 0 | J10: 0 | K10: 0 | L10: 0 | M10: 0 | N10: 0 | O10: 0 | P10: 0 | Q10: 0 | R10: 0 | S10: 0 | T10: 0 | U10: 0 | V10: 0 | W10: 0 | X10: 0 | Y10: =IFERROR(VLOOKUP(F10,#REF!,2,FALSE),"") ->  | Z10: =1 -> 1 | AA10: 0 | AB10: 10
C11: =IFERROR(+VLOOKUP(B11,Tabla192[[#All],[Subcuenta]:[Cuenta]],2,FALSE)," ") ->  | I11: 0 | J11: 0 | K11: 0 | L11: 0 | M11: 0 | N11: 0 | O11: 0 | P11: 0 | Q11: 0 | R11: 0 | S11: 0 | T11: 0 | U11: 0 | V11: 0 | W11: 0 | X11: 0 | Y11: =IFERROR(VLOOKUP(F11,#REF!,2,FALSE),"") ->  | Z11: =1 -> 1 | AA11: 0 | AB11: 11
C12: =IFERROR(+VLOOKUP(B12,Tabla192[[#All],[Subcuenta]:[Cuenta]],2,FALSE)," ") ->  | I12: 0 | J12: 0 | K12: 0 | L12: 0 | M12: 0 | N12: 0 | O12: 0 | P12: 0 | Q12: 0 | R12: 0 | S12: 0 | T12: 0 | U12: 0 | V12: 0 | W12: 0 | X12: 0 | Y12: =IFERROR(VLOOKUP(F12,#REF!,2,FALSE),"") ->  | Z12: =1 -> 1 | AA12: 0 | AB12: 12
C13: =IFERROR(+VLOOKUP(B13,Tabla192[[#All],[Subcuenta]:[Cuenta]],2,FALSE)," ") ->  | I13: 0 | J13: 0 | K13: 0 | L13: 0 | M13: 0 | N13: 0 | O13: 0 | P13: 0 | Q13: 0 | R13: 0 | S13: 0 | T13: 0 | U13: 0 | V13: 0 | W13: 0 | X13: 0 | Y13: =IFERROR(VLOOKUP(F13,#REF!,2,FALSE),"") ->  | Z13: =1 -> 1 | AA13: 0 | AB13: 13
C14: =IFERROR(+VLOOKUP(B14,Tabla192[[#All],[Subcuenta]:[Cuenta]],2,FALSE)," ") ->  | I14: 0 | J14: 0 | K14: 0 | L14: 0 | M14: 0 | N14: 0 | O14: 0 | P14: 0 | Q14: 0 | R14: 0 | S14: 0 | T14: 0 | U14: 0 | V14: 0 | W14: 0 | X14: 0 | Y14: =IFERROR(VLOOKUP(F14,#REF!,2,FALSE),"") ->  | Z14: =1 -> 1 | AA14: 0 | AB14: 14
C15: =IFERROR(+VLOOKUP(B15,Tabla192[[#All],[Subcuenta]:[Cuenta]],2,FALSE)," ") ->  | I15: 0 | J15: 0 | K15: 0 | L15: 0 | M15: 0 | N15: 0 | O15: 0 | P15: 0 | Q15: 0 | R15: 0 | S15: 0 | T15: 0 | U15: 0 | V15: 0 | W15: 0 | X15: 0 | Y15: =IFERROR(VLOOKUP(F15,#REF!,2,FALSE),"") ->  | Z15: =1 -> 1 | AA15: 0 | AB15: 15
C16: =IFERROR(+VLOOKUP(B16,Tabla192[[#All],[Subcuenta]:[Cuenta]],2,FALSE)," ") ->  | I16: 0 | J16: 0 | K16: 0 | L16: 0 | M16: 0 | N16: 0 | O16: 0 | P16: 0 | Q16: 0 | R16: 0 | S16: 0 | T16: 0 | U16: 0 | V16: 0 | W16: 0 | X16: 0 | Y16: =IFERROR(VLOOKUP(F16,#REF!,2,FALSE),"") ->  | Z16: =1 -> 1 | AA16: 0 | AB16: 16
C17: =IFERROR(+VLOOKUP(B17,Tabla192[[#All],[Subcuenta]:[Cuenta]],2,FALSE)," ") ->  | I17: 0 | J17: 0 | K17: 0 | L17: 0 | M17: 0 | N17: 0 | O17: 0 | P17: 0 | Q17: 0 | R17: 0 | S17: 0 | T17: 0 | U17: 0 | V17: 0 | W17: 0 | X17: 0 | Y17: =IFERROR(VLOOKUP(F17,#REF!,2,FALSE),"") ->  | Z17: =1 -> 1 | AA17: 0 | AB17: 17
C18: =IFERROR(+VLOOKUP(B18,Tabla192[[#All],[Subcuenta]:[Cuenta]],2,FALSE)," ") ->  | I18: 0 | J18: 0 | K18: 0 | L18: 0 | M18: 0 | N18: 0 | O18: 0 | P18: 0 | Q18: 0 | R18: 0 | S18: 0 | U18: 0 | V18: 0 | W18: 0 | X18: 0 | Y18: =IFERROR(VLOOKUP(F18,#REF!,2,FALSE),"") ->  | Z18: =1 -> 1 | AA18: 0 | AB18: 18
C19: =IFERROR(+VLOOKUP(B19,Tabla192[[#All],[Subcuenta]:[Cuenta]],2,FALSE)," ") ->  | I19: 0 | J19: 0 | K19: 0 | L19: 0 | M19: 0 | N19: 0 | O19: 0 | P19: 0 | Q19: 0 | R19: 0 | S19: 0 | U19: 0 | V19: 0 | W19: 0 | X19: 0 | Y19: =IFERROR(VLOOKUP(F19,#REF!,2,FALSE),"") ->  | Z19: =1 -> 1 | AA19: 0 | AB19: 19
C20: =IFERROR(+VLOOKUP(B20,Tabla192[[#All],[Subcuenta]:[Cuenta]],2,FALSE)," ") ->  | I20: 0 | J20: 0 | K20: 0 | L20: 0 | M20: 0 | N20: 0 | O20: 0 | P20: 0 | Q20: 0 | R20: 0 | S20: 0 | U20: 0 | V20: 0 | W20: 0 | X20: 0 | Y20: =IFERROR(VLOOKUP(F20,#REF!,2,FALSE),"") ->  | Z20: =1 -> 1 | AA20: 0 | AB20: 20
C21: =IFERROR(+VLOOKUP(B21,Tabla192[[#All],[Subcuenta]:[Cuenta]],2,FALSE)," ") ->  | I21: 0 | J21: 0 | K21: 0 | L21: 0 | M21: 0 | N21: 0 | O21: 0 | P21: 0 | Q21: 0 | R21: 0 | S21: 0 | U21: 0 | V21: 0 | W21: 0 | X21: 0 | Y21: =IFERROR(VLOOKUP(F21,#REF!,2,FALSE),"") ->  | Z21: =1 -> 1 | AA21: 0 | AB21: 21
C22: =IFERROR(+VLOOKUP(B22,Tabla192[[#All],[Subcuenta]:[Cuenta]],2,FALSE)," ") ->  | I22: 0 | J22: 0 | K22: 0 | L22: 0 | M22: 0 | N22: 0 | O22: 0 | P22: 0 | Q22: 0 | R22: 0 | S22: 0 | U22: 0 | V22: 0 | W22: 0 | X22: 0 | Y22: =IFERROR(VLOOKUP(F22,#REF!,2,FALSE),"") ->  | Z22: =1 -> 1 | AA22: 0 | AB22: 22
C23: =IFERROR(+VLOOKUP(B23,Tabla192[[#All],[Subcuenta]:[Cuenta]],2,FALSE)," ") ->  | I23: 0 | J23: 0 | K23: 0 | L23: 0 | M23: 0 | N23: 0 | O23: 0 | P23: 0 | Q23: 0 | R23: 0 | S23: 0 | U23: 0 | V23: 0 | W23: 0 | X23: 0 | Y23: =IFERROR(VLOOKUP(F23,#REF!,2,FALSE),"") ->  | Z23: =1 -> 1 | AA23: 0 | AB23: 23
C24: =IFERROR(+VLOOKUP(B24,Tabla192[[#All],[Subcuenta]:[Cuenta]],2,FALSE)," ") ->  | I24: 0 | J24: 0 | K24: 0 | L24: 0 | M24: 0 | N24: 0 | O24: 0 | P24: 0 | Q24: 0 | R24: 0 | S24: 0 | U24: 0 | V24: 0 | W24: 0 | X24: 0 | Y24: =IFERROR(VLOOKUP(F24,#REF!,2,FALSE),"") ->  | Z24: =1 -> 1 | AA24: 0 | AB24: 24
C25: =IFERROR(+VLOOKUP(B25,Tabla192[[#All],[Subcuenta]:[Cuenta]],2,FALSE)," ") ->  | I25: 0 | J25: 0 | K25: 0 | L25: 0 | M25: 0 | N25: 0 | O25: 0 | P25: 0 | Q25: 0 | R25: 0 | S25: 0 | U25: 0 | V25: 0 | W25: 0 | X25: 0 | Y25: =IFERROR(VLOOKUP(F25,#REF!,2,FALSE),"") ->  | Z25: =1 -> 1 | AA25: 0 | AB25: 25
C26: =IFERROR(+VLOOKUP(B26,Tabla192[[#All],[Subcuenta]:[Cuenta]],2,FALSE)," ") ->  | I26: 0 | J26: 0 | K26: 0 | L26: 0 | M26: 0 | N26: 0 | O26: 0 | P26: 0 | Q26: 0 | R26: 0 | S26: 0 | U26: 0 | V26: 0 | W26: 0 | X26: 0 | Y26: =IFERROR(VLOOKUP(F26,#REF!,2,FALSE),"") ->  | Z26: =1 -> 1 | AA26: 0 | AB26: 26
C27: =IFERROR(+VLOOKUP(B27,Tabla192[[#All],[Subcuenta]:[Cuenta]],2,FALSE)," ") ->  | I27: 0 | J27: 0 | K27: 0 | L27: 0 | M27: 0 | N27: 0 | O27: 0 | P27: 0 | Q27: 0 | R27: 0 | S27: 0 | U27: 0 | V27: 0 | W27: 0 | X27: 0 | Y27: =IFERROR(VLOOKUP(F27,#REF!,2,FALSE),"") ->  | Z27: =1 -> 1 | AA27: 0 | AB27: 27
C28: =IFERROR(+VLOOKUP(B28,Tabla192[[#All],[Subcuenta]:[Cuenta]],2,FALSE)," ") ->  | I28: 0 | J28: 0 | K28: 0 | L28: 0 | M28: 0 | N28: 0 | O28: 0 | P28: 0 | Q28: 0 | R28: 0 | S28: 0 | U28: 0 | V28: 0 | W28: 0 | X28: 0 | Y28: =IFERROR(VLOOKUP(F28,#REF!,2,FALSE),"") ->  | Z28: =1 -> 1 | AA28: 0 | AB28: 28
C29: =IFERROR(+VLOOKUP(B29,Tabla192[[#All],[Subcuenta]:[Cuenta]],2,FALSE)," ") ->  | I29: 0 | J29: 0 | K29: 0 | L29: 0 | M29: 0 | N29: 0 | O29: 0 | P29: 0 | Q29: 0 | R29: 0 | S29: 0 | U29: 0 | V29: 0 | W29: 0 | X29: 0 | Y29: =IFERROR(VLOOKUP(F29,#REF!,2,FALSE),"") ->  | Z29: =1 -> 1 | AA29: 0 | AB29: 29
C30: =IFERROR(+VLOOKUP(B30,Tabla192[[#All],[Subcuenta]:[Cuenta]],2,FALSE)," ") ->  | I30: 0 | J30: 0 | K30: 0 | L30: 0 | M30: 0 | N30: 0 | O30: 0 | P30: 0 | Q30: 0 | R30: 0 | S30: 0 | U30: 0 | V30: 0 | W30: 0 | X30: 0 | Y30: =IFERROR(VLOOKUP(F30,#REF!,2,FALSE),"") ->  | Z30: =1 -> 1 | AA30: 0 | AB30: 30
C31: =IFERROR(+VLOOKUP(B31,Tabla192[[#All],[Subcuenta]:[Cuenta]],2,FALSE)," ") ->  | I31: 0 | J31: 0 | K31: 0 | L31: 0 | M31: 0 | N31: 0 | O31: 0 | P31: 0 | Q31: 0 | R31: 0 | S31: 0 | U31: 0 | V31: 0 | W31: 0 | X31: 0 | Y31: =IFERROR(VLOOKUP(F31,#REF!,2,FALSE),"") ->  | Z31: =1 -> 1 | AA31: 0 | AB31: 31
C32: =IFERROR(+VLOOKUP(B32,Tabla192[[#All],[Subcuenta]:[Cuenta]],2,FALSE)," ") ->  | I32: 0 | J32: 0 | K32: 0 | L32: 0 | M32: 0 | N32: 0 | O32: 0 | P32: 0 | Q32: 0 | R32: 0 | S32: 0 | U32: 0 | V32: 0 | W32: 0 | X32: 0 | Y32: =IFERROR(VLOOKUP(F32,#REF!,2,FALSE),"") ->  | Z32: =1 -> 1 | AA32: 0 | AB32: 32
C33: =IFERROR(+VLOOKUP(B33,Tabla192[[#All],[Subcuenta]:[Cuenta]],2,FALSE)," ") ->  | I33: 0 | J33: 0 | K33: 0 | L33: 0 | M33: 0 | N33: 0 | O33: 0 | P33: 0 | Q33: 0 | R33: 0 | S33: 0 | U33: 0 | V33: 0 | W33: 0 | X33: 0 | Y33: =IFERROR(VLOOKUP(F33,#REF!,2,FALSE),"") ->  | Z33: =1 -> 1 | AA33: 0 | AB33: 33
C34: =IFERROR(+VLOOKUP(B34,Tabla192[[#All],[Subcuenta]:[Cuenta]],2,FALSE)," ") ->  | I34: 0 | J34: 0 | K34: 0 | L34: 0 | M34: 0 | N34: 0 | O34: 0 | P34: 0 | Q34: 0 | R34: 0 | S34: 0 | U34: 0 | V34: 0 | W34: 0 | X34: 0 | Y34: =IFERROR(VLOOKUP(F34,#REF!,2,FALSE),"") ->  | Z34: =1 -> 1 | AA34: 0 | AB34: 34
C35: =IFERROR(+VLOOKUP(B35,Tabla192[[#All],[Subcuenta]:[Cuenta]],2,FALSE)," ") ->  | I35: 0 | J35: 0 | K35: 0 | L35: 0 | M35: 0 | N35: 0 | O35: 0 | P35: 0 | Q35: 0 | R35: 0 | S35: 0 | U35: 0 | V35: 0 | W35: 0 | X35: 0 | Y35: =IFERROR(VLOOKUP(F35,#REF!,2,FALSE),"") ->  | Z35: =1 -> 1 | AA35: 0 | AB35: 35
C36: =IFERROR(+VLOOKUP(B36,Tabla192[[#All],[Subcuenta]:[Cuenta]],2,FALSE)," ") ->  | I36: 0 | J36: 0 | K36: 0 | L36: 0 | M36: 0 | N36: 0 | O36: 0 | P36: 0 | Q36: 0 | R36: 0 | S36: 0 | U36: 0 | V36: 0 | W36: 0 | X36: 0 | Y36: =IFERROR(VLOOKUP(F36,#REF!,2,FALSE),"") ->  | Z36: =1 -> 1 | AA36: 0 | AB36: 36
C37: =IFERROR(+VLOOKUP(B37,Tabla192[[#All],[Subcuenta]:[Cuenta]],2,FALSE)," ") ->  | I37: 0 | J37: 0 | K37: 0 | L37: 0 | M37: 0 | N37: 0 | O37: 0 | P37: 0 | Q37: 0 | R37: 0 | S37: 0 | U37: 0 | V37: 0 | W37: 0 | X37: 0 | Y37: =IFERROR(VLOOKUP(F37,#REF!,2,FALSE),"") ->  | Z37: =1 -> 1 | AA37: 0 | AB37: 37
C38: =IFERROR(+VLOOKUP(B38,Tabla192[[#All],[Subcuenta]:[Cuenta]],2,FALSE)," ") ->  | I38: 0 | J38: 0 | K38: 0 | L38: 0 | M38: 0 | N38: 0 | O38: 0 | P38: 0 | Q38: 0 | R38: 0 | S38: 0 | U38: 0 | V38: 0 | W38: 0 | X38: 0 | Y38: =IFERROR(VLOOKUP(F38,#REF!,2,FALSE),"") ->  | Z38: =1 -> 1 | AA38: 0 | AB38: 38
C39: =IFERROR(+VLOOKUP(B39,Tabla192[[#All],[Subcuenta]:[Cuenta]],2,FALSE)," ") ->  | I39: 0 | J39: 0 | K39: 0 | L39: 0 | M39: 0 | N39: 0 | O39: 0 | P39: 0 | Q39: 0 | R39: 0 | S39: 0 | U39: 0 | V39: 0 | W39: 0 | X39: 0 | Y39: =IFERROR(VLOOKUP(F39,#REF!,2,FALSE),"") ->  | Z39: =1 -> 1 | AA39: 0 | AB39: 39
C40: =IFERROR(+VLOOKUP(B40,Tabla192[[#All],[Subcuenta]:[Cuenta]],2,FALSE)," ") ->  | I40: 0 | J40: 0 | K40: 0 | L40: 0 | M40: 0 | N40: 0 | O40: 0 | P40: 0 | Q40: 0 | R40: 0 | S40: 0 | U40: 0 | V40: 0 | W40: 0 | X40: 0 | Y40: =IFERROR(VLOOKUP(F40,#REF!,2,FALSE),"") ->  | Z40: =1 -> 1 | AA40: 0 | AB40: 40
C41: =IFERROR(+VLOOKUP(B41,Tabla192[[#All],[Subcuenta]:[Cuenta]],2,FALSE)," ") ->  | I41: 0 | J41: 0 | K41: 0 | L41: 0 | M41: 0 | N41: 0 | O41: 0 | P41: 0 | Q41: 0 | R41: 0 | S41: 0 | U41: 0 | V41: 0 | W41: 0 | X41: 0 | Y41: =IFERROR(VLOOKUP(F41,#REF!,2,FALSE),"") ->  | Z41: =1 -> 1 | AA41: 0 | AB41: 41
C42: =IFERROR(+VLOOKUP(B42,Tabla192[[#All],[Subcuenta]:[Cuenta]],2,FALSE)," ") ->  | I42: 0 | J42: 0 | K42: 0 | L42: 0 | M42: 0 | N42: 0 | O42: 0 | P42: 0 | Q42: 0 | R42: 0 | S42: 0 | U42: 0 | V42: 0 | W42: 0 | X42: 0 | Y42: =IFERROR(VLOOKUP(F42,#REF!,2,FALSE),"") ->  | Z42: =1 -> 1 | AA42: 0 | AB42: 42
C43: =IFERROR(+VLOOKUP(B43,Tabla192[[#All],[Subcuenta]:[Cuenta]],2,FALSE)," ") ->  | I43: 0 | J43: 0 | K43: 0 | L43: 0 | M43: 0 | N43: 0 | O43: 0 | P43: 0 | Q43: 0 | R43: 0 | S43: 0 | U43: 0 | V43: 0 | W43: 0 | X43: 0 | Y43: =IFERROR(VLOOKUP(F43,#REF!,2,FALSE),"") ->  | Z43: =1 -> 1 | AA43: 0 | AB43: 43
C44: =IFERROR(+VLOOKUP(B44,Tabla192[[#All],[Subcuenta]:[Cuenta]],2,FALSE)," ") ->  | I44: 0 | J44: 0 | K44: 0 | L44: 0 | M44: 0 | N44: 0 | O44: 0 | P44: 0 | Q44: 0 | R44: 0 | S44: 0 | U44: 0 | V44: 0 | W44: 0 | X44: 0 | Y44: =IFERROR(VLOOKUP(F44,#REF!,2,FALSE),"") ->  | Z44: =1 -> 1 | AA44: 0 | AB44: 44
C45: =IFERROR(+VLOOKUP(B45,Tabla192[[#All],[Subcuenta]:[Cuenta]],2,FALSE)," ") ->  | I45: 0 | J45: 0 | K45: 0 | L45: 0 | M45: 0 | N45: 0 | O45: 0 | P45: 0 | Q45: 0 | R45: 0 | S45: 0 | U45: 0 | V45: 0 | W45: 0 | X45: 0 | Y45: =IFERROR(VLOOKUP(F45,#REF!,2,FALSE),"") ->  | Z45: =1 -> 1 | AA45: 0 | AB45: 45
C46: =IFERROR(+VLOOKUP(B46,Tabla192[[#All],[Subcuenta]:[Cuenta]],2,FALSE)," ") ->  | I46: 0 | J46: 0 | K46: 0 | L46: 0 | M46: 0 | N46: 0 | O46: 0 | P46: 0 | Q46: 0 | R46: 0 | S46: 0 | U46: 0 | V46: 0 | W46: 0 | X46: 0 | Y46: =IFERROR(VLOOKUP(F46,#REF!,2,FALSE),"") ->  | Z46: =1 -> 1 | AA46: 0 | AB46: 46
C47: =IFERROR(+VLOOKUP(B47,Tabla192[[#All],[Subcuenta]:[Cuenta]],2,FALSE)," ") ->  | I47: 0 | J47: 0 | K47: 0 | L47: 0 | M47: 0 | N47: 0 | O47: 0 | P47: 0 | Q47: 0 | R47: 0 | S47: 0 | U47: 0 | V47: 0 | W47: 0 | X47: 0 | Y47: =IFERROR(VLOOKUP(F47,#REF!,2,FALSE),"") ->  | Z47: =1 -> 1 | AA47: 0 | AB47: 47
C48: =IFERROR(+VLOOKUP(B48,Tabla192[[#All],[Subcuenta]:[Cuenta]],2,FALSE)," ") ->  | I48: 0 | J48: 0 | K48: 0 | L48: 0 | M48: 0 | N48: 0 | O48: 0 | P48: 0 | Q48: 0 | R48: 0 | S48: 0 | U48: 0 | V48: 0 | W48: 0 | X48: 0 | Y48: =IFERROR(VLOOKUP(F48,#REF!,2,FALSE),"") ->  | Z48: =1 -> 1 | AA48: 0 | AB48: 48
C49: =IFERROR(+VLOOKUP(B49,Tabla192[[#All],[Subcuenta]:[Cuenta]],2,FALSE)," ") ->  | I49: 0 | J49: 0 | K49: 0 | L49: 0 | M49: 0 | N49: 0 | O49: 0 | P49: 0 | Q49: 0 | R49: 0 | S49: 0 | U49: 0 | V49: 0 | W49: 0 | X49: 0 | Y49: =IFERROR(VLOOKUP(F49,#REF!,2,FALSE),"") ->  | Z49: =1 -> 1 | AA49: 0 | AB49: 49
C50: =IFERROR(+VLOOKUP(B50,Tabla192[[#All],[Subcuenta]:[Cuenta]],2,FALSE)," ") ->  | I50: 0 | J50: 0 | K50: 0 | L50: 0 | M50: 0 | N50: 0 | O50: 0 | P50: 0 | Q50: 0 | R50: 0 | S50: 0 | U50: 0 | V50: 0 | W50: 0 | X50: 0 | Y50: =IFERROR(VLOOKUP(F50,#REF!,2,FALSE),"") ->  | Z50: =1 -> 1 | AA50: 0 | AB50: 50
C51: =IFERROR(+VLOOKUP(B51,Tabla192[[#All],[Subcuenta]:[Cuenta]],2,FALSE)," ") ->  | I51: 0 | J51: 0 | K51: 0 | L51: 0 | M51: 0 | N51: 0 | O51: 0 | P51: 0 | Q51: 0 | R51: 0 | S51: 0 | U51: 0 | V51: 0 | W51: 0 | X51: 0 | Y51: =IFERROR(VLOOKUP(F51,#REF!,2,FALSE),"") ->  | Z51: =1 -> 1 | AA51: 0 | AB51: 51
C52: =IFERROR(+VLOOKUP(B52,Tabla192[[#All],[Subcuenta]:[Cuenta]],2,FALSE)," ") ->  | I52: 0 | J52: 0 | K52: 0 | L52: 0 | M52: 0 | N52: 0 | O52: 0 | P52: 0 | Q52: 0 | R52: 0 | S52: 0 | U52: 0 | V52: 0 | W52: 0 | X52: 0 | Y52: =IFERROR(VLOOKUP(F52,#REF!,2,FALSE),"") ->  | Z52: =1 -> 1 | AA52: 0 | AB52: 52
C53: =IFERROR(+VLOOKUP(B53,Tabla192[[#All],[Subcuenta]:[Cuenta]],2,FALSE)," ") ->  | I53: 0 | J53: 0 | K53: 0 | L53: 0 | M53: 0 | N53: 0 | O53: 0 | P53: 0 | Q53: 0 | R53: 0 | S53: 0 | U53: 0 | V53: 0 | W53: 0 | X53: 0 | Y53: =IFERROR(VLOOKUP(F53,#REF!,2,FALSE),"") ->  | Z53: =1 -> 1 | AA53: 0 | AB53: 53
C54: =IFERROR(+VLOOKUP(B54,Tabla192[[#All],[Subcuenta]:[Cuenta]],2,FALSE)," ") ->  | I54: 0 | J54: 0 | K54: 0 | L54: 0 | M54: 0 | N54: 0 | O54: 0 | P54: 0 | Q54: 0 | R54: 0 | S54: 0 | U54: 0 | V54: 0 | W54: 0 | X54: 0 | Y54: =IFERROR(VLOOKUP(F54,#REF!,2,FALSE),"") ->  | Z54: =1 -> 1 | AA54: 0 | AB54: 54
C55: =IFERROR(+VLOOKUP(B55,Tabla192[[#All],[Subcuenta]:[Cuenta]],2,FALSE)," ") ->  | I55: 0 | J55: 0 | K55: 0 | L55: 0 | M55: 0 | N55: 0 | O55: 0 | P55: 0 | Q55: 0 | R55: 0 | S55: 0 | U55: 0 | V55: 0 | W55: 0 | X55: 0 | Y55: =IFERROR(VLOOKUP(F55,#REF!,2,FALSE),"") ->  | Z55: =1 -> 1 | AA55: 0 | AB55: 55
C56: =IFERROR(+VLOOKUP(B56,Tabla192[[#All],[Subcuenta]:[Cuenta]],2,FALSE)," ") ->  | I56: 0 | J56: 0 | K56: 0 | L56: 0 | M56: 0 | N56: 0 | O56: 0 | P56: 0 | Q56: 0 | R56: 0 | S56: 0 | U56: 0 | V56: 0 | W56: 0 | X56: 0 | Y56: =IFERROR(VLOOKUP(F56,#REF!,2,FALSE),"") ->  | Z56: =1 -> 1 | AA56: 0 | AB56: 56
C57: =IFERROR(+VLOOKUP(B57,Tabla192[[#All],[Subcuenta]:[Cuenta]],2,FALSE)," ") ->  | I57: 0 | J57: 0 | K57: 0 | L57: 0 | M57: 0 | N57: 0 | O57: 0 | P57: 0 | Q57: 0 | R57: 0 | S57: 0 | U57: 0 | V57: 0 | W57: 0 | X57: 0 | Y57: =IFERROR(VLOOKUP(F57,#REF!,2,FALSE),"") ->  | Z57: =1 -> 1 | AA57: 0 | AB57: 57
C58: =IFERROR(+VLOOKUP(B58,Tabla192[[#All],[Subcuenta]:[Cuenta]],2,FALSE)," ") ->  | I58: 0 | J58: 0 | K58: 0 | L58: 0 | M58: 0 | N58: 0 | O58: 0 | P58: 0 | Q58: 0 | R58: 0 | S58: 0 | U58: 0 | V58: 0 | W58: 0 | X58: 0 | Y58: =IFERROR(VLOOKUP(F58,#REF!,2,FALSE),"") ->  | Z58: =1 -> 1 | AA58: 0 | AB58: 58
C59: =IFERROR(+VLOOKUP(B59,Tabla192[[#All],[Subcuenta]:[Cuenta]],2,FALSE)," ") ->  | I59: 0 | J59: 0 | K59: 0 | L59: 0 | M59: 0 | N59: 0 | O59: 0 | P59: 0 | Q59: 0 | R59: 0 | S59: 0 | U59: 0 | V59: 0 | W59: 0 | X59: 0 | Y59: =IFERROR(VLOOKUP(F59,#REF!,2,FALSE),"") ->  | Z59: =1 -> 1 | AA59: 0 | AB59: 59
C60: =IFERROR(+VLOOKUP(B60,Tabla192[[#All],[Subcuenta]:[Cuenta]],2,FALSE)," ") ->  | I60: 0 | J60: 0 | K60: 0 | L60: 0 | M60: 0 | N60: 0 | O60: 0 | P60: 0 | Q60: 0 | R60: 0 | S60: 0 | U60: 0 | V60: 0 | W60: 0 | X60: 0 | Y60: =IFERROR(VLOOKUP(F60,#REF!,2,FALSE),"") ->  | Z60: =1 -> 1 | AA60: 0 | AB60: 60
C61: =IFERROR(+VLOOKUP(B61,Tabla192[[#All],[Subcuenta]:[Cuenta]],2,FALSE)," ") ->  | I61: 0 | J61: 0 | K61: 0 | L61: 0 | M61: 0 | N61: 0 | O61: 0 | P61: 0 | Q61: 0 | R61: 0 | S61: 0 | U61: 0 | V61: 0 | W61: 0 | X61: 0 | Y61: =IFERROR(VLOOKUP(F61,#REF!,2,FALSE),"") ->  | Z61: =1 -> 1 | AA61: 0 | AB61: 61
C62: =IFERROR(+VLOOKUP(B62,Tabla192[[#All],[Subcuenta]:[Cuenta]],2,FALSE)," ") ->  | I62: 0 | J62: 0 | K62: 0 | L62: 0 | M62: 0 | N62: 0 | O62: 0 | P62: 0 | Q62: 0 | R62: 0 | S62: 0 | U62: 0 | V62: 0 | W62: 0 | X62: 0 | Y62: =IFERROR(VLOOKUP(F62,#REF!,2,FALSE),"") ->  | Z62: =1 -> 1 | AA62: 0 | AB62: 62
C63: =IFERROR(+VLOOKUP(B63,Tabla192[[#All],[Subcuenta]:[Cuenta]],2,FALSE)," ") ->  | I63: 0 | J63: 0 | K63: 0 | L63: 0 | M63: 0 | N63: 0 | O63: 0 | P63: 0 | Q63: 0 | R63: 0 | S63: 0 | U63: 0 | V63: 0 | W63: 0 | X63: 0 | Y63: =IFERROR(VLOOKUP(F63,#REF!,2,FALSE),"") ->  | Z63: =1 -> 1 | AA63: 0 | AB63: 63
C64: =IFERROR(+VLOOKUP(B64,Tabla192[[#All],[Subcuenta]:[Cuenta]],2,FALSE)," ") ->  | I64: 0 | J64: 0 | K64: 0 | L64: 0 | M64: 0 | N64: 0 | O64: 0 | P64: 0 | Q64: 0 | R64: 0 | S64: 0 | U64: 0 | V64: 0 | W64: 0 | X64: 0 | Y64: =IFERROR(VLOOKUP(F64,#REF!,2,FALSE),"") ->  | Z64: =1 -> 1 | AA64: 0 | AB64: 64
